Workbook

Sheet DicvGesamt
A1: Spendenbilanz Caritasverband der Diözese Rottenburg-Stuttgart e.V. | Z1: Gesamt
A3: ="Mandant: "& INDEX(IndexCrGb!$D:$E,MATCH($Z$1,IndexCrGb!$E:$E,0),1) -> Mandant: Caritasverband der Diözese Rottenburg-Stuttgart insgesamt | G3: Stichtag: | I3: 2023-12-31 | Z3: Anlage 10
C7: Spendenbriefe | E7: Sammeltagsmittel | G7: Weitere (Geld)Spenden | J7: Erbschaften | M7: Bußgelder | O7: Stiftungsmittel | Q7: Sachspenden | S7: Summe | Z7: Summe
C8: 2023 | D8: 2022 | E8: 2023 | F8: 2022 | G8: 2023 | H8: davon aus Vorjahren | I8: 2022 | J8: 2023 | K8: davon aus Vorjahren | L8: 2022 | M8: 2023 | N8: 2022 | O8: 2023 | P8: 2022 | Q8: 2023 | R8: 2022 | S8: 2023 | Z8: 2022 | AC8: =S8 -> 2023 | AD8: =Z8 -> 2022
C9: EUR | D9: EUR | E9: EUR | F9: EUR | G9: EUR | H9: EUR | I9: EUR | J9: EUR | K9: EUR | L9: EUR | M9: EUR | N9: EUR | O9: EUR | P9: EUR | Q9: EUR | R9: EUR | S9: EUR | Z9: EUR
A11: Mittelherkunft 01.01.
A12: Rücklagen Erbschaften/Spenden | S12: =SUM(S13:S14) -> 394275.89 | T12: 0 | U12: 0 | V12: 0 | W12: 0 | X12: 0 | Y12: 0 | Z12: 395164.44
A13: ErbRückl | B13: Rücklagen Erbschaften | C13: =DicvGeschäftsstelle!C13+CaritasRegionen!C13 -> 0 | D13: =DicvGeschäftsstelle!D13+CaritasRegionen!D13 -> 0 | E13: =DicvGeschäftsstelle!E13+CaritasRegionen!E13 -> 0 | F13: =DicvGeschäftsstelle!F13+CaritasRegionen!F13 -> 0 | G13: =DicvGeschäftsstelle!G13+CaritasRegionen!G13 -> 0 | H13: =DicvGeschäftsstelle!H13+CaritasRegionen!H13 -> 0 | I13: =DicvGeschäftsstelle!I13+CaritasRegionen!I13 -> 0 | J13: =DicvGeschäftsstelle!J13+CaritasRegionen!J13 -> 394275.89 | K13: =DicvGeschäftsstelle!K13+CaritasRegionen!K13 -> 0 | L13: =DicvGeschäftsstelle!L13+CaritasRegionen!L13 -> 395164.44 | M13: =DicvGeschäftsstelle!M13+CaritasRegionen!M13 -> 0 | N13: =DicvGeschäftsstelle!N13+CaritasRegionen!N13 -> 0 | O13: =DicvGeschäftsstelle!O13+CaritasRegionen!O13 -> 0 | P13: =DicvGeschäftsstelle!P13+CaritasRegionen!P13 -> 0 | Q13: =DicvGeschäftsstelle!Q13+CaritasRegionen!Q13 -> 0 | R13: =DicvGeschäftsstelle!R13+CaritasRegionen!R13 -> 0 | S13: =C13+E13+G13+J13+M13+O13+Q13 -> 394275.89 | Z13: =D13+F13+I13+L13+N13+P13+R13 -> 395164.44 | AC13: =SUMIF($C$8:$R$8,AC$8,$C13:$R13)-S13 -> 0 | AD13: =SUMIF($C$8:$R$8,AD$8,$C13:$R13)-Z13 -> 0
A14: ErbVerb | B14: Rücklagen Spenden | C14: =DicvGeschäftsstelle!C14+CaritasRegionen!C14 -> 0 | D14: =DicvGeschäftsstelle!D14+CaritasRegionen!D14 -> 0 | E14: =DicvGeschäftsstelle!E14+CaritasRegionen!E14 -> 0 | F14: =DicvGeschäftsstelle!F14+CaritasRegionen!F14 -> 0 | G14: =DicvGeschäftsstelle!G14+CaritasRegionen!G14 -> 0 | H14: =DicvGeschäftsstelle!H14+CaritasRegionen!H14 -> 0 | I14: =DicvGeschäftsstelle!I14+CaritasRegionen!I14 -> 0 | J14: =DicvGeschäftsstelle!J14+CaritasRegionen!J14 -> 0 | K14: =DicvGeschäftsstelle!K14+CaritasRegionen!K14 -> 0 | L14: =DicvGeschäftsstelle!L14+CaritasRegionen!L14 -> 0 | M14: =DicvGeschäftsstelle!M14+CaritasRegionen!M14 -> 0 | N14: =DicvGeschäftsstelle!N14+CaritasRegionen!N14 -> 0 | O14: =DicvGeschäftsstelle!O14+CaritasRegionen!O14 -> 0 | P14: =DicvGeschäftsstelle!P14+CaritasRegionen!P14 -> 0 | Q14: =DicvGeschäftsstelle!Q14+CaritasRegionen!Q14 -> 0 | R14: =DicvGeschäftsstelle!R14+CaritasRegionen!R14 -> 0 | S14: =C14+E14+G14+J14+M14 -> 0 | Z14: =D14+F14+I14+L14+N14 -> 0 | AC14: =SUMIF($C$8:$R$8,AC$8,$C14:$R14)-S14 -> 0 | AD14: =SUMIF($C$8:$R$8,AD$8,$C14:$R14)-Z14 -> 0
A15: Noch nicht verbrauchte Spendenmittel/Erbschaften | S15: =SUM(S16:S18) -> 7271524.92 | T15: =T16 -> 0 | U15: 0 | V15: 0 | W15: 0 | X15: 0 | Y15: 0 | Z15: =SUM(Z16:Z18) -> 4382083.6
B16: nicht verbrauchte Erbschaften | C16: =DicvGeschäftsstelle!C16+CaritasRegionen!C16 -> 0 | D16: =DicvGeschäftsstelle!D16+CaritasRegionen!D16 -> 0 | E16: =DicvGeschäftsstelle!E16+CaritasRegionen!E16 -> 0 | F16: =DicvGeschäftsstelle!F16+CaritasRegionen!F16 -> 0 | G16: =DicvGeschäftsstelle!G16+CaritasRegionen!G16 -> 0 | H16: =DicvGeschäftsstelle!H16+CaritasRegionen!H16 -> 0 | I16: =DicvGeschäftsstelle!I16+CaritasRegionen!I16 -> 0 | J16: =DicvGeschäftsstelle!J16+CaritasRegionen!J16 -> 1105280.31 | K16: =DicvGeschäftsstelle!K16+CaritasRegionen!K16 -> 0 | L16: =DicvGeschäftsstelle!L16+CaritasRegionen!L16 -> 1203432.17 | M16: =DicvGeschäftsstelle!M16+CaritasRegionen!M16 -> 0 | N16: =DicvGeschäftsstelle!N16+CaritasRegionen!N16 -> 0 | O16: =DicvGeschäftsstelle!O16+CaritasRegionen!O16 -> 0 | P16: =DicvGeschäftsstelle!P16+CaritasRegionen!P16 -> 0 | Q16: =DicvGeschäftsstelle!Q16+CaritasRegionen!Q16 -> 0 | R16: =DicvGeschäftsstelle!R16+CaritasRegionen!R16 -> 0 | S16: =C16+E16+G16+J16+M16+O16+Q16 -> 1105280.31 | Z16: =D16+F16+I16+L16+N16+P16+R16 -> 1203432.17 | AC16: =SUMIF($C$8:$R$8,AC$8,$C16:$R16)-S16 -> 0 | AD16: =SUMIF($C$8:$R$8,AD$8,$C16:$R16)-Z16 -> 0
A17: Zwischensumme 1 | B17: nicht verbrauchte Spendenmittel | C17: =DicvGeschäftsstelle!C17+CaritasRegionen!C17 -> 257879.19 | D17: =DicvGeschäftsstelle!D17+CaritasRegionen!D17 -> 450158.57 | E17: =DicvGeschäftsstelle!E17+CaritasRegionen!E17 -> 233298.81 | F17: =DicvGeschäftsstelle!F17+CaritasRegionen!F17 -> 265765.5 | G17: =DicvGeschäftsstelle!G17+CaritasRegionen!G17 -> 5675066.61 | H17: =DicvGeschäftsstelle!H17+CaritasRegionen!H17 -> 0 | I17: =DicvGeschäftsstelle!I17+CaritasRegionen!I17 -> 2462727.36 | J17: =DicvGeschäftsstelle!J17+CaritasRegionen!J17 -> 0 | K17: =DicvGeschäftsstelle!K17+CaritasRegionen!K17 -> 0 | L17: =DicvGeschäftsstelle!L17+CaritasRegionen!L17 -> 0 | M17: =DicvGeschäftsstelle!M17+CaritasRegionen!M17 -> 0 | N17: =DicvGeschäftsstelle!N17+CaritasRegionen!N17 -> 0 | O17: =DicvGeschäftsstelle!O17+CaritasRegionen!O17 -> 0 | P17: =DicvGeschäftsstelle!P17+CaritasRegionen!P17 -> 0 | Q17: =DicvGeschäftsstelle!Q17+CaritasRegionen!Q17 -> 0 | R17: =DicvGeschäftsstelle!R17+CaritasRegionen!R17 -> 0 | S17: =C17+E17+G17+J17+M17+O17+Q17 -> 6166244.61 | Z17: =D17+F17+I17+L17+N17+P17+R17 -> 3178651.43 | AC17: =SUMIF($C$8:$R$8,AC$8,$C17:$R17)-S17 -> 0 | AD17: =SUMIF($C$8:$R$8,AD$8,$C17:$R17)-Z17 -> 0
A18: Umbuchung Caritasregionen | C18: =DicvGeschäftsstelle!C18+CaritasRegionen!C18 -> 0 | D18: =DicvGeschäftsstelle!D18+CaritasRegionen!D18 -> 0 | E18: =DicvGeschäftsstelle!E18+CaritasRegionen!E18 -> 0 | F18: =DicvGeschäftsstelle!F18+CaritasRegionen!F18 -> 0 | G18: =DicvGeschäftsstelle!G18+CaritasRegionen!G18 -> 0 | H18: =DicvGeschäftsstelle!H18+CaritasRegionen!H18 -> 0 | I18: =DicvGeschäftsstelle!I18+CaritasRegionen!I18 -> 0 | J18: =DicvGeschäftsstelle!J18+CaritasRegionen!J18 -> 0 | K18: =DicvGeschäftsstelle!K18+CaritasRegionen!K18 -> 0 | L18: =DicvGeschäftsstelle!L18+CaritasRegionen!L18 -> 0 | M18: =DicvGeschäftsstelle!M18+CaritasRegionen!M18 -> 0 | N18: =DicvGeschäftsstelle!N18+CaritasRegionen!N18 -> 0 | O18: =DicvGeschäftsstelle!O18+CaritasRegionen!O18 -> 0 | P18: =DicvGeschäftsstelle!P18+CaritasRegionen!P18 -> 0 | Q18: =DicvGeschäftsstelle!Q18+CaritasRegionen!Q18 -> 0 | R18: =DicvGeschäftsstelle!R18+CaritasRegionen!R18 -> 0 | S18: =C18+E18+G18+J18+M18+O18+Q18 -> 0 | Z18: =D18+F18+I18+L18+N18+P18+R18 -> 0 | AC18: =SUMIF($C$8:$R$8,AC$8,$C18:$R18)-S18 -> 0 | AD18: =SUMIF($C$8:$R$8,AD$8,$C18:$R18)-Z18 -> 0
A19: Zufluss | C19: =DicvGeschäftsstelle!C19+CaritasRegionen!C19 -> 666633.65 | D19: =DicvGeschäftsstelle!D19+CaritasRegionen!D19 -> 441720.2 | E19: =DicvGeschäftsstelle!E19+CaritasRegionen!E19 -> 267020.59 | F19: =DicvGeschäftsstelle!F19+CaritasRegionen!F19 -> 338675.92 | G19: =DicvGeschäftsstelle!G19+CaritasRegionen!G19 -> 2118153.96 | H19: =DicvGeschäftsstelle!H19+CaritasRegionen!H19 -> 0 | I19: =DicvGeschäftsstelle!I19+CaritasRegionen!I19 -> 5773014.16 | J19: =DicvGeschäftsstelle!J19+CaritasRegionen!J19 -> 237076.16 | K19: =DicvGeschäftsstelle!K19+CaritasRegionen!K19 -> 0 | L19: =DicvGeschäftsstelle!L19+CaritasRegionen!L19 -> 544471.62 | M19: =DicvGeschäftsstelle!M19+CaritasRegionen!M19 -> 181153 | N19: =DicvGeschäftsstelle!N19+CaritasRegionen!N19 -> 174240.01 | O19: =DicvGeschäftsstelle!O19+CaritasRegionen!O19 -> 1488816.49 | P19: =DicvGeschäftsstelle!P19+CaritasRegionen!P19 -> 1230329.8 | Q19: =DicvGeschäftsstelle!Q19+CaritasRegionen!Q19 -> 211836.82 | R19: =DicvGeschäftsstelle!R19+CaritasRegionen!R19 -> 153147.05 | S19: =C19+E19+G19+J19+M19+O19+Q19 -> 5170690.67 | Z19: =D19+F19+I19+L19+N19+P19+R19 -> 8655598.76 | AC19: =SUMIF($C$8:$R$8,AC$8,$C19:$R19)-S19 -> 0 | AD19: =SUMIF($C$8:$R$8,AD$8,$C19:$R19)-Z19 -> 0
A20: Gesamt | C20: =SUM(C13:C14,C16:C19) -> 924512.84 | D20: 891878.77 | E20: 500319.4 | F20: 604441.42 | G20: 7793220.57 | H20: 0 | I20: 8235741.52 | J20: 1736632.36 | K20: 0 | L20: 2143068.23 | M20: 181153 | N20: 174240.01 | O20: 1488816.49 | P20: 1230329.8 | Q20: 211836.82 | R20: 153147.05 | S20: =S12+S15+S18+S19 -> 12836491.48 | T20: =T12+T15+#REF!+T19 ->  | U20: =U12+U15+#REF!+U19 ->  | V20: =V12+V15+#REF!+V19 ->  | W20: =W12+W15+#REF!+W19 ->  | X20: =X12+X15+#REF!+X19 ->  | Y20: =Y12+Y15+#REF!+Y19 ->  | Z20: =Z12+Z15+Z18+Z19 -> 13432846.8 | AC20: =SUMIF($C$8:$R$8,AC$8,$C20:$R20)-S20 -> 0 | AD20: =SUMIF($C$8:$R$8,AD$8,$C20:$R20)-Z20 -> 0
A22: Mittelverwendung
B23: =SpBilanzVerd2022!$J$3 -> Caritasarbeit allgemein | C23: =DicvGeschäftsstelle!C23+CaritasRegionen!C23 -> -96729.9 | D23: =DicvGeschäftsstelle!D23+CaritasRegionen!D23 -> -32003.52 | E23: =DicvGeschäftsstelle!E23+CaritasRegionen!E23 -> 0 | F23: =DicvGeschäftsstelle!F23+CaritasRegionen!F23 -> -11000 | G23: =DicvGeschäftsstelle!G23+CaritasRegionen!G23 -> -65719.22 | H23: =DicvGeschäftsstelle!H23+CaritasRegionen!H23 -> -15772.75 | I23: =DicvGeschäftsstelle!I23+CaritasRegionen!I23 -> -62697.95 | J23: =DicvGeschäftsstelle!J23+CaritasRegionen!J23 -> -56394.44 | K23: =DicvGeschäftsstelle!K23+CaritasRegionen!K23 -> -33638.69 | L23: =DicvGeschäftsstelle!L23+CaritasRegionen!L23 -> -320290.26 | M23: =DicvGeschäftsstelle!M23+CaritasRegionen!M23 -> -19675 | N23: =DicvGeschäftsstelle!N23+CaritasRegionen!N23 -> -33365.6 | O23: =DicvGeschäftsstelle!O23+CaritasRegionen!O23 -> -45670.94 | P23: =DicvGeschäftsstelle!P23+CaritasRegionen!P23 -> -48205.9 | Q23: =DicvGeschäftsstelle!Q23+CaritasRegionen!Q23 -> -639.6 | R23: =DicvGeschäftsstelle!R23+CaritasRegionen!R23 -> -58 | S23: =C23+E23+G23+J23+M23+O23+Q23 -> -284829.1 | Z23: =D23+F23+I23+L23+N23+P23+R23 -> -507621.23 | AA23: =IF(S23=0,"",-S23) -> 284829.1 | AB23: =IF(S23=0,"",$B23) -> Caritasarbeit allgemein | AC23: =SUMIF($C$8:$R$8,AC$8,$C23:$R23)-S23 -> 0 | AD23: =SUMIF($C$8:$R$8,AD$8,$C23:$R23)-Z23 -> 0 | AE23: =AA23 -> 284829.1 | AF23: Caritasarbeit allgemein
B24: =SpBilanzVerd2022!$J$2 -> Existenzsicherung | C24: =DicvGeschäftsstelle!C24+CaritasRegionen!C24 -> -70764.21 | D24: =DicvGeschäftsstelle!D24+CaritasRegionen!D24 -> -197671.54 | E24: =DicvGeschäftsstelle!E24+CaritasRegionen!E24 -> -43329.59 | F24: =DicvGeschäftsstelle!F24+CaritasRegionen!F24 -> -69901.97 | G24: =DicvGeschäftsstelle!G24+CaritasRegionen!G24 -> -545694.29 | H24: =DicvGeschäftsstelle!H24+CaritasRegionen!H24 -> -359571.42 | I24: =DicvGeschäftsstelle!I24+CaritasRegionen!I24 -> -485230.8 | J24: =DicvGeschäftsstelle!J24+CaritasRegionen!J24 -> 0 | K24: =DicvGeschäftsstelle!K24+CaritasRegionen!K24 -> 0 | L24: =DicvGeschäftsstelle!L24+CaritasRegionen!L24 -> 0 | M24: =DicvGeschäftsstelle!M24+CaritasRegionen!M24 -> -58583 | N24: =DicvGeschäftsstelle!N24+CaritasRegionen!N24 -> -20034.4 | O24: =DicvGeschäftsstelle!O24+CaritasRegionen!O24 -> -109122.68 | P24: =DicvGeschäftsstelle!P24+CaritasRegionen!P24 -> -36200.7 | Q24: =DicvGeschäftsstelle!Q24+CaritasRegionen!Q24 -> -209497.59 | R24: =DicvGeschäftsstelle!R24+CaritasRegionen!R24 -> -144046.42 | S24: -1036991.36 | Z24: -953085.83 | AA24: 1036991.36 | AB24: Existenzsicherung | AC24: 0 | AD24: 0 | AE24: 1036991.36 | AF24: Existenzsicherung
B25: =SpBilanzVerd2022!$J$10 -> Familienhilfen | C25: =DicvGeschäftsstelle!C25+CaritasRegionen!C25 -> -19131.46 | D25: =DicvGeschäftsstelle!D25+CaritasRegionen!D25 -> -74593.32 | E25: =DicvGeschäftsstelle!E25+CaritasRegionen!E25 -> -33556.46 | F25: =DicvGeschäftsstelle!F25+CaritasRegionen!F25 -> -44125.13 | G25: =DicvGeschäftsstelle!G25+CaritasRegionen!G25 -> -93540.32 | H25: =DicvGeschäftsstelle!H25+CaritasRegionen!H25 -> -71512.03 | I25: =DicvGeschäftsstelle!I25+CaritasRegionen!I25 -> -71605.91 | J25: =DicvGeschäftsstelle!J25+CaritasRegionen!J25 -> -17000 | K25: =DicvGeschäftsstelle!K25+CaritasRegionen!K25 -> -17000 | L25: =DicvGeschäftsstelle!L25+CaritasRegionen!L25 -> -16721.95 | M25: =DicvGeschäftsstelle!M25+CaritasRegionen!M25 -> -6175 | N25: =DicvGeschäftsstelle!N25+CaritasRegionen!N25 -> -3680 | O25: =DicvGeschäftsstelle!O25+CaritasRegionen!O25 -> 181.33 | P25: =DicvGeschäftsstelle!P25+CaritasRegionen!P25 -> -1000 | Q25: =DicvGeschäftsstelle!Q25+CaritasRegionen!Q25 -> -351.79 | R25: =DicvGeschäftsstelle!R25+CaritasRegionen!R25 -> -213.1 | S25: -169573.7 | Z25: -211939.41 | AA25: 169573.7 | AB25: Familienhilfen | AC25: 0 | AD25: 0 | AE25: 169573.7 | AF25: Familienhilfen
B26: =SpBilanzVerd2022!$J$6 -> Kinder- und Jugendhilfe | C26: =DicvGeschäftsstelle!C26+CaritasRegionen!C26 -> -97394.38 | D26: =DicvGeschäftsstelle!D26+CaritasRegionen!D26 -> -75891.11 | E26: =DicvGeschäftsstelle!E26+CaritasRegionen!E26 -> -61183.24 | F26: =DicvGeschäftsstelle!F26+CaritasRegionen!F26 -> -73543.23 | G26: =DicvGeschäftsstelle!G26+CaritasRegionen!G26 -> -223795.21 | H26: =DicvGeschäftsstelle!H26+CaritasRegionen!H26 -> -122532.66 | I26: =DicvGeschäftsstelle!I26+CaritasRegionen!I26 -> -198164.44 | J26: =DicvGeschäftsstelle!J26+CaritasRegionen!J26 -> -5441.33 | K26: =DicvGeschäftsstelle!K26+CaritasRegionen!K26 -> -5441.33 | L26: =DicvGeschäftsstelle!L26+CaritasRegionen!L26 -> -1816.23 | M26: =DicvGeschäftsstelle!M26+CaritasRegionen!M26 -> -14615 | N26: =DicvGeschäftsstelle!N26+CaritasRegionen!N26 -> -23200 | O26: =DicvGeschäftsstelle!O26+CaritasRegionen!O26 -> -1187331.48 | P26: =DicvGeschäftsstelle!P26+CaritasRegionen!P26 -> -1018978.1 | Q26: =DicvGeschäftsstelle!Q26+CaritasRegionen!Q26 -> -997.95 | R26: =DicvGeschäftsstelle!R26+CaritasRegionen!R26 -> -1049.51 | S26: -1590758.59 | Z26: -1392642.62 | AA26: 1590758.59 | AB26: Kinder- und Jugendhilfe | AC26: 0 | AD26: 0 | AE26: =AA26+AA27 -> 1591886.95 | AF26: =AB26 -> Kinder- und Jugendhilfe
B27: =SpBilanzVerd2022!$J$16 -> Jugendberufshilfe | C27: =DicvGeschäftsstelle!C27+CaritasRegionen!C27 -> 0 | D27: =DicvGeschäftsstelle!D27+CaritasRegionen!D27 -> 0 | E27: =DicvGeschäftsstelle!E27+CaritasRegionen!E27 -> 0 | F27: =DicvGeschäftsstelle!F27+CaritasRegionen!F27 -> 0 | G27: =DicvGeschäftsstelle!G27+CaritasRegionen!G27 -> -1128.36 | H27: =DicvGeschäftsstelle!H27+CaritasRegionen!H27 -> -1128.36 | I27: =DicvGeschäftsstelle!I27+CaritasRegionen!I27 -> -936.32 | J27: =DicvGeschäftsstelle!J27+CaritasRegionen!J27 -> 0 | K27: =DicvGeschäftsstelle!K27+CaritasRegionen!K27 -> 0 | L27: =DicvGeschäftsstelle!L27+CaritasRegionen!L27 -> 0 | M27: =DicvGeschäftsstelle!M27+CaritasRegionen!M27 -> 0 | N27: =DicvGeschäftsstelle!N27+CaritasRegionen!N27 -> 0 | O27: =DicvGeschäftsstelle!O27+CaritasRegionen!O27 -> 0 | P27: =DicvGeschäftsstelle!P27+CaritasRegionen!P27 -> 0 | Q27: =DicvGeschäftsstelle!Q27+CaritasRegionen!Q27 -> 0 | R27: =DicvGeschäftsstelle!R27+CaritasRegionen!R27 -> 0 | S27: -1128.36 | Z27: -936.32 | AA27: 1128.36 | AB27: Jugendberufshilfe | AC27: 0 | AD27: 0 | AE27: =AA28+AA31+AA30 -> 193726.57 | AF27: Behinderten- und Suchthilfe
B28: =SpBilanzVerd2022!$J$14 -> Behindertenhilfe | C28: =DicvGeschäftsstelle!C28+CaritasRegionen!C28 -> 0 | D28: =DicvGeschäftsstelle!D28+CaritasRegionen!D28 -> 0 | E28: =DicvGeschäftsstelle!E28+CaritasRegionen!E28 -> 0 | F28: =DicvGeschäftsstelle!F28+CaritasRegionen!F28 -> 0 | G28: =DicvGeschäftsstelle!G28+CaritasRegionen!G28 -> -5741.83 | H28: =DicvGeschäftsstelle!H28+CaritasRegionen!H28 -> -3553.96 | I28: =DicvGeschäftsstelle!I28+CaritasRegionen!I28 -> -332 | J28: =DicvGeschäftsstelle!J28+CaritasRegionen!J28 -> -33481.64 | K28: =DicvGeschäftsstelle!K28+CaritasRegionen!K28 -> 0 | L28: =DicvGeschäftsstelle!L28+CaritasRegionen!L28 -> -38402.92 | M28: =DicvGeschäftsstelle!M28+CaritasRegionen!M28 -> 0 | N28: =DicvGeschäftsstelle!N28+CaritasRegionen!N28 -> 0 | O28: =DicvGeschäftsstelle!O28+CaritasRegionen!O28 -> 0 | P28: =DicvGeschäftsstelle!P28+CaritasRegionen!P28 -> 0 | Q28: =DicvGeschäftsstelle!Q28+CaritasRegionen!Q28 -> 0 | R28: =DicvGeschäftsstelle!R28+CaritasRegionen!R28 -> 0 | S28: -39223.47 | Z28: -38734.92 | AA28: 39223.47 | AB28: Behindertenhilfe | AC28: 0 | AD28: 0 | AE28: =AA29 -> 126894.78 | AF28: =AB29 -> Altenhilfe/Hospizdienste
B29: =SpBilanzVerd2022!$J$9 -> Altenhilfe/Hospizdienste | C29: =DicvGeschäftsstelle!C29+CaritasRegionen!C29 -> -29442.56 | D29: =DicvGeschäftsstelle!D29+CaritasRegionen!D29 -> -13467.85 | E29: =DicvGeschäftsstelle!E29+CaritasRegionen!E29 -> -27632.83 | F29: =DicvGeschäftsstelle!F29+CaritasRegionen!F29 -> -25914.64 | G29: =DicvGeschäftsstelle!G29+CaritasRegionen!G29 -> -54669.74 | H29: =DicvGeschäftsstelle!H29+CaritasRegionen!H29 -> -47022.39 | I29: =DicvGeschäftsstelle!I29+CaritasRegionen!I29 -> -37924.66 | J29: =DicvGeschäftsstelle!J29+CaritasRegionen!J29 -> -12886.97 | K29: =DicvGeschäftsstelle!K29+CaritasRegionen!K29 -> -12886.97 | L29: =DicvGeschäftsstelle!L29+CaritasRegionen!L29 -> -9437.07 | M29: =DicvGeschäftsstelle!M29+CaritasRegionen!M29 -> 0 | N29: =DicvGeschäftsstelle!N29+CaritasRegionen!N29 -> 0 | O29: =DicvGeschäftsstelle!O29+CaritasRegionen!O29 -> -2262.68 | P29: =DicvGeschäftsstelle!P29+CaritasRegionen!P29 -> -9518.09 | Q29: =DicvGeschäftsstelle!Q29+CaritasRegionen!Q29 -> 0 | R29: =DicvGeschäftsstelle!R29+CaritasRegionen!R29 -> 0 | S29: -126894.78 | Z29: -96262.31 | AA29: 126894.78 | AB29: Altenhilfe/Hospizdienste | AC29: 0 | AD29: 0 | AE29: =AA32 -> 818764.62 | AF29: Migration
B30: =SpBilanzVerd2022!$J$12 -> Sozialpsychiatrischer Dienst | C30: =DicvGeschäftsstelle!C30+CaritasRegionen!C30 -> 0 | D30: =DicvGeschäftsstelle!D30+CaritasRegionen!D30 -> 0 | E30: =DicvGeschäftsstelle!E30+CaritasRegionen!E30 -> 0 | F30: =DicvGeschäftsstelle!F30+CaritasRegionen!F30 -> 0 | G30: =DicvGeschäftsstelle!G30+CaritasRegionen!G30 -> -63997.93 | H30: =DicvGeschäftsstelle!H30+CaritasRegionen!H30 -> -43476.58 | I30: =DicvGeschäftsstelle!I30+CaritasRegionen!I30 -> -116987.69 | J30: =DicvGeschäftsstelle!J30+CaritasRegionen!J30 -> 0 | K30: =DicvGeschäftsstelle!K30+CaritasRegionen!K30 -> 0 | L30: =DicvGeschäftsstelle!L30+CaritasRegionen!L30 -> 0 | M30: =DicvGeschäftsstelle!M30+CaritasRegionen!M30 -> 0 | N30: =DicvGeschäftsstelle!N30+CaritasRegionen!N30 -> 0 | O30: =DicvGeschäftsstelle!O30+CaritasRegionen!O30 -> -5560.5 | P30: =DicvGeschäftsstelle!P30+CaritasRegionen!P30 -> -6249.2 | Q30: =DicvGeschäftsstelle!Q30+CaritasRegionen!Q30 -> 0 | R30: =DicvGeschäftsstelle!R30+CaritasRegionen!R30 -> 0 | S30: -69558.43 | Z30: -123236.89 | AA30: 69558.43 | AB30: Sozialpsychiatrischer Dienst | AC30: 0 | AD30: 0 | AE30: 203038.81 | AF30: Wohnungslosenhilfe
B31: =SpBilanzVerd2022!$J$5 -> Suchthilfe | C31: =DicvGeschäftsstelle!C31+CaritasRegionen!C31 -> 0 | D31: =DicvGeschäftsstelle!D31+CaritasRegionen!D31 -> 0 | E31: =DicvGeschäftsstelle!E31+CaritasRegionen!E31 -> 0 | F31: =DicvGeschäftsstelle!F31+CaritasRegionen!F31 -> 0 | G31: =DicvGeschäftsstelle!G31+CaritasRegionen!G31 -> -9450.57 | H31: =DicvGeschäftsstelle!H31+CaritasRegionen!H31 -> -9182.88 | I31: =DicvGeschäftsstelle!I31+CaritasRegionen!I31 -> -17572.13 | J31: =DicvGeschäftsstelle!J31+CaritasRegionen!J31 -> 0 | K31: =DicvGeschäftsstelle!K31+CaritasRegionen!K31 -> 0 | L31: =DicvGeschäftsstelle!L31+CaritasRegionen!L31 -> 0 | M31: =DicvGeschäftsstelle!M31+CaritasRegionen!M31 -> -64805 | N31: =DicvGeschäftsstelle!N31+CaritasRegionen!N31 -> -58440.01 | O31: =DicvGeschäftsstelle!O31+CaritasRegionen!O31 -> -10689.1 | P31: =DicvGeschäftsstelle!P31+CaritasRegionen!P31 -> -4098.34 | Q31: =DicvGeschäftsstelle!Q31+CaritasRegionen!Q31 -> 0 | R31: =DicvGeschäftsstelle!R31+CaritasRegionen!R31 -> 0 | S31: -84944.67 | Z31: -80110.48 | AA31: 84944.67 | AB31: Suchthilfe | AC31: 0 | AD31: 0 | AE31: 142717.55 | AF31: Gemeindenahe Netzwerke
B32: =SpBilanzVerd2022!$J$13 -> Migration | C32: =DicvGeschäftsstelle!C32+CaritasRegionen!C32 -> -125514.71 | D32: =DicvGeschäftsstelle!D32+CaritasRegionen!D32 -> -67441.4 | E32: =DicvGeschäftsstelle!E32+CaritasRegionen!E32 -> 0 | F32: =DicvGeschäftsstelle!F32+CaritasRegionen!F32 -> 0 | G32: =DicvGeschäftsstelle!G32+CaritasRegionen!G32 -> -687993.02 | H32: =DicvGeschäftsstelle!H32+CaritasRegionen!H32 -> -625110.17 | I32: =DicvGeschäftsstelle!I32+CaritasRegionen!I32 -> -430319.95 | J32: =DicvGeschäftsstelle!J32+CaritasRegionen!J32 -> 0 | K32: =DicvGeschäftsstelle!K32+CaritasRegionen!K32 -> 0 | L32: =DicvGeschäftsstelle!L32+CaritasRegionen!L32 -> 0 | M32: =DicvGeschäftsstelle!M32+CaritasRegionen!M32 -> -3000 | N32: =DicvGeschäftsstelle!N32+CaritasRegionen!N32 -> -6400 | O32: =DicvGeschäftsstelle!O32+CaritasRegionen!O32 -> -1907 | P32: =DicvGeschäftsstelle!P32+CaritasRegionen!P32 -> -2000 | Q32: =DicvGeschäftsstelle!Q32+CaritasRegionen!Q32 -> -349.89 | R32: =DicvGeschäftsstelle!R32+CaritasRegionen!R32 -> 0 | S32: -818764.62 | Z32: -506161.35 | AA32: 818764.62 | AB32: Migration | AC32: 0 | AD32: 0 | AE32: 91756.22 | AF32: Arbeitshilfen
B33: =SpBilanzVerd2022!$J$7 -> Wohnungslosenhilfe | C33: =DicvGeschäftsstelle!C33+CaritasRegionen!C33 -> -8467.46 | D33: =DicvGeschäftsstelle!D33+CaritasRegionen!D33 -> -61800 | E33: =DicvGeschäftsstelle!E33+CaritasRegionen!E33 -> 0 | F33: =DicvGeschäftsstelle!F33+CaritasRegionen!F33 -> 0 | G33: =DicvGeschäftsstelle!G33+CaritasRegionen!G33 -> -194271.35 | H33: =DicvGeschäftsstelle!H33+CaritasRegionen!H33 -> -174538.05 | I33: =DicvGeschäftsstelle!I33+CaritasRegionen!I33 -> -56117.17 | J33: =DicvGeschäftsstelle!J33+CaritasRegionen!J33 -> 0 | K33: =DicvGeschäftsstelle!K33+CaritasRegionen!K33 -> 0 | L33: =DicvGeschäftsstelle!L33+CaritasRegionen!L33 -> 0 | M33: =DicvGeschäftsstelle!M33+CaritasRegionen!M33 -> -300 | N33: =DicvGeschäftsstelle!N33+CaritasRegionen!N33 -> -950 | O33: =DicvGeschäftsstelle!O33+CaritasRegionen!O33 -> 0 | P33: =DicvGeschäftsstelle!P33+CaritasRegionen!P33 -> 0 | Q33: =DicvGeschäftsstelle!Q33+CaritasRegionen!Q33 -> 0 | R33: =DicvGeschäftsstelle!R33+CaritasRegionen!R33 -> -249.05 | S33: -203038.81 | Z33: -119116.22 | AA33: 203038.81 | AB33: Wohnungslosenhilfe | AC33: 0 | AD33: 0 | AE33: =AA40 -> 358542.36 | AF33: =AB40 -> Verwaltung
B34: =SpBilanzVerd2022!$J$4 -> Gemeindenahe Netzwerke | C34: =DicvGeschäftsstelle!C34+CaritasRegionen!C34 -> -101.92 | D34: =DicvGeschäftsstelle!D34+CaritasRegionen!D34 -> -5001.76 | E34: =DicvGeschäftsstelle!E34+CaritasRegionen!E34 -> -44632.37 | F34: =DicvGeschäftsstelle!F34+CaritasRegionen!F34 -> -23024.88 | G34: =DicvGeschäftsstelle!G34+CaritasRegionen!G34 -> -71529.82 | H34: =DicvGeschäftsstelle!H34+CaritasRegionen!H34 -> -40918.9 | I34: =DicvGeschäftsstelle!I34+CaritasRegionen!I34 -> -41017.01 | J34: =DicvGeschäftsstelle!J34+CaritasRegionen!J34 -> 0 | K34: =DicvGeschäftsstelle!K34+CaritasRegionen!K34 -> 0 | L34: =DicvGeschäftsstelle!L34+CaritasRegionen!L34 -> 0 | M34: =DicvGeschäftsstelle!M34+CaritasRegionen!M34 -> 0 | N34: =DicvGeschäftsstelle!N34+CaritasRegionen!N34 -> 0 | O34: =DicvGeschäftsstelle!O34+CaritasRegionen!O34 -> -26453.44 | P34: =DicvGeschäftsstelle!P34+CaritasRegionen!P34 -> -1079.47 | Q34: =DicvGeschäftsstelle!Q34+CaritasRegionen!Q34 -> 0 | R34: =DicvGeschäftsstelle!R34+CaritasRegionen!R34 -> 0 | S34: -142717.55 | Z34: -70123.12 | AA34: 142717.55 | AB34: Gemeindenahe Netzwerke | AC34: 0 | AD34: 0
B35: =SpBilanzVerd2022!$J$8 -> Arbeitshilfen | C35: =DicvGeschäftsstelle!C35+CaritasRegionen!C35 -> -3362.23 | D35: =DicvGeschäftsstelle!D35+CaritasRegionen!D35 -> -43496.37 | E35: =DicvGeschäftsstelle!E35+CaritasRegionen!E35 -> -22709 | F35: =DicvGeschäftsstelle!F35+CaritasRegionen!F35 -> -18000 | G35: =DicvGeschäftsstelle!G35+CaritasRegionen!G35 -> -51684.99 | H35: =DicvGeschäftsstelle!H35+CaritasRegionen!H35 -> -36451.06 | I35: =DicvGeschäftsstelle!I35+CaritasRegionen!I35 -> -14732.99 | J35: =DicvGeschäftsstelle!J35+CaritasRegionen!J35 -> 0 | K35: =DicvGeschäftsstelle!K35+CaritasRegionen!K35 -> 0 | L35: =DicvGeschäftsstelle!L35+CaritasRegionen!L35 -> 0 | M35: =DicvGeschäftsstelle!M35+CaritasRegionen!M35 -> -14000 | N35: =DicvGeschäftsstelle!N35+CaritasRegionen!N35 -> -28170 | O35: =DicvGeschäftsstelle!O35+CaritasRegionen!O35 -> 0 | P35: =DicvGeschäftsstelle!P35+CaritasRegionen!P35 -> -3000 | Q35: =DicvGeschäftsstelle!Q35+CaritasRegionen!Q35 -> 0 | R35: =DicvGeschäftsstelle!R35+CaritasRegionen!R35 -> -7530.97 | S35: -91756.22 | Z35: -114930.33 | AA35: 91756.22 | AB35: Arbeitshilfen | AC35: 0 | AD35: 0
B36: =SpBilanzVerd2022!$J$17 -> Diverse Zweckhinweise | C36: =DicvGeschäftsstelle!C36+CaritasRegionen!C36 -> 0 | D36: =DicvGeschäftsstelle!D36+CaritasRegionen!D36 -> 0 | E36: =DicvGeschäftsstelle!E36+CaritasRegionen!E36 -> 0 | F36: =DicvGeschäftsstelle!F36+CaritasRegionen!F36 -> 0 | G36: =DicvGeschäftsstelle!G36+CaritasRegionen!G36 -> 0 | H36: =DicvGeschäftsstelle!H36+CaritasRegionen!H36 -> 0 | I36: =DicvGeschäftsstelle!I36+CaritasRegionen!I36 -> 0 | J36: =DicvGeschäftsstelle!J36+CaritasRegionen!J36 -> 0 | K36: =DicvGeschäftsstelle!K36+CaritasRegionen!K36 -> 0 | L36: =DicvGeschäftsstelle!L36+CaritasRegionen!L36 -> 0 | M36: =DicvGeschäftsstelle!M36+CaritasRegionen!M36 -> 0 | N36: =DicvGeschäftsstelle!N36+CaritasRegionen!N36 -> 0 | O36: =DicvGeschäftsstelle!O36+CaritasRegionen!O36 -> 0 | P36: =DicvGeschäftsstelle!P36+CaritasRegionen!P36 -> 0 | Q36: =DicvGeschäftsstelle!Q36+CaritasRegionen!Q36 -> 0 | R36: =DicvGeschäftsstelle!R36+CaritasRegionen!R36 -> 0 | S36: 0 | Z36: 0 | AC36: 0 | AD36: 0
B37: =SpBilanzVerd2022!$L$18 -> Sonstiges | C37: =DicvGeschäftsstelle!C37+CaritasRegionen!C37 -> 0 | D37: =DicvGeschäftsstelle!D37+CaritasRegionen!D37 -> 0 | E37: =DicvGeschäftsstelle!E37+CaritasRegionen!E37 -> 0 | F37: =DicvGeschäftsstelle!F37+CaritasRegionen!F37 -> 0 | G37: =DicvGeschäftsstelle!G37+CaritasRegionen!G37 -> 0 | H37: =DicvGeschäftsstelle!H37+CaritasRegionen!H37 -> 0 | I37: =DicvGeschäftsstelle!I37+CaritasRegionen!I37 -> 0 | J37: =DicvGeschäftsstelle!J37+CaritasRegionen!J37 -> 0 | K37: =DicvGeschäftsstelle!K37+CaritasRegionen!K37 -> 0 | L37: =DicvGeschäftsstelle!L37+CaritasRegionen!L37 -> 0 | M37: =DicvGeschäftsstelle!M37+CaritasRegionen!M37 -> 0 | N37: =DicvGeschäftsstelle!N37+CaritasRegionen!N37 -> 0 | O37: =DicvGeschäftsstelle!O37+CaritasRegionen!O37 -> 0 | P37: =DicvGeschäftsstelle!P37+CaritasRegionen!P37 -> 0 | Q37: =DicvGeschäftsstelle!Q37+CaritasRegionen!Q37 -> 0 | R37: =DicvGeschäftsstelle!R37+CaritasRegionen!R37 -> 0 | S37: 0 | Z37: 0 | AC37: 0 | AD37: 0
B38: =SpBilanzVerd2022!$J$11 -> Weiterleitung an Dritte | C38: =DicvGeschäftsstelle!C38+CaritasRegionen!C38 -> 0 | D38: =DicvGeschäftsstelle!D38+CaritasRegionen!D38 -> 0 | E38: =DicvGeschäftsstelle!E38+CaritasRegionen!E38 -> -2571.902916 | F38: =DicvGeschäftsstelle!F38+CaritasRegionen!F38 -> -31651.48 | G38: =DicvGeschäftsstelle!G38+CaritasRegionen!G38 -> -771123.53 | H38: =DicvGeschäftsstelle!H38+CaritasRegionen!H38 -> -648753.11 | I38: =DicvGeschäftsstelle!I38+CaritasRegionen!I38 -> -1010293.59 | J38: =DicvGeschäftsstelle!J38+CaritasRegionen!J38 -> 0 | K38: =DicvGeschäftsstelle!K38+CaritasRegionen!K38 -> 0 | L38: =DicvGeschäftsstelle!L38+CaritasRegionen!L38 -> -256843.6 | M38: =DicvGeschäftsstelle!M38+CaritasRegionen!M38 -> 0 | N38: =DicvGeschäftsstelle!N38+CaritasRegionen!N38 -> 0 | O38: =DicvGeschäftsstelle!O38+CaritasRegionen!O38 -> 0 | P38: =DicvGeschäftsstelle!P38+CaritasRegionen!P38 -> 0 | Q38: =DicvGeschäftsstelle!Q38+CaritasRegionen!Q38 -> 0 | R38: =DicvGeschäftsstelle!R38+CaritasRegionen!R38 -> 0 | S38: -773695.4329 | Z38: -1298788.67 | AA38: 773695.4329 | AB38: Weiterleitung an Dritte | AC38: 0 | AD38: 0
B39: =SpBilanzVerd2022!$L$19 -> Werbung und allgemeine Öffentlichkeitsarbeit | C39: =DicvGeschäftsstelle!C39+CaritasRegionen!C39 -> 0 | D39: =DicvGeschäftsstelle!D39+CaritasRegionen!D39 -> 0 | E39: =DicvGeschäftsstelle!E39+CaritasRegionen!E39 -> 0 | F39: =DicvGeschäftsstelle!F39+CaritasRegionen!F39 -> 0 | G39: =DicvGeschäftsstelle!G39+CaritasRegionen!G39 -> 0 | H39: =DicvGeschäftsstelle!H39+CaritasRegionen!H39 -> 0 | I39: =DicvGeschäftsstelle!I39+CaritasRegionen!I39 -> 0 | J39: =DicvGeschäftsstelle!J39+CaritasRegionen!J39 -> 0 | K39: =DicvGeschäftsstelle!K39+CaritasRegionen!K39 -> 0 | L39: =DicvGeschäftsstelle!L39+CaritasRegionen!L39 -> 0 | M39: =DicvGeschäftsstelle!M39+CaritasRegionen!M39 -> 0 | N39: =DicvGeschäftsstelle!N39+CaritasRegionen!N39 -> 0 | O39: =DicvGeschäftsstelle!O39+CaritasRegionen!O39 -> 0 | P39: =DicvGeschäftsstelle!P39+CaritasRegionen!P39 -> 0 | Q39: =DicvGeschäftsstelle!Q39+CaritasRegionen!Q39 -> 0 | R39: =DicvGeschäftsstelle!R39+CaritasRegionen!R39 -> 0 | S39: 0 | Z39: 0 | AC39: 0 | AD39: 0
A40: =#REF! ->  | B40: =SpBilanzVerd2022!$J$15 -> Verwaltung | C40: =DicvGeschäftsstelle!C40+CaritasRegionen!C40 -> -55323.42 | D40: =DicvGeschäftsstelle!D40+CaritasRegionen!D40 -> -62632.71 | E40: =DicvGeschäftsstelle!E40+CaritasRegionen!E40 -> -77566.56 | F40: =DicvGeschäftsstelle!F40+CaritasRegionen!F40 -> -73981.28 | G40: =DicvGeschäftsstelle!G40+CaritasRegionen!G40 -> -19443.28 | H40: =DicvGeschäftsstelle!H40+CaritasRegionen!H40 -> 0 | I40: =DicvGeschäftsstelle!I40+CaritasRegionen!I40 -> -16742.3 | J40: =DicvGeschäftsstelle!J40+CaritasRegionen!J40 -> -106209.1 | K40: =DicvGeschäftsstelle!K40+CaritasRegionen!K40 -> -106209.1 | L40: =DicvGeschäftsstelle!L40+CaritasRegionen!L40 -> 0 | M40: =DicvGeschäftsstelle!M40+CaritasRegionen!M40 -> 0 | N40: =DicvGeschäftsstelle!N40+CaritasRegionen!N40 -> 0 | O40: =DicvGeschäftsstelle!O40+CaritasRegionen!O40 -> -100000 | P40: =DicvGeschäftsstelle!P40+CaritasRegionen!P40 -> -100000 | Q40: =DicvGeschäftsstelle!Q40+CaritasRegionen!Q40 -> 0 | R40: =DicvGeschäftsstelle!R40+CaritasRegionen!R40 -> 0 | S40: -358542.36 | Z40: -253356.29 | AA40: 358542.36 | AB40: Verwaltung | AC40: 0 | AD40: 0
B41: Mittelverwendung gesamt | C41: =SUM(C23:C40) -> -506232.25 | D41: -633999.58 | E41: -313181.9529 | F41: -371142.61 | G41: -2859783.46 | H41: -2199524.32 | I41: -2560674.91 | J41: -231413.48 | K41: -175176.09 | L41: -643512.03 | M41: -181153 | N41: -174240.01 | O41: -1488816.49 | P41: -1230329.8 | Q41: -211836.82 | R41: -153147.05 | S41: -5792417.453 | Z41: =SUM(Z23:Z40) -> -5767045.99 | AA41: =S41-SUMIF(Verprobung!$E:$E,$B41,Verprobung!$C:$C) -> -24111.28292 | AC41: 0 | AD41: 0
A43: 88396 | B43: davon aus Rücklagen | C43: =DicvGeschäftsstelle!C43+CaritasRegionen!C43 -> 0 | D43: =DicvGeschäftsstelle!D43+CaritasRegionen!D43 -> 0 | E43: =DicvGeschäftsstelle!E43+CaritasRegionen!E43 -> 0 | F43: =DicvGeschäftsstelle!F43+CaritasRegionen!F43 -> 0 | G43: =DicvGeschäftsstelle!G43+CaritasRegionen!G43 -> 0 | H43: =DicvGeschäftsstelle!H43+CaritasRegionen!H43 -> 0 | I43: =DicvGeschäftsstelle!I43+CaritasRegionen!I43 -> 0 | J43: =DicvGeschäftsstelle!J43+CaritasRegionen!J43 -> -126.24 | K43: =DicvGeschäftsstelle!K43+CaritasRegionen!K43 -> 0 | L43: =DicvGeschäftsstelle!L43+CaritasRegionen!L43 -> -1746.24 | M43: =DicvGeschäftsstelle!M43+CaritasRegionen!M43 -> 0 | N43: =DicvGeschäftsstelle!N43+CaritasRegionen!N43 -> 0 | O43: =DicvGeschäftsstelle!O43+CaritasRegionen!O43 -> 0 | P43: =DicvGeschäftsstelle!P43+CaritasRegionen!P43 -> 0 | Q43: =DicvGeschäftsstelle!Q43+CaritasRegionen!Q43 -> 0 | R43: =DicvGeschäftsstelle!R43+CaritasRegionen!R43 -> 0 | S43: =C43+E43+G43+J43+M43+O43+Q43 -> -126.24 | Z43: =D43+F43+I43+L43+N43+P43+R43 -> -1746.24 | AC43: =SUMIF($C$8:$R$8,AC$8,$C43:$R43)-S43 -> 0 | AD43: =SUMIF($C$8:$R$8,AD$8,$C43:$R43)-Z43 -> 0
A44: 85130 | B44: davon aus nicht verbrauchte Spendenmittel/Erbschaften | C44: =DicvGeschäftsstelle!C44+CaritasRegionen!C44 -> -506232.25 | D44: =DicvGeschäftsstelle!D44+CaritasRegionen!D44 -> -633999.58 | E44: =DicvGeschäftsstelle!E44+CaritasRegionen!E44 -> -313181.9529 | F44: =DicvGeschäftsstelle!F44+CaritasRegionen!F44 -> -371142.61 | G44: =DicvGeschäftsstelle!G44+CaritasRegionen!G44 -> -2859783.46 | H44: =DicvGeschäftsstelle!H44+CaritasRegionen!H44 -> 0 | I44: =DicvGeschäftsstelle!I44+CaritasRegionen!I44 -> -2560674.91 | J44: =DicvGeschäftsstelle!J44+CaritasRegionen!J44 -> -231287.24 | K44: =DicvGeschäftsstelle!K44+CaritasRegionen!K44 -> 0 | L44: =DicvGeschäftsstelle!L44+CaritasRegionen!L44 -> -641765.79 | M44: =DicvGeschäftsstelle!M44+CaritasRegionen!M44 -> -181153 | N44: =DicvGeschäftsstelle!N44+CaritasRegionen!N44 -> -174240.01 | O44: =DicvGeschäftsstelle!O44+CaritasRegionen!O44 -> -1488816.49 | P44: =DicvGeschäftsstelle!P44+CaritasRegionen!P44 -> -1230329.8 | Q44: =DicvGeschäftsstelle!Q44+CaritasRegionen!Q44 -> -211836.82 | R44: =DicvGeschäftsstelle!R44+CaritasRegionen!R44 -> -153147.05 | S44: =C44+E44+G44+J44+M44+O44+Q44 -> -5792291.213 | Z44: =D44+F44+I44+L44+N44+P44+R44 -> -5765299.75 | AC44: =SUMIF($C$8:$R$8,AC$8,$C44:$R44)-S44 -> 0 | AD44: =SUMIF($C$8:$R$8,AD$8,$C44:$R44)-Z44 -> 0
A46: Stand 31.12.
A47: Rücklagen Erbschaften/Spenden | S47: =SUM(S48:S49) -> 401708.31 | T47: 0 | U47: 0 | V47: 0 | W47: 0 | X47: 0 | Y47: 0 | Z47: 394275.89
B48: Rücklagen Erbschaften | C48: =DicvGeschäftsstelle!C48+CaritasRegionen!C48 -> 0 | D48: =DicvGeschäftsstelle!D48+CaritasRegionen!D48 -> 0 | E48: =DicvGeschäftsstelle!E48+CaritasRegionen!E48 -> 0 | F48: =DicvGeschäftsstelle!F48+CaritasRegionen!F48 -> 0 | G48: =DicvGeschäftsstelle!G48+CaritasRegionen!G48 -> 0 | H48: =DicvGeschäftsstelle!H48+CaritasRegionen!H48 -> 0 | I48: =DicvGeschäftsstelle!I48+CaritasRegionen!I48 -> 0 | J48: =DicvGeschäftsstelle!J48+CaritasRegionen!J48 -> 401708.31 | K48: =DicvGeschäftsstelle!K48+CaritasRegionen!K48 -> 0 | L48: =DicvGeschäftsstelle!L48+CaritasRegionen!L48 -> 394275.89 | M48: =DicvGeschäftsstelle!M48+CaritasRegionen!M48 -> 0 | N48: =DicvGeschäftsstelle!N48+CaritasRegionen!N48 -> 0 | O48: =DicvGeschäftsstelle!O48+CaritasRegionen!O48 -> 0 | P48: =DicvGeschäftsstelle!P48+CaritasRegionen!P48 -> 0 | Q48: =DicvGeschäftsstelle!Q48+CaritasRegionen!Q48 -> 0 | R48: =DicvGeschäftsstelle!R48+CaritasRegionen!R48 -> 0 | S48: =C48+E48+G48+J48+M48+O48+Q48 -> 401708.31 | Z48: =D48+F48+I48+L48+N48+P48+R48 -> 394275.89 | AA48: =S48+SUMIF(Verprobung!$E:$E,$B48,Verprobung!$C:$C) -> 0 | AC48: =SUMIF($C$8:$R$8,AC$8,$C48:$R48)-S48 -> 0 | AD48: =SUMIF($C$8:$R$8,AD$8,$C48:$R48)-Z48 -> 0
B49: Rücklagen Spenden | C49: =DicvGeschäftsstelle!C49+CaritasRegionen!C49 -> 0 | D49: =DicvGeschäftsstelle!D49+CaritasRegionen!D49 -> 0 | E49: =DicvGeschäftsstelle!E49+CaritasRegionen!E49 -> 0 | F49: =DicvGeschäftsstelle!F49+CaritasRegionen!F49 -> 0 | G49: =DicvGeschäftsstelle!G49+CaritasRegionen!G49 -> 0 | H49: =DicvGeschäftsstelle!H49+CaritasRegionen!H49 -> 0 | I49: =DicvGeschäftsstelle!I49+CaritasRegionen!I49 -> 0 | J49: =DicvGeschäftsstelle!J49+CaritasRegionen!J49 -> 0 | K49: =DicvGeschäftsstelle!K49+CaritasRegionen!K49 -> 0 | L49: =DicvGeschäftsstelle!L49+CaritasRegionen!L49 -> 0 | M49: =DicvGeschäftsstelle!M49+CaritasRegionen!M49 -> 0 | N49: =DicvGeschäftsstelle!N49+CaritasRegionen!N49 -> 0 | O49: =DicvGeschäftsstelle!O49+CaritasRegionen!O49 -> 0 | P49: =DicvGeschäftsstelle!P49+CaritasRegionen!P49 -> 0 | Q49: =DicvGeschäftsstelle!Q49+CaritasRegionen!Q49 -> 0 | R49: =DicvGeschäftsstelle!R49+CaritasRegionen!R49 -> 0 | S49: =C49+E49+G49+J49+M49+O49+Q49 -> 0 | Z49: =D49+F49+I49+L49+N49+P49+R49 -> 0 | AC49: =SUMIF($C$8:$R$8,AC$8,$C49:$R49)-S49 -> 0 | AD49: =SUMIF($C$8:$R$8,AD$8,$C49:$R49)-Z49 -> 0
A50: Noch nicht verbrauchte Spendenmittel/Erbschaften | S50: =SUM(S51:S54) -> 6642365.717 | T50: 0 | U50: 0 | V50: 0 | W50: 0 | X50: 0 | Y50: 0 | Z50: 7271524.92
B51: nicht verbrauchte Erbschaften | C51: =DicvGeschäftsstelle!C51+CaritasRegionen!C51 -> 0 | D51: =DicvGeschäftsstelle!D51+CaritasRegionen!D51 -> 0 | E51: =DicvGeschäftsstelle!E51+CaritasRegionen!E51 -> 0 | F51: =DicvGeschäftsstelle!F51+CaritasRegionen!F51 -> 0 | G51: =DicvGeschäftsstelle!G51+CaritasRegionen!G51 -> 0 | H51: =DicvGeschäftsstelle!H51+CaritasRegionen!H51 -> 0 | I51: =DicvGeschäftsstelle!I51+CaritasRegionen!I51 -> 0 | J51: =DicvGeschäftsstelle!J51+CaritasRegionen!J51 -> 1103510.57 | K51: =DicvGeschäftsstelle!K51+CaritasRegionen!K51 -> 0 | L51: =DicvGeschäftsstelle!L51+CaritasRegionen!L51 -> 1105280.31 | M51: =DicvGeschäftsstelle!M51+CaritasRegionen!M51 -> 0 | N51: =DicvGeschäftsstelle!N51+CaritasRegionen!N51 -> 0 | O51: =DicvGeschäftsstelle!O51+CaritasRegionen!O51 -> 0 | P51: =DicvGeschäftsstelle!P51+CaritasRegionen!P51 -> 0 | Q51: =DicvGeschäftsstelle!Q51+CaritasRegionen!Q51 -> 0 | R51: =DicvGeschäftsstelle!R51+CaritasRegionen!R51 -> 0 | S51: =C51+E51+G51+J51+M51+O51+Q51 -> 1103510.57 | Z51: =D51+F51+I51+L51+N51+P51+R51 -> 1105280.31 | AA51: =S51+SUMIF(Verprobung!$E:$E,$B51,Verprobung!$C:$C) -> 0 | AC51: =SUMIF($C$8:$R$8,AC$8,$C51:$R51)-S51 -> 0 | AD51: =SUMIF($C$8:$R$8,AD$8,$C51:$R51)-Z51 -> 0
B52: nicht verbrauchte Spendenmittel | C52: =DicvGeschäftsstelle!C52+CaritasRegionen!C52 -> 418280.59 | D52: =DicvGeschäftsstelle!D52+CaritasRegionen!D52 -> 257879.19 | E52: =DicvGeschäftsstelle!E52+CaritasRegionen!E52 -> 187137.4471 | F52: =DicvGeschäftsstelle!F52+CaritasRegionen!F52 -> 233298.81 | G52: =DicvGeschäftsstelle!G52+CaritasRegionen!G52 -> 4933437.11 | H52: =DicvGeschäftsstelle!H52+CaritasRegionen!H52 -> 0 | I52: =DicvGeschäftsstelle!I52+CaritasRegionen!I52 -> 5675066.61 | J52: =DicvGeschäftsstelle!J52+CaritasRegionen!J52 -> 0 | K52: =DicvGeschäftsstelle!K52+CaritasRegionen!K52 -> 0 | L52: =DicvGeschäftsstelle!L52+CaritasRegionen!L52 -> 0 | M52: =DicvGeschäftsstelle!M52+CaritasRegionen!M52 -> 0 | N52: =DicvGeschäftsstelle!N52+CaritasRegionen!N52 -> 0 | O52: =DicvGeschäftsstelle!O52+CaritasRegionen!O52 -> 0 | P52: =DicvGeschäftsstelle!P52+CaritasRegionen!P52 -> 0 | Q52: =DicvGeschäftsstelle!Q52+CaritasRegionen!Q52 -> 0 | R52: =DicvGeschäftsstelle!R52+CaritasRegionen!R52 -> 0 | S52: =C52+E52+G52+J52+M52+O52+Q52 -> 5538855.147 | Z52: =D52+F52+I52+L52+N52+P52+R52 -> 6166244.61 | AA52: =S52+SUMIF(Verprobung!$E:$E,$B52,Verprobung!$C:$C) -> -0.002915780991 | AC52: =SUMIF($C$8:$R$8,AC$8,$C52:$R52)-S52 -> 0 | AD52: =SUMIF($C$8:$R$8,AD$8,$C52:$R52)-Z52 -> 0
S56: =(DicvGeschäftsstelle!S41+CaritasRegionen!S41)-DicvGesamt!S41 -> 0 | Z56: =(DicvGeschäftsstelle!Z41+CaritasRegionen!Z41)-DicvGesamt!Z41 -> 0
S57: =S41-SUM(S43:S44) -> 0 | Z57: =Z41-SUM(Z43:Z44) -> 0
B58: Verprobungen1 | C58: =C20+C41-C52 -> 0 | D58: =D20+D41-D52 -> 0 | E58: =E20+E41-E52 -> 0 | F58: =F20+F41-F52 -> 0 | G58: =G20+G41-G52 -> 0 | I58: =I20+I41-I52 -> 0 | J58: =J20+J41-J48-J51 -> 0 | L58: =L20+L41-L48-L51 -> 0 | M58: =M20+M41 -> 0 | N58: 0 | O58: 0 | P58: 0 | Q58: 0 | R58: 0 | S58: =S20+S41-S47-S50 -> 0 | Z58: =Z20+Z41-Z47-Z50 -> 0 | AE58: =SUM(AE23:AE33)+SUM(S41)-SUM(S38) -> 0
B59: Verprobungen2 | D59: =C17-D52 -> -3.783497959e-10 | E59: =E52+SUM(SuSaNKkzGlassSmFo23!$H:$H) -> -0.002915779623 | F59: =SUM(E18:E18)-SUM(F53:F54) -> 0 | I59: =G17-I52 -> 0 | L59: =J13+J16-L48-L51 -> 0 | S59: =Z50-S15 -> 0 | Z59: =S12+S15-Z47-Z50 -> 0
C60: =IF(SUM(C18:C19)=0,"",SUM(C18:C19)) -> 666633.65 | E60: =IF(SUM(E18:E19)=0,"",SUM(E18:E19)) -> 267020.59 | G60: =IF(SUM(G18:G19)=0,"",SUM(G18:G19)) -> 2118153.96 | J60: =IF(SUM(J18:J19)=0,"",SUM(J18:J19)) -> 237076.16 | M60: =IF(SUM(M18:M19)=0,"",SUM(M18:M19)) -> 181153 | O60: =IF(SUM(O18:O19)=0,"",SUM(O18:O19)) -> 1488816.49 | Q60: =IF(SUM(Q18:Q19)=0,"",SUM(Q18:Q19)) -> 211836.82
C61: =IF(SUM(C18:C19)=0,"",C7) -> Spendenbriefe | E61: =IF(SUM(E18:E19)=0,"",E7) -> Sammeltagsmittel | G61: =IF(SUM(G18:G19)=0,"",G7) -> Weitere (Geld)Spenden | J61: =IF(SUM(J18:J19)=0,"",J7) -> Erbschaften | M61: =IF(SUM(M18:M19)=0,"",M7) -> Bußgelder | O61: =IF(SUM(O18:O19)=0,"",O7) -> Stiftungsmittel | Q61: =IF(SUM(Q18:Q19)=0,"",Q7) -> Sachspenden
C64: ="Verwendung der Spenden in " & RIGHT($C$8,4) & " " & INDEX(IndexCrGb!$D:$E,MATCH($Z$1,IndexCrGb!$E:$E,0),1) -> Verwendung der Spenden in 2023 Caritasverband der Diözese Rottenburg-Stuttgart insgesamt
C65: ="Spendeneingänge " & RIGHT($C$8,4) & " " & INDEX(IndexCrGb!$D:$E,MATCH($Z$1,IndexCrGb!$E:$E,0),1) -> Spendeneingänge 2023 Caritasverband der Diözese Rottenburg-Stuttgart insgesamt
C135: Verwendung der Spenden 2022 (in Prozent)

Sheet DicvGeschäftsstelle
A1: Spendenbilanz Caritasverband der Diözese Rottenburg-Stuttgart e.V. | Z1: DICVGS
A3: ="Mandant: "& INDEX(IndexCrGb!$D:$E,MATCH($Z$1,IndexCrGb!$E:$E,0),1) -> Mandant: DiCV-Geschäftsstelle | G3: Stichtag: | I3: 2023-12-31 | Z3: Anlage 11
C7: Spendenbriefe | E7: Sammeltagsmittel | G7: Weitere (Geld)Spenden | J7: Erbschaften | M7: Bußgelder | O7: Stiftungsmittel | Q7: Sachspenden | S7: Summe | Z7: Summe
C8: 2023 | D8: 2022 | E8: 2023 | F8: 2022 | G8: 2023 | H8: davon aus Vorjahren | I8: 2022 | J8: 2023 | K8: davon aus Vorjahren | L8: 2022 | M8: 2023 | N8: 2022 | O8: 2023 | P8: 2022 | Q8: 2023 | R8: 2022 | S8: 2023 | Z8: 2022 | AC8: =S8 -> 2023 | AD8: =Z8 -> 2022
C9: EUR | D9: EUR | E9: EUR | F9: EUR | G9: EUR | H9: EUR | I9: EUR | J9: EUR | K9: EUR | L9: EUR | M9: EUR | N9: EUR | O9: EUR | P9: EUR | Q9: EUR | R9: EUR | S9: EUR | Z9: EUR
A10: Mailings | B10: =SpBilanzVerd2022!$J$23 -> WL CR
A11: Mittelherkunft 01.01.
A12: Rücklagen Erbschaften/Spenden | S12: =SUM(S13:S14) -> -6205.2 | T12: 0 | U12: 0 | V12: 0 | W12: 0 | X12: 0 | Y12: 0 | Z12: -4458.96
A13: ErbRückl | B13: Rücklagen Erbschaften | D13: =SUMIF(INDIRECT($Z$1&"22!$B:$B"),$B13,INDIRECT($Z$1&"22!$C:$C")) -> 0 | F13: =SUMIF(INDIRECT($Z$1&"22!$A:$A"),$B13,INDIRECT($Z$1&"22!$E:$E")) -> 0 | I13: =SUMIF(INDIRECT($Z$1&"22!$B:$B"),$B13,INDIRECT($Z$1&"22!$G:$G")) -> 0 | J13: =-SUMIF(INDIRECT("Erb"&$Z$1&"!$B:$B"),$A13,INDIRECT("Erb"&$Z$1&"!$C:$C")) -> -6205.2 | L13: =SUMIF(INDIRECT($Z$1&"22!$B:$B"),$B13,INDIRECT($Z$1&"22!$J:$J")) -> -4458.96 | S13: =J13 -> -6205.2 | Z13: =L13 -> -4458.96 | AC13: =SUMIF($C$8:$R$8,AC$8,$C13:$R13)-S13 -> 0 | AD13: =SUMIF($C$8:$R$8,AD$8,$C13:$R13)-Z13 -> 0
A14: ErbVerb | B14: Rücklagen Spenden | D14: =SUMIF(INDIRECT($Z$1&"22!$B:$B"),$B14,INDIRECT($Z$1&"22!$C:$C")) -> 0 | F14: =SUMIF(INDIRECT($Z$1&"22!$A:$A"),$B14,INDIRECT($Z$1&"22!$E:$E")) -> 0 | I14: =SUMIF(INDIRECT($Z$1&"22!$B:$B"),$B14,INDIRECT($Z$1&"22!$G:$G")) -> 0 | S14: =G14 -> 0 | Z14: =I14 -> 0
A15: Noch nicht verbrauchte Spendenmittel/Erbschaften | S15: =SUM(S16:S17) -> 2380333.31 | T15: =T16 -> 0 | U15: 0 | V15: 0 | W15: 0 | X15: 0 | Y15: 0 | Z15: =SUM(Z16:Z17) -> 2448538.32
A16: =SpBilanzVerd2022!$J$24 -> Verwaltung Mailings | B16: nicht verbrauchte Erbschaften | D16: =SUMIF(INDIRECT($Z$1&"22!$B:$B"),$B16,INDIRECT($Z$1&"22!$C:$C")) -> 0 | F16: =SUMIF(INDIRECT($Z$1&"22!$B:$B"),$B16,INDIRECT($Z$1&"22!$E:$E")) -> 0 | I16: =SUMIF(INDIRECT($Z$1&"22!$B:$B"),$B16,INDIRECT($Z$1&"22!$G:$G")) -> 0 | J16: =-SUMIF(INDIRECT("Erb"&$Z$1&"!$B:$B"),$A14,INDIRECT("Erb"&$Z$1&"!$C:$C")) -> 668538.26 | L16: =SUMIF(INDIRECT($Z$1&"22!$B:$B"),$B16,INDIRECT($Z$1&"22!$J:$J")) -> 762052.02 | S16: =J16 -> 668538.26 | Z16: =L16 -> 762052.02 | AC16: =SUMIF($C$8:$R$8,AC$8,$C16:$R16)-S16 -> 0 | AD16: =SUMIF($C$8:$R$8,AD$8,$C16:$R16)-Z16 -> 0
A17: Zwischensumme 1 | B17: nicht verbrauchte Spendenmittel | C17: =-SUMIF(INDIRECT("AW"&$Z$1&"!$B:$B"),$A$10,INDIRECT("AW"&$Z$1&"!$C:$C")) -> 257879.19 | D17: =SUMIF(INDIRECT($Z$1&"22!$B:$B"),$B17,INDIRECT($Z$1&"22!$C:$C")) -> 450158.57 | E17: =-SUM(SuSaNKkzGlassSmFo23!$D:$D) -> 233298.81 | F17: =SUMIF(INDIRECT($Z$1&"22!$B:$B"),$B17,INDIRECT($Z$1&"22!$E:$E")) -> 265765.5 | G17: =-SUMIF(INDIRECT("AW"&$Z$1&"!$B:$B"),$A$17,INDIRECT("AW"&$Z$1&"!$C:$C")) -> 1220617.05 | I17: =SUMIF(INDIRECT($Z$1&"22!$B:$B"),$B17,INDIRECT($Z$1&"22!$G:$G")) -> 970562.23 | S17: =C17+E17+G17+J17+M17 -> 1711795.05 | Z17: =D17+F17+I17+L17+N17 -> 1686486.3 | AC17: =SUMIF($C$8:$R$8,AC$8,$C17:$R17)-S17 -> 0 | AD17: =SUMIF($C$8:$R$8,AD$8,$C17:$R17)-Z17 -> 0
A18: Umbuchung Caritasregionen | C18: =SUM(IF(SpMailSaTaIst23!$G$1:$G$100=$Z$1,IF(SpMailSaTaIst23!$I$1:$I$100=$A18,IF(SpMailSaTaIst23!$H$1:$H$100=IndexCrGb!$P$3,SpMailSaTaIst23!$E$1:$E$100)))) -> -450908.83 | D18: =SUMIF(INDIRECT($Z$1&"22!$A:$A"),$A18,INDIRECT($Z$1&"22!$C:$C")) -> -571366.87 | E18: =SUM(IF(SpMailSaTaIst23!$G$1:$G$100=$Z$1,IF(SpMailSaTaIst23!$I$1:$I$100=$A18,IF(SpMailSaTaIst23!$H$1:$H$100=IndexCrGb!$P$4,SpMailSaTaIst23!$E$1:$E$100)))) -> -233043.49 | F18: =SUMIF(INDIRECT($Z$1&"22!$A:$A"),$A18,INDIRECT($Z$1&"22!$E:$E")) -> -265509.85 | G18: =-SUMIF(INDIRECT("AW"&$Z$1&"!$B:$B"),$A$18,INDIRECT("AW"&$Z$1&"!$I:$I")) -> -51800 | H18: =SUMIF(INDIRECT("AW"&$Z$1&"!$B:$B"),$A18,INDIRECT("AW"&$Z$1&"!$G:$G")) -> 0 | I18: =SUMIF(INDIRECT($Z$1&"22!$A:$A"),$A18,INDIRECT($Z$1&"22!$G:$G")) -> -70500 | J18: =-SUMIF(INDIRECT("Erb"&$Z$1&"!$B:$B"),$A18,INDIRECT("Erb"&$Z$1&"!$I:$I")) -> -20000 | L18: =SUMIF(INDIRECT($Z$1&"22!$A:$A"),$A18,INDIRECT($Z$1&"22!$J:$J")) -> -20194.85 | M18: =SUM(IF([10]Bussgelder20!$F$1:$F$100=$Z$1,IF([10]Bussgelder20!$E$1:$E$100=$A18,[10]Bussgelder20!$C$1:$C$100))) -> 0 | N18: =SUMIF(INDIRECT($Z$1&"22!$B:$B"),$A18,INDIRECT($Z$1&"22!$M:$M")) -> 0 | O18: =SUM(IF(Fördermittel23!$F$1:$F$100=$Z$1,IF(Fördermittel23!$E$1:$E$100=$A18,Fördermittel23!$C$1:$C$100))) -> 0 | P18: =SUMIF(INDIRECT($Z$1&"22!$B:$B"),$A18,INDIRECT($Z$1&"22!$O:$O")) -> 0 | Q18: =SUM(IF(Sachspenden23!$F$1:$F$100=$Z$1,IF(Sachspenden23!$E$1:$E$100=$A18,Sachspenden23!$C$1:$C$100))) -> 0 | R18: =SUMIF(INDIRECT($Z$1&"22!$B:$B"),$A18,INDIRECT($Z$1&"22!$Q:$Q")) -> 0 | S18: =C18+E18+G18+J18+M18+O18+Q18 -> -755752.32 | Z18: =D18+F18+I18+L18+N18+P18+R18 -> -927571.57 | AC18: =SUMIF($C$8:$R$8,AC$8,$C18:$R18)-S18 -> 0 | AD18: =SUMIF($C$8:$R$8,AD$8,$C18:$R18)-Z18 -> 0
A19: Zufluss | C19: =-SUMIF(INDIRECT("AW"&$Z$1&"!$B:$B"),$A$10,INDIRECT("AW"&$Z$1&"!$D:$D"))-SUMIF(INDIRECT("AW"&$Z$1&"!$B:$B"),$A$10,INDIRECT("AW"&$Z$1&"!$E:$E"))+4791.7 -> 666633.65 | D19: =SUMIF(INDIRECT($Z$1&"22!$A:$A"),$A19,INDIRECT($Z$1&"22!$C:$C")) -> 441720.2 | E19: =SUM(AbrechnCvSEndg2023!$F$11) -> 267020.59 | F19: =SUMIF(INDIRECT($Z$1&"22!$A:$A"),$A19,INDIRECT($Z$1&"22!$E:$E")) -> 338675.92 | G19: =-SUMIF(INDIRECT("AW"&$Z$1&"!$B:$B"),$A$17,INDIRECT("AW"&$Z$1&"!$D:$D"))+SUMIF(INDIRECT("AW"&$Z$1&"!$B:$B"),$A$38,INDIRECT("AW"&$Z$1&"!$D:$D"))+SUMIF(INDIRECT("AW"&$Z$1&"!$B:$B"),$A$10,INDIRECT("AW"&$Z$1&"!$E:$E")) -> 580491.49 | I19: =SUMIF(INDIRECT($Z$1&"22!$A:$A"),$A19,INDIRECT($Z$1&"22!$G:$G")) -> 1321759.98 | J19: =-SUMIF(INDIRECT("Erb"&$Z$1&"!$B:$B"),$A20,INDIRECT("Erb"&$Z$1&"!$D:$D")) -> 53614.33 | L19: =SUMIF(INDIRECT($Z$1&"22!$A:$A"),$A19,INDIRECT($Z$1&"22!$J:$J")) -> 528459.49 | N19: =SUMIF(INDIRECT($Z$1&"22!$A:$A"),$A19,INDIRECT($Z$1&"22!$M:$M")) -> 0 | O19: =-SUMIF(Fördermittel23!$F:$F,$Z$1,Fördermittel23!$C:$C) -> 114739.67 | P19: =SUMIF(INDIRECT($Z$1&"22!$A:$A"),$A19,INDIRECT($Z$1&"22!$O:$O")) -> 119458.09 | Q19: =-SUMIF(Sachspenden23!$F:$F,$Z$1,Sachspenden23!$C:$C) -> 0 | R19: =SUMIF(INDIRECT($Z$1&"22!$A:$A"),$A19,INDIRECT($Z$1&"22!$Q:$Q")) -> 0 | S19: =C19+E19+G19+J19+M19+O19+Q19 -> 1682499.73 | Z19: =D19+F19+I19+L19+N19+P19+R19 -> 2750073.68 | AC19: =SUMIF($C$8:$R$8,AC$8,$C19:$R19)-S19 -> 0 | AD19: =SUMIF($C$8:$R$8,AD$8,$C19:$R19)-Z19 -> 0
A20: Gesamt | B20: =SpBilanzVerd2022!$J$22 -> WL HbF | C20: =SUM(C13:C14,C16:C19) -> 473604.01 | D20: =SUM(D13:D14,D16:D19) -> 320511.9 | E20: =SUM(E13:E14,E16:E19) -> 267275.91 | F20: =SUM(F13:F14,F16:F19) -> 338931.57 | G20: =SUM(G13:G14,G16:G19) -> 1749308.54 | H20: =SUM(H19:H19) -> 0 | I20: =SUM(I13:I19) -> 2221822.21 | J20: =SUM(J13:J19) -> 695947.39 | K20: =SUM(K19:K19) -> 0 | L20: =SUM(L11:L19) -> 1265857.7 | M20: =SUM(M19) -> 0 | N20: 0 | O20: 114739.67 | P20: 119458.09 | Q20: 0 | R20: 0 | S20: =S12+S15+S18+S19 -> 3300875.52 | T20: =T12+T15+#REF!+T19 ->  | U20: =U12+U15+#REF!+U19 ->  | V20: =V12+V15+#REF!+V19 ->  | W20: =W12+W15+#REF!+W19 ->  | X20: =X12+X15+#REF!+X19 ->  | Y20: =Y12+Y15+#REF!+Y19 ->  | Z20: =Z12+Z15+Z18+Z19 -> 4266581.47 | AC20: =SUMIF($C$8:$R$8,AC$8,$C20:$R20)-S20 -> 0 | AD20: =SUMIF($C$8:$R$8,AD$8,$C20:$R20)-Z20 -> 0
A21: nicht verbrauchte Sammeltagsmittel | B21: sonstige Spendenmittel
A22: Mittelverwendung
B23: =SpBilanzVerd2022!$J$3 -> Caritasarbeit allgemein | C23: =SUM(IF(SpMailSaTaIst23!$G$1:$G$100=$Z$1,IF(SpMailSaTaIst23!$I$1:$I$100=$B23,IF(SpMailSaTaIst23!$H$1:$H$100=IndexCrGb!$P$3,SpMailSaTaIst23!$E$1:$E$100)))) -> 0 | D23: =SUMIF(INDIRECT($Z$1&"22!$B:$B"),$B23,INDIRECT($Z$1&"22!$C:$C")) -> 0 | E23: =SUM(IF(SpMailSaTaIst23!$G$1:$G$100=$Z$1,IF(SpMailSaTaIst23!$I$1:$I$100=$B23,IF(SpMailSaTaIst23!$H$1:$H$100=IndexCrGb!$P$4,SpMailSaTaIst23!$E$1:$E$100)))) -> 0 | F23: =SUMIF(INDIRECT($Z$1&"22!$B:$B"),$B23,INDIRECT($Z$1&"22!$E:$E")) -> 0 | G23: =-SUMIF(INDIRECT("AW"&$Z$1&"!$B:$B"),$B23,INDIRECT("AW"&$Z$1&"!$E:$E")) -> -44961.13 | H23: =SUMIF(INDIRECT("AW"&$Z$1&"!$B:$B"),$B23,INDIRECT("AW"&$Z$1&"!$G:$G")) -> 0 | I23: =SUMIF(INDIRECT($Z$1&"22!$B:$B"),$B23,INDIRECT($Z$1&"22!$G:$G")) -> -53558.58 | J23: =-SUMIF(INDIRECT("Erb"&$Z$1&"!$B:$B"),$B23,INDIRECT("Erb"&$Z$1&"!$E:$E")) -> -56079.24 | K23: =SUMIF(INDIRECT("Erb"&$Z$1&"!$B:$B"),$B23,INDIRECT("Erb"&$Z$1&"!$G:$G")) -> -42372.78 | L23: =SUMIF(INDIRECT($Z$1&"22!$B:$B"),$B23,INDIRECT($Z$1&"22!$J:$J")) -> -311556.17 | M23: =SUM(IF([10]Bussgelder20!$F$1:$F$100=$Z$1,IF([10]Bussgelder20!$E$1:$E$100=$B23,[10]Bussgelder20!$C$1:$C$100))) -> 0 | N23: =SUMIF(INDIRECT($Z$1&"22!$B:$B"),$B23,INDIRECT($Z$1&"22!$M:$M")) -> 0 | O23: =SUM(IF(Fördermittel23!$F$1:$F$100=$Z$1,IF(Fördermittel23!$E$1:$E$100=$B23,Fördermittel23!$C$1:$C$100))) -> -3252.98 | P23: =SUMIF(INDIRECT($Z$1&"22!$B:$B"),$B23,INDIRECT($Z$1&"22!$O:$O")) -> 0 | Q23: =SUM(IF(Sachspenden23!$F$1:$F$100=$Z$1,IF(Sachspenden23!$E$1:$E$100=$B23,Sachspenden23!$C$1:$C$100))) -> 0 | R23: =SUMIF(INDIRECT($Z$1&"22!$B:$B"),$B23,INDIRECT($Z$1&"22!$Q:$Q")) -> 0 | S23: =C23+E23+G23+J23+M23+O23+Q23 -> -104293.35 | Z23: =D23+F23+I23+L23+N23+P23+R23 -> -365114.75 | AA23: =IF(S23=0,"",-S23) -> 104293.35 | AB23: =IF(S23=0,"",$B23) -> Caritasarbeit allgemein | AC23: =SUMIF($C$8:$R$8,AC$8,$C23:$R23)-S23 -> 0 | AD23: =SUMIF($C$8:$R$8,AD$8,$C23:$R23)-Z23 -> 0
B24: =SpBilanzVerd2022!$J$2 -> Existenzsicherung | C24: =SUM(IF(SpMailSaTaIst23!$G$1:$G$100=$Z$1,IF(SpMailSaTaIst23!$I$1:$I$100=$B24,IF(SpMailSaTaIst23!$H$1:$H$100=IndexCrGb!$P$3,SpMailSaTaIst23!$E$1:$E$100)))) -> 0 | D24: 0 | E24: =SUM(IF(SpMailSaTaIst23!$G$1:$G$100=$Z$1,IF(SpMailSaTaIst23!$I$1:$I$100=$B24,IF(SpMailSaTaIst23!$H$1:$H$100=IndexCrGb!$P$4,SpMailSaTaIst23!$E$1:$E$100)))) -> 0 | F24: 0 | G24: =-SUMIF(INDIRECT("AW"&$Z$1&"!$B:$B"),$B24,INDIRECT("AW"&$Z$1&"!$E:$E")) -> 0 | H24: =SUMIF(INDIRECT("AW"&$Z$1&"!$B:$B"),$B24,INDIRECT("AW"&$Z$1&"!$G:$G")) -> 0 | I24: 0 | J24: 0 | K24: 0 | L24: 0 | M24: =SUM(IF([10]Bussgelder20!$F$1:$F$100=$Z$1,IF([10]Bussgelder20!$E$1:$E$100=$B24,[10]Bussgelder20!$C$1:$C$100))) -> 0 | N24: 0 | O24: =SUM(IF(Fördermittel23!$F$1:$F$100=$Z$1,IF(Fördermittel23!$E$1:$E$100=$B24,Fördermittel23!$C$1:$C$100))) -> 0 | P24: 0 | Q24: =SUM(IF(Sachspenden23!$F$1:$F$100=$Z$1,IF(Sachspenden23!$E$1:$E$100=$B24,Sachspenden23!$C$1:$C$100))) -> 0 | R24: 0 | S24: 0 | Z24: 0 | AC24: 0 | AD24: 0
B25: =SpBilanzVerd2022!$J$10 -> Familienhilfen | C25: =SUM(IF(SpMailSaTaIst23!$G$1:$G$100=$Z$1,IF(SpMailSaTaIst23!$I$1:$I$100=$B25,IF(SpMailSaTaIst23!$H$1:$H$100=IndexCrGb!$P$3,SpMailSaTaIst23!$E$1:$E$100)))) -> 0 | D25: 0 | E25: =SUM(IF(SpMailSaTaIst23!$G$1:$G$100=$Z$1,IF(SpMailSaTaIst23!$I$1:$I$100=$B25,IF(SpMailSaTaIst23!$H$1:$H$100=IndexCrGb!$P$4,SpMailSaTaIst23!$E$1:$E$100)))) -> 0 | F25: 0 | G25: =-SUMIF(INDIRECT("AW"&$Z$1&"!$B:$B"),$B25,INDIRECT("AW"&$Z$1&"!$E:$E")) -> -2551.6 | H25: =SUMIF(INDIRECT("AW"&$Z$1&"!$B:$B"),$B25,INDIRECT("AW"&$Z$1&"!$G:$G")) -> -2551.6 | I25: -1850 | J25: -17000 | K25: -17000 | L25: -16721.95 | M25: =SUM(IF([10]Bussgelder20!$F$1:$F$100=$Z$1,IF([10]Bussgelder20!$E$1:$E$100=$B25,[10]Bussgelder20!$C$1:$C$100))) -> 0 | N25: 0 | O25: =SUM(IF(Fördermittel23!$F$1:$F$100=$Z$1,IF(Fördermittel23!$E$1:$E$100=$B25,Fördermittel23!$C$1:$C$100))) -> 0 | P25: 0 | Q25: =SUM(IF(Sachspenden23!$F$1:$F$100=$Z$1,IF(Sachspenden23!$E$1:$E$100=$B25,Sachspenden23!$C$1:$C$100))) -> 0 | R25: 0 | S25: -19551.6 | Z25: -18571.95 | AA25: 19551.6 | AB25: Familienhilfen | AC25: 0 | AD25: 0
B26: =SpBilanzVerd2022!$J$6 -> Kinder- und Jugendhilfe | C26: =SUM(IF(SpMailSaTaIst23!$G$1:$G$100=$Z$1,IF(SpMailSaTaIst23!$I$1:$I$100=$B26,IF(SpMailSaTaIst23!$H$1:$H$100=IndexCrGb!$P$3,SpMailSaTaIst23!$E$1:$E$100)))) -> 0 | D26: 0 | E26: =SUM(IF(SpMailSaTaIst23!$G$1:$G$100=$Z$1,IF(SpMailSaTaIst23!$I$1:$I$100=$B26,IF(SpMailSaTaIst23!$H$1:$H$100=IndexCrGb!$P$4,SpMailSaTaIst23!$E$1:$E$100)))) -> 0 | F26: 0 | G26: =-SUMIF(INDIRECT("AW"&$Z$1&"!$B:$B"),$B26,INDIRECT("AW"&$Z$1&"!$E:$E")) -> 0 | H26: =SUMIF(INDIRECT("AW"&$Z$1&"!$B:$B"),$B26,INDIRECT("AW"&$Z$1&"!$G:$G")) -> 0 | I26: -1500 | J26: 0 | K26: 0 | L26: 0 | M26: =SUM(IF([10]Bussgelder20!$F$1:$F$100=$Z$1,IF([10]Bussgelder20!$E$1:$E$100=$B26,[10]Bussgelder20!$C$1:$C$100))) -> 0 | N26: 0 | O26: =SUM(IF(Fördermittel23!$F$1:$F$100=$Z$1,IF(Fördermittel23!$E$1:$E$100=$B26,Fördermittel23!$C$1:$C$100))) -> -10868.5 | P26: -17618.53 | Q26: =SUM(IF(Sachspenden23!$F$1:$F$100=$Z$1,IF(Sachspenden23!$E$1:$E$100=$B26,Sachspenden23!$C$1:$C$100))) -> 0 | R26: 0 | S26: -10868.5 | Z26: -19118.53 | AA26: 10868.5 | AB26: Kinder- und Jugendhilfe | AC26: 0 | AD26: 0
B27: =SpBilanzVerd2022!$J$16 -> Jugendberufshilfe | C27: =SUM(IF(SpMailSaTaIst23!$G$1:$G$100=$Z$1,IF(SpMailSaTaIst23!$I$1:$I$100=$B27,IF(SpMailSaTaIst23!$H$1:$H$100=IndexCrGb!$P$3,SpMailSaTaIst23!$E$1:$E$100)))) -> 0 | D27: 0 | E27: =SUM(IF(SpMailSaTaIst23!$G$1:$G$100=$Z$1,IF(SpMailSaTaIst23!$I$1:$I$100=$B27,IF(SpMailSaTaIst23!$H$1:$H$100=IndexCrGb!$P$4,SpMailSaTaIst23!$E$1:$E$100)))) -> 0 | F27: 0 | G27: =-SUMIF(INDIRECT("AW"&$Z$1&"!$B:$B"),$B27,INDIRECT("AW"&$Z$1&"!$E:$E")) -> 0 | H27: =SUMIF(INDIRECT("AW"&$Z$1&"!$B:$B"),$B27,INDIRECT("AW"&$Z$1&"!$G:$G")) -> 0 | I27: 0 | J27: 0 | K27: 0 | L27: 0 | M27: =SUM(IF([10]Bussgelder20!$F$1:$F$100=$Z$1,IF([10]Bussgelder20!$E$1:$E$100=$B27,[10]Bussgelder20!$C$1:$C$100))) -> 0 | N27: 0 | O27: =SUM(IF(Fördermittel23!$F$1:$F$100=$Z$1,IF(Fördermittel23!$E$1:$E$100=$B27,Fördermittel23!$C$1:$C$100))) -> 0 | P27: 0 | Q27: =SUM(IF(Sachspenden23!$F$1:$F$100=$Z$1,IF(Sachspenden23!$E$1:$E$100=$B27,Sachspenden23!$C$1:$C$100))) -> 0 | R27: 0 | S27: 0 | Z27: 0 | AC27: 0 | AD27: 0
B28: =SpBilanzVerd2022!$J$14 -> Behindertenhilfe | C28: =SUM(IF(SpMailSaTaIst23!$G$1:$G$100=$Z$1,IF(SpMailSaTaIst23!$I$1:$I$100=$B28,IF(SpMailSaTaIst23!$H$1:$H$100=IndexCrGb!$P$3,SpMailSaTaIst23!$E$1:$E$100)))) -> 0 | D28: 0 | E28: =SUM(IF(SpMailSaTaIst23!$G$1:$G$100=$Z$1,IF(SpMailSaTaIst23!$I$1:$I$100=$B28,IF(SpMailSaTaIst23!$H$1:$H$100=IndexCrGb!$P$4,SpMailSaTaIst23!$E$1:$E$100)))) -> 0 | F28: 0 | G28: =-SUMIF(INDIRECT("AW"&$Z$1&"!$B:$B"),$B28,INDIRECT("AW"&$Z$1&"!$E:$E")) -> 0 | H28: =SUMIF(INDIRECT("AW"&$Z$1&"!$B:$B"),$B28,INDIRECT("AW"&$Z$1&"!$G:$G")) -> 0 | I28: 0 | J28: -13481.64 | K28: 0 | L28: -18402.92 | M28: =SUM(IF([10]Bussgelder20!$F$1:$F$100=$Z$1,IF([10]Bussgelder20!$E$1:$E$100=$B28,[10]Bussgelder20!$C$1:$C$100))) -> 0 | N28: 0 | O28: =SUM(IF(Fördermittel23!$F$1:$F$100=$Z$1,IF(Fördermittel23!$E$1:$E$100=$B28,Fördermittel23!$C$1:$C$100))) -> 0 | P28: 0 | Q28: =SUM(IF(Sachspenden23!$F$1:$F$100=$Z$1,IF(Sachspenden23!$E$1:$E$100=$B28,Sachspenden23!$C$1:$C$100))) -> 0 | R28: 0 | S28: -13481.64 | Z28: -18402.92 | AA28: 13481.64 | AB28: Behindertenhilfe | AC28: 0 | AD28: 0
B29: =SpBilanzVerd2022!$J$9 -> Altenhilfe/Hospizdienste | C29: =SUM(IF(SpMailSaTaIst23!$G$1:$G$100=$Z$1,IF(SpMailSaTaIst23!$I$1:$I$100=$B29,IF(SpMailSaTaIst23!$H$1:$H$100=IndexCrGb!$P$3,SpMailSaTaIst23!$E$1:$E$100)))) -> 0 | D29: 0 | E29: =SUM(IF(SpMailSaTaIst23!$G$1:$G$100=$Z$1,IF(SpMailSaTaIst23!$I$1:$I$100=$B29,IF(SpMailSaTaIst23!$H$1:$H$100=IndexCrGb!$P$4,SpMailSaTaIst23!$E$1:$E$100)))) -> 0 | F29: 0 | G29: =-SUMIF(INDIRECT("AW"&$Z$1&"!$B:$B"),$B29,INDIRECT("AW"&$Z$1&"!$E:$E")) -> 0 | H29: =SUMIF(INDIRECT("AW"&$Z$1&"!$B:$B"),$B29,INDIRECT("AW"&$Z$1&"!$G:$G")) -> 0 | I29: 0 | J29: 0 | K29: 0 | L29: 0 | M29: =SUM(IF([10]Bussgelder20!$F$1:$F$100=$Z$1,IF([10]Bussgelder20!$E$1:$E$100=$B29,[10]Bussgelder20!$C$1:$C$100))) -> 0 | N29: 0 | O29: =SUM(IF(Fördermittel23!$F$1:$F$100=$Z$1,IF(Fördermittel23!$E$1:$E$100=$B29,Fördermittel23!$C$1:$C$100))) -> -618.19 | P29: -1839.56 | Q29: =SUM(IF(Sachspenden23!$F$1:$F$100=$Z$1,IF(Sachspenden23!$E$1:$E$100=$B29,Sachspenden23!$C$1:$C$100))) -> 0 | R29: 0 | S29: -618.19 | Z29: -1839.56 | AA29: 618.19 | AB29: Altenhilfe/Hospizdienste | AC29: 0 | AD29: 0
B30: =SpBilanzVerd2022!$J$12 -> Sozialpsychiatrischer Dienst | C30: =SUM(IF(SpMailSaTaIst23!$G$1:$G$100=$Z$1,IF(SpMailSaTaIst23!$I$1:$I$100=$B30,IF(SpMailSaTaIst23!$H$1:$H$100=IndexCrGb!$P$3,SpMailSaTaIst23!$E$1:$E$100)))) -> 0 | D30: 0 | E30: =SUM(IF(SpMailSaTaIst23!$G$1:$G$100=$Z$1,IF(SpMailSaTaIst23!$I$1:$I$100=$B30,IF(SpMailSaTaIst23!$H$1:$H$100=IndexCrGb!$P$4,SpMailSaTaIst23!$E$1:$E$100)))) -> 0 | F30: 0 | G30: =-SUMIF(INDIRECT("AW"&$Z$1&"!$B:$B"),$B30,INDIRECT("AW"&$Z$1&"!$E:$E")) -> 0 | H30: =SUMIF(INDIRECT("AW"&$Z$1&"!$B:$B"),$B30,INDIRECT("AW"&$Z$1&"!$G:$G")) -> 0 | I30: 0 | J30: 0 | K30: 0 | L30: 0 | M30: =SUM(IF([10]Bussgelder20!$F$1:$F$100=$Z$1,IF([10]Bussgelder20!$E$1:$E$100=$B30,[10]Bussgelder20!$C$1:$C$100))) -> 0 | N30: 0 | O30: =SUM(IF(Fördermittel23!$F$1:$F$100=$Z$1,IF(Fördermittel23!$E$1:$E$100=$B30,Fördermittel23!$C$1:$C$100))) -> 0 | P30: 0 | Q30: =SUM(IF(Sachspenden23!$F$1:$F$100=$Z$1,IF(Sachspenden23!$E$1:$E$100=$B30,Sachspenden23!$C$1:$C$100))) -> 0 | R30: 0 | S30: 0 | Z30: 0 | AC30: 0 | AD30: 0
B31: =SpBilanzVerd2022!$J$5 -> Suchthilfe | C31: =SUM(IF(SpMailSaTaIst23!$G$1:$G$100=$Z$1,IF(SpMailSaTaIst23!$I$1:$I$100=$B31,IF(SpMailSaTaIst23!$H$1:$H$100=IndexCrGb!$P$3,SpMailSaTaIst23!$E$1:$E$100)))) -> 0 | D31: 0 | E31: =SUM(IF(SpMailSaTaIst23!$G$1:$G$100=$Z$1,IF(SpMailSaTaIst23!$I$1:$I$100=$B31,IF(SpMailSaTaIst23!$H$1:$H$100=IndexCrGb!$P$4,SpMailSaTaIst23!$E$1:$E$100)))) -> 0 | F31: 0 | G31: =-SUMIF(INDIRECT("AW"&$Z$1&"!$B:$B"),$B31,INDIRECT("AW"&$Z$1&"!$E:$E")) -> 0 | H31: =SUMIF(INDIRECT("AW"&$Z$1&"!$B:$B"),$B31,INDIRECT("AW"&$Z$1&"!$G:$G")) -> 0 | I31: 0 | J31: 0 | K31: 0 | L31: 0 | M31: =SUM(IF([10]Bussgelder20!$F$1:$F$100=$Z$1,IF([10]Bussgelder20!$E$1:$E$100=$B31,[10]Bussgelder20!$C$1:$C$100))) -> 0 | N31: 0 | O31: =SUM(IF(Fördermittel23!$F$1:$F$100=$Z$1,IF(Fördermittel23!$E$1:$E$100=$B31,Fördermittel23!$C$1:$C$100))) -> 0 | P31: 0 | Q31: =SUM(IF(Sachspenden23!$F$1:$F$100=$Z$1,IF(Sachspenden23!$E$1:$E$100=$B31,Sachspenden23!$C$1:$C$100))) -> 0 | R31: 0 | S31: 0 | Z31: 0 | AC31: 0 | AD31: 0
B32: =SpBilanzVerd2022!$J$13 -> Migration | C32: =SUM(IF(SpMailSaTaIst23!$G$1:$G$100=$Z$1,IF(SpMailSaTaIst23!$I$1:$I$100=$B32,IF(SpMailSaTaIst23!$H$1:$H$100=IndexCrGb!$P$3,SpMailSaTaIst23!$E$1:$E$100)))) -> 0 | D32: 0 | E32: =SUM(IF(SpMailSaTaIst23!$G$1:$G$100=$Z$1,IF(SpMailSaTaIst23!$I$1:$I$100=$B32,IF(SpMailSaTaIst23!$H$1:$H$100=IndexCrGb!$P$4,SpMailSaTaIst23!$E$1:$E$100)))) -> 0 | F32: 0 | G32: =-SUMIF(INDIRECT("AW"&$Z$1&"!$B:$B"),$B32,INDIRECT("AW"&$Z$1&"!$E:$E")) -> 0 | H32: =SUMIF(INDIRECT("AW"&$Z$1&"!$B:$B"),$B32,INDIRECT("AW"&$Z$1&"!$G:$G")) -> 0 | I32: 0 | J32: 0 | K32: 0 | L32: 0 | M32: =SUM(IF([10]Bussgelder20!$F$1:$F$100=$Z$1,IF([10]Bussgelder20!$E$1:$E$100=$B32,[10]Bussgelder20!$C$1:$C$100))) -> 0 | N32: 0 | O32: =SUM(IF(Fördermittel23!$F$1:$F$100=$Z$1,IF(Fördermittel23!$E$1:$E$100=$B32,Fördermittel23!$C$1:$C$100))) -> 0 | P32: 0 | Q32: =SUM(IF(Sachspenden23!$F$1:$F$100=$Z$1,IF(Sachspenden23!$E$1:$E$100=$B32,Sachspenden23!$C$1:$C$100))) -> 0 | R32: 0 | S32: 0 | Z32: 0 | AC32: 0 | AD32: 0
B33: =SpBilanzVerd2022!$J$7 -> Wohnungslosenhilfe | C33: =SUM(IF(SpMailSaTaIst23!$G$1:$G$100=$Z$1,IF(SpMailSaTaIst23!$I$1:$I$100=$B33,IF(SpMailSaTaIst23!$H$1:$H$100=IndexCrGb!$P$3,SpMailSaTaIst23!$E$1:$E$100)))) -> 0 | D33: 0 | E33: =SUM(IF(SpMailSaTaIst23!$G$1:$G$100=$Z$1,IF(SpMailSaTaIst23!$I$1:$I$100=$B33,IF(SpMailSaTaIst23!$H$1:$H$100=IndexCrGb!$P$4,SpMailSaTaIst23!$E$1:$E$100)))) -> 0 | F33: 0 | G33: =-SUMIF(INDIRECT("AW"&$Z$1&"!$B:$B"),$B33,INDIRECT("AW"&$Z$1&"!$E:$E")) -> 0 | H33: =SUMIF(INDIRECT("AW"&$Z$1&"!$B:$B"),$B33,INDIRECT("AW"&$Z$1&"!$G:$G")) -> 0 | I33: 0 | J33: 0 | K33: 0 | L33: 0 | M33: =SUM(IF([10]Bussgelder20!$F$1:$F$100=$Z$1,IF([10]Bussgelder20!$E$1:$E$100=$B33,[10]Bussgelder20!$C$1:$C$100))) -> 0 | N33: 0 | O33: =SUM(IF(Fördermittel23!$F$1:$F$100=$Z$1,IF(Fördermittel23!$E$1:$E$100=$B33,Fördermittel23!$C$1:$C$100))) -> 0 | P33: 0 | Q33: =SUM(IF(Sachspenden23!$F$1:$F$100=$Z$1,IF(Sachspenden23!$E$1:$E$100=$B33,Sachspenden23!$C$1:$C$100))) -> 0 | R33: 0 | S33: 0 | Z33: 0 | AC33: 0
B34: =SpBilanzVerd2022!$J$4 -> Gemeindenahe Netzwerke | C34: =SUM(IF(SpMailSaTaIst23!$G$1:$G$100=$Z$1,IF(SpMailSaTaIst23!$I$1:$I$100=$B34,IF(SpMailSaTaIst23!$H$1:$H$100=IndexCrGb!$P$3,SpMailSaTaIst23!$E$1:$E$100)))) -> 0 | D34: 0 | E34: =SUM(IF(SpMailSaTaIst23!$G$1:$G$100=$Z$1,IF(SpMailSaTaIst23!$I$1:$I$100=$B34,IF(SpMailSaTaIst23!$H$1:$H$100=IndexCrGb!$P$4,SpMailSaTaIst23!$E$1:$E$100)))) -> 0 | F34: 0 | G34: =-SUMIF(INDIRECT("AW"&$Z$1&"!$B:$B"),$B34,INDIRECT("AW"&$Z$1&"!$E:$E")) -> 0 | H34: =SUMIF(INDIRECT("AW"&$Z$1&"!$B:$B"),$B34,INDIRECT("AW"&$Z$1&"!$G:$G")) -> 0 | I34: 0 | J34: 0 | K34: 0 | L34: 0 | M34: =SUM(IF([10]Bussgelder20!$F$1:$F$100=$Z$1,IF([10]Bussgelder20!$E$1:$E$100=$B34,[10]Bussgelder20!$C$1:$C$100))) -> 0 | N34: 0 | O34: =SUM(IF(Fördermittel23!$F$1:$F$100=$Z$1,IF(Fördermittel23!$E$1:$E$100=$B34,Fördermittel23!$C$1:$C$100))) -> 0 | P34: 0 | Q34: =SUM(IF(Sachspenden23!$F$1:$F$100=$Z$1,IF(Sachspenden23!$E$1:$E$100=$B34,Sachspenden23!$C$1:$C$100))) -> 0 | R34: 0 | S34: 0 | Z34: 0 | AC34: 0
B35: =SpBilanzVerd2022!$J$8 -> Arbeitshilfen | C35: =SUM(IF(SpMailSaTaIst23!$G$1:$G$100=$Z$1,IF(SpMailSaTaIst23!$I$1:$I$100=$B35,IF(SpMailSaTaIst23!$H$1:$H$100=IndexCrGb!$P$3,SpMailSaTaIst23!$E$1:$E$100)))) -> 0 | D35: 0 | E35: =SUM(IF(SpMailSaTaIst23!$G$1:$G$100=$Z$1,IF(SpMailSaTaIst23!$I$1:$I$100=$B35,IF(SpMailSaTaIst23!$H$1:$H$100=IndexCrGb!$P$4,SpMailSaTaIst23!$E$1:$E$100)))) -> 0 | F35: 0 | G35: =-SUMIF(INDIRECT("AW"&$Z$1&"!$B:$B"),$B35,INDIRECT("AW"&$Z$1&"!$E:$E")) -> 0 | H35: =SUMIF(INDIRECT("AW"&$Z$1&"!$B:$B"),$B35,INDIRECT("AW"&$Z$1&"!$G:$G")) -> 0 | I35: 0 | J35: 0 | K35: 0 | L35: 0 | M35: =SUM(IF([10]Bussgelder20!$F$1:$F$100=$Z$1,IF([10]Bussgelder20!$E$1:$E$100=$B35,[10]Bussgelder20!$C$1:$C$100))) -> 0 | N35: 0 | O35: =SUM(IF(Fördermittel23!$F$1:$F$100=$Z$1,IF(Fördermittel23!$E$1:$E$100=$B35,Fördermittel23!$C$1:$C$100))) -> 0 | P35: 0 | Q35: =SUM(IF(Sachspenden23!$F$1:$F$100=$Z$1,IF(Sachspenden23!$E$1:$E$100=$B35,Sachspenden23!$C$1:$C$100))) -> 0 | R35: 0 | S35: 0 | Z35: 0 | AC35: 0
B36: =SpBilanzVerd2022!$J$17 -> Diverse Zweckhinweise | C36: =SUM(IF(SpMailSaTaIst23!$G$1:$G$100=$Z$1,IF(SpMailSaTaIst23!$I$1:$I$100=$B36,IF(SpMailSaTaIst23!$H$1:$H$100=IndexCrGb!$P$3,SpMailSaTaIst23!$E$1:$E$100)))) -> 0 | D36: 0 | E36: =SUM(IF(SpMailSaTaIst23!$G$1:$G$100=$Z$1,IF(SpMailSaTaIst23!$I$1:$I$100=$B36,IF(SpMailSaTaIst23!$H$1:$H$100=IndexCrGb!$P$4,SpMailSaTaIst23!$E$1:$E$100)))) -> 0 | F36: 0 | G36: =-SUMIF(INDIRECT("AW"&$Z$1&"!$B:$B"),$B36,INDIRECT("AW"&$Z$1&"!$E:$E")) -> 0 | H36: =SUMIF(INDIRECT("AW"&$Z$1&"!$B:$B"),$B36,INDIRECT("AW"&$Z$1&"!$G:$G")) -> 0 | I36: 0 | J36: 0 | K36: 0 | L36: 0 | M36: =SUM(IF([10]Bussgelder20!$F$1:$F$100=$Z$1,IF([10]Bussgelder20!$E$1:$E$100=$B36,[10]Bussgelder20!$C$1:$C$100))) -> 0 | N36: 0 | O36: =SUM(IF(Fördermittel23!$F$1:$F$100=$Z$1,IF(Fördermittel23!$E$1:$E$100=$B36,Fördermittel23!$C$1:$C$100))) -> 0 | P36: 0 | Q36: =SUM(IF(Sachspenden23!$F$1:$F$100=$Z$1,IF(Sachspenden23!$E$1:$E$100=$B36,Sachspenden23!$C$1:$C$100))) -> 0 | R36: 0 | S36: 0 | Z36: 0 | AC36: 0
B37: =SpBilanzVerd2022!$L$18 -> Sonstiges | C37: =SUM(IF(SpMailSaTaIst23!$G$1:$G$100=$Z$1,IF(SpMailSaTaIst23!$I$1:$I$100=$B37,IF(SpMailSaTaIst23!$H$1:$H$100=IndexCrGb!$P$3,SpMailSaTaIst23!$E$1:$E$100)))) -> 0 | D37: 0 | E37: =SUM(IF(SpMailSaTaIst23!$G$1:$G$100=$Z$1,IF(SpMailSaTaIst23!$I$1:$I$100=$B37,IF(SpMailSaTaIst23!$H$1:$H$100=IndexCrGb!$P$4,SpMailSaTaIst23!$E$1:$E$100)))) -> 0 | F37: 0 | G37: =-SUMIF(INDIRECT("AW"&$Z$1&"!$B:$B"),$B37,INDIRECT("AW"&$Z$1&"!$E:$E")) -> 0 | H37: =SUMIF(INDIRECT("AW"&$Z$1&"!$B:$B"),$B37,INDIRECT("AW"&$Z$1&"!$G:$G")) -> 0 | I37: 0 | J37: 0 | K37: 0 | L37: 0 | M37: =SUM(IF([10]Bussgelder20!$F$1:$F$100=$Z$1,IF([10]Bussgelder20!$E$1:$E$100=$B37,[10]Bussgelder20!$C$1:$C$100))) -> 0 | N37: 0 | O37: =SUM(IF(Fördermittel23!$F$1:$F$100=$Z$1,IF(Fördermittel23!$E$1:$E$100=$B37,Fördermittel23!$C$1:$C$100))) -> 0 | P37: 0 | Q37: =SUM(IF(Sachspenden23!$F$1:$F$100=$Z$1,IF(Sachspenden23!$E$1:$E$100=$B37,Sachspenden23!$C$1:$C$100))) -> 0 | R37: 0 | S37: 0 | Z37: 0 | AC37: 0
A38: Weiterleitung SaTa | B38: =SpBilanzVerd2022!$J$11 -> Weiterleitung an Dritte | D38: 0 | E38: =-SUM(AbrechnCvSEndg2023!F25,AbrechnCvSEndg2023!F29,AbrechnCvSEndg2023!F35,-AbrechnCvSEndg2023!F32) -> -2571.902916 | F38: =SUMIF(INDIRECT($Z$1&"22!$B:$B"),$B38,INDIRECT($Z$1&"22!$E:$E")) -> -31651.48 | G38: =-SUMIF(INDIRECT("AW"&$Z$1&"!$B:$B"),$B38,INDIRECT("AW"&$Z$1&"!$E:$E"))-SUMIF(INDIRECT("AW"&$Z$1&"!$B:$B"),$B$20,INDIRECT("AW"&$Z$1&"!$E:$E"))-SUMIF(INDIRECT("AW"&$Z$1&"!$B:$B"),$A$10,INDIRECT("AW"&$Z$1&"!$E:$E")) -> -715905.58 | H38: =SUMIF(INDIRECT("AW"&$Z$1&"!$B:$B"),$B38,INDIRECT("AW"&$Z$1&"!$G:$G")) -> -642815.69 | I38: -927554.28 | J38: 0 | K38: 0 | L38: -256843.6 | M38: =SUM(IF([10]Bussgelder20!$F$1:$F$100=$Z$1,IF([10]Bussgelder20!$E$1:$E$100=$B38,[10]Bussgelder20!$C$1:$C$100))) -> 0 | N38: 0 | O38: =SUM(IF(Fördermittel23!$F$1:$F$100=$Z$1,IF(Fördermittel23!$E$1:$E$100=$B38,Fördermittel23!$C$1:$C$100))) -> 0 | P38: 0 | Q38: =SUM(IF(Sachspenden23!$F$1:$F$100=$Z$1,IF(Sachspenden23!$E$1:$E$100=$B38,Sachspenden23!$C$1:$C$100))) -> 0 | R38: 0 | S38: -718477.4829 | Z38: -1216049.36 | AA38: 718477.4829 | AB38: Weiterleitung an Dritte | AC38: 0
B39: =SpBilanzVerd2022!$L$19 -> Werbung und allgemeine Öffentlichkeitsarbeit | C39: =SUM(IF(SpMailSaTaIst23!$G$1:$G$100=$Z$1,IF(SpMailSaTaIst23!$I$1:$I$100=$B39,IF(SpMailSaTaIst23!$H$1:$H$100=IndexCrGb!$P$3,SpMailSaTaIst23!$E$1:$E$100)))) -> 0 | D39: 0 | E39: =SUM(IF([10]SpMailSaTaIst22!$G$1:$G$100=$Z$1,IF([10]SpMailSaTaIst22!$I$1:$I$100=$B39,IF([10]SpMailSaTaIst22!$H$1:$H$100=[10]IndexCrGb!$P$4,[10]SpMailSaTaIst22!$E$1:$E$100)))) -> 0 | F39: 0 | G39: =-SUMIF(INDIRECT("AW"&$Z$1&"!$B:$B"),$B39,INDIRECT("AW"&$Z$1&"!$E:$E")) -> 0 | H39: =SUMIF(INDIRECT("AW"&$Z$1&"!$B:$B"),$B39,INDIRECT("AW"&$Z$1&"!$G:$G")) -> 0 | I39: 0 | J39: 0 | K39: 0 | L39: 0 | M39: =SUM(IF([10]Bussgelder20!$F$1:$F$100=$Z$1,IF([10]Bussgelder20!$E$1:$E$100=$B39,[10]Bussgelder20!$C$1:$C$100))) -> 0 | N39: 0 | O39: =SUM(IF(Fördermittel23!$F$1:$F$100=$Z$1,IF(Fördermittel23!$E$1:$E$100=$B39,Fördermittel23!$C$1:$C$100))) -> 0 | P39: 0 | Q39: =SUM(IF(Sachspenden23!$F$1:$F$100=$Z$1,IF(Sachspenden23!$E$1:$E$100=$B39,Sachspenden23!$C$1:$C$100))) -> 0 | R39: 0 | S39: 0 | Z39: 0 | AC39: 0
A40: =SpBilanzVerd2022!$J$24 -> Verwaltung Mailings | B40: =SpBilanzVerd2022!$J$15 -> Verwaltung | C40: =SUM(IF(SpMailSaTaIst23!$G$1:$G$100=$Z$1,IF(SpMailSaTaIst23!$I$1:$I$100=$B40,IF(SpMailSaTaIst23!$H$1:$H$100=[11]IndexCrGb!$P$3,SpMailSaTaIst23!$E$1:$E$100))))+[11]GB01!H18 -> -55323.42 | D40: -62632.71 | E40: =-SUM(AbrechnCvSEndg2023!$F$16)-0.01 -> -77566.56 | F40: -73981.28 | G40: =-SUMIF(INDIRECT("AW"&$Z$1&"!$B:$B"),$B40,INDIRECT("AW"&$Z$1&"!$E:$E")) -> -19443.28 | H40: =SUMIF(INDIRECT("AW"&$Z$1&"!$B:$B"),$B40,INDIRECT("AW"&$Z$1&"!$G:$G")) -> 0 | I40: -16742.3 | J40: -106209.1 | K40: -106209.1 | L40: 0 | M40: =SUM(IF([10]Bussgelder20!$F$1:$F$100=$Z$1,IF([10]Bussgelder20!$E$1:$E$100=$B40,[10]Bussgelder20!$C$1:$C$100))) -> 0 | N40: 0 | O40: =SUM(IF(Fördermittel23!$F$1:$F$100=$Z$1,IF(Fördermittel23!$E$1:$E$100=$B40,Fördermittel23!$C$1:$C$100))) -> -100000 | P40: -100000 | Q40: =SUM(IF(Sachspenden23!$F$1:$F$100=$Z$1,IF(Sachspenden23!$E$1:$E$100=$B40,Sachspenden23!$C$1:$C$100))) -> 0 | R40: 0 | S40: -358542.36 | Z40: -253356.29 | AA40: 358542.36 | AB40: Verwaltung | AC40: 0
C41: =SUM(C23:C40) -> -55323.42 | D41: -62632.71 | E41: =SUM(E23:E40) -> -80138.46292 | F41: -105632.76 | G41: =SUM(G23:G40) -> -782861.59 | H41: -645367.29 | I41: -1001205.16 | J41: -192769.98 | K41: -165581.88 | L41: -603524.64 | M41: 0 | N41: 0 | O41: -114739.67 | P41: -119458.09 | Q41: 0 | R41: 0 | S41: =SUM(S23:S40) -> -1225833.123 | Z41: =SUM(Z23:Z40) -> -1892453.36 | AC41: 0
A43: 88396 | B43: davon aus Rücklagen | J43: =-SUMIF(INDIRECT("Erb"&$Z$1&"!$A:$A"),$A43,INDIRECT("Erb"&$Z$1&"!$G:$G")) -> -126.24 | L43: =SUM(IF(DiffErb22!$G$1:$G$50=$A43,IF(DiffErb22!$F$1:$F$50=$Z$1,DiffErb22!$D$1:$D$50))) -> -1746.24 | S43: =C43+E43+G43+J43+M43+O43+Q43 -> -126.24 | Z43: =D43+F43+I43+L43+N43+P43+R43 -> -1746.24 | AC43: =SUMIF($C$8:$R$8,AC$8,$C43:$R43)-S43 -> 0
A44: 85130 | B44: davon aus nicht verbrauchte Spendenmittel/Erbschaften | C44: =C41 -> -55323.42 | D44: =D41 -> -62632.71 | E44: =E41 -> -80138.46292 | F44: =F41 -> -105632.76 | G44: =G41 -> -782861.59 | I44: =I41 -> -1001205.16 | J44: =-SUMIF(INDIRECT("Erb"&$Z$1&"!$A:$A"),$A44,INDIRECT("Erb"&$Z$1&"!$G:$G")) -> -192643.74 | L44: =SUM(IF(DiffErb22!$G$1:$G$50=$A44,IF(DiffErb22!$F$1:$F$50=$Z$1,DiffErb22!$D$1:$D$50))) -> -601778.4 | M44: =M41 -> 0 | N44: 0 | O44: -114739.67 | P44: -119458.09 | Q44: 0 | R44: 0 | S44: =C44+E44+G44+J44+M44+O44+Q44 -> -1225706.883 | Z44: =D44+F44+I44+L44+N44+P44+R44 -> -1890707.12 | AC44: =SUMIF($C$8:$R$8,AC$8,$C44:$R44)-S44 -> 0 | AD44: =SUMIF($C$8:$R$8,AD$8,$C44:$R44)-Z44 -> 0
A46: Stand 31.12.
A47: Rücklagen Erbschaften/Spenden | S47: =SUM(S48:S49) -> -2.131628207e-13 | T47: 0 | U47: 0 | V47: 0 | W47: 0 | X47: 0 | Y47: 0 | Z47: -6205.2
B48: Rücklagen Erbschaften | J48: =-SUMIF(INDIRECT("Erb"&$Z$1&"!$B:$B"),$A13,INDIRECT("Erb"&$Z$1&"!$F:$F")) -> -2.131628207e-13 | L48: =-SUMIF(INDIRECT("Erb"&$Z$1&"!$B:$B"),$A13,INDIRECT("Erb"&$Z$1&"!$C:$C")) -> -6205.2 | S48: =J48 -> -2.131628207e-13 | Z48: =L48 -> -6205.2 | AC48: =SUMIF($C$8:$R$8,AC$8,$C48:$R48)-S48 -> 0 | AD48: =SUMIF($C$8:$R$8,AD$8,$C48:$R48)-Z48 -> 0
B49: Rücklagen Spenden | S49: =G49 -> 0 | Z49: =I49 -> 0 | AC49: =SUMIF($C$8:$R$8,AC$8,$C49:$R49)-S49 -> 0 | AD49: =SUMIF($C$8:$R$8,AD$8,$C49:$R49)-Z49 -> 0
A50: Noch nicht verbrauchte Spendenmittel/Erbschaften | S50: =SUM(S51:S52) -> 2075042.397 | T50: 0 | U50: 0 | V50: 0 | W50: 0 | X50: 0 | Y50: 0 | Z50: 2380333.31
B51: nicht verbrauchte Erbschaften | J51: =J20+J41-J48 -> 503177.41 | L51: =L20+L41-L48 -> 668538.26 | S51: =J51 -> 503177.41 | Z51: =L51 -> 668538.26 | AC51: =SUMIF($C$8:$R$8,AC$8,$C51:$R51)-S51 -> 0 | AD51: =SUMIF($C$8:$R$8,AD$8,$C51:$R51)-Z51 -> 0
B52: nicht verbrauchte Spendenmittel | C52: =C20+C41 -> 418280.59 | D52: =D20+D41 -> 257879.19 | E52: =E20+E41 -> 187137.4471 | F52: =F20+F41 -> 233298.81 | G52: =(G20+G41) -> 966446.95 | I52: =I20+I41 -> 1220617.05 | S52: =C52+E52+G52 -> 1571864.987 | Z52: =D52+F52+I52 -> 1711795.05 | AC52: =SUMIF($C$8:$R$8,AC$8,$C52:$R52)-S52 -> 0 | AD52: =SUMIF($C$8:$R$8,AD$8,$C52:$R52)-Z52 -> 0
B56: Verprobungen1 | C56: =C17+C18 -> -193029.64 | D56: =D17+D18 -> -121208.3 | E56: =E17+E18 -> 255.32 | F56: =ROUND(F17+F18,10) -> 255.65 | G56: =G17-I52 -> 0 | H56: =H41-SUMIF(INDIRECT("AW"&$Z$1&"!$B:$B"),$A$17,INDIRECT("AW"&$Z$1&"!$G:$G")) -> 0 | J56: =-SUMIF(INDIRECT("Erb"&$Z$1&"!$B:$B"),$A13,INDIRECT("Erb"&$Z$1&"!$F:$F"))-J48 -> 0 | L56: =ROUND(L48,2)-J13 -> 0 | M56: =M19+M41 -> 0 | N56: 0 | O56: 0 | P56: 0 | Q56: 0 | R56: 0 | S56: =Z47-S12 -> 0 | Z56: =Z47-DICVGS22!S47 -> 0
B57: Verprobungen2 | C57: =C52+SUM(SuSaNachKkzGlassMailKred51b5423!$H:$H) -> 0 | D57: =C17-D52 -> -3.783497959e-10 | E57: =ROUND(E52+SUM(SuSaNKkzGlassSmFo23!$H:$H),2) -> 0 | F57: =E17-F52 -> 0 | G57: =-SUMIF(INDIRECT("AW"&$Z$1&"!$B:$B"),$A$17,INDIRECT("AW"&$Z$1&"!$F:$F"))-SUMIF(INDIRECT("AW"&$Z$1&"!$B:$B"),$B$20,INDIRECT("AW"&$Z$1&"!$F:$F"))-G$52 -> 0 | J57: =-SUMIF(INDIRECT("Erb"&$Z$1&"!$B:$B"),$A14,INDIRECT("Erb"&$Z$1&"!$F:$F"))-J51 -> 0 | L57: =ROUND(L51,2)-J16 -> 0 | S57: =Z50-S15 -> 0 | Z57: =Z50-ROUND(DICVGS22!S50,2) -> 0
C58: =ROUND(C52+SUMIF(INDIRECT("AW"&$Z$1&"!$B:$B"),$A$10,INDIRECT("AW"&$Z$1&"!$F:$F"))+SUMIF(INDIRECT("AW"&$Z$1&"!$B:$B"),$B$10,INDIRECT("AW"&$Z$1&"!$F:$F"))+SUMIF(INDIRECT("AW"&$Z$1&"!$B:$B"),$A40,INDIRECT("AW"&$Z$1&"!$E:$E")),8) -> 0 | S58: =S41-SUM(S43:S44) -> 0 | Z58: =Z41-SUM(Z43:Z44) -> 0
B59: =G57 -> 0 | S59: =SUMIF(VerprobVerwend!$D:$D,$Z$1,VerprobVerwend!$B:$B)-S41 -> 24111.28292
B60: =-C58 -> 0 | C60: =IF(SUM(C18:C19)=0,"",SUM(C18:C19)) -> 215724.82 | E60: =IF(SUM(E18:E19)=0,"",SUM(E18:E19)) -> 33977.1 | G60: =IF(SUM(G18:G19)=0,"",SUM(G18:G19)) -> 528691.49 | J60: =IF(SUM(J18:J19)=0,"",SUM(J18:J19)) -> 33614.33 | M60: =IF(SUM(M18:M19)=0,"",SUM(M18:M19)) ->  | O60: =IF(SUM(O18:O19)=0,"",SUM(O18:O19)) -> 114739.67 | Q60: =IF(SUM(Q18:Q19)=0,"",SUM(Q18:Q19)) ->  | S60: Differenz betrifft einen andere Erfassunssystematik der Weiterleitungen und der Werwaltungskosten.
B61: =-E57 -> 0 | C61: =IF(SUM(C18:C19)=0,"",C7) -> Spendenbriefe | E61: =IF(SUM(E18:E19)=0,"",E7) -> Sammeltagsmittel | G61: =IF(SUM(G18:G19)=0,"",G7) -> Weitere (Geld)Spenden | J61: =IF(SUM(J18:J19)=0,"",J7) -> Erbschaften | M61: =IF(SUM(M18:M19)=0,"",M7) ->  | O61: =IF(SUM(O18:O19)=0,"",O7) -> Stiftungsmittel | Q61: =IF(SUM(Q18:Q19)=0,"",Q7) -> 
B62: =SUM(B59:B61) -> 0 | S62: Verwaltungskosten EUR 21.539,37 wurden auf ein falsches Sachkonto gebucht 85210 statt 85120
B63: =DicvGesamt!AA52+DicvGeschäftsstelle!B62 -> -0.002915780991 | S63: Weiterleitungen werden nicht über den Spendenkreditor gezogen somit fehlt die Buchung Aufwand an Ertrag. Geldüberträge erfolgten direkt aus dem Bilanzkonto. EUR 2.571,90
C64: ="Verwendung der Spenden in " & RIGHT($C$8,4) & " Caritas " & INDEX(IndexCrGb!$D:$E,MATCH($Z$1,IndexCrGb!$E:$E,0),1) -> Verwendung der Spenden in 2023 Caritas DiCV-Geschäftsstelle
C65: ="Spendeneingänge " & RIGHT($C$8,4) & " Caritas " & INDEX(IndexCrGb!$D:$E,MATCH($Z$1,IndexCrGb!$E:$E,0),1) -> Spendeneingänge 2023 Caritas DiCV-Geschäftsstelle | I65: =+E38+G41 -> -785433.4929

Sheet CaritasRegionen
A1: Spendenbilanz Caritasverband der Diözese Rottenburg-Stuttgart e.V. | Z1: CR
A3: ="Mandant: "& INDEX(IndexCrGb!$D:$E,MATCH($Z$1,IndexCrGb!$E:$E,0),1) -> Mandant: Regionen | G3: Stichtag: | I3: 2023-12-31
C7: Spendenbriefe | E7: Sammeltagsmittel | G7: Weitere (Geld)Spenden | J7: Erbschaften | M7: Bußgelder | O7: Stiftungsmittel | Q7: Sachspenden | S7: Summe | Z7: Summe
C8: 2023 | D8: 2022 | E8: 2023 | F8: 2022 | G8: 2023 | H8: davon aus Vorjahren | I8: 2022 | J8: 2023 | K8: davon aus Vorjahren | L8: 2022 | M8: 2023 | N8: 2022 | O8: 2023 | P8: 2022 | Q8: 2023 | R8: 2022 | S8: 2023 | Z8: 2022 | AC8: =S8 -> 2023 | AD8: =Z8 -> 2022
C9: EUR | D9: EUR | E9: EUR | F9: EUR | G9: EUR | H9: EUR | I9: EUR | J9: EUR | K9: EUR | L9: EUR | M9: EUR | N9: EUR | O9: EUR | P9: EUR | Q9: EUR | R9: EUR | S9: EUR | Z9: EUR
A11: Mittelherkunft 01.01.
A12: Rücklagen Erbschaften/Spenden | S12: =SUM(S13:S14) -> 400481.09 | T12: 0 | U12: 0 | V12: 0 | W12: 0 | X12: 0 | Y12: 0 | Z12: 399623.4
A13: ErbRückl | B13: Rücklagen Erbschaften | C13: =BodenseeOberschwaben!C13+BiberachSaulgau!C13+UlmAlbDonau!C13+OstWürttemberg!C13+HeilbronnHohenlohe!C13+LudwigsburgWaiblingenEnz!C13+FilsNeckarAlb!C13+SchwarzwaldGäu!C13+SchwarzwaldAlbDonau!C13 -> 0 | D13: =BodenseeOberschwaben!D13+BiberachSaulgau!D13+UlmAlbDonau!D13+OstWürttemberg!D13+HeilbronnHohenlohe!D13+LudwigsburgWaiblingenEnz!D13+FilsNeckarAlb!D13+SchwarzwaldGäu!D13+SchwarzwaldAlbDonau!D13 -> 0 | E13: =BodenseeOberschwaben!E13+BiberachSaulgau!E13+UlmAlbDonau!E13+OstWürttemberg!E13+HeilbronnHohenlohe!E13+LudwigsburgWaiblingenEnz!E13+FilsNeckarAlb!E13+SchwarzwaldGäu!E13+SchwarzwaldAlbDonau!E13 -> 0 | F13: =BodenseeOberschwaben!F13+BiberachSaulgau!F13+UlmAlbDonau!F13+OstWürttemberg!F13+HeilbronnHohenlohe!F13+LudwigsburgWaiblingenEnz!F13+FilsNeckarAlb!F13+SchwarzwaldGäu!F13+SchwarzwaldAlbDonau!F13 -> 0 | G13: =BodenseeOberschwaben!G13+BiberachSaulgau!G13+UlmAlbDonau!G13+OstWürttemberg!G13+HeilbronnHohenlohe!G13+LudwigsburgWaiblingenEnz!G13+FilsNeckarAlb!G13+SchwarzwaldGäu!G13+SchwarzwaldAlbDonau!G13 -> 0 | H13: =BodenseeOberschwaben!H13+BiberachSaulgau!H13+UlmAlbDonau!H13+OstWürttemberg!H13+HeilbronnHohenlohe!H13+LudwigsburgWaiblingenEnz!H13+FilsNeckarAlb!H13+SchwarzwaldGäu!H13+SchwarzwaldAlbDonau!H13 -> 0 | I13: =BodenseeOberschwaben!I13+BiberachSaulgau!I13+UlmAlbDonau!I13+OstWürttemberg!I13+HeilbronnHohenlohe!I13+LudwigsburgWaiblingenEnz!I13+FilsNeckarAlb!I13+SchwarzwaldGäu!I13+SchwarzwaldAlbDonau!I13 -> 0 | J13: =BodenseeOberschwaben!J13+BiberachSaulgau!J13+UlmAlbDonau!J13+OstWürttemberg!J13+HeilbronnHohenlohe!J13+LudwigsburgWaiblingenEnz!J13+FilsNeckarAlb!J13+SchwarzwaldGäu!J13+SchwarzwaldAlbDonau!J13 -> 400481.09 | K13: =BodenseeOberschwaben!K13+BiberachSaulgau!K13+UlmAlbDonau!K13+OstWürttemberg!K13+HeilbronnHohenlohe!K13+LudwigsburgWaiblingenEnz!K13+FilsNeckarAlb!K13+SchwarzwaldGäu!K13+SchwarzwaldAlbDonau!K13 -> 0 | L13: =BodenseeOberschwaben!L13+BiberachSaulgau!L13+UlmAlbDonau!L13+OstWürttemberg!L13+HeilbronnHohenlohe!L13+LudwigsburgWaiblingenEnz!L13+FilsNeckarAlb!L13+SchwarzwaldGäu!L13+SchwarzwaldAlbDonau!L13 -> 399623.4 | M13: =BodenseeOberschwaben!M13+BiberachSaulgau!M13+UlmAlbDonau!M13+OstWürttemberg!M13+HeilbronnHohenlohe!M13+LudwigsburgWaiblingenEnz!M13+FilsNeckarAlb!M13+SchwarzwaldGäu!M13+SchwarzwaldAlbDonau!M13 -> 0 | N13: =BodenseeOberschwaben!N13+BiberachSaulgau!N13+UlmAlbDonau!N13+OstWürttemberg!N13+HeilbronnHohenlohe!N13+LudwigsburgWaiblingenEnz!N13+FilsNeckarAlb!N13+SchwarzwaldGäu!N13+SchwarzwaldAlbDonau!N13 -> 0 | O13: =BodenseeOberschwaben!O13+BiberachSaulgau!O13+UlmAlbDonau!O13+OstWürttemberg!O13+HeilbronnHohenlohe!O13+LudwigsburgWaiblingenEnz!O13+FilsNeckarAlb!O13+SchwarzwaldGäu!O13+SchwarzwaldAlbDonau!O13 -> 0 | P13: =BodenseeOberschwaben!P13+BiberachSaulgau!P13+UlmAlbDonau!P13+OstWürttemberg!P13+HeilbronnHohenlohe!P13+LudwigsburgWaiblingenEnz!P13+FilsNeckarAlb!P13+SchwarzwaldGäu!P13+SchwarzwaldAlbDonau!P13 -> 0 | Q13: =BodenseeOberschwaben!Q13+BiberachSaulgau!Q13+UlmAlbDonau!Q13+OstWürttemberg!Q13+HeilbronnHohenlohe!Q13+LudwigsburgWaiblingenEnz!Q13+FilsNeckarAlb!Q13+SchwarzwaldGäu!Q13+SchwarzwaldAlbDonau!Q13 -> 0 | R13: =BodenseeOberschwaben!R13+BiberachSaulgau!R13+UlmAlbDonau!R13+OstWürttemberg!R13+HeilbronnHohenlohe!R13+LudwigsburgWaiblingenEnz!R13+FilsNeckarAlb!R13+SchwarzwaldGäu!R13+SchwarzwaldAlbDonau!R13 -> 0 | S13: =J13 -> 400481.09 | Z13: =L13 -> 399623.4 | AC13: =SUMIF($C$8:$R$8,AC$8,$C13:$R13)-S13 -> 0 | AD13: =SUMIF($C$8:$R$8,AD$8,$C13:$R13)-Z13 -> 0
A14: ErbVerb | B14: Rücklagen Spenden | C14: =BodenseeOberschwaben!C14+BiberachSaulgau!C14+UlmAlbDonau!C14+OstWürttemberg!C14+HeilbronnHohenlohe!C14+LudwigsburgWaiblingenEnz!C14+FilsNeckarAlb!C14+SchwarzwaldGäu!C14+SchwarzwaldAlbDonau!C14 -> 0 | D14: =BodenseeOberschwaben!D14+BiberachSaulgau!D14+UlmAlbDonau!D14+OstWürttemberg!D14+HeilbronnHohenlohe!D14+LudwigsburgWaiblingenEnz!D14+FilsNeckarAlb!D14+SchwarzwaldGäu!D14+SchwarzwaldAlbDonau!D14 -> 0 | E14: =BodenseeOberschwaben!E14+BiberachSaulgau!E14+UlmAlbDonau!E14+OstWürttemberg!E14+HeilbronnHohenlohe!E14+LudwigsburgWaiblingenEnz!E14+FilsNeckarAlb!E14+SchwarzwaldGäu!E14+SchwarzwaldAlbDonau!E14 -> 0 | F14: =BodenseeOberschwaben!F14+BiberachSaulgau!F14+UlmAlbDonau!F14+OstWürttemberg!F14+HeilbronnHohenlohe!F14+LudwigsburgWaiblingenEnz!F14+FilsNeckarAlb!F14+SchwarzwaldGäu!F14+SchwarzwaldAlbDonau!F14 -> 0 | G14: =BodenseeOberschwaben!G14+BiberachSaulgau!G14+UlmAlbDonau!G14+OstWürttemberg!G14+HeilbronnHohenlohe!G14+LudwigsburgWaiblingenEnz!G14+FilsNeckarAlb!G14+SchwarzwaldGäu!G14+SchwarzwaldAlbDonau!G14 -> 0 | H14: =BodenseeOberschwaben!H14+BiberachSaulgau!H14+UlmAlbDonau!H14+OstWürttemberg!H14+HeilbronnHohenlohe!H14+LudwigsburgWaiblingenEnz!H14+FilsNeckarAlb!H14+SchwarzwaldGäu!H14+SchwarzwaldAlbDonau!H14 -> 0 | I14: =BodenseeOberschwaben!I14+BiberachSaulgau!I14+UlmAlbDonau!I14+OstWürttemberg!I14+HeilbronnHohenlohe!I14+LudwigsburgWaiblingenEnz!I14+FilsNeckarAlb!I14+SchwarzwaldGäu!I14+SchwarzwaldAlbDonau!I14 -> 0 | J14: =BodenseeOberschwaben!J14+BiberachSaulgau!J14+UlmAlbDonau!J14+OstWürttemberg!J14+HeilbronnHohenlohe!J14+LudwigsburgWaiblingenEnz!J14+FilsNeckarAlb!J14+SchwarzwaldGäu!J14+SchwarzwaldAlbDonau!J14 -> 0 | K14: =BodenseeOberschwaben!K14+BiberachSaulgau!K14+UlmAlbDonau!K14+OstWürttemberg!K14+HeilbronnHohenlohe!K14+LudwigsburgWaiblingenEnz!K14+FilsNeckarAlb!K14+SchwarzwaldGäu!K14+SchwarzwaldAlbDonau!K14 -> 0 | L14: =BodenseeOberschwaben!L14+BiberachSaulgau!L14+UlmAlbDonau!L14+OstWürttemberg!L14+HeilbronnHohenlohe!L14+LudwigsburgWaiblingenEnz!L14+FilsNeckarAlb!L14+SchwarzwaldGäu!L14+SchwarzwaldAlbDonau!L14 -> 0 | M14: =BodenseeOberschwaben!M14+BiberachSaulgau!M14+UlmAlbDonau!M14+OstWürttemberg!M14+HeilbronnHohenlohe!M14+LudwigsburgWaiblingenEnz!M14+FilsNeckarAlb!M14+SchwarzwaldGäu!M14+SchwarzwaldAlbDonau!M14 -> 0 | N14: =BodenseeOberschwaben!N14+BiberachSaulgau!N14+UlmAlbDonau!N14+OstWürttemberg!N14+HeilbronnHohenlohe!N14+LudwigsburgWaiblingenEnz!N14+FilsNeckarAlb!N14+SchwarzwaldGäu!N14+SchwarzwaldAlbDonau!N14 -> 0 | O14: =BodenseeOberschwaben!O14+BiberachSaulgau!O14+UlmAlbDonau!O14+OstWürttemberg!O14+HeilbronnHohenlohe!O14+LudwigsburgWaiblingenEnz!O14+FilsNeckarAlb!O14+SchwarzwaldGäu!O14+SchwarzwaldAlbDonau!O14 -> 0 | P14: =BodenseeOberschwaben!P14+BiberachSaulgau!P14+UlmAlbDonau!P14+OstWürttemberg!P14+HeilbronnHohenlohe!P14+LudwigsburgWaiblingenEnz!P14+FilsNeckarAlb!P14+SchwarzwaldGäu!P14+SchwarzwaldAlbDonau!P14 -> 0 | Q14: =BodenseeOberschwaben!Q14+BiberachSaulgau!Q14+UlmAlbDonau!Q14+OstWürttemberg!Q14+HeilbronnHohenlohe!Q14+LudwigsburgWaiblingenEnz!Q14+FilsNeckarAlb!Q14+SchwarzwaldGäu!Q14+SchwarzwaldAlbDonau!Q14 -> 0 | R14: =BodenseeOberschwaben!R14+BiberachSaulgau!R14+UlmAlbDonau!R14+OstWürttemberg!R14+HeilbronnHohenlohe!R14+LudwigsburgWaiblingenEnz!R14+FilsNeckarAlb!R14+SchwarzwaldGäu!R14+SchwarzwaldAlbDonau!R14 -> 0 | S14: =G14 -> 0 | Z14: =I14 -> 0
A15: Noch nicht verbrauchte Spendenmittel/Erbschaften | C15: =BodenseeOberschwaben!C15+BiberachSaulgau!C15+UlmAlbDonau!C15+OstWürttemberg!C15+HeilbronnHohenlohe!C15+LudwigsburgWaiblingenEnz!C15+FilsNeckarAlb!C15+SchwarzwaldGäu!C15+SchwarzwaldAlbDonau!C15 -> 0 | D15: =BodenseeOberschwaben!D15+BiberachSaulgau!D15+UlmAlbDonau!D15+OstWürttemberg!D15+HeilbronnHohenlohe!D15+LudwigsburgWaiblingenEnz!D15+FilsNeckarAlb!D15+SchwarzwaldGäu!D15+SchwarzwaldAlbDonau!D15 -> 0 | E15: =BodenseeOberschwaben!E15+BiberachSaulgau!E15+UlmAlbDonau!E15+OstWürttemberg!E15+HeilbronnHohenlohe!E15+LudwigsburgWaiblingenEnz!E15+FilsNeckarAlb!E15+SchwarzwaldGäu!E15+SchwarzwaldAlbDonau!E15 -> 0 | F15: =BodenseeOberschwaben!F15+BiberachSaulgau!F15+UlmAlbDonau!F15+OstWürttemberg!F15+HeilbronnHohenlohe!F15+LudwigsburgWaiblingenEnz!F15+FilsNeckarAlb!F15+SchwarzwaldGäu!F15+SchwarzwaldAlbDonau!F15 -> 0 | G15: =BodenseeOberschwaben!G15+BiberachSaulgau!G15+UlmAlbDonau!G15+OstWürttemberg!G15+HeilbronnHohenlohe!G15+LudwigsburgWaiblingenEnz!G15+FilsNeckarAlb!G15+SchwarzwaldGäu!G15+SchwarzwaldAlbDonau!G15 -> 0 | H15: =BodenseeOberschwaben!H15+BiberachSaulgau!H15+UlmAlbDonau!H15+OstWürttemberg!H15+HeilbronnHohenlohe!H15+LudwigsburgWaiblingenEnz!H15+FilsNeckarAlb!H15+SchwarzwaldGäu!H15+SchwarzwaldAlbDonau!H15 -> 0 | I15: =BodenseeOberschwaben!I15+BiberachSaulgau!I15+UlmAlbDonau!I15+OstWürttemberg!I15+HeilbronnHohenlohe!I15+LudwigsburgWaiblingenEnz!I15+FilsNeckarAlb!I15+SchwarzwaldGäu!I15+SchwarzwaldAlbDonau!I15 -> 0 | J15: =BodenseeOberschwaben!J15+BiberachSaulgau!J15+UlmAlbDonau!J15+OstWürttemberg!J15+HeilbronnHohenlohe!J15+LudwigsburgWaiblingenEnz!J15+FilsNeckarAlb!J15+SchwarzwaldGäu!J15+SchwarzwaldAlbDonau!J15 -> 0 | K15: =BodenseeOberschwaben!K15+BiberachSaulgau!K15+UlmAlbDonau!K15+OstWürttemberg!K15+HeilbronnHohenlohe!K15+LudwigsburgWaiblingenEnz!K15+FilsNeckarAlb!K15+SchwarzwaldGäu!K15+SchwarzwaldAlbDonau!K15 -> 0 | L15: =BodenseeOberschwaben!L15+BiberachSaulgau!L15+UlmAlbDonau!L15+OstWürttemberg!L15+HeilbronnHohenlohe!L15+LudwigsburgWaiblingenEnz!L15+FilsNeckarAlb!L15+SchwarzwaldGäu!L15+SchwarzwaldAlbDonau!L15 -> 0 | M15: =BodenseeOberschwaben!M15+BiberachSaulgau!M15+UlmAlbDonau!M15+OstWürttemberg!M15+HeilbronnHohenlohe!M15+LudwigsburgWaiblingenEnz!M15+FilsNeckarAlb!M15+SchwarzwaldGäu!M15+SchwarzwaldAlbDonau!M15 -> 0 | N15: =BodenseeOberschwaben!N15+BiberachSaulgau!N15+UlmAlbDonau!N15+OstWürttemberg!N15+HeilbronnHohenlohe!N15+LudwigsburgWaiblingenEnz!N15+FilsNeckarAlb!N15+SchwarzwaldGäu!N15+SchwarzwaldAlbDonau!N15 -> 0 | O15: =BodenseeOberschwaben!O15+BiberachSaulgau!O15+UlmAlbDonau!O15+OstWürttemberg!O15+HeilbronnHohenlohe!O15+LudwigsburgWaiblingenEnz!O15+FilsNeckarAlb!O15+SchwarzwaldGäu!O15+SchwarzwaldAlbDonau!O15 -> 0 | P15: =BodenseeOberschwaben!P15+BiberachSaulgau!P15+UlmAlbDonau!P15+OstWürttemberg!P15+HeilbronnHohenlohe!P15+LudwigsburgWaiblingenEnz!P15+FilsNeckarAlb!P15+SchwarzwaldGäu!P15+SchwarzwaldAlbDonau!P15 -> 0 | Q15: =BodenseeOberschwaben!Q15+BiberachSaulgau!Q15+UlmAlbDonau!Q15+OstWürttemberg!Q15+HeilbronnHohenlohe!Q15+LudwigsburgWaiblingenEnz!Q15+FilsNeckarAlb!Q15+SchwarzwaldGäu!Q15+SchwarzwaldAlbDonau!Q15 -> 0 | R15: =BodenseeOberschwaben!R15+BiberachSaulgau!R15+UlmAlbDonau!R15+OstWürttemberg!R15+HeilbronnHohenlohe!R15+LudwigsburgWaiblingenEnz!R15+FilsNeckarAlb!R15+SchwarzwaldGäu!R15+SchwarzwaldAlbDonau!R15 -> 0 | S15: =SUM(S16:S17) -> 4891191.61 | T15: =T17 -> 0 | U15: 0 | V15: 0 | W15: 0 | X15: 0 | Y15: 0 | Z15: =SUM(Z16:Z17) -> 1933545.28
A16: nicht verbrauchte Spendenmittel/Erbschaften | B16: nicht verbrauchte Erbschaften | J16: =BodenseeOberschwaben!J16+BiberachSaulgau!J16+UlmAlbDonau!J16+OstWürttemberg!J16+HeilbronnHohenlohe!J16+LudwigsburgWaiblingenEnz!J16+FilsNeckarAlb!J16+SchwarzwaldGäu!J16+SchwarzwaldAlbDonau!J16 -> 436742.05 | L16: =BodenseeOberschwaben!L16+BiberachSaulgau!L16+UlmAlbDonau!L16+OstWürttemberg!L16+HeilbronnHohenlohe!L16+LudwigsburgWaiblingenEnz!L16+FilsNeckarAlb!L16+SchwarzwaldGäu!L16+SchwarzwaldAlbDonau!L16 -> 441380.15 | S16: =J16 -> 436742.05 | Z16: =L16 -> 441380.15 | AC16: =SUMIF($C$8:$R$8,AC$8,$C16:$R16)-S16 -> 0 | AD16: =SUMIF($C$8:$R$8,AD$8,$C16:$R16)-Z16 -> 0
A17: Gesamt | B17: nicht verbrauchte Spendenmittel | C17: =BodenseeOberschwaben!C17+BiberachSaulgau!C17+UlmAlbDonau!C17+OstWürttemberg!C17+HeilbronnHohenlohe!C17+LudwigsburgWaiblingenEnz!C17+FilsNeckarAlb!C17+SchwarzwaldGäu!C17+SchwarzwaldAlbDonau!C17 -> 0 | D17: =BodenseeOberschwaben!D17+BiberachSaulgau!D17+UlmAlbDonau!D17+OstWürttemberg!D17+HeilbronnHohenlohe!D17+LudwigsburgWaiblingenEnz!D17+FilsNeckarAlb!D17+SchwarzwaldGäu!D17+SchwarzwaldAlbDonau!D17 -> 0 | E17: =BodenseeOberschwaben!E17+BiberachSaulgau!E17+UlmAlbDonau!E17+OstWürttemberg!E17+HeilbronnHohenlohe!E17+LudwigsburgWaiblingenEnz!E17+FilsNeckarAlb!E17+SchwarzwaldGäu!E17+SchwarzwaldAlbDonau!E17 -> 0 | F17: =BodenseeOberschwaben!F17+BiberachSaulgau!F17+UlmAlbDonau!F17+OstWürttemberg!F17+HeilbronnHohenlohe!F17+LudwigsburgWaiblingenEnz!F17+FilsNeckarAlb!F17+SchwarzwaldGäu!F17+SchwarzwaldAlbDonau!F17 -> 0 | G17: =BodenseeOberschwaben!G17+BiberachSaulgau!G17+UlmAlbDonau!G17+OstWürttemberg!G17+HeilbronnHohenlohe!G17+LudwigsburgWaiblingenEnz!G17+FilsNeckarAlb!G17+SchwarzwaldGäu!G17+SchwarzwaldAlbDonau!G17 -> 4454449.56 | H17: =BodenseeOberschwaben!H17+BiberachSaulgau!H17+UlmAlbDonau!H17+OstWürttemberg!H17+HeilbronnHohenlohe!H17+LudwigsburgWaiblingenEnz!H17+FilsNeckarAlb!H17+SchwarzwaldGäu!H17+SchwarzwaldAlbDonau!H17 -> 0 | I17: =BodenseeOberschwaben!I17+BiberachSaulgau!I17+UlmAlbDonau!I17+OstWürttemberg!I17+HeilbronnHohenlohe!I17+LudwigsburgWaiblingenEnz!I17+FilsNeckarAlb!I17+SchwarzwaldGäu!I17+SchwarzwaldAlbDonau!I17 -> 1492165.13 | K17: =BodenseeOberschwaben!K17+BiberachSaulgau!K17+UlmAlbDonau!K17+OstWürttemberg!K17+HeilbronnHohenlohe!K17+LudwigsburgWaiblingenEnz!K17+FilsNeckarAlb!K17+SchwarzwaldGäu!K17+SchwarzwaldAlbDonau!K17 -> 0 | M17: =BodenseeOberschwaben!M17+BiberachSaulgau!M17+UlmAlbDonau!M17+OstWürttemberg!M17+HeilbronnHohenlohe!M17+LudwigsburgWaiblingenEnz!M17+FilsNeckarAlb!M17+SchwarzwaldGäu!M17+SchwarzwaldAlbDonau!M17 -> 0 | N17: =BodenseeOberschwaben!N17+BiberachSaulgau!N17+UlmAlbDonau!N17+OstWürttemberg!N17+HeilbronnHohenlohe!N17+LudwigsburgWaiblingenEnz!N17+FilsNeckarAlb!N17+SchwarzwaldGäu!N17+SchwarzwaldAlbDonau!N17 -> 0 | O17: =BodenseeOberschwaben!O17+BiberachSaulgau!O17+UlmAlbDonau!O17+OstWürttemberg!O17+HeilbronnHohenlohe!O17+LudwigsburgWaiblingenEnz!O17+FilsNeckarAlb!O17+SchwarzwaldGäu!O17+SchwarzwaldAlbDonau!O17 -> 0 | P17: =BodenseeOberschwaben!P17+BiberachSaulgau!P17+UlmAlbDonau!P17+OstWürttemberg!P17+HeilbronnHohenlohe!P17+LudwigsburgWaiblingenEnz!P17+FilsNeckarAlb!P17+SchwarzwaldGäu!P17+SchwarzwaldAlbDonau!P17 -> 0 | Q17: =BodenseeOberschwaben!Q17+BiberachSaulgau!Q17+UlmAlbDonau!Q17+OstWürttemberg!Q17+HeilbronnHohenlohe!Q17+LudwigsburgWaiblingenEnz!Q17+FilsNeckarAlb!Q17+SchwarzwaldGäu!Q17+SchwarzwaldAlbDonau!Q17 -> 0 | R17: =BodenseeOberschwaben!R17+BiberachSaulgau!R17+UlmAlbDonau!R17+OstWürttemberg!R17+HeilbronnHohenlohe!R17+LudwigsburgWaiblingenEnz!R17+FilsNeckarAlb!R17+SchwarzwaldGäu!R17+SchwarzwaldAlbDonau!R17 -> 0 | S17: =C17+E17+G17 -> 4454449.56 | Z17: =D17+F17+I17 -> 1492165.13 | AC17: =SUMIF($C$8:$R$8,AC$8,$C17:$R17)-S17 -> 0 | AD17: =SUMIF($C$8:$R$8,AD$8,$C17:$R17)-Z17 -> 0
A18: Umbuchung von GB 01 | C18: =BodenseeOberschwaben!C18+BiberachSaulgau!C18+UlmAlbDonau!C18+OstWürttemberg!C18+HeilbronnHohenlohe!C18+LudwigsburgWaiblingenEnz!C18+FilsNeckarAlb!C18+SchwarzwaldGäu!C18+SchwarzwaldAlbDonau!C18 -> 450908.83 | D18: =BodenseeOberschwaben!D18+BiberachSaulgau!D18+UlmAlbDonau!D18+OstWürttemberg!D18+HeilbronnHohenlohe!D18+LudwigsburgWaiblingenEnz!D18+FilsNeckarAlb!D18+SchwarzwaldGäu!D18+SchwarzwaldAlbDonau!D18 -> 571366.87 | E18: =BodenseeOberschwaben!E18+BiberachSaulgau!E18+UlmAlbDonau!E18+OstWürttemberg!E18+HeilbronnHohenlohe!E18+LudwigsburgWaiblingenEnz!E18+FilsNeckarAlb!E18+SchwarzwaldGäu!E18+SchwarzwaldAlbDonau!E18 -> 233043.49 | F18: =BodenseeOberschwaben!F18+BiberachSaulgau!F18+UlmAlbDonau!F18+OstWürttemberg!F18+HeilbronnHohenlohe!F18+LudwigsburgWaiblingenEnz!F18+FilsNeckarAlb!F18+SchwarzwaldGäu!F18+SchwarzwaldAlbDonau!F18 -> 265509.85 | G18: =BodenseeOberschwaben!G18+BiberachSaulgau!G18+UlmAlbDonau!G18+OstWürttemberg!G18+HeilbronnHohenlohe!G18+LudwigsburgWaiblingenEnz!G18+FilsNeckarAlb!G18+SchwarzwaldGäu!G18+SchwarzwaldAlbDonau!G18 -> 51800 | H18: =BodenseeOberschwaben!H18+BiberachSaulgau!H18+UlmAlbDonau!H18+OstWürttemberg!H18+HeilbronnHohenlohe!H18+LudwigsburgWaiblingenEnz!H18+FilsNeckarAlb!H18+SchwarzwaldGäu!H18+SchwarzwaldAlbDonau!H18 -> 0 | I18: =BodenseeOberschwaben!I18+BiberachSaulgau!I18+UlmAlbDonau!I18+OstWürttemberg!I18+HeilbronnHohenlohe!I18+LudwigsburgWaiblingenEnz!I18+FilsNeckarAlb!I18+SchwarzwaldGäu!I18+SchwarzwaldAlbDonau!I18 -> 70500 | J18: =BodenseeOberschwaben!J18+BiberachSaulgau!J18+UlmAlbDonau!J18+OstWürttemberg!J18+HeilbronnHohenlohe!J18+LudwigsburgWaiblingenEnz!J18+FilsNeckarAlb!J18+SchwarzwaldGäu!J18+SchwarzwaldAlbDonau!J18 -> 20000 | K18: =BodenseeOberschwaben!K18+BiberachSaulgau!K18+UlmAlbDonau!K18+OstWürttemberg!K18+HeilbronnHohenlohe!K18+LudwigsburgWaiblingenEnz!K18+FilsNeckarAlb!K18+SchwarzwaldGäu!K18+SchwarzwaldAlbDonau!K18 -> 0 | L18: =BodenseeOberschwaben!L18+BiberachSaulgau!L18+UlmAlbDonau!L18+OstWürttemberg!L18+HeilbronnHohenlohe!L18+LudwigsburgWaiblingenEnz!L18+FilsNeckarAlb!L18+SchwarzwaldGäu!L18+SchwarzwaldAlbDonau!L18 -> 20194.85 | M18: =BodenseeOberschwaben!M18+BiberachSaulgau!M18+UlmAlbDonau!M18+OstWürttemberg!M18+HeilbronnHohenlohe!M18+LudwigsburgWaiblingenEnz!M18+FilsNeckarAlb!M18+SchwarzwaldGäu!M18+SchwarzwaldAlbDonau!M18 -> 0 | N18: =BodenseeOberschwaben!N18+BiberachSaulgau!N18+UlmAlbDonau!N18+OstWürttemberg!N18+HeilbronnHohenlohe!N18+LudwigsburgWaiblingenEnz!N18+FilsNeckarAlb!N18+SchwarzwaldGäu!N18+SchwarzwaldAlbDonau!N18 -> 0 | O18: =BodenseeOberschwaben!O18+BiberachSaulgau!O18+UlmAlbDonau!O18+OstWürttemberg!O18+HeilbronnHohenlohe!O18+LudwigsburgWaiblingenEnz!O18+FilsNeckarAlb!O18+SchwarzwaldGäu!O18+SchwarzwaldAlbDonau!O18 -> 0 | P18: =BodenseeOberschwaben!P18+BiberachSaulgau!P18+UlmAlbDonau!P18+OstWürttemberg!P18+HeilbronnHohenlohe!P18+LudwigsburgWaiblingenEnz!P18+FilsNeckarAlb!P18+SchwarzwaldGäu!P18+SchwarzwaldAlbDonau!P18 -> 0 | Q18: =BodenseeOberschwaben!Q18+BiberachSaulgau!Q18+UlmAlbDonau!Q18+OstWürttemberg!Q18+HeilbronnHohenlohe!Q18+LudwigsburgWaiblingenEnz!Q18+FilsNeckarAlb!Q18+SchwarzwaldGäu!Q18+SchwarzwaldAlbDonau!Q18 -> 0 | R18: =BodenseeOberschwaben!R18+BiberachSaulgau!R18+UlmAlbDonau!R18+OstWürttemberg!R18+HeilbronnHohenlohe!R18+LudwigsburgWaiblingenEnz!R18+FilsNeckarAlb!R18+SchwarzwaldGäu!R18+SchwarzwaldAlbDonau!R18 -> 0 | S18: =C18+E18+G18+J18 -> 755752.32 | Z18: =D18+F18+I18+L18 -> 927571.57 | AC18: =SUMIF($C$8:$R$8,AC$8,$C18:$R18)-S18 -> 0 | AD18: =SUMIF($C$8:$R$8,AD$8,$C18:$R18)-Z18 -> 0
A19: Zufluss | C19: =BodenseeOberschwaben!C19+BiberachSaulgau!C19+UlmAlbDonau!C19+OstWürttemberg!C19+HeilbronnHohenlohe!C19+LudwigsburgWaiblingenEnz!C19+FilsNeckarAlb!C19+SchwarzwaldGäu!C19+SchwarzwaldAlbDonau!C19 -> 0 | D19: =BodenseeOberschwaben!D19+BiberachSaulgau!D19+UlmAlbDonau!D19+OstWürttemberg!D19+HeilbronnHohenlohe!D19+LudwigsburgWaiblingenEnz!D19+FilsNeckarAlb!D19+SchwarzwaldGäu!D19+SchwarzwaldAlbDonau!D19 -> 0 | E19: =BodenseeOberschwaben!E19+BiberachSaulgau!E19+UlmAlbDonau!E19+OstWürttemberg!E19+HeilbronnHohenlohe!E19+LudwigsburgWaiblingenEnz!E19+FilsNeckarAlb!E19+SchwarzwaldGäu!E19+SchwarzwaldAlbDonau!E19 -> 0 | F19: =BodenseeOberschwaben!F19+BiberachSaulgau!F19+UlmAlbDonau!F19+OstWürttemberg!F19+HeilbronnHohenlohe!F19+LudwigsburgWaiblingenEnz!F19+FilsNeckarAlb!F19+SchwarzwaldGäu!F19+SchwarzwaldAlbDonau!F19 -> 0 | G19: =BodenseeOberschwaben!G19+BiberachSaulgau!G19+UlmAlbDonau!G19+OstWürttemberg!G19+HeilbronnHohenlohe!G19+LudwigsburgWaiblingenEnz!G19+FilsNeckarAlb!G19+SchwarzwaldGäu!G19+SchwarzwaldAlbDonau!G19 -> 1537662.47 | H19: =BodenseeOberschwaben!H19+BiberachSaulgau!H19+UlmAlbDonau!H19+OstWürttemberg!H19+HeilbronnHohenlohe!H19+LudwigsburgWaiblingenEnz!H19+FilsNeckarAlb!H19+SchwarzwaldGäu!H19+SchwarzwaldAlbDonau!H19 -> 0 | I19: =BodenseeOberschwaben!I19+BiberachSaulgau!I19+UlmAlbDonau!I19+OstWürttemberg!I19+HeilbronnHohenlohe!I19+LudwigsburgWaiblingenEnz!I19+FilsNeckarAlb!I19+SchwarzwaldGäu!I19+SchwarzwaldAlbDonau!I19 -> 4451254.18 | J19: =BodenseeOberschwaben!J19+BiberachSaulgau!J19+UlmAlbDonau!J19+OstWürttemberg!J19+HeilbronnHohenlohe!J19+LudwigsburgWaiblingenEnz!J19+FilsNeckarAlb!J19+SchwarzwaldGäu!J19+SchwarzwaldAlbDonau!J19 -> 183461.83 | K19: =BodenseeOberschwaben!K19+BiberachSaulgau!K19+UlmAlbDonau!K19+OstWürttemberg!K19+HeilbronnHohenlohe!K19+LudwigsburgWaiblingenEnz!K19+FilsNeckarAlb!K19+SchwarzwaldGäu!K19+SchwarzwaldAlbDonau!K19 -> 0 | L19: =BodenseeOberschwaben!L19+BiberachSaulgau!L19+UlmAlbDonau!L19+OstWürttemberg!L19+HeilbronnHohenlohe!L19+LudwigsburgWaiblingenEnz!L19+FilsNeckarAlb!L19+SchwarzwaldGäu!L19+SchwarzwaldAlbDonau!L19 -> 16012.13 | M19: =BodenseeOberschwaben!M19+BiberachSaulgau!M19+UlmAlbDonau!M19+OstWürttemberg!M19+HeilbronnHohenlohe!M19+LudwigsburgWaiblingenEnz!M19+FilsNeckarAlb!M19+SchwarzwaldGäu!M19+SchwarzwaldAlbDonau!M19 -> 181153 | N19: =BodenseeOberschwaben!N19+BiberachSaulgau!N19+UlmAlbDonau!N19+OstWürttemberg!N19+HeilbronnHohenlohe!N19+LudwigsburgWaiblingenEnz!N19+FilsNeckarAlb!N19+SchwarzwaldGäu!N19+SchwarzwaldAlbDonau!N19 -> 174240.01 | O19: =BodenseeOberschwaben!O19+BiberachSaulgau!O19+UlmAlbDonau!O19+OstWürttemberg!O19+HeilbronnHohenlohe!O19+LudwigsburgWaiblingenEnz!O19+FilsNeckarAlb!O19+SchwarzwaldGäu!O19+SchwarzwaldAlbDonau!O19 -> 1374076.82 | P19: =BodenseeOberschwaben!P19+BiberachSaulgau!P19+UlmAlbDonau!P19+OstWürttemberg!P19+HeilbronnHohenlohe!P19+LudwigsburgWaiblingenEnz!P19+FilsNeckarAlb!P19+SchwarzwaldGäu!P19+SchwarzwaldAlbDonau!P19 -> 1110871.71 | Q19: =BodenseeOberschwaben!Q19+BiberachSaulgau!Q19+UlmAlbDonau!Q19+OstWürttemberg!Q19+HeilbronnHohenlohe!Q19+LudwigsburgWaiblingenEnz!Q19+FilsNeckarAlb!Q19+SchwarzwaldGäu!Q19+SchwarzwaldAlbDonau!Q19 -> 211836.82 | R19: =BodenseeOberschwaben!R19+BiberachSaulgau!R19+UlmAlbDonau!R19+OstWürttemberg!R19+HeilbronnHohenlohe!R19+LudwigsburgWaiblingenEnz!R19+FilsNeckarAlb!R19+SchwarzwaldGäu!R19+SchwarzwaldAlbDonau!R19 -> 153147.05 | S19: =G19+J19+M19+O19+Q19 -> 3488190.94 | Z19: =I19+L19+N19+P19+R19 -> 5905525.08 | AC19: =SUMIF($C$8:$R$8,AC$8,$C19:$R19)-S19 -> 0 | AD19: =SUMIF($C$8:$R$8,AD$8,$C19:$R19)-Z19 -> 0
C20: =SUM(C18:C19) -> 450908.83 | D20: =SUM(D18:D19) -> 571366.87 | E20: =SUM(E18:E19) -> 233043.49 | F20: =SUM(F18:F19) -> 265509.85 | G20: =SUM(G14:G19) -> 6043912.03 | H20: =SUM(H18:H19) -> 0 | I20: =SUM(I13:I19) -> 6013919.31 | J20: =SUM(J13:J19) -> 1040684.97 | K20: =SUM(K18:K19) -> 0 | L20: =SUM(L11:L19) -> 877210.53 | M20: =SUM(M19) -> 181153 | N20: 174240.01 | O20: 1374076.82 | P20: 1110871.71 | Q20: 211836.82 | R20: 153147.05 | S20: =S12+S15+S18+S19 -> 9535615.96 | T20: 0 | U20: 0 | V20: 0 | W20: 0 | X20: 0 | Y20: 0 | Z20: 9166265.33 | AC20: =SUMIF($C$8:$R$8,AC$8,$C20:$R20)-S20 -> 0 | AD20: =SUMIF($C$8:$R$8,AD$8,$C20:$R20)-Z20 -> 0
A22: Mittelverwendung
B23: =SpBilanzVerd2022!$J$3 -> Caritasarbeit allgemein | C23: =BodenseeOberschwaben!C23+BiberachSaulgau!C23+UlmAlbDonau!C23+OstWürttemberg!C23+HeilbronnHohenlohe!C23+LudwigsburgWaiblingenEnz!C23+FilsNeckarAlb!C23+SchwarzwaldGäu!C23+SchwarzwaldAlbDonau!C23 -> -96729.9 | D23: =BodenseeOberschwaben!D23+BiberachSaulgau!D23+UlmAlbDonau!D23+OstWürttemberg!D23+HeilbronnHohenlohe!D23+LudwigsburgWaiblingenEnz!D23+FilsNeckarAlb!D23+SchwarzwaldGäu!D23+SchwarzwaldAlbDonau!D23 -> -32003.52 | E23: =BodenseeOberschwaben!E23+BiberachSaulgau!E23+UlmAlbDonau!E23+OstWürttemberg!E23+HeilbronnHohenlohe!E23+LudwigsburgWaiblingenEnz!E23+FilsNeckarAlb!E23+SchwarzwaldGäu!E23+SchwarzwaldAlbDonau!E23 -> 0 | F23: =BodenseeOberschwaben!F23+BiberachSaulgau!F23+UlmAlbDonau!F23+OstWürttemberg!F23+HeilbronnHohenlohe!F23+LudwigsburgWaiblingenEnz!F23+FilsNeckarAlb!F23+SchwarzwaldGäu!F23+SchwarzwaldAlbDonau!F23 -> -11000 | G23: =BodenseeOberschwaben!G23+BiberachSaulgau!G23+UlmAlbDonau!G23+OstWürttemberg!G23+HeilbronnHohenlohe!G23+LudwigsburgWaiblingenEnz!G23+FilsNeckarAlb!G23+SchwarzwaldGäu!G23+SchwarzwaldAlbDonau!G23 -> -20758.09 | H23: =BodenseeOberschwaben!H23+BiberachSaulgau!H23+UlmAlbDonau!H23+OstWürttemberg!H23+HeilbronnHohenlohe!H23+LudwigsburgWaiblingenEnz!H23+FilsNeckarAlb!H23+SchwarzwaldGäu!H23+SchwarzwaldAlbDonau!H23 -> -15772.75 | I23: =BodenseeOberschwaben!I23+BiberachSaulgau!I23+UlmAlbDonau!I23+OstWürttemberg!I23+HeilbronnHohenlohe!I23+LudwigsburgWaiblingenEnz!I23+FilsNeckarAlb!I23+SchwarzwaldGäu!I23+SchwarzwaldAlbDonau!I23 -> -9139.37 | J23: =BodenseeOberschwaben!J23+BiberachSaulgau!J23+UlmAlbDonau!J23+OstWürttemberg!J23+HeilbronnHohenlohe!J23+LudwigsburgWaiblingenEnz!J23+FilsNeckarAlb!J23+SchwarzwaldGäu!J23+SchwarzwaldAlbDonau!J23 -> -315.2 | K23: =BodenseeOberschwaben!K23+BiberachSaulgau!K23+UlmAlbDonau!K23+OstWürttemberg!K23+HeilbronnHohenlohe!K23+LudwigsburgWaiblingenEnz!K23+FilsNeckarAlb!K23+SchwarzwaldGäu!K23+SchwarzwaldAlbDonau!K23 -> 8734.09 | L23: =BodenseeOberschwaben!L23+BiberachSaulgau!L23+UlmAlbDonau!L23+OstWürttemberg!L23+HeilbronnHohenlohe!L23+LudwigsburgWaiblingenEnz!L23+FilsNeckarAlb!L23+SchwarzwaldGäu!L23+SchwarzwaldAlbDonau!L23 -> -8734.09 | M23: =BodenseeOberschwaben!M23+BiberachSaulgau!M23+UlmAlbDonau!M23+OstWürttemberg!M23+HeilbronnHohenlohe!M23+LudwigsburgWaiblingenEnz!M23+FilsNeckarAlb!M23+SchwarzwaldGäu!M23+SchwarzwaldAlbDonau!M23 -> -19675 | N23: =BodenseeOberschwaben!N23+BiberachSaulgau!N23+UlmAlbDonau!N23+OstWürttemberg!N23+HeilbronnHohenlohe!N23+LudwigsburgWaiblingenEnz!N23+FilsNeckarAlb!N23+SchwarzwaldGäu!N23+SchwarzwaldAlbDonau!N23 -> -33365.6 | O23: =BodenseeOberschwaben!O23+BiberachSaulgau!O23+UlmAlbDonau!O23+OstWürttemberg!O23+HeilbronnHohenlohe!O23+LudwigsburgWaiblingenEnz!O23+FilsNeckarAlb!O23+SchwarzwaldGäu!O23+SchwarzwaldAlbDonau!O23 -> -42417.96 | P23: =BodenseeOberschwaben!P23+BiberachSaulgau!P23+UlmAlbDonau!P23+OstWürttemberg!P23+HeilbronnHohenlohe!P23+LudwigsburgWaiblingenEnz!P23+FilsNeckarAlb!P23+SchwarzwaldGäu!P23+SchwarzwaldAlbDonau!P23 -> -48205.9 | Q23: =BodenseeOberschwaben!Q23+BiberachSaulgau!Q23+UlmAlbDonau!Q23+OstWürttemberg!Q23+HeilbronnHohenlohe!Q23+LudwigsburgWaiblingenEnz!Q23+FilsNeckarAlb!Q23+SchwarzwaldGäu!Q23+SchwarzwaldAlbDonau!Q23 -> -639.6 | R23: =BodenseeOberschwaben!R23+BiberachSaulgau!R23+UlmAlbDonau!R23+OstWürttemberg!R23+HeilbronnHohenlohe!R23+LudwigsburgWaiblingenEnz!R23+FilsNeckarAlb!R23+SchwarzwaldGäu!R23+SchwarzwaldAlbDonau!R23 -> -58 | S23: =C23+E23+G23+J23+M23+O23+Q23 -> -180535.75 | Z23: =D23+F23+I23+L23+N23+P23+R23 -> -142506.48 | AA23: =IF(S23=0,"",-S23) -> 180535.75 | AB23: =IF(S23=0,"",$B23) -> Caritasarbeit allgemein | AC23: =SUMIF($C$8:$R$8,AC$8,$C23:$R23)-S23 -> 0 | AD23: =SUMIF($C$8:$R$8,AD$8,$C23:$R23)-Z23 -> 0
B24: =SpBilanzVerd2022!$J$2 -> Existenzsicherung | C24: =BodenseeOberschwaben!C24+BiberachSaulgau!C24+UlmAlbDonau!C24+OstWürttemberg!C24+HeilbronnHohenlohe!C24+LudwigsburgWaiblingenEnz!C24+FilsNeckarAlb!C24+SchwarzwaldGäu!C24+SchwarzwaldAlbDonau!C24 -> -70764.21 | D24: =BodenseeOberschwaben!D24+BiberachSaulgau!D24+UlmAlbDonau!D24+OstWürttemberg!D24+HeilbronnHohenlohe!D24+LudwigsburgWaiblingenEnz!D24+FilsNeckarAlb!D24+SchwarzwaldGäu!D24+SchwarzwaldAlbDonau!D24 -> -197671.54 | E24: =BodenseeOberschwaben!E24+BiberachSaulgau!E24+UlmAlbDonau!E24+OstWürttemberg!E24+HeilbronnHohenlohe!E24+LudwigsburgWaiblingenEnz!E24+FilsNeckarAlb!E24+SchwarzwaldGäu!E24+SchwarzwaldAlbDonau!E24 -> -43329.59 | F24: =BodenseeOberschwaben!F24+BiberachSaulgau!F24+UlmAlbDonau!F24+OstWürttemberg!F24+HeilbronnHohenlohe!F24+LudwigsburgWaiblingenEnz!F24+FilsNeckarAlb!F24+SchwarzwaldGäu!F24+SchwarzwaldAlbDonau!F24 -> -69901.97 | G24: =BodenseeOberschwaben!G24+BiberachSaulgau!G24+UlmAlbDonau!G24+OstWürttemberg!G24+HeilbronnHohenlohe!G24+LudwigsburgWaiblingenEnz!G24+FilsNeckarAlb!G24+SchwarzwaldGäu!G24+SchwarzwaldAlbDonau!G24 -> -545694.29 | H24: =BodenseeOberschwaben!H24+BiberachSaulgau!H24+UlmAlbDonau!H24+OstWürttemberg!H24+HeilbronnHohenlohe!H24+LudwigsburgWaiblingenEnz!H24+FilsNeckarAlb!H24+SchwarzwaldGäu!H24+SchwarzwaldAlbDonau!H24 -> -359571.42 | I24: =BodenseeOberschwaben!I24+BiberachSaulgau!I24+UlmAlbDonau!I24+OstWürttemberg!I24+HeilbronnHohenlohe!I24+LudwigsburgWaiblingenEnz!I24+FilsNeckarAlb!I24+SchwarzwaldGäu!I24+SchwarzwaldAlbDonau!I24 -> -485230.8 | J24: =BodenseeOberschwaben!J24+BiberachSaulgau!J24+UlmAlbDonau!J24+OstWürttemberg!J24+HeilbronnHohenlohe!J24+LudwigsburgWaiblingenEnz!J24+FilsNeckarAlb!J24+SchwarzwaldGäu!J24+SchwarzwaldAlbDonau!J24 -> 0 | K24: =BodenseeOberschwaben!K24+BiberachSaulgau!K24+UlmAlbDonau!K24+OstWürttemberg!K24+HeilbronnHohenlohe!K24+LudwigsburgWaiblingenEnz!K24+FilsNeckarAlb!K24+SchwarzwaldGäu!K24+SchwarzwaldAlbDonau!K24 -> 0 | L24: =BodenseeOberschwaben!L24+BiberachSaulgau!L24+UlmAlbDonau!L24+OstWürttemberg!L24+HeilbronnHohenlohe!L24+LudwigsburgWaiblingenEnz!L24+FilsNeckarAlb!L24+SchwarzwaldGäu!L24+SchwarzwaldAlbDonau!L24 -> 0 | M24: =BodenseeOberschwaben!M24+BiberachSaulgau!M24+UlmAlbDonau!M24+OstWürttemberg!M24+HeilbronnHohenlohe!M24+LudwigsburgWaiblingenEnz!M24+FilsNeckarAlb!M24+SchwarzwaldGäu!M24+SchwarzwaldAlbDonau!M24 -> -58583 | N24: =BodenseeOberschwaben!N24+BiberachSaulgau!N24+UlmAlbDonau!N24+OstWürttemberg!N24+HeilbronnHohenlohe!N24+LudwigsburgWaiblingenEnz!N24+FilsNeckarAlb!N24+SchwarzwaldGäu!N24+SchwarzwaldAlbDonau!N24 -> -20034.4 | O24: =BodenseeOberschwaben!O24+BiberachSaulgau!O24+UlmAlbDonau!O24+OstWürttemberg!O24+HeilbronnHohenlohe!O24+LudwigsburgWaiblingenEnz!O24+FilsNeckarAlb!O24+SchwarzwaldGäu!O24+SchwarzwaldAlbDonau!O24 -> -109122.68 | P24: =BodenseeOberschwaben!P24+BiberachSaulgau!P24+UlmAlbDonau!P24+OstWürttemberg!P24+HeilbronnHohenlohe!P24+LudwigsburgWaiblingenEnz!P24+FilsNeckarAlb!P24+SchwarzwaldGäu!P24+SchwarzwaldAlbDonau!P24 -> -36200.7 | Q24: =BodenseeOberschwaben!Q24+BiberachSaulgau!Q24+UlmAlbDonau!Q24+OstWürttemberg!Q24+HeilbronnHohenlohe!Q24+LudwigsburgWaiblingenEnz!Q24+FilsNeckarAlb!Q24+SchwarzwaldGäu!Q24+SchwarzwaldAlbDonau!Q24 -> -209497.59 | R24: =BodenseeOberschwaben!R24+BiberachSaulgau!R24+UlmAlbDonau!R24+OstWürttemberg!R24+HeilbronnHohenlohe!R24+LudwigsburgWaiblingenEnz!R24+FilsNeckarAlb!R24+SchwarzwaldGäu!R24+SchwarzwaldAlbDonau!R24 -> -144046.42 | S24: -1036991.36 | Z24: -953085.83 | AA24: 1036991.36 | AB24: Existenzsicherung | AC24: 0 | AD24: 0
B25: =SpBilanzVerd2022!$J$10 -> Familienhilfen | C25: =BodenseeOberschwaben!C25+BiberachSaulgau!C25+UlmAlbDonau!C25+OstWürttemberg!C25+HeilbronnHohenlohe!C25+LudwigsburgWaiblingenEnz!C25+FilsNeckarAlb!C25+SchwarzwaldGäu!C25+SchwarzwaldAlbDonau!C25 -> -19131.46 | D25: =BodenseeOberschwaben!D25+BiberachSaulgau!D25+UlmAlbDonau!D25+OstWürttemberg!D25+HeilbronnHohenlohe!D25+LudwigsburgWaiblingenEnz!D25+FilsNeckarAlb!D25+SchwarzwaldGäu!D25+SchwarzwaldAlbDonau!D25 -> -74593.32 | E25: =BodenseeOberschwaben!E25+BiberachSaulgau!E25+UlmAlbDonau!E25+OstWürttemberg!E25+HeilbronnHohenlohe!E25+LudwigsburgWaiblingenEnz!E25+FilsNeckarAlb!E25+SchwarzwaldGäu!E25+SchwarzwaldAlbDonau!E25 -> -33556.46 | F25: =BodenseeOberschwaben!F25+BiberachSaulgau!F25+UlmAlbDonau!F25+OstWürttemberg!F25+HeilbronnHohenlohe!F25+LudwigsburgWaiblingenEnz!F25+FilsNeckarAlb!F25+SchwarzwaldGäu!F25+SchwarzwaldAlbDonau!F25 -> -44125.13 | G25: =BodenseeOberschwaben!G25+BiberachSaulgau!G25+UlmAlbDonau!G25+OstWürttemberg!G25+HeilbronnHohenlohe!G25+LudwigsburgWaiblingenEnz!G25+FilsNeckarAlb!G25+SchwarzwaldGäu!G25+SchwarzwaldAlbDonau!G25 -> -90988.72 | H25: =BodenseeOberschwaben!H25+BiberachSaulgau!H25+UlmAlbDonau!H25+OstWürttemberg!H25+HeilbronnHohenlohe!H25+LudwigsburgWaiblingenEnz!H25+FilsNeckarAlb!H25+SchwarzwaldGäu!H25+SchwarzwaldAlbDonau!H25 -> -68960.43 | I25: =BodenseeOberschwaben!I25+BiberachSaulgau!I25+UlmAlbDonau!I25+OstWürttemberg!I25+HeilbronnHohenlohe!I25+LudwigsburgWaiblingenEnz!I25+FilsNeckarAlb!I25+SchwarzwaldGäu!I25+SchwarzwaldAlbDonau!I25 -> -69755.91 | J25: =BodenseeOberschwaben!J25+BiberachSaulgau!J25+UlmAlbDonau!J25+OstWürttemberg!J25+HeilbronnHohenlohe!J25+LudwigsburgWaiblingenEnz!J25+FilsNeckarAlb!J25+SchwarzwaldGäu!J25+SchwarzwaldAlbDonau!J25 -> 0 | K25: =BodenseeOberschwaben!K25+BiberachSaulgau!K25+UlmAlbDonau!K25+OstWürttemberg!K25+HeilbronnHohenlohe!K25+LudwigsburgWaiblingenEnz!K25+FilsNeckarAlb!K25+SchwarzwaldGäu!K25+SchwarzwaldAlbDonau!K25 -> 0 | L25: =BodenseeOberschwaben!L25+BiberachSaulgau!L25+UlmAlbDonau!L25+OstWürttemberg!L25+HeilbronnHohenlohe!L25+LudwigsburgWaiblingenEnz!L25+FilsNeckarAlb!L25+SchwarzwaldGäu!L25+SchwarzwaldAlbDonau!L25 -> 0 | M25: =BodenseeOberschwaben!M25+BiberachSaulgau!M25+UlmAlbDonau!M25+OstWürttemberg!M25+HeilbronnHohenlohe!M25+LudwigsburgWaiblingenEnz!M25+FilsNeckarAlb!M25+SchwarzwaldGäu!M25+SchwarzwaldAlbDonau!M25 -> -6175 | N25: =BodenseeOberschwaben!N25+BiberachSaulgau!N25+UlmAlbDonau!N25+OstWürttemberg!N25+HeilbronnHohenlohe!N25+LudwigsburgWaiblingenEnz!N25+FilsNeckarAlb!N25+SchwarzwaldGäu!N25+SchwarzwaldAlbDonau!N25 -> -3680 | O25: =BodenseeOberschwaben!O25+BiberachSaulgau!O25+UlmAlbDonau!O25+OstWürttemberg!O25+HeilbronnHohenlohe!O25+LudwigsburgWaiblingenEnz!O25+FilsNeckarAlb!O25+SchwarzwaldGäu!O25+SchwarzwaldAlbDonau!O25 -> 181.33 | P25: =BodenseeOberschwaben!P25+BiberachSaulgau!P25+UlmAlbDonau!P25+OstWürttemberg!P25+HeilbronnHohenlohe!P25+LudwigsburgWaiblingenEnz!P25+FilsNeckarAlb!P25+SchwarzwaldGäu!P25+SchwarzwaldAlbDonau!P25 -> -1000 | Q25: =BodenseeOberschwaben!Q25+BiberachSaulgau!Q25+UlmAlbDonau!Q25+OstWürttemberg!Q25+HeilbronnHohenlohe!Q25+LudwigsburgWaiblingenEnz!Q25+FilsNeckarAlb!Q25+SchwarzwaldGäu!Q25+SchwarzwaldAlbDonau!Q25 -> -351.79 | R25: =BodenseeOberschwaben!R25+BiberachSaulgau!R25+UlmAlbDonau!R25+OstWürttemberg!R25+HeilbronnHohenlohe!R25+LudwigsburgWaiblingenEnz!R25+FilsNeckarAlb!R25+SchwarzwaldGäu!R25+SchwarzwaldAlbDonau!R25 -> -213.1 | S25: -150022.1 | Z25: -193367.46 | AA25: 150022.1 | AB25: Familienhilfen | AC25: 0 | AD25: 0
B26: =SpBilanzVerd2022!$J$6 -> Kinder- und Jugendhilfe | C26: =BodenseeOberschwaben!C26+BiberachSaulgau!C26+UlmAlbDonau!C26+OstWürttemberg!C26+HeilbronnHohenlohe!C26+LudwigsburgWaiblingenEnz!C26+FilsNeckarAlb!C26+SchwarzwaldGäu!C26+SchwarzwaldAlbDonau!C26 -> -97394.38 | D26: =BodenseeOberschwaben!D26+BiberachSaulgau!D26+UlmAlbDonau!D26+OstWürttemberg!D26+HeilbronnHohenlohe!D26+LudwigsburgWaiblingenEnz!D26+FilsNeckarAlb!D26+SchwarzwaldGäu!D26+SchwarzwaldAlbDonau!D26 -> -75891.11 | E26: =BodenseeOberschwaben!E26+BiberachSaulgau!E26+UlmAlbDonau!E26+OstWürttemberg!E26+HeilbronnHohenlohe!E26+LudwigsburgWaiblingenEnz!E26+FilsNeckarAlb!E26+SchwarzwaldGäu!E26+SchwarzwaldAlbDonau!E26 -> -61183.24 | F26: =BodenseeOberschwaben!F26+BiberachSaulgau!F26+UlmAlbDonau!F26+OstWürttemberg!F26+HeilbronnHohenlohe!F26+LudwigsburgWaiblingenEnz!F26+FilsNeckarAlb!F26+SchwarzwaldGäu!F26+SchwarzwaldAlbDonau!F26 -> -73543.23 | G26: =BodenseeOberschwaben!G26+BiberachSaulgau!G26+UlmAlbDonau!G26+OstWürttemberg!G26+HeilbronnHohenlohe!G26+LudwigsburgWaiblingenEnz!G26+FilsNeckarAlb!G26+SchwarzwaldGäu!G26+SchwarzwaldAlbDonau!G26 -> -223795.21 | H26: =BodenseeOberschwaben!H26+BiberachSaulgau!H26+UlmAlbDonau!H26+OstWürttemberg!H26+HeilbronnHohenlohe!H26+LudwigsburgWaiblingenEnz!H26+FilsNeckarAlb!H26+SchwarzwaldGäu!H26+SchwarzwaldAlbDonau!H26 -> -122532.66 | I26: =BodenseeOberschwaben!I26+BiberachSaulgau!I26+UlmAlbDonau!I26+OstWürttemberg!I26+HeilbronnHohenlohe!I26+LudwigsburgWaiblingenEnz!I26+FilsNeckarAlb!I26+SchwarzwaldGäu!I26+SchwarzwaldAlbDonau!I26 -> -196664.44 | J26: =BodenseeOberschwaben!J26+BiberachSaulgau!J26+UlmAlbDonau!J26+OstWürttemberg!J26+HeilbronnHohenlohe!J26+LudwigsburgWaiblingenEnz!J26+FilsNeckarAlb!J26+SchwarzwaldGäu!J26+SchwarzwaldAlbDonau!J26 -> -5441.33 | K26: =BodenseeOberschwaben!K26+BiberachSaulgau!K26+UlmAlbDonau!K26+OstWürttemberg!K26+HeilbronnHohenlohe!K26+LudwigsburgWaiblingenEnz!K26+FilsNeckarAlb!K26+SchwarzwaldGäu!K26+SchwarzwaldAlbDonau!K26 -> -5441.33 | L26: =BodenseeOberschwaben!L26+BiberachSaulgau!L26+UlmAlbDonau!L26+OstWürttemberg!L26+HeilbronnHohenlohe!L26+LudwigsburgWaiblingenEnz!L26+FilsNeckarAlb!L26+SchwarzwaldGäu!L26+SchwarzwaldAlbDonau!L26 -> -1816.23 | M26: =BodenseeOberschwaben!M26+BiberachSaulgau!M26+UlmAlbDonau!M26+OstWürttemberg!M26+HeilbronnHohenlohe!M26+LudwigsburgWaiblingenEnz!M26+FilsNeckarAlb!M26+SchwarzwaldGäu!M26+SchwarzwaldAlbDonau!M26 -> -14615 | N26: =BodenseeOberschwaben!N26+BiberachSaulgau!N26+UlmAlbDonau!N26+OstWürttemberg!N26+HeilbronnHohenlohe!N26+LudwigsburgWaiblingenEnz!N26+FilsNeckarAlb!N26+SchwarzwaldGäu!N26+SchwarzwaldAlbDonau!N26 -> -23200 | O26: =BodenseeOberschwaben!O26+BiberachSaulgau!O26+UlmAlbDonau!O26+OstWürttemberg!O26+HeilbronnHohenlohe!O26+LudwigsburgWaiblingenEnz!O26+FilsNeckarAlb!O26+SchwarzwaldGäu!O26+SchwarzwaldAlbDonau!O26 -> -1176462.98 | P26: =BodenseeOberschwaben!P26+BiberachSaulgau!P26+UlmAlbDonau!P26+OstWürttemberg!P26+HeilbronnHohenlohe!P26+LudwigsburgWaiblingenEnz!P26+FilsNeckarAlb!P26+SchwarzwaldGäu!P26+SchwarzwaldAlbDonau!P26 -> -1001359.57 | Q26: =BodenseeOberschwaben!Q26+BiberachSaulgau!Q26+UlmAlbDonau!Q26+OstWürttemberg!Q26+HeilbronnHohenlohe!Q26+LudwigsburgWaiblingenEnz!Q26+FilsNeckarAlb!Q26+SchwarzwaldGäu!Q26+SchwarzwaldAlbDonau!Q26 -> -997.95 | R26: =BodenseeOberschwaben!R26+BiberachSaulgau!R26+UlmAlbDonau!R26+OstWürttemberg!R26+HeilbronnHohenlohe!R26+LudwigsburgWaiblingenEnz!R26+FilsNeckarAlb!R26+SchwarzwaldGäu!R26+SchwarzwaldAlbDonau!R26 -> -1049.51 | S26: -1579890.09 | Z26: -1373524.09 | AA26: 1579890.09 | AB26: Kinder- und Jugendhilfe | AC26: 0 | AD26: 0
B27: =SpBilanzVerd2022!$J$16 -> Jugendberufshilfe | C27: =BodenseeOberschwaben!C27+BiberachSaulgau!C27+UlmAlbDonau!C27+OstWürttemberg!C27+HeilbronnHohenlohe!C27+LudwigsburgWaiblingenEnz!C27+FilsNeckarAlb!C27+SchwarzwaldGäu!C27+SchwarzwaldAlbDonau!C27 -> 0 | D27: =BodenseeOberschwaben!D27+BiberachSaulgau!D27+UlmAlbDonau!D27+OstWürttemberg!D27+HeilbronnHohenlohe!D27+LudwigsburgWaiblingenEnz!D27+FilsNeckarAlb!D27+SchwarzwaldGäu!D27+SchwarzwaldAlbDonau!D27 -> 0 | E27: =BodenseeOberschwaben!E27+BiberachSaulgau!E27+UlmAlbDonau!E27+OstWürttemberg!E27+HeilbronnHohenlohe!E27+LudwigsburgWaiblingenEnz!E27+FilsNeckarAlb!E27+SchwarzwaldGäu!E27+SchwarzwaldAlbDonau!E27 -> 0 | F27: =BodenseeOberschwaben!F27+BiberachSaulgau!F27+UlmAlbDonau!F27+OstWürttemberg!F27+HeilbronnHohenlohe!F27+LudwigsburgWaiblingenEnz!F27+FilsNeckarAlb!F27+SchwarzwaldGäu!F27+SchwarzwaldAlbDonau!F27 -> 0 | G27: =BodenseeOberschwaben!G27+BiberachSaulgau!G27+UlmAlbDonau!G27+OstWürttemberg!G27+HeilbronnHohenlohe!G27+LudwigsburgWaiblingenEnz!G27+FilsNeckarAlb!G27+SchwarzwaldGäu!G27+SchwarzwaldAlbDonau!G27 -> -1128.36 | H27: =BodenseeOberschwaben!H27+BiberachSaulgau!H27+UlmAlbDonau!H27+OstWürttemberg!H27+HeilbronnHohenlohe!H27+LudwigsburgWaiblingenEnz!H27+FilsNeckarAlb!H27+SchwarzwaldGäu!H27+SchwarzwaldAlbDonau!H27 -> -1128.36 | I27: =BodenseeOberschwaben!I27+BiberachSaulgau!I27+UlmAlbDonau!I27+OstWürttemberg!I27+HeilbronnHohenlohe!I27+LudwigsburgWaiblingenEnz!I27+FilsNeckarAlb!I27+SchwarzwaldGäu!I27+SchwarzwaldAlbDonau!I27 -> -936.32 | J27: =BodenseeOberschwaben!J27+BiberachSaulgau!J27+UlmAlbDonau!J27+OstWürttemberg!J27+HeilbronnHohenlohe!J27+LudwigsburgWaiblingenEnz!J27+FilsNeckarAlb!J27+SchwarzwaldGäu!J27+SchwarzwaldAlbDonau!J27 -> 0 | K27: =BodenseeOberschwaben!K27+BiberachSaulgau!K27+UlmAlbDonau!K27+OstWürttemberg!K27+HeilbronnHohenlohe!K27+LudwigsburgWaiblingenEnz!K27+FilsNeckarAlb!K27+SchwarzwaldGäu!K27+SchwarzwaldAlbDonau!K27 -> 0 | L27: =BodenseeOberschwaben!L27+BiberachSaulgau!L27+UlmAlbDonau!L27+OstWürttemberg!L27+HeilbronnHohenlohe!L27+LudwigsburgWaiblingenEnz!L27+FilsNeckarAlb!L27+SchwarzwaldGäu!L27+SchwarzwaldAlbDonau!L27 -> 0 | M27: =BodenseeOberschwaben!M27+BiberachSaulgau!M27+UlmAlbDonau!M27+OstWürttemberg!M27+HeilbronnHohenlohe!M27+LudwigsburgWaiblingenEnz!M27+FilsNeckarAlb!M27+SchwarzwaldGäu!M27+SchwarzwaldAlbDonau!M27 -> 0 | N27: =BodenseeOberschwaben!N27+BiberachSaulgau!N27+UlmAlbDonau!N27+OstWürttemberg!N27+HeilbronnHohenlohe!N27+LudwigsburgWaiblingenEnz!N27+FilsNeckarAlb!N27+SchwarzwaldGäu!N27+SchwarzwaldAlbDonau!N27 -> 0 | O27: =BodenseeOberschwaben!O27+BiberachSaulgau!O27+UlmAlbDonau!O27+OstWürttemberg!O27+HeilbronnHohenlohe!O27+LudwigsburgWaiblingenEnz!O27+FilsNeckarAlb!O27+SchwarzwaldGäu!O27+SchwarzwaldAlbDonau!O27 -> 0 | P27: =BodenseeOberschwaben!P27+BiberachSaulgau!P27+UlmAlbDonau!P27+OstWürttemberg!P27+HeilbronnHohenlohe!P27+LudwigsburgWaiblingenEnz!P27+FilsNeckarAlb!P27+SchwarzwaldGäu!P27+SchwarzwaldAlbDonau!P27 -> 0 | Q27: =BodenseeOberschwaben!Q27+BiberachSaulgau!Q27+UlmAlbDonau!Q27+OstWürttemberg!Q27+HeilbronnHohenlohe!Q27+LudwigsburgWaiblingenEnz!Q27+FilsNeckarAlb!Q27+SchwarzwaldGäu!Q27+SchwarzwaldAlbDonau!Q27 -> 0 | R27: =BodenseeOberschwaben!R27+BiberachSaulgau!R27+UlmAlbDonau!R27+OstWürttemberg!R27+HeilbronnHohenlohe!R27+LudwigsburgWaiblingenEnz!R27+FilsNeckarAlb!R27+SchwarzwaldGäu!R27+SchwarzwaldAlbDonau!R27 -> 0 | S27: -1128.36 | Z27: -936.32 | AA27: 1128.36 | AB27: Jugendberufshilfe | AC27: 0 | AD27: 0
B28: =SpBilanzVerd2022!$J$14 -> Behindertenhilfe | C28: =BodenseeOberschwaben!C28+BiberachSaulgau!C28+UlmAlbDonau!C28+OstWürttemberg!C28+HeilbronnHohenlohe!C28+LudwigsburgWaiblingenEnz!C28+FilsNeckarAlb!C28+SchwarzwaldGäu!C28+SchwarzwaldAlbDonau!C28 -> 0 | D28: =BodenseeOberschwaben!D28+BiberachSaulgau!D28+UlmAlbDonau!D28+OstWürttemberg!D28+HeilbronnHohenlohe!D28+LudwigsburgWaiblingenEnz!D28+FilsNeckarAlb!D28+SchwarzwaldGäu!D28+SchwarzwaldAlbDonau!D28 -> 0 | E28: =BodenseeOberschwaben!E28+BiberachSaulgau!E28+UlmAlbDonau!E28+OstWürttemberg!E28+HeilbronnHohenlohe!E28+LudwigsburgWaiblingenEnz!E28+FilsNeckarAlb!E28+SchwarzwaldGäu!E28+SchwarzwaldAlbDonau!E28 -> 0 | F28: =BodenseeOberschwaben!F28+BiberachSaulgau!F28+UlmAlbDonau!F28+OstWürttemberg!F28+HeilbronnHohenlohe!F28+LudwigsburgWaiblingenEnz!F28+FilsNeckarAlb!F28+SchwarzwaldGäu!F28+SchwarzwaldAlbDonau!F28 -> 0 | G28: =BodenseeOberschwaben!G28+BiberachSaulgau!G28+UlmAlbDonau!G28+OstWürttemberg!G28+HeilbronnHohenlohe!G28+LudwigsburgWaiblingenEnz!G28+FilsNeckarAlb!G28+SchwarzwaldGäu!G28+SchwarzwaldAlbDonau!G28 -> -5741.83 | H28: =BodenseeOberschwaben!H28+BiberachSaulgau!H28+UlmAlbDonau!H28+OstWürttemberg!H28+HeilbronnHohenlohe!H28+LudwigsburgWaiblingenEnz!H28+FilsNeckarAlb!H28+SchwarzwaldGäu!H28+SchwarzwaldAlbDonau!H28 -> -3553.96 | I28: =BodenseeOberschwaben!I28+BiberachSaulgau!I28+UlmAlbDonau!I28+OstWürttemberg!I28+HeilbronnHohenlohe!I28+LudwigsburgWaiblingenEnz!I28+FilsNeckarAlb!I28+SchwarzwaldGäu!I28+SchwarzwaldAlbDonau!I28 -> -332 | J28: =BodenseeOberschwaben!J28+BiberachSaulgau!J28+UlmAlbDonau!J28+OstWürttemberg!J28+HeilbronnHohenlohe!J28+LudwigsburgWaiblingenEnz!J28+FilsNeckarAlb!J28+SchwarzwaldGäu!J28+SchwarzwaldAlbDonau!J28 -> -20000 | K28: =BodenseeOberschwaben!K28+BiberachSaulgau!K28+UlmAlbDonau!K28+OstWürttemberg!K28+HeilbronnHohenlohe!K28+LudwigsburgWaiblingenEnz!K28+FilsNeckarAlb!K28+SchwarzwaldGäu!K28+SchwarzwaldAlbDonau!K28 -> 0 | L28: =BodenseeOberschwaben!L28+BiberachSaulgau!L28+UlmAlbDonau!L28+OstWürttemberg!L28+HeilbronnHohenlohe!L28+LudwigsburgWaiblingenEnz!L28+FilsNeckarAlb!L28+SchwarzwaldGäu!L28+SchwarzwaldAlbDonau!L28 -> -20000 | M28: =BodenseeOberschwaben!M28+BiberachSaulgau!M28+UlmAlbDonau!M28+OstWürttemberg!M28+HeilbronnHohenlohe!M28+LudwigsburgWaiblingenEnz!M28+FilsNeckarAlb!M28+SchwarzwaldGäu!M28+SchwarzwaldAlbDonau!M28 -> 0 | N28: =BodenseeOberschwaben!N28+BiberachSaulgau!N28+UlmAlbDonau!N28+OstWürttemberg!N28+HeilbronnHohenlohe!N28+LudwigsburgWaiblingenEnz!N28+FilsNeckarAlb!N28+SchwarzwaldGäu!N28+SchwarzwaldAlbDonau!N28 -> 0 | O28: =BodenseeOberschwaben!O28+BiberachSaulgau!O28+UlmAlbDonau!O28+OstWürttemberg!O28+HeilbronnHohenlohe!O28+LudwigsburgWaiblingenEnz!O28+FilsNeckarAlb!O28+SchwarzwaldGäu!O28+SchwarzwaldAlbDonau!O28 -> 0 | P28: =BodenseeOberschwaben!P28+BiberachSaulgau!P28+UlmAlbDonau!P28+OstWürttemberg!P28+HeilbronnHohenlohe!P28+LudwigsburgWaiblingenEnz!P28+FilsNeckarAlb!P28+SchwarzwaldGäu!P28+SchwarzwaldAlbDonau!P28 -> 0 | Q28: =BodenseeOberschwaben!Q28+BiberachSaulgau!Q28+UlmAlbDonau!Q28+OstWürttemberg!Q28+HeilbronnHohenlohe!Q28+LudwigsburgWaiblingenEnz!Q28+FilsNeckarAlb!Q28+SchwarzwaldGäu!Q28+SchwarzwaldAlbDonau!Q28 -> 0 | R28: =BodenseeOberschwaben!R28+BiberachSaulgau!R28+UlmAlbDonau!R28+OstWürttemberg!R28+HeilbronnHohenlohe!R28+LudwigsburgWaiblingenEnz!R28+FilsNeckarAlb!R28+SchwarzwaldGäu!R28+SchwarzwaldAlbDonau!R28 -> 0 | S28: -25741.83 | Z28: -20332 | AA28: 25741.83 | AB28: Behindertenhilfe | AC28: 0 | AD28: 0
B29: =SpBilanzVerd2022!$J$9 -> Altenhilfe/Hospizdienste | C29: =BodenseeOberschwaben!C29+BiberachSaulgau!C29+UlmAlbDonau!C29+OstWürttemberg!C29+HeilbronnHohenlohe!C29+LudwigsburgWaiblingenEnz!C29+FilsNeckarAlb!C29+SchwarzwaldGäu!C29+SchwarzwaldAlbDonau!C29 -> -29442.56 | D29: =BodenseeOberschwaben!D29+BiberachSaulgau!D29+UlmAlbDonau!D29+OstWürttemberg!D29+HeilbronnHohenlohe!D29+LudwigsburgWaiblingenEnz!D29+FilsNeckarAlb!D29+SchwarzwaldGäu!D29+SchwarzwaldAlbDonau!D29 -> -13467.85 | E29: =BodenseeOberschwaben!E29+BiberachSaulgau!E29+UlmAlbDonau!E29+OstWürttemberg!E29+HeilbronnHohenlohe!E29+LudwigsburgWaiblingenEnz!E29+FilsNeckarAlb!E29+SchwarzwaldGäu!E29+SchwarzwaldAlbDonau!E29 -> -27632.83 | F29: =BodenseeOberschwaben!F29+BiberachSaulgau!F29+UlmAlbDonau!F29+OstWürttemberg!F29+HeilbronnHohenlohe!F29+LudwigsburgWaiblingenEnz!F29+FilsNeckarAlb!F29+SchwarzwaldGäu!F29+SchwarzwaldAlbDonau!F29 -> -25914.64 | G29: =BodenseeOberschwaben!G29+BiberachSaulgau!G29+UlmAlbDonau!G29+OstWürttemberg!G29+HeilbronnHohenlohe!G29+LudwigsburgWaiblingenEnz!G29+FilsNeckarAlb!G29+SchwarzwaldGäu!G29+SchwarzwaldAlbDonau!G29 -> -54669.74 | H29: =BodenseeOberschwaben!H29+BiberachSaulgau!H29+UlmAlbDonau!H29+OstWürttemberg!H29+HeilbronnHohenlohe!H29+LudwigsburgWaiblingenEnz!H29+FilsNeckarAlb!H29+SchwarzwaldGäu!H29+SchwarzwaldAlbDonau!H29 -> -47022.39 | I29: =BodenseeOberschwaben!I29+BiberachSaulgau!I29+UlmAlbDonau!I29+OstWürttemberg!I29+HeilbronnHohenlohe!I29+LudwigsburgWaiblingenEnz!I29+FilsNeckarAlb!I29+SchwarzwaldGäu!I29+SchwarzwaldAlbDonau!I29 -> -37924.66 | J29: =BodenseeOberschwaben!J29+BiberachSaulgau!J29+UlmAlbDonau!J29+OstWürttemberg!J29+HeilbronnHohenlohe!J29+LudwigsburgWaiblingenEnz!J29+FilsNeckarAlb!J29+SchwarzwaldGäu!J29+SchwarzwaldAlbDonau!J29 -> -12886.97 | K29: =BodenseeOberschwaben!K29+BiberachSaulgau!K29+UlmAlbDonau!K29+OstWürttemberg!K29+HeilbronnHohenlohe!K29+LudwigsburgWaiblingenEnz!K29+FilsNeckarAlb!K29+SchwarzwaldGäu!K29+SchwarzwaldAlbDonau!K29 -> -12886.97 | L29: =BodenseeOberschwaben!L29+BiberachSaulgau!L29+UlmAlbDonau!L29+OstWürttemberg!L29+HeilbronnHohenlohe!L29+LudwigsburgWaiblingenEnz!L29+FilsNeckarAlb!L29+SchwarzwaldGäu!L29+SchwarzwaldAlbDonau!L29 -> -9437.07 | M29: =BodenseeOberschwaben!M29+BiberachSaulgau!M29+UlmAlbDonau!M29+OstWürttemberg!M29+HeilbronnHohenlohe!M29+LudwigsburgWaiblingenEnz!M29+FilsNeckarAlb!M29+SchwarzwaldGäu!M29+SchwarzwaldAlbDonau!M29 -> 0 | N29: =BodenseeOberschwaben!N29+BiberachSaulgau!N29+UlmAlbDonau!N29+OstWürttemberg!N29+HeilbronnHohenlohe!N29+LudwigsburgWaiblingenEnz!N29+FilsNeckarAlb!N29+SchwarzwaldGäu!N29+SchwarzwaldAlbDonau!N29 -> 0 | O29: =BodenseeOberschwaben!O29+BiberachSaulgau!O29+UlmAlbDonau!O29+OstWürttemberg!O29+HeilbronnHohenlohe!O29+LudwigsburgWaiblingenEnz!O29+FilsNeckarAlb!O29+SchwarzwaldGäu!O29+SchwarzwaldAlbDonau!O29 -> -1644.49 | P29: =BodenseeOberschwaben!P29+BiberachSaulgau!P29+UlmAlbDonau!P29+OstWürttemberg!P29+HeilbronnHohenlohe!P29+LudwigsburgWaiblingenEnz!P29+FilsNeckarAlb!P29+SchwarzwaldGäu!P29+SchwarzwaldAlbDonau!P29 -> -7678.53 | Q29: =BodenseeOberschwaben!Q29+BiberachSaulgau!Q29+UlmAlbDonau!Q29+OstWürttemberg!Q29+HeilbronnHohenlohe!Q29+LudwigsburgWaiblingenEnz!Q29+FilsNeckarAlb!Q29+SchwarzwaldGäu!Q29+SchwarzwaldAlbDonau!Q29 -> 0 | R29: =BodenseeOberschwaben!R29+BiberachSaulgau!R29+UlmAlbDonau!R29+OstWürttemberg!R29+HeilbronnHohenlohe!R29+LudwigsburgWaiblingenEnz!R29+FilsNeckarAlb!R29+SchwarzwaldGäu!R29+SchwarzwaldAlbDonau!R29 -> 0 | S29: -126276.59 | Z29: -94422.75 | AA29: 126276.59 | AB29: Altenhilfe/Hospizdienste | AC29: 0 | AD29: 0
B30: =SpBilanzVerd2022!$J$12 -> Sozialpsychiatrischer Dienst | C30: =BodenseeOberschwaben!C30+BiberachSaulgau!C30+UlmAlbDonau!C30+OstWürttemberg!C30+HeilbronnHohenlohe!C30+LudwigsburgWaiblingenEnz!C30+FilsNeckarAlb!C30+SchwarzwaldGäu!C30+SchwarzwaldAlbDonau!C30 -> 0 | D30: =BodenseeOberschwaben!D30+BiberachSaulgau!D30+UlmAlbDonau!D30+OstWürttemberg!D30+HeilbronnHohenlohe!D30+LudwigsburgWaiblingenEnz!D30+FilsNeckarAlb!D30+SchwarzwaldGäu!D30+SchwarzwaldAlbDonau!D30 -> 0 | E30: =BodenseeOberschwaben!E30+BiberachSaulgau!E30+UlmAlbDonau!E30+OstWürttemberg!E30+HeilbronnHohenlohe!E30+LudwigsburgWaiblingenEnz!E30+FilsNeckarAlb!E30+SchwarzwaldGäu!E30+SchwarzwaldAlbDonau!E30 -> 0 | F30: =BodenseeOberschwaben!F30+BiberachSaulgau!F30+UlmAlbDonau!F30+OstWürttemberg!F30+HeilbronnHohenlohe!F30+LudwigsburgWaiblingenEnz!F30+FilsNeckarAlb!F30+SchwarzwaldGäu!F30+SchwarzwaldAlbDonau!F30 -> 0 | G30: =BodenseeOberschwaben!G30+BiberachSaulgau!G30+UlmAlbDonau!G30+OstWürttemberg!G30+HeilbronnHohenlohe!G30+LudwigsburgWaiblingenEnz!G30+FilsNeckarAlb!G30+SchwarzwaldGäu!G30+SchwarzwaldAlbDonau!G30 -> -63997.93 | H30: =BodenseeOberschwaben!H30+BiberachSaulgau!H30+UlmAlbDonau!H30+OstWürttemberg!H30+HeilbronnHohenlohe!H30+LudwigsburgWaiblingenEnz!H30+FilsNeckarAlb!H30+SchwarzwaldGäu!H30+SchwarzwaldAlbDonau!H30 -> -43476.58 | I30: =BodenseeOberschwaben!I30+BiberachSaulgau!I30+UlmAlbDonau!I30+OstWürttemberg!I30+HeilbronnHohenlohe!I30+LudwigsburgWaiblingenEnz!I30+FilsNeckarAlb!I30+SchwarzwaldGäu!I30+SchwarzwaldAlbDonau!I30 -> -116987.69 | J30: =BodenseeOberschwaben!J30+BiberachSaulgau!J30+UlmAlbDonau!J30+OstWürttemberg!J30+HeilbronnHohenlohe!J30+LudwigsburgWaiblingenEnz!J30+FilsNeckarAlb!J30+SchwarzwaldGäu!J30+SchwarzwaldAlbDonau!J30 -> 0 | K30: =BodenseeOberschwaben!K30+BiberachSaulgau!K30+UlmAlbDonau!K30+OstWürttemberg!K30+HeilbronnHohenlohe!K30+LudwigsburgWaiblingenEnz!K30+FilsNeckarAlb!K30+SchwarzwaldGäu!K30+SchwarzwaldAlbDonau!K30 -> 0 | L30: =BodenseeOberschwaben!L30+BiberachSaulgau!L30+UlmAlbDonau!L30+OstWürttemberg!L30+HeilbronnHohenlohe!L30+LudwigsburgWaiblingenEnz!L30+FilsNeckarAlb!L30+SchwarzwaldGäu!L30+SchwarzwaldAlbDonau!L30 -> 0 | M30: =BodenseeOberschwaben!M30+BiberachSaulgau!M30+UlmAlbDonau!M30+OstWürttemberg!M30+HeilbronnHohenlohe!M30+LudwigsburgWaiblingenEnz!M30+FilsNeckarAlb!M30+SchwarzwaldGäu!M30+SchwarzwaldAlbDonau!M30 -> 0 | N30: =BodenseeOberschwaben!N30+BiberachSaulgau!N30+UlmAlbDonau!N30+OstWürttemberg!N30+HeilbronnHohenlohe!N30+LudwigsburgWaiblingenEnz!N30+FilsNeckarAlb!N30+SchwarzwaldGäu!N30+SchwarzwaldAlbDonau!N30 -> 0 | O30: =BodenseeOberschwaben!O30+BiberachSaulgau!O30+UlmAlbDonau!O30+OstWürttemberg!O30+HeilbronnHohenlohe!O30+LudwigsburgWaiblingenEnz!O30+FilsNeckarAlb!O30+SchwarzwaldGäu!O30+SchwarzwaldAlbDonau!O30 -> -5560.5 | P30: =BodenseeOberschwaben!P30+BiberachSaulgau!P30+UlmAlbDonau!P30+OstWürttemberg!P30+HeilbronnHohenlohe!P30+LudwigsburgWaiblingenEnz!P30+FilsNeckarAlb!P30+SchwarzwaldGäu!P30+SchwarzwaldAlbDonau!P30 -> -6249.2 | Q30: =BodenseeOberschwaben!Q30+BiberachSaulgau!Q30+UlmAlbDonau!Q30+OstWürttemberg!Q30+HeilbronnHohenlohe!Q30+LudwigsburgWaiblingenEnz!Q30+FilsNeckarAlb!Q30+SchwarzwaldGäu!Q30+SchwarzwaldAlbDonau!Q30 -> 0 | R30: =BodenseeOberschwaben!R30+BiberachSaulgau!R30+UlmAlbDonau!R30+OstWürttemberg!R30+HeilbronnHohenlohe!R30+LudwigsburgWaiblingenEnz!R30+FilsNeckarAlb!R30+SchwarzwaldGäu!R30+SchwarzwaldAlbDonau!R30 -> 0 | S30: -69558.43 | Z30: -123236.89 | AA30: 69558.43 | AB30: Sozialpsychiatrischer Dienst | AC30: 0 | AD30: 0
B31: =SpBilanzVerd2022!$J$5 -> Suchthilfe | C31: =BodenseeOberschwaben!C31+BiberachSaulgau!C31+UlmAlbDonau!C31+OstWürttemberg!C31+HeilbronnHohenlohe!C31+LudwigsburgWaiblingenEnz!C31+FilsNeckarAlb!C31+SchwarzwaldGäu!C31+SchwarzwaldAlbDonau!C31 -> 0 | D31: =BodenseeOberschwaben!D31+BiberachSaulgau!D31+UlmAlbDonau!D31+OstWürttemberg!D31+HeilbronnHohenlohe!D31+LudwigsburgWaiblingenEnz!D31+FilsNeckarAlb!D31+SchwarzwaldGäu!D31+SchwarzwaldAlbDonau!D31 -> 0 | E31: =BodenseeOberschwaben!E31+BiberachSaulgau!E31+UlmAlbDonau!E31+OstWürttemberg!E31+HeilbronnHohenlohe!E31+LudwigsburgWaiblingenEnz!E31+FilsNeckarAlb!E31+SchwarzwaldGäu!E31+SchwarzwaldAlbDonau!E31 -> 0 | F31: =BodenseeOberschwaben!F31+BiberachSaulgau!F31+UlmAlbDonau!F31+OstWürttemberg!F31+HeilbronnHohenlohe!F31+LudwigsburgWaiblingenEnz!F31+FilsNeckarAlb!F31+SchwarzwaldGäu!F31+SchwarzwaldAlbDonau!F31 -> 0 | G31: =BodenseeOberschwaben!G31+BiberachSaulgau!G31+UlmAlbDonau!G31+OstWürttemberg!G31+HeilbronnHohenlohe!G31+LudwigsburgWaiblingenEnz!G31+FilsNeckarAlb!G31+SchwarzwaldGäu!G31+SchwarzwaldAlbDonau!G31 -> -9450.57 | H31: =BodenseeOberschwaben!H31+BiberachSaulgau!H31+UlmAlbDonau!H31+OstWürttemberg!H31+HeilbronnHohenlohe!H31+LudwigsburgWaiblingenEnz!H31+FilsNeckarAlb!H31+SchwarzwaldGäu!H31+SchwarzwaldAlbDonau!H31 -> -9182.88 | I31: =BodenseeOberschwaben!I31+BiberachSaulgau!I31+UlmAlbDonau!I31+OstWürttemberg!I31+HeilbronnHohenlohe!I31+LudwigsburgWaiblingenEnz!I31+FilsNeckarAlb!I31+SchwarzwaldGäu!I31+SchwarzwaldAlbDonau!I31 -> -17572.13 | J31: =BodenseeOberschwaben!J31+BiberachSaulgau!J31+UlmAlbDonau!J31+OstWürttemberg!J31+HeilbronnHohenlohe!J31+LudwigsburgWaiblingenEnz!J31+FilsNeckarAlb!J31+SchwarzwaldGäu!J31+SchwarzwaldAlbDonau!J31 -> 0 | K31: =BodenseeOberschwaben!K31+BiberachSaulgau!K31+UlmAlbDonau!K31+OstWürttemberg!K31+HeilbronnHohenlohe!K31+LudwigsburgWaiblingenEnz!K31+FilsNeckarAlb!K31+SchwarzwaldGäu!K31+SchwarzwaldAlbDonau!K31 -> 0 | L31: =BodenseeOberschwaben!L31+BiberachSaulgau!L31+UlmAlbDonau!L31+OstWürttemberg!L31+HeilbronnHohenlohe!L31+LudwigsburgWaiblingenEnz!L31+FilsNeckarAlb!L31+SchwarzwaldGäu!L31+SchwarzwaldAlbDonau!L31 -> 0 | M31: =BodenseeOberschwaben!M31+BiberachSaulgau!M31+UlmAlbDonau!M31+OstWürttemberg!M31+HeilbronnHohenlohe!M31+LudwigsburgWaiblingenEnz!M31+FilsNeckarAlb!M31+SchwarzwaldGäu!M31+SchwarzwaldAlbDonau!M31 -> -64805 | N31: =BodenseeOberschwaben!N31+BiberachSaulgau!N31+UlmAlbDonau!N31+OstWürttemberg!N31+HeilbronnHohenlohe!N31+LudwigsburgWaiblingenEnz!N31+FilsNeckarAlb!N31+SchwarzwaldGäu!N31+SchwarzwaldAlbDonau!N31 -> -58440.01 | O31: =BodenseeOberschwaben!O31+BiberachSaulgau!O31+UlmAlbDonau!O31+OstWürttemberg!O31+HeilbronnHohenlohe!O31+LudwigsburgWaiblingenEnz!O31+FilsNeckarAlb!O31+SchwarzwaldGäu!O31+SchwarzwaldAlbDonau!O31 -> -10689.1 | P31: =BodenseeOberschwaben!P31+BiberachSaulgau!P31+UlmAlbDonau!P31+OstWürttemberg!P31+HeilbronnHohenlohe!P31+LudwigsburgWaiblingenEnz!P31+FilsNeckarAlb!P31+SchwarzwaldGäu!P31+SchwarzwaldAlbDonau!P31 -> -4098.34 | Q31: =BodenseeOberschwaben!Q31+BiberachSaulgau!Q31+UlmAlbDonau!Q31+OstWürttemberg!Q31+HeilbronnHohenlohe!Q31+LudwigsburgWaiblingenEnz!Q31+FilsNeckarAlb!Q31+SchwarzwaldGäu!Q31+SchwarzwaldAlbDonau!Q31 -> 0 | R31: =BodenseeOberschwaben!R31+BiberachSaulgau!R31+UlmAlbDonau!R31+OstWürttemberg!R31+HeilbronnHohenlohe!R31+LudwigsburgWaiblingenEnz!R31+FilsNeckarAlb!R31+SchwarzwaldGäu!R31+SchwarzwaldAlbDonau!R31 -> 0 | S31: -84944.67 | Z31: -80110.48 | AA31: 84944.67 | AB31: Suchthilfe | AC31: 0 | AD31: 0
B32: =SpBilanzVerd2022!$J$13 -> Migration | C32: =BodenseeOberschwaben!C32+BiberachSaulgau!C32+UlmAlbDonau!C32+OstWürttemberg!C32+HeilbronnHohenlohe!C32+LudwigsburgWaiblingenEnz!C32+FilsNeckarAlb!C32+SchwarzwaldGäu!C32+SchwarzwaldAlbDonau!C32 -> -125514.71 | D32: =BodenseeOberschwaben!D32+BiberachSaulgau!D32+UlmAlbDonau!D32+OstWürttemberg!D32+HeilbronnHohenlohe!D32+LudwigsburgWaiblingenEnz!D32+FilsNeckarAlb!D32+SchwarzwaldGäu!D32+SchwarzwaldAlbDonau!D32 -> -67441.4 | E32: =BodenseeOberschwaben!E32+BiberachSaulgau!E32+UlmAlbDonau!E32+OstWürttemberg!E32+HeilbronnHohenlohe!E32+LudwigsburgWaiblingenEnz!E32+FilsNeckarAlb!E32+SchwarzwaldGäu!E32+SchwarzwaldAlbDonau!E32 -> 0 | F32: =BodenseeOberschwaben!F32+BiberachSaulgau!F32+UlmAlbDonau!F32+OstWürttemberg!F32+HeilbronnHohenlohe!F32+LudwigsburgWaiblingenEnz!F32+FilsNeckarAlb!F32+SchwarzwaldGäu!F32+SchwarzwaldAlbDonau!F32 -> 0 | G32: =BodenseeOberschwaben!G32+BiberachSaulgau!G32+UlmAlbDonau!G32+OstWürttemberg!G32+HeilbronnHohenlohe!G32+LudwigsburgWaiblingenEnz!G32+FilsNeckarAlb!G32+SchwarzwaldGäu!G32+SchwarzwaldAlbDonau!G32 -> -687993.02 | H32: =BodenseeOberschwaben!H32+BiberachSaulgau!H32+UlmAlbDonau!H32+OstWürttemberg!H32+HeilbronnHohenlohe!H32+LudwigsburgWaiblingenEnz!H32+FilsNeckarAlb!H32+SchwarzwaldGäu!H32+SchwarzwaldAlbDonau!H32 -> -625110.17 | I32: =BodenseeOberschwaben!I32+BiberachSaulgau!I32+UlmAlbDonau!I32+OstWürttemberg!I32+HeilbronnHohenlohe!I32+LudwigsburgWaiblingenEnz!I32+FilsNeckarAlb!I32+SchwarzwaldGäu!I32+SchwarzwaldAlbDonau!I32 -> -430319.95 | J32: =BodenseeOberschwaben!J32+BiberachSaulgau!J32+UlmAlbDonau!J32+OstWürttemberg!J32+HeilbronnHohenlohe!J32+LudwigsburgWaiblingenEnz!J32+FilsNeckarAlb!J32+SchwarzwaldGäu!J32+SchwarzwaldAlbDonau!J32 -> 0 | K32: =BodenseeOberschwaben!K32+BiberachSaulgau!K32+UlmAlbDonau!K32+OstWürttemberg!K32+HeilbronnHohenlohe!K32+LudwigsburgWaiblingenEnz!K32+FilsNeckarAlb!K32+SchwarzwaldGäu!K32+SchwarzwaldAlbDonau!K32 -> 0 | L32: =BodenseeOberschwaben!L32+BiberachSaulgau!L32+UlmAlbDonau!L32+OstWürttemberg!L32+HeilbronnHohenlohe!L32+LudwigsburgWaiblingenEnz!L32+FilsNeckarAlb!L32+SchwarzwaldGäu!L32+SchwarzwaldAlbDonau!L32 -> 0 | M32: =BodenseeOberschwaben!M32+BiberachSaulgau!M32+UlmAlbDonau!M32+OstWürttemberg!M32+HeilbronnHohenlohe!M32+LudwigsburgWaiblingenEnz!M32+FilsNeckarAlb!M32+SchwarzwaldGäu!M32+SchwarzwaldAlbDonau!M32 -> -3000 | N32: =BodenseeOberschwaben!N32+BiberachSaulgau!N32+UlmAlbDonau!N32+OstWürttemberg!N32+HeilbronnHohenlohe!N32+LudwigsburgWaiblingenEnz!N32+FilsNeckarAlb!N32+SchwarzwaldGäu!N32+SchwarzwaldAlbDonau!N32 -> -6400 | O32: =BodenseeOberschwaben!O32+BiberachSaulgau!O32+UlmAlbDonau!O32+OstWürttemberg!O32+HeilbronnHohenlohe!O32+LudwigsburgWaiblingenEnz!O32+FilsNeckarAlb!O32+SchwarzwaldGäu!O32+SchwarzwaldAlbDonau!O32 -> -1907 | P32: =BodenseeOberschwaben!P32+BiberachSaulgau!P32+UlmAlbDonau!P32+OstWürttemberg!P32+HeilbronnHohenlohe!P32+LudwigsburgWaiblingenEnz!P32+FilsNeckarAlb!P32+SchwarzwaldGäu!P32+SchwarzwaldAlbDonau!P32 -> -2000 | Q32: =BodenseeOberschwaben!Q32+BiberachSaulgau!Q32+UlmAlbDonau!Q32+OstWürttemberg!Q32+HeilbronnHohenlohe!Q32+LudwigsburgWaiblingenEnz!Q32+FilsNeckarAlb!Q32+SchwarzwaldGäu!Q32+SchwarzwaldAlbDonau!Q32 -> -349.89 | R32: =BodenseeOberschwaben!R32+BiberachSaulgau!R32+UlmAlbDonau!R32+OstWürttemberg!R32+HeilbronnHohenlohe!R32+LudwigsburgWaiblingenEnz!R32+FilsNeckarAlb!R32+SchwarzwaldGäu!R32+SchwarzwaldAlbDonau!R32 -> 0 | S32: -818764.62 | Z32: -506161.35 | AA32: 818764.62 | AB32: Migration | AC32: 0 | AD32: 0
B33: =SpBilanzVerd2022!$J$7 -> Wohnungslosenhilfe | C33: =BodenseeOberschwaben!C33+BiberachSaulgau!C33+UlmAlbDonau!C33+OstWürttemberg!C33+HeilbronnHohenlohe!C33+LudwigsburgWaiblingenEnz!C33+FilsNeckarAlb!C33+SchwarzwaldGäu!C33+SchwarzwaldAlbDonau!C33 -> -8467.46 | D33: =BodenseeOberschwaben!D33+BiberachSaulgau!D33+UlmAlbDonau!D33+OstWürttemberg!D33+HeilbronnHohenlohe!D33+LudwigsburgWaiblingenEnz!D33+FilsNeckarAlb!D33+SchwarzwaldGäu!D33+SchwarzwaldAlbDonau!D33 -> -61800 | E33: =BodenseeOberschwaben!E33+BiberachSaulgau!E33+UlmAlbDonau!E33+OstWürttemberg!E33+HeilbronnHohenlohe!E33+LudwigsburgWaiblingenEnz!E33+FilsNeckarAlb!E33+SchwarzwaldGäu!E33+SchwarzwaldAlbDonau!E33 -> 0 | F33: =BodenseeOberschwaben!F33+BiberachSaulgau!F33+UlmAlbDonau!F33+OstWürttemberg!F33+HeilbronnHohenlohe!F33+LudwigsburgWaiblingenEnz!F33+FilsNeckarAlb!F33+SchwarzwaldGäu!F33+SchwarzwaldAlbDonau!F33 -> 0 | G33: =BodenseeOberschwaben!G33+BiberachSaulgau!G33+UlmAlbDonau!G33+OstWürttemberg!G33+HeilbronnHohenlohe!G33+LudwigsburgWaiblingenEnz!G33+FilsNeckarAlb!G33+SchwarzwaldGäu!G33+SchwarzwaldAlbDonau!G33 -> -194271.35 | H33: =BodenseeOberschwaben!H33+BiberachSaulgau!H33+UlmAlbDonau!H33+OstWürttemberg!H33+HeilbronnHohenlohe!H33+LudwigsburgWaiblingenEnz!H33+FilsNeckarAlb!H33+SchwarzwaldGäu!H33+SchwarzwaldAlbDonau!H33 -> -174538.05 | I33: =BodenseeOberschwaben!I33+BiberachSaulgau!I33+UlmAlbDonau!I33+OstWürttemberg!I33+HeilbronnHohenlohe!I33+LudwigsburgWaiblingenEnz!I33+FilsNeckarAlb!I33+SchwarzwaldGäu!I33+SchwarzwaldAlbDonau!I33 -> -56117.17 | J33: =BodenseeOberschwaben!J33+BiberachSaulgau!J33+UlmAlbDonau!J33+OstWürttemberg!J33+HeilbronnHohenlohe!J33+LudwigsburgWaiblingenEnz!J33+FilsNeckarAlb!J33+SchwarzwaldGäu!J33+SchwarzwaldAlbDonau!J33 -> 0 | K33: =BodenseeOberschwaben!K33+BiberachSaulgau!K33+UlmAlbDonau!K33+OstWürttemberg!K33+HeilbronnHohenlohe!K33+LudwigsburgWaiblingenEnz!K33+FilsNeckarAlb!K33+SchwarzwaldGäu!K33+SchwarzwaldAlbDonau!K33 -> 0 | L33: =BodenseeOberschwaben!L33+BiberachSaulgau!L33+UlmAlbDonau!L33+OstWürttemberg!L33+HeilbronnHohenlohe!L33+LudwigsburgWaiblingenEnz!L33+FilsNeckarAlb!L33+SchwarzwaldGäu!L33+SchwarzwaldAlbDonau!L33 -> 0 | M33: =BodenseeOberschwaben!M33+BiberachSaulgau!M33+UlmAlbDonau!M33+OstWürttemberg!M33+HeilbronnHohenlohe!M33+LudwigsburgWaiblingenEnz!M33+FilsNeckarAlb!M33+SchwarzwaldGäu!M33+SchwarzwaldAlbDonau!M33 -> -300 | N33: =BodenseeOberschwaben!N33+BiberachSaulgau!N33+UlmAlbDonau!N33+OstWürttemberg!N33+HeilbronnHohenlohe!N33+LudwigsburgWaiblingenEnz!N33+FilsNeckarAlb!N33+SchwarzwaldGäu!N33+SchwarzwaldAlbDonau!N33 -> -950 | O33: =BodenseeOberschwaben!O33+BiberachSaulgau!O33+UlmAlbDonau!O33+OstWürttemberg!O33+HeilbronnHohenlohe!O33+LudwigsburgWaiblingenEnz!O33+FilsNeckarAlb!O33+SchwarzwaldGäu!O33+SchwarzwaldAlbDonau!O33 -> 0 | P33: =BodenseeOberschwaben!P33+BiberachSaulgau!P33+UlmAlbDonau!P33+OstWürttemberg!P33+HeilbronnHohenlohe!P33+LudwigsburgWaiblingenEnz!P33+FilsNeckarAlb!P33+SchwarzwaldGäu!P33+SchwarzwaldAlbDonau!P33 -> 0 | Q33: =BodenseeOberschwaben!Q33+BiberachSaulgau!Q33+UlmAlbDonau!Q33+OstWürttemberg!Q33+HeilbronnHohenlohe!Q33+LudwigsburgWaiblingenEnz!Q33+FilsNeckarAlb!Q33+SchwarzwaldGäu!Q33+SchwarzwaldAlbDonau!Q33 -> 0 | R33: =BodenseeOberschwaben!R33+BiberachSaulgau!R33+UlmAlbDonau!R33+OstWürttemberg!R33+HeilbronnHohenlohe!R33+LudwigsburgWaiblingenEnz!R33+FilsNeckarAlb!R33+SchwarzwaldGäu!R33+SchwarzwaldAlbDonau!R33 -> -249.05 | S33: -203038.81 | Z33: -119116.22 | AA33: 203038.81 | AB33: Wohnungslosenhilfe | AC33: 0 | AD33: 0
B34: =SpBilanzVerd2022!$J$4 -> Gemeindenahe Netzwerke | C34: =BodenseeOberschwaben!C34+BiberachSaulgau!C34+UlmAlbDonau!C34+OstWürttemberg!C34+HeilbronnHohenlohe!C34+LudwigsburgWaiblingenEnz!C34+FilsNeckarAlb!C34+SchwarzwaldGäu!C34+SchwarzwaldAlbDonau!C34 -> -101.92 | D34: =BodenseeOberschwaben!D34+BiberachSaulgau!D34+UlmAlbDonau!D34+OstWürttemberg!D34+HeilbronnHohenlohe!D34+LudwigsburgWaiblingenEnz!D34+FilsNeckarAlb!D34+SchwarzwaldGäu!D34+SchwarzwaldAlbDonau!D34 -> -5001.76 | E34: =BodenseeOberschwaben!E34+BiberachSaulgau!E34+UlmAlbDonau!E34+OstWürttemberg!E34+HeilbronnHohenlohe!E34+LudwigsburgWaiblingenEnz!E34+FilsNeckarAlb!E34+SchwarzwaldGäu!E34+SchwarzwaldAlbDonau!E34 -> -44632.37 | F34: =BodenseeOberschwaben!F34+BiberachSaulgau!F34+UlmAlbDonau!F34+OstWürttemberg!F34+HeilbronnHohenlohe!F34+LudwigsburgWaiblingenEnz!F34+FilsNeckarAlb!F34+SchwarzwaldGäu!F34+SchwarzwaldAlbDonau!F34 -> -23024.88 | G34: =BodenseeOberschwaben!G34+BiberachSaulgau!G34+UlmAlbDonau!G34+OstWürttemberg!G34+HeilbronnHohenlohe!G34+LudwigsburgWaiblingenEnz!G34+FilsNeckarAlb!G34+SchwarzwaldGäu!G34+SchwarzwaldAlbDonau!G34 -> -71529.82 | H34: =BodenseeOberschwaben!H34+BiberachSaulgau!H34+UlmAlbDonau!H34+OstWürttemberg!H34+HeilbronnHohenlohe!H34+LudwigsburgWaiblingenEnz!H34+FilsNeckarAlb!H34+SchwarzwaldGäu!H34+SchwarzwaldAlbDonau!H34 -> -40918.9 | I34: =BodenseeOberschwaben!I34+BiberachSaulgau!I34+UlmAlbDonau!I34+OstWürttemberg!I34+HeilbronnHohenlohe!I34+LudwigsburgWaiblingenEnz!I34+FilsNeckarAlb!I34+SchwarzwaldGäu!I34+SchwarzwaldAlbDonau!I34 -> -41017.01 | J34: =BodenseeOberschwaben!J34+BiberachSaulgau!J34+UlmAlbDonau!J34+OstWürttemberg!J34+HeilbronnHohenlohe!J34+LudwigsburgWaiblingenEnz!J34+FilsNeckarAlb!J34+SchwarzwaldGäu!J34+SchwarzwaldAlbDonau!J34 -> 0 | K34: =BodenseeOberschwaben!K34+BiberachSaulgau!K34+UlmAlbDonau!K34+OstWürttemberg!K34+HeilbronnHohenlohe!K34+LudwigsburgWaiblingenEnz!K34+FilsNeckarAlb!K34+SchwarzwaldGäu!K34+SchwarzwaldAlbDonau!K34 -> 0 | L34: =BodenseeOberschwaben!L34+BiberachSaulgau!L34+UlmAlbDonau!L34+OstWürttemberg!L34+HeilbronnHohenlohe!L34+LudwigsburgWaiblingenEnz!L34+FilsNeckarAlb!L34+SchwarzwaldGäu!L34+SchwarzwaldAlbDonau!L34 -> 0 | M34: =BodenseeOberschwaben!M34+BiberachSaulgau!M34+UlmAlbDonau!M34+OstWürttemberg!M34+HeilbronnHohenlohe!M34+LudwigsburgWaiblingenEnz!M34+FilsNeckarAlb!M34+SchwarzwaldGäu!M34+SchwarzwaldAlbDonau!M34 -> 0 | N34: =BodenseeOberschwaben!N34+BiberachSaulgau!N34+UlmAlbDonau!N34+OstWürttemberg!N34+HeilbronnHohenlohe!N34+LudwigsburgWaiblingenEnz!N34+FilsNeckarAlb!N34+SchwarzwaldGäu!N34+SchwarzwaldAlbDonau!N34 -> 0 | O34: =BodenseeOberschwaben!O34+BiberachSaulgau!O34+UlmAlbDonau!O34+OstWürttemberg!O34+HeilbronnHohenlohe!O34+LudwigsburgWaiblingenEnz!O34+FilsNeckarAlb!O34+SchwarzwaldGäu!O34+SchwarzwaldAlbDonau!O34 -> -26453.44 | P34: =BodenseeOberschwaben!P34+BiberachSaulgau!P34+UlmAlbDonau!P34+OstWürttemberg!P34+HeilbronnHohenlohe!P34+LudwigsburgWaiblingenEnz!P34+FilsNeckarAlb!P34+SchwarzwaldGäu!P34+SchwarzwaldAlbDonau!P34 -> -1079.47 | Q34: =BodenseeOberschwaben!Q34+BiberachSaulgau!Q34+UlmAlbDonau!Q34+OstWürttemberg!Q34+HeilbronnHohenlohe!Q34+LudwigsburgWaiblingenEnz!Q34+FilsNeckarAlb!Q34+SchwarzwaldGäu!Q34+SchwarzwaldAlbDonau!Q34 -> 0 | R34: =BodenseeOberschwaben!R34+BiberachSaulgau!R34+UlmAlbDonau!R34+OstWürttemberg!R34+HeilbronnHohenlohe!R34+LudwigsburgWaiblingenEnz!R34+FilsNeckarAlb!R34+SchwarzwaldGäu!R34+SchwarzwaldAlbDonau!R34 -> 0 | S34: -142717.55 | Z34: -70123.12 | AA34: 142717.55 | AB34: Gemeindenahe Netzwerke | AC34: 0 | AD34: 0
B35: =SpBilanzVerd2022!$J$8 -> Arbeitshilfen | C35: =BodenseeOberschwaben!C35+BiberachSaulgau!C35+UlmAlbDonau!C35+OstWürttemberg!C35+HeilbronnHohenlohe!C35+LudwigsburgWaiblingenEnz!C35+FilsNeckarAlb!C35+SchwarzwaldGäu!C35+SchwarzwaldAlbDonau!C35 -> -3362.23 | D35: =BodenseeOberschwaben!D35+BiberachSaulgau!D35+UlmAlbDonau!D35+OstWürttemberg!D35+HeilbronnHohenlohe!D35+LudwigsburgWaiblingenEnz!D35+FilsNeckarAlb!D35+SchwarzwaldGäu!D35+SchwarzwaldAlbDonau!D35 -> -43496.37 | E35: =BodenseeOberschwaben!E35+BiberachSaulgau!E35+UlmAlbDonau!E35+OstWürttemberg!E35+HeilbronnHohenlohe!E35+LudwigsburgWaiblingenEnz!E35+FilsNeckarAlb!E35+SchwarzwaldGäu!E35+SchwarzwaldAlbDonau!E35 -> -22709 | F35: =BodenseeOberschwaben!F35+BiberachSaulgau!F35+UlmAlbDonau!F35+OstWürttemberg!F35+HeilbronnHohenlohe!F35+LudwigsburgWaiblingenEnz!F35+FilsNeckarAlb!F35+SchwarzwaldGäu!F35+SchwarzwaldAlbDonau!F35 -> -18000 | G35: =BodenseeOberschwaben!G35+BiberachSaulgau!G35+UlmAlbDonau!G35+OstWürttemberg!G35+HeilbronnHohenlohe!G35+LudwigsburgWaiblingenEnz!G35+FilsNeckarAlb!G35+SchwarzwaldGäu!G35+SchwarzwaldAlbDonau!G35 -> -51684.99 | H35: =BodenseeOberschwaben!H35+BiberachSaulgau!H35+UlmAlbDonau!H35+OstWürttemberg!H35+HeilbronnHohenlohe!H35+LudwigsburgWaiblingenEnz!H35+FilsNeckarAlb!H35+SchwarzwaldGäu!H35+SchwarzwaldAlbDonau!H35 -> -36451.06 | I35: =BodenseeOberschwaben!I35+BiberachSaulgau!I35+UlmAlbDonau!I35+OstWürttemberg!I35+HeilbronnHohenlohe!I35+LudwigsburgWaiblingenEnz!I35+FilsNeckarAlb!I35+SchwarzwaldGäu!I35+SchwarzwaldAlbDonau!I35 -> -14732.99 | J35: =BodenseeOberschwaben!J35+BiberachSaulgau!J35+UlmAlbDonau!J35+OstWürttemberg!J35+HeilbronnHohenlohe!J35+LudwigsburgWaiblingenEnz!J35+FilsNeckarAlb!J35+SchwarzwaldGäu!J35+SchwarzwaldAlbDonau!J35 -> 0 | K35: =BodenseeOberschwaben!K35+BiberachSaulgau!K35+UlmAlbDonau!K35+OstWürttemberg!K35+HeilbronnHohenlohe!K35+LudwigsburgWaiblingenEnz!K35+FilsNeckarAlb!K35+SchwarzwaldGäu!K35+SchwarzwaldAlbDonau!K35 -> 0 | L35: =BodenseeOberschwaben!L35+BiberachSaulgau!L35+UlmAlbDonau!L35+OstWürttemberg!L35+HeilbronnHohenlohe!L35+LudwigsburgWaiblingenEnz!L35+FilsNeckarAlb!L35+SchwarzwaldGäu!L35+SchwarzwaldAlbDonau!L35 -> 0 | M35: =BodenseeOberschwaben!M35+BiberachSaulgau!M35+UlmAlbDonau!M35+OstWürttemberg!M35+HeilbronnHohenlohe!M35+LudwigsburgWaiblingenEnz!M35+FilsNeckarAlb!M35+SchwarzwaldGäu!M35+SchwarzwaldAlbDonau!M35 -> -14000 | N35: =BodenseeOberschwaben!N35+BiberachSaulgau!N35+UlmAlbDonau!N35+OstWürttemberg!N35+HeilbronnHohenlohe!N35+LudwigsburgWaiblingenEnz!N35+FilsNeckarAlb!N35+SchwarzwaldGäu!N35+SchwarzwaldAlbDonau!N35 -> -28170 | O35: =BodenseeOberschwaben!O35+BiberachSaulgau!O35+UlmAlbDonau!O35+OstWürttemberg!O35+HeilbronnHohenlohe!O35+LudwigsburgWaiblingenEnz!O35+FilsNeckarAlb!O35+SchwarzwaldGäu!O35+SchwarzwaldAlbDonau!O35 -> 0 | P35: =BodenseeOberschwaben!P35+BiberachSaulgau!P35+UlmAlbDonau!P35+OstWürttemberg!P35+HeilbronnHohenlohe!P35+LudwigsburgWaiblingenEnz!P35+FilsNeckarAlb!P35+SchwarzwaldGäu!P35+SchwarzwaldAlbDonau!P35 -> -3000 | Q35: =BodenseeOberschwaben!Q35+BiberachSaulgau!Q35+UlmAlbDonau!Q35+OstWürttemberg!Q35+HeilbronnHohenlohe!Q35+LudwigsburgWaiblingenEnz!Q35+FilsNeckarAlb!Q35+SchwarzwaldGäu!Q35+SchwarzwaldAlbDonau!Q35 -> 0 | R35: =BodenseeOberschwaben!R35+BiberachSaulgau!R35+UlmAlbDonau!R35+OstWürttemberg!R35+HeilbronnHohenlohe!R35+LudwigsburgWaiblingenEnz!R35+FilsNeckarAlb!R35+SchwarzwaldGäu!R35+SchwarzwaldAlbDonau!R35 -> -7530.97 | S35: -91756.22 | Z35: -114930.33 | AA35: 91756.22 | AB35: Arbeitshilfen | AC35: 0 | AD35: 0
B36: =SpBilanzVerd2022!$J$17 -> Diverse Zweckhinweise | C36: =BodenseeOberschwaben!C36+BiberachSaulgau!C36+UlmAlbDonau!C36+OstWürttemberg!C36+HeilbronnHohenlohe!C36+LudwigsburgWaiblingenEnz!C36+FilsNeckarAlb!C36+SchwarzwaldGäu!C36+SchwarzwaldAlbDonau!C36 -> 0 | D36: =BodenseeOberschwaben!D36+BiberachSaulgau!D36+UlmAlbDonau!D36+OstWürttemberg!D36+HeilbronnHohenlohe!D36+LudwigsburgWaiblingenEnz!D36+FilsNeckarAlb!D36+SchwarzwaldGäu!D36+SchwarzwaldAlbDonau!D36 -> 0 | E36: =BodenseeOberschwaben!E36+BiberachSaulgau!E36+UlmAlbDonau!E36+OstWürttemberg!E36+HeilbronnHohenlohe!E36+LudwigsburgWaiblingenEnz!E36+FilsNeckarAlb!E36+SchwarzwaldGäu!E36+SchwarzwaldAlbDonau!E36 -> 0 | F36: =BodenseeOberschwaben!F36+BiberachSaulgau!F36+UlmAlbDonau!F36+OstWürttemberg!F36+HeilbronnHohenlohe!F36+LudwigsburgWaiblingenEnz!F36+FilsNeckarAlb!F36+SchwarzwaldGäu!F36+SchwarzwaldAlbDonau!F36 -> 0 | G36: =BodenseeOberschwaben!G36+BiberachSaulgau!G36+UlmAlbDonau!G36+OstWürttemberg!G36+HeilbronnHohenlohe!G36+LudwigsburgWaiblingenEnz!G36+FilsNeckarAlb!G36+SchwarzwaldGäu!G36+SchwarzwaldAlbDonau!G36 -> 0 | H36: =BodenseeOberschwaben!H36+BiberachSaulgau!H36+UlmAlbDonau!H36+OstWürttemberg!H36+HeilbronnHohenlohe!H36+LudwigsburgWaiblingenEnz!H36+FilsNeckarAlb!H36+SchwarzwaldGäu!H36+SchwarzwaldAlbDonau!H36 -> 0 | I36: =BodenseeOberschwaben!I36+BiberachSaulgau!I36+UlmAlbDonau!I36+OstWürttemberg!I36+HeilbronnHohenlohe!I36+LudwigsburgWaiblingenEnz!I36+FilsNeckarAlb!I36+SchwarzwaldGäu!I36+SchwarzwaldAlbDonau!I36 -> 0 | J36: =BodenseeOberschwaben!J36+BiberachSaulgau!J36+UlmAlbDonau!J36+OstWürttemberg!J36+HeilbronnHohenlohe!J36+LudwigsburgWaiblingenEnz!J36+FilsNeckarAlb!J36+SchwarzwaldGäu!J36+SchwarzwaldAlbDonau!J36 -> 0 | K36: =BodenseeOberschwaben!K36+BiberachSaulgau!K36+UlmAlbDonau!K36+OstWürttemberg!K36+HeilbronnHohenlohe!K36+LudwigsburgWaiblingenEnz!K36+FilsNeckarAlb!K36+SchwarzwaldGäu!K36+SchwarzwaldAlbDonau!K36 -> 0 | L36: =BodenseeOberschwaben!L36+BiberachSaulgau!L36+UlmAlbDonau!L36+OstWürttemberg!L36+HeilbronnHohenlohe!L36+LudwigsburgWaiblingenEnz!L36+FilsNeckarAlb!L36+SchwarzwaldGäu!L36+SchwarzwaldAlbDonau!L36 -> 0 | M36: =BodenseeOberschwaben!M36+BiberachSaulgau!M36+UlmAlbDonau!M36+OstWürttemberg!M36+HeilbronnHohenlohe!M36+LudwigsburgWaiblingenEnz!M36+FilsNeckarAlb!M36+SchwarzwaldGäu!M36+SchwarzwaldAlbDonau!M36 -> 0 | N36: =BodenseeOberschwaben!N36+BiberachSaulgau!N36+UlmAlbDonau!N36+OstWürttemberg!N36+HeilbronnHohenlohe!N36+LudwigsburgWaiblingenEnz!N36+FilsNeckarAlb!N36+SchwarzwaldGäu!N36+SchwarzwaldAlbDonau!N36 -> 0 | O36: =BodenseeOberschwaben!O36+BiberachSaulgau!O36+UlmAlbDonau!O36+OstWürttemberg!O36+HeilbronnHohenlohe!O36+LudwigsburgWaiblingenEnz!O36+FilsNeckarAlb!O36+SchwarzwaldGäu!O36+SchwarzwaldAlbDonau!O36 -> 0 | P36: =BodenseeOberschwaben!P36+BiberachSaulgau!P36+UlmAlbDonau!P36+OstWürttemberg!P36+HeilbronnHohenlohe!P36+LudwigsburgWaiblingenEnz!P36+FilsNeckarAlb!P36+SchwarzwaldGäu!P36+SchwarzwaldAlbDonau!P36 -> 0 | Q36: =BodenseeOberschwaben!Q36+BiberachSaulgau!Q36+UlmAlbDonau!Q36+OstWürttemberg!Q36+HeilbronnHohenlohe!Q36+LudwigsburgWaiblingenEnz!Q36+FilsNeckarAlb!Q36+SchwarzwaldGäu!Q36+SchwarzwaldAlbDonau!Q36 -> 0 | R36: =BodenseeOberschwaben!R36+BiberachSaulgau!R36+UlmAlbDonau!R36+OstWürttemberg!R36+HeilbronnHohenlohe!R36+LudwigsburgWaiblingenEnz!R36+FilsNeckarAlb!R36+SchwarzwaldGäu!R36+SchwarzwaldAlbDonau!R36 -> 0 | S36: 0 | Z36: 0 | AC36: 0 | AD36: 0
B37: =SpBilanzVerd2022!$L$18 -> Sonstiges | C37: =BodenseeOberschwaben!C37+BiberachSaulgau!C37+UlmAlbDonau!C37+OstWürttemberg!C37+HeilbronnHohenlohe!C37+LudwigsburgWaiblingenEnz!C37+FilsNeckarAlb!C37+SchwarzwaldGäu!C37+SchwarzwaldAlbDonau!C37 -> 0 | D37: =BodenseeOberschwaben!D37+BiberachSaulgau!D37+UlmAlbDonau!D37+OstWürttemberg!D37+HeilbronnHohenlohe!D37+LudwigsburgWaiblingenEnz!D37+FilsNeckarAlb!D37+SchwarzwaldGäu!D37+SchwarzwaldAlbDonau!D37 -> 0 | E37: =BodenseeOberschwaben!E37+BiberachSaulgau!E37+UlmAlbDonau!E37+OstWürttemberg!E37+HeilbronnHohenlohe!E37+LudwigsburgWaiblingenEnz!E37+FilsNeckarAlb!E37+SchwarzwaldGäu!E37+SchwarzwaldAlbDonau!E37 -> 0 | F37: =BodenseeOberschwaben!F37+BiberachSaulgau!F37+UlmAlbDonau!F37+OstWürttemberg!F37+HeilbronnHohenlohe!F37+LudwigsburgWaiblingenEnz!F37+FilsNeckarAlb!F37+SchwarzwaldGäu!F37+SchwarzwaldAlbDonau!F37 -> 0 | G37: =BodenseeOberschwaben!G37+BiberachSaulgau!G37+UlmAlbDonau!G37+OstWürttemberg!G37+HeilbronnHohenlohe!G37+LudwigsburgWaiblingenEnz!G37+FilsNeckarAlb!G37+SchwarzwaldGäu!G37+SchwarzwaldAlbDonau!G37 -> 0 | H37: =BodenseeOberschwaben!H37+BiberachSaulgau!H37+UlmAlbDonau!H37+OstWürttemberg!H37+HeilbronnHohenlohe!H37+LudwigsburgWaiblingenEnz!H37+FilsNeckarAlb!H37+SchwarzwaldGäu!H37+SchwarzwaldAlbDonau!H37 -> 0 | I37: =BodenseeOberschwaben!I37+BiberachSaulgau!I37+UlmAlbDonau!I37+OstWürttemberg!I37+HeilbronnHohenlohe!I37+LudwigsburgWaiblingenEnz!I37+FilsNeckarAlb!I37+SchwarzwaldGäu!I37+SchwarzwaldAlbDonau!I37 -> 0 | J37: =BodenseeOberschwaben!J37+BiberachSaulgau!J37+UlmAlbDonau!J37+OstWürttemberg!J37+HeilbronnHohenlohe!J37+LudwigsburgWaiblingenEnz!J37+FilsNeckarAlb!J37+SchwarzwaldGäu!J37+SchwarzwaldAlbDonau!J37 -> 0 | K37: =BodenseeOberschwaben!K37+BiberachSaulgau!K37+UlmAlbDonau!K37+OstWürttemberg!K37+HeilbronnHohenlohe!K37+LudwigsburgWaiblingenEnz!K37+FilsNeckarAlb!K37+SchwarzwaldGäu!K37+SchwarzwaldAlbDonau!K37 -> 0 | L37: =BodenseeOberschwaben!L37+BiberachSaulgau!L37+UlmAlbDonau!L37+OstWürttemberg!L37+HeilbronnHohenlohe!L37+LudwigsburgWaiblingenEnz!L37+FilsNeckarAlb!L37+SchwarzwaldGäu!L37+SchwarzwaldAlbDonau!L37 -> 0 | M37: =BodenseeOberschwaben!M37+BiberachSaulgau!M37+UlmAlbDonau!M37+OstWürttemberg!M37+HeilbronnHohenlohe!M37+LudwigsburgWaiblingenEnz!M37+FilsNeckarAlb!M37+SchwarzwaldGäu!M37+SchwarzwaldAlbDonau!M37 -> 0 | N37: =BodenseeOberschwaben!N37+BiberachSaulgau!N37+UlmAlbDonau!N37+OstWürttemberg!N37+HeilbronnHohenlohe!N37+LudwigsburgWaiblingenEnz!N37+FilsNeckarAlb!N37+SchwarzwaldGäu!N37+SchwarzwaldAlbDonau!N37 -> 0 | O37: =BodenseeOberschwaben!O37+BiberachSaulgau!O37+UlmAlbDonau!O37+OstWürttemberg!O37+HeilbronnHohenlohe!O37+LudwigsburgWaiblingenEnz!O37+FilsNeckarAlb!O37+SchwarzwaldGäu!O37+SchwarzwaldAlbDonau!O37 -> 0 | P37: =BodenseeOberschwaben!P37+BiberachSaulgau!P37+UlmAlbDonau!P37+OstWürttemberg!P37+HeilbronnHohenlohe!P37+LudwigsburgWaiblingenEnz!P37+FilsNeckarAlb!P37+SchwarzwaldGäu!P37+SchwarzwaldAlbDonau!P37 -> 0 | Q37: =BodenseeOberschwaben!Q37+BiberachSaulgau!Q37+UlmAlbDonau!Q37+OstWürttemberg!Q37+HeilbronnHohenlohe!Q37+LudwigsburgWaiblingenEnz!Q37+FilsNeckarAlb!Q37+SchwarzwaldGäu!Q37+SchwarzwaldAlbDonau!Q37 -> 0 | R37: =BodenseeOberschwaben!R37+BiberachSaulgau!R37+UlmAlbDonau!R37+OstWürttemberg!R37+HeilbronnHohenlohe!R37+LudwigsburgWaiblingenEnz!R37+FilsNeckarAlb!R37+SchwarzwaldGäu!R37+SchwarzwaldAlbDonau!R37 -> 0 | S37: 0 | Z37: 0 | AC37: 0 | AD37: 0
B38: =SpBilanzVerd2022!$J$11 -> Weiterleitung an Dritte | C38: =BodenseeOberschwaben!C38+BiberachSaulgau!C38+UlmAlbDonau!C38+OstWürttemberg!C38+HeilbronnHohenlohe!C38+LudwigsburgWaiblingenEnz!C38+FilsNeckarAlb!C38+SchwarzwaldGäu!C38+SchwarzwaldAlbDonau!C38 -> 0 | D38: =BodenseeOberschwaben!D38+BiberachSaulgau!D38+UlmAlbDonau!D38+OstWürttemberg!D38+HeilbronnHohenlohe!D38+LudwigsburgWaiblingenEnz!D38+FilsNeckarAlb!D38+SchwarzwaldGäu!D38+SchwarzwaldAlbDonau!D38 -> 0 | E38: =BodenseeOberschwaben!E38+BiberachSaulgau!E38+UlmAlbDonau!E38+OstWürttemberg!E38+HeilbronnHohenlohe!E38+LudwigsburgWaiblingenEnz!E38+FilsNeckarAlb!E38+SchwarzwaldGäu!E38+SchwarzwaldAlbDonau!E38 -> 0 | F38: =BodenseeOberschwaben!F38+BiberachSaulgau!F38+UlmAlbDonau!F38+OstWürttemberg!F38+HeilbronnHohenlohe!F38+LudwigsburgWaiblingenEnz!F38+FilsNeckarAlb!F38+SchwarzwaldGäu!F38+SchwarzwaldAlbDonau!F38 -> 0 | G38: =BodenseeOberschwaben!G38+BiberachSaulgau!G38+UlmAlbDonau!G38+OstWürttemberg!G38+HeilbronnHohenlohe!G38+LudwigsburgWaiblingenEnz!G38+FilsNeckarAlb!G38+SchwarzwaldGäu!G38+SchwarzwaldAlbDonau!G38 -> -55217.95 | H38: =BodenseeOberschwaben!H38+BiberachSaulgau!H38+UlmAlbDonau!H38+OstWürttemberg!H38+HeilbronnHohenlohe!H38+LudwigsburgWaiblingenEnz!H38+FilsNeckarAlb!H38+SchwarzwaldGäu!H38+SchwarzwaldAlbDonau!H38 -> -5937.42 | I38: =BodenseeOberschwaben!I38+BiberachSaulgau!I38+UlmAlbDonau!I38+OstWürttemberg!I38+HeilbronnHohenlohe!I38+LudwigsburgWaiblingenEnz!I38+FilsNeckarAlb!I38+SchwarzwaldGäu!I38+SchwarzwaldAlbDonau!I38 -> -82739.31 | J38: =BodenseeOberschwaben!J38+BiberachSaulgau!J38+UlmAlbDonau!J38+OstWürttemberg!J38+HeilbronnHohenlohe!J38+LudwigsburgWaiblingenEnz!J38+FilsNeckarAlb!J38+SchwarzwaldGäu!J38+SchwarzwaldAlbDonau!J38 -> 0 | K38: =BodenseeOberschwaben!K38+BiberachSaulgau!K38+UlmAlbDonau!K38+OstWürttemberg!K38+HeilbronnHohenlohe!K38+LudwigsburgWaiblingenEnz!K38+FilsNeckarAlb!K38+SchwarzwaldGäu!K38+SchwarzwaldAlbDonau!K38 -> 0 | L38: =BodenseeOberschwaben!L38+BiberachSaulgau!L38+UlmAlbDonau!L38+OstWürttemberg!L38+HeilbronnHohenlohe!L38+LudwigsburgWaiblingenEnz!L38+FilsNeckarAlb!L38+SchwarzwaldGäu!L38+SchwarzwaldAlbDonau!L38 -> 0 | M38: =BodenseeOberschwaben!M38+BiberachSaulgau!M38+UlmAlbDonau!M38+OstWürttemberg!M38+HeilbronnHohenlohe!M38+LudwigsburgWaiblingenEnz!M38+FilsNeckarAlb!M38+SchwarzwaldGäu!M38+SchwarzwaldAlbDonau!M38 -> 0 | N38: =BodenseeOberschwaben!N38+BiberachSaulgau!N38+UlmAlbDonau!N38+OstWürttemberg!N38+HeilbronnHohenlohe!N38+LudwigsburgWaiblingenEnz!N38+FilsNeckarAlb!N38+SchwarzwaldGäu!N38+SchwarzwaldAlbDonau!N38 -> 0 | O38: =BodenseeOberschwaben!O38+BiberachSaulgau!O38+UlmAlbDonau!O38+OstWürttemberg!O38+HeilbronnHohenlohe!O38+LudwigsburgWaiblingenEnz!O38+FilsNeckarAlb!O38+SchwarzwaldGäu!O38+SchwarzwaldAlbDonau!O38 -> 0 | P38: =BodenseeOberschwaben!P38+BiberachSaulgau!P38+UlmAlbDonau!P38+OstWürttemberg!P38+HeilbronnHohenlohe!P38+LudwigsburgWaiblingenEnz!P38+FilsNeckarAlb!P38+SchwarzwaldGäu!P38+SchwarzwaldAlbDonau!P38 -> 0 | Q38: =BodenseeOberschwaben!Q38+BiberachSaulgau!Q38+UlmAlbDonau!Q38+OstWürttemberg!Q38+HeilbronnHohenlohe!Q38+LudwigsburgWaiblingenEnz!Q38+FilsNeckarAlb!Q38+SchwarzwaldGäu!Q38+SchwarzwaldAlbDonau!Q38 -> 0 | R38: =BodenseeOberschwaben!R38+BiberachSaulgau!R38+UlmAlbDonau!R38+OstWürttemberg!R38+HeilbronnHohenlohe!R38+LudwigsburgWaiblingenEnz!R38+FilsNeckarAlb!R38+SchwarzwaldGäu!R38+SchwarzwaldAlbDonau!R38 -> 0 | S38: -55217.95 | Z38: -82739.31 | AA38: 55217.95 | AB38: Weiterleitung an Dritte | AC38: 0 | AD38: 0
B39: =SpBilanzVerd2022!$L$19 -> Werbung und allgemeine Öffentlichkeitsarbeit | C39: =BodenseeOberschwaben!C39+BiberachSaulgau!C39+UlmAlbDonau!C39+OstWürttemberg!C39+HeilbronnHohenlohe!C39+LudwigsburgWaiblingenEnz!C39+FilsNeckarAlb!C39+SchwarzwaldGäu!C39+SchwarzwaldAlbDonau!C39 -> 0 | D39: =BodenseeOberschwaben!D39+BiberachSaulgau!D39+UlmAlbDonau!D39+OstWürttemberg!D39+HeilbronnHohenlohe!D39+LudwigsburgWaiblingenEnz!D39+FilsNeckarAlb!D39+SchwarzwaldGäu!D39+SchwarzwaldAlbDonau!D39 -> 0 | E39: =BodenseeOberschwaben!E39+BiberachSaulgau!E39+UlmAlbDonau!E39+OstWürttemberg!E39+HeilbronnHohenlohe!E39+LudwigsburgWaiblingenEnz!E39+FilsNeckarAlb!E39+SchwarzwaldGäu!E39+SchwarzwaldAlbDonau!E39 -> 0 | F39: =BodenseeOberschwaben!F39+BiberachSaulgau!F39+UlmAlbDonau!F39+OstWürttemberg!F39+HeilbronnHohenlohe!F39+LudwigsburgWaiblingenEnz!F39+FilsNeckarAlb!F39+SchwarzwaldGäu!F39+SchwarzwaldAlbDonau!F39 -> 0 | G39: =BodenseeOberschwaben!G39+BiberachSaulgau!G39+UlmAlbDonau!G39+OstWürttemberg!G39+HeilbronnHohenlohe!G39+LudwigsburgWaiblingenEnz!G39+FilsNeckarAlb!G39+SchwarzwaldGäu!G39+SchwarzwaldAlbDonau!G39 -> 0 | H39: =BodenseeOberschwaben!H39+BiberachSaulgau!H39+UlmAlbDonau!H39+OstWürttemberg!H39+HeilbronnHohenlohe!H39+LudwigsburgWaiblingenEnz!H39+FilsNeckarAlb!H39+SchwarzwaldGäu!H39+SchwarzwaldAlbDonau!H39 -> 0 | I39: =BodenseeOberschwaben!I39+BiberachSaulgau!I39+UlmAlbDonau!I39+OstWürttemberg!I39+HeilbronnHohenlohe!I39+LudwigsburgWaiblingenEnz!I39+FilsNeckarAlb!I39+SchwarzwaldGäu!I39+SchwarzwaldAlbDonau!I39 -> 0 | J39: =BodenseeOberschwaben!J39+BiberachSaulgau!J39+UlmAlbDonau!J39+OstWürttemberg!J39+HeilbronnHohenlohe!J39+LudwigsburgWaiblingenEnz!J39+FilsNeckarAlb!J39+SchwarzwaldGäu!J39+SchwarzwaldAlbDonau!J39 -> 0 | K39: =BodenseeOberschwaben!K39+BiberachSaulgau!K39+UlmAlbDonau!K39+OstWürttemberg!K39+HeilbronnHohenlohe!K39+LudwigsburgWaiblingenEnz!K39+FilsNeckarAlb!K39+SchwarzwaldGäu!K39+SchwarzwaldAlbDonau!K39 -> 0 | L39: =BodenseeOberschwaben!L39+BiberachSaulgau!L39+UlmAlbDonau!L39+OstWürttemberg!L39+HeilbronnHohenlohe!L39+LudwigsburgWaiblingenEnz!L39+FilsNeckarAlb!L39+SchwarzwaldGäu!L39+SchwarzwaldAlbDonau!L39 -> 0 | M39: =BodenseeOberschwaben!M39+BiberachSaulgau!M39+UlmAlbDonau!M39+OstWürttemberg!M39+HeilbronnHohenlohe!M39+LudwigsburgWaiblingenEnz!M39+FilsNeckarAlb!M39+SchwarzwaldGäu!M39+SchwarzwaldAlbDonau!M39 -> 0 | N39: =BodenseeOberschwaben!N39+BiberachSaulgau!N39+UlmAlbDonau!N39+OstWürttemberg!N39+HeilbronnHohenlohe!N39+LudwigsburgWaiblingenEnz!N39+FilsNeckarAlb!N39+SchwarzwaldGäu!N39+SchwarzwaldAlbDonau!N39 -> 0 | O39: =BodenseeOberschwaben!O39+BiberachSaulgau!O39+UlmAlbDonau!O39+OstWürttemberg!O39+HeilbronnHohenlohe!O39+LudwigsburgWaiblingenEnz!O39+FilsNeckarAlb!O39+SchwarzwaldGäu!O39+SchwarzwaldAlbDonau!O39 -> 0 | P39: =BodenseeOberschwaben!P39+BiberachSaulgau!P39+UlmAlbDonau!P39+OstWürttemberg!P39+HeilbronnHohenlohe!P39+LudwigsburgWaiblingenEnz!P39+FilsNeckarAlb!P39+SchwarzwaldGäu!P39+SchwarzwaldAlbDonau!P39 -> 0 | Q39: =BodenseeOberschwaben!Q39+BiberachSaulgau!Q39+UlmAlbDonau!Q39+OstWürttemberg!Q39+HeilbronnHohenlohe!Q39+LudwigsburgWaiblingenEnz!Q39+FilsNeckarAlb!Q39+SchwarzwaldGäu!Q39+SchwarzwaldAlbDonau!Q39 -> 0 | R39: =BodenseeOberschwaben!R39+BiberachSaulgau!R39+UlmAlbDonau!R39+OstWürttemberg!R39+HeilbronnHohenlohe!R39+LudwigsburgWaiblingenEnz!R39+FilsNeckarAlb!R39+SchwarzwaldGäu!R39+SchwarzwaldAlbDonau!R39 -> 0 | S39: 0 | Z39: 0 | AC39: 0 | AD39: 0
B40: =SpBilanzVerd2022!$J$15 -> Verwaltung | C40: =BodenseeOberschwaben!C40+BiberachSaulgau!C40+UlmAlbDonau!C40+OstWürttemberg!C40+HeilbronnHohenlohe!C40+LudwigsburgWaiblingenEnz!C40+FilsNeckarAlb!C40+SchwarzwaldGäu!C40+SchwarzwaldAlbDonau!C40 -> 0 | D40: =BodenseeOberschwaben!D40+BiberachSaulgau!D40+UlmAlbDonau!D40+OstWürttemberg!D40+HeilbronnHohenlohe!D40+LudwigsburgWaiblingenEnz!D40+FilsNeckarAlb!D40+SchwarzwaldGäu!D40+SchwarzwaldAlbDonau!D40 -> 0 | E40: =BodenseeOberschwaben!E40+BiberachSaulgau!E40+UlmAlbDonau!E40+OstWürttemberg!E40+HeilbronnHohenlohe!E40+LudwigsburgWaiblingenEnz!E40+FilsNeckarAlb!E40+SchwarzwaldGäu!E40+SchwarzwaldAlbDonau!E40 -> 0 | F40: =BodenseeOberschwaben!F40+BiberachSaulgau!F40+UlmAlbDonau!F40+OstWürttemberg!F40+HeilbronnHohenlohe!F40+LudwigsburgWaiblingenEnz!F40+FilsNeckarAlb!F40+SchwarzwaldGäu!F40+SchwarzwaldAlbDonau!F40 -> 0 | G40: =BodenseeOberschwaben!G40+BiberachSaulgau!G40+UlmAlbDonau!G40+OstWürttemberg!G40+HeilbronnHohenlohe!G40+LudwigsburgWaiblingenEnz!G40+FilsNeckarAlb!G40+SchwarzwaldGäu!G40+SchwarzwaldAlbDonau!G40 -> 0 | H40: =BodenseeOberschwaben!H40+BiberachSaulgau!H40+UlmAlbDonau!H40+OstWürttemberg!H40+HeilbronnHohenlohe!H40+LudwigsburgWaiblingenEnz!H40+FilsNeckarAlb!H40+SchwarzwaldGäu!H40+SchwarzwaldAlbDonau!H40 -> 0 | I40: =BodenseeOberschwaben!I40+BiberachSaulgau!I40+UlmAlbDonau!I40+OstWürttemberg!I40+HeilbronnHohenlohe!I40+LudwigsburgWaiblingenEnz!I40+FilsNeckarAlb!I40+SchwarzwaldGäu!I40+SchwarzwaldAlbDonau!I40 -> 0 | J40: =BodenseeOberschwaben!J40+BiberachSaulgau!J40+UlmAlbDonau!J40+OstWürttemberg!J40+HeilbronnHohenlohe!J40+LudwigsburgWaiblingenEnz!J40+FilsNeckarAlb!J40+SchwarzwaldGäu!J40+SchwarzwaldAlbDonau!J40 -> 0 | K40: =BodenseeOberschwaben!K40+BiberachSaulgau!K40+UlmAlbDonau!K40+OstWürttemberg!K40+HeilbronnHohenlohe!K40+LudwigsburgWaiblingenEnz!K40+FilsNeckarAlb!K40+SchwarzwaldGäu!K40+SchwarzwaldAlbDonau!K40 -> 0 | L40: =BodenseeOberschwaben!L40+BiberachSaulgau!L40+UlmAlbDonau!L40+OstWürttemberg!L40+HeilbronnHohenlohe!L40+LudwigsburgWaiblingenEnz!L40+FilsNeckarAlb!L40+SchwarzwaldGäu!L40+SchwarzwaldAlbDonau!L40 -> 0 | M40: =BodenseeOberschwaben!M40+BiberachSaulgau!M40+UlmAlbDonau!M40+OstWürttemberg!M40+HeilbronnHohenlohe!M40+LudwigsburgWaiblingenEnz!M40+FilsNeckarAlb!M40+SchwarzwaldGäu!M40+SchwarzwaldAlbDonau!M40 -> 0 | N40: =BodenseeOberschwaben!N40+BiberachSaulgau!N40+UlmAlbDonau!N40+OstWürttemberg!N40+HeilbronnHohenlohe!N40+LudwigsburgWaiblingenEnz!N40+FilsNeckarAlb!N40+SchwarzwaldGäu!N40+SchwarzwaldAlbDonau!N40 -> 0 | O40: =BodenseeOberschwaben!O40+BiberachSaulgau!O40+UlmAlbDonau!O40+OstWürttemberg!O40+HeilbronnHohenlohe!O40+LudwigsburgWaiblingenEnz!O40+FilsNeckarAlb!O40+SchwarzwaldGäu!O40+SchwarzwaldAlbDonau!O40 -> 0 | P40: =BodenseeOberschwaben!P40+BiberachSaulgau!P40+UlmAlbDonau!P40+OstWürttemberg!P40+HeilbronnHohenlohe!P40+LudwigsburgWaiblingenEnz!P40+FilsNeckarAlb!P40+SchwarzwaldGäu!P40+SchwarzwaldAlbDonau!P40 -> 0 | Q40: =BodenseeOberschwaben!Q40+BiberachSaulgau!Q40+UlmAlbDonau!Q40+OstWürttemberg!Q40+HeilbronnHohenlohe!Q40+LudwigsburgWaiblingenEnz!Q40+FilsNeckarAlb!Q40+SchwarzwaldGäu!Q40+SchwarzwaldAlbDonau!Q40 -> 0 | R40: =BodenseeOberschwaben!R40+BiberachSaulgau!R40+UlmAlbDonau!R40+OstWürttemberg!R40+HeilbronnHohenlohe!R40+LudwigsburgWaiblingenEnz!R40+FilsNeckarAlb!R40+SchwarzwaldGäu!R40+SchwarzwaldAlbDonau!R40 -> 0 | S40: 0 | Z40: 0 | AC40: 0 | AD40: 0
C41: =SUM(C23:C40) -> -450908.83 | D41: -571366.87 | E41: -233043.49 | F41: -265509.85 | G41: =SUM(G23:G40) -> -2076921.87 | H41: -1554157.03 | I41: -1559469.75 | J41: -38643.5 | K41: -9594.21 | L41: -39987.39 | M41: -181153 | N41: -174240.01 | O41: -1374076.82 | P41: -1110871.71 | Q41: -211836.82 | R41: -153147.05 | S41: -4566584.33 | Z41: =SUM(Z23:Z40) -> -3874592.63 | AC41: 0 | AD41: 0
A43: 88396 | B43: davon aus Rücklagen | C43: =BodenseeOberschwaben!C43+BiberachSaulgau!C43+UlmAlbDonau!C43+OstWürttemberg!C43+HeilbronnHohenlohe!C43+LudwigsburgWaiblingenEnz!C43+FilsNeckarAlb!C43+SchwarzwaldGäu!C43+SchwarzwaldAlbDonau!C43 -> 0 | D43: =BodenseeOberschwaben!D43+BiberachSaulgau!D43+UlmAlbDonau!D43+OstWürttemberg!D43+HeilbronnHohenlohe!D43+LudwigsburgWaiblingenEnz!D43+FilsNeckarAlb!D43+SchwarzwaldGäu!D43+SchwarzwaldAlbDonau!D43 -> 0 | E43: =BodenseeOberschwaben!E43+BiberachSaulgau!E43+UlmAlbDonau!E43+OstWürttemberg!E43+HeilbronnHohenlohe!E43+LudwigsburgWaiblingenEnz!E43+FilsNeckarAlb!E43+SchwarzwaldGäu!E43+SchwarzwaldAlbDonau!E43 -> 0 | F43: =BodenseeOberschwaben!F43+BiberachSaulgau!F43+UlmAlbDonau!F43+OstWürttemberg!F43+HeilbronnHohenlohe!F43+LudwigsburgWaiblingenEnz!F43+FilsNeckarAlb!F43+SchwarzwaldGäu!F43+SchwarzwaldAlbDonau!F43 -> 0 | G43: =BodenseeOberschwaben!G43+BiberachSaulgau!G43+UlmAlbDonau!G43+OstWürttemberg!G43+HeilbronnHohenlohe!G43+LudwigsburgWaiblingenEnz!G43+FilsNeckarAlb!G43+SchwarzwaldGäu!G43+SchwarzwaldAlbDonau!G43 -> 0 | H43: =BodenseeOberschwaben!H43+BiberachSaulgau!H43+UlmAlbDonau!H43+OstWürttemberg!H43+HeilbronnHohenlohe!H43+LudwigsburgWaiblingenEnz!H43+FilsNeckarAlb!H43+SchwarzwaldGäu!H43+SchwarzwaldAlbDonau!H43 -> 0 | I43: =BodenseeOberschwaben!I43+BiberachSaulgau!I43+UlmAlbDonau!I43+OstWürttemberg!I43+HeilbronnHohenlohe!I43+LudwigsburgWaiblingenEnz!I43+FilsNeckarAlb!I43+SchwarzwaldGäu!I43+SchwarzwaldAlbDonau!I43 -> 0 | J43: =BodenseeOberschwaben!J43+BiberachSaulgau!J43+UlmAlbDonau!J43+OstWürttemberg!J43+HeilbronnHohenlohe!J43+LudwigsburgWaiblingenEnz!J43+FilsNeckarAlb!J43+SchwarzwaldGäu!J43+SchwarzwaldAlbDonau!J43 -> 0 | K43: =BodenseeOberschwaben!K43+BiberachSaulgau!K43+UlmAlbDonau!K43+OstWürttemberg!K43+HeilbronnHohenlohe!K43+LudwigsburgWaiblingenEnz!K43+FilsNeckarAlb!K43+SchwarzwaldGäu!K43+SchwarzwaldAlbDonau!K43 -> 0 | L43: =BodenseeOberschwaben!L43+BiberachSaulgau!L43+UlmAlbDonau!L43+OstWürttemberg!L43+HeilbronnHohenlohe!L43+LudwigsburgWaiblingenEnz!L43+FilsNeckarAlb!L43+SchwarzwaldGäu!L43+SchwarzwaldAlbDonau!L43 -> 0 | M43: =BodenseeOberschwaben!M43+BiberachSaulgau!M43+UlmAlbDonau!M43+OstWürttemberg!M43+HeilbronnHohenlohe!M43+LudwigsburgWaiblingenEnz!M43+FilsNeckarAlb!M43+SchwarzwaldGäu!M43+SchwarzwaldAlbDonau!M43 -> 0 | N43: =BodenseeOberschwaben!N43+BiberachSaulgau!N43+UlmAlbDonau!N43+OstWürttemberg!N43+HeilbronnHohenlohe!N43+LudwigsburgWaiblingenEnz!N43+FilsNeckarAlb!N43+SchwarzwaldGäu!N43+SchwarzwaldAlbDonau!N43 -> 0 | O43: =BodenseeOberschwaben!O43+BiberachSaulgau!O43+UlmAlbDonau!O43+OstWürttemberg!O43+HeilbronnHohenlohe!O43+LudwigsburgWaiblingenEnz!O43+FilsNeckarAlb!O43+SchwarzwaldGäu!O43+SchwarzwaldAlbDonau!O43 -> 0 | P43: =BodenseeOberschwaben!P43+BiberachSaulgau!P43+UlmAlbDonau!P43+OstWürttemberg!P43+HeilbronnHohenlohe!P43+LudwigsburgWaiblingenEnz!P43+FilsNeckarAlb!P43+SchwarzwaldGäu!P43+SchwarzwaldAlbDonau!P43 -> 0 | Q43: =BodenseeOberschwaben!Q43+BiberachSaulgau!Q43+UlmAlbDonau!Q43+OstWürttemberg!Q43+HeilbronnHohenlohe!Q43+LudwigsburgWaiblingenEnz!Q43+FilsNeckarAlb!Q43+SchwarzwaldGäu!Q43+SchwarzwaldAlbDonau!Q43 -> 0 | R43: =BodenseeOberschwaben!R43+BiberachSaulgau!R43+UlmAlbDonau!R43+OstWürttemberg!R43+HeilbronnHohenlohe!R43+LudwigsburgWaiblingenEnz!R43+FilsNeckarAlb!R43+SchwarzwaldGäu!R43+SchwarzwaldAlbDonau!R43 -> 0 | S43: =C43+E43+G43+J43+M43+O43+Q43 -> 0 | Z43: =D43+F43+I43+L43+N43+P43+R43 -> 0 | AC43: =SUMIF($C$8:$R$8,AC$8,$C43:$R43)-S43 -> 0 | AD43: =SUMIF($C$8:$R$8,AD$8,$C43:$R43)-Z43 -> 0
A44: 85130 | B44: davon aus nicht verbrauchte Spendenmittel/Erbschaften | C44: =BodenseeOberschwaben!C44+BiberachSaulgau!C44+UlmAlbDonau!C44+OstWürttemberg!C44+HeilbronnHohenlohe!C44+LudwigsburgWaiblingenEnz!C44+FilsNeckarAlb!C44+SchwarzwaldGäu!C44+SchwarzwaldAlbDonau!C44 -> -450908.83 | D44: =BodenseeOberschwaben!D44+BiberachSaulgau!D44+UlmAlbDonau!D44+OstWürttemberg!D44+HeilbronnHohenlohe!D44+LudwigsburgWaiblingenEnz!D44+FilsNeckarAlb!D44+SchwarzwaldGäu!D44+SchwarzwaldAlbDonau!D44 -> -571366.87 | E44: =BodenseeOberschwaben!E44+BiberachSaulgau!E44+UlmAlbDonau!E44+OstWürttemberg!E44+HeilbronnHohenlohe!E44+LudwigsburgWaiblingenEnz!E44+FilsNeckarAlb!E44+SchwarzwaldGäu!E44+SchwarzwaldAlbDonau!E44 -> -233043.49 | F44: =BodenseeOberschwaben!F44+BiberachSaulgau!F44+UlmAlbDonau!F44+OstWürttemberg!F44+HeilbronnHohenlohe!F44+LudwigsburgWaiblingenEnz!F44+FilsNeckarAlb!F44+SchwarzwaldGäu!F44+SchwarzwaldAlbDonau!F44 -> -265509.85 | G44: =BodenseeOberschwaben!G44+BiberachSaulgau!G44+UlmAlbDonau!G44+OstWürttemberg!G44+HeilbronnHohenlohe!G44+LudwigsburgWaiblingenEnz!G44+FilsNeckarAlb!G44+SchwarzwaldGäu!G44+SchwarzwaldAlbDonau!G44 -> -2076921.87 | H44: =BodenseeOberschwaben!H44+BiberachSaulgau!H44+UlmAlbDonau!H44+OstWürttemberg!H44+HeilbronnHohenlohe!H44+LudwigsburgWaiblingenEnz!H44+FilsNeckarAlb!H44+SchwarzwaldGäu!H44+SchwarzwaldAlbDonau!H44 -> 0 | I44: =BodenseeOberschwaben!I44+BiberachSaulgau!I44+UlmAlbDonau!I44+OstWürttemberg!I44+HeilbronnHohenlohe!I44+LudwigsburgWaiblingenEnz!I44+FilsNeckarAlb!I44+SchwarzwaldGäu!I44+SchwarzwaldAlbDonau!I44 -> -1559469.75 | J44: =BodenseeOberschwaben!J44+BiberachSaulgau!J44+UlmAlbDonau!J44+OstWürttemberg!J44+HeilbronnHohenlohe!J44+LudwigsburgWaiblingenEnz!J44+FilsNeckarAlb!J44+SchwarzwaldGäu!J44+SchwarzwaldAlbDonau!J44 -> -38643.5 | K44: =BodenseeOberschwaben!K44+BiberachSaulgau!K44+UlmAlbDonau!K44+OstWürttemberg!K44+HeilbronnHohenlohe!K44+LudwigsburgWaiblingenEnz!K44+FilsNeckarAlb!K44+SchwarzwaldGäu!K44+SchwarzwaldAlbDonau!K44 -> 0 | L44: =BodenseeOberschwaben!L44+BiberachSaulgau!L44+UlmAlbDonau!L44+OstWürttemberg!L44+HeilbronnHohenlohe!L44+LudwigsburgWaiblingenEnz!L44+FilsNeckarAlb!L44+SchwarzwaldGäu!L44+SchwarzwaldAlbDonau!L44 -> -39987.39 | M44: =BodenseeOberschwaben!M44+BiberachSaulgau!M44+UlmAlbDonau!M44+OstWürttemberg!M44+HeilbronnHohenlohe!M44+LudwigsburgWaiblingenEnz!M44+FilsNeckarAlb!M44+SchwarzwaldGäu!M44+SchwarzwaldAlbDonau!M44 -> -181153 | N44: =BodenseeOberschwaben!N44+BiberachSaulgau!N44+UlmAlbDonau!N44+OstWürttemberg!N44+HeilbronnHohenlohe!N44+LudwigsburgWaiblingenEnz!N44+FilsNeckarAlb!N44+SchwarzwaldGäu!N44+SchwarzwaldAlbDonau!N44 -> -174240.01 | O44: =BodenseeOberschwaben!O44+BiberachSaulgau!O44+UlmAlbDonau!O44+OstWürttemberg!O44+HeilbronnHohenlohe!O44+LudwigsburgWaiblingenEnz!O44+FilsNeckarAlb!O44+SchwarzwaldGäu!O44+SchwarzwaldAlbDonau!O44 -> -1374076.82 | P44: =BodenseeOberschwaben!P44+BiberachSaulgau!P44+UlmAlbDonau!P44+OstWürttemberg!P44+HeilbronnHohenlohe!P44+LudwigsburgWaiblingenEnz!P44+FilsNeckarAlb!P44+SchwarzwaldGäu!P44+SchwarzwaldAlbDonau!P44 -> -1110871.71 | Q44: =BodenseeOberschwaben!Q44+BiberachSaulgau!Q44+UlmAlbDonau!Q44+OstWürttemberg!Q44+HeilbronnHohenlohe!Q44+LudwigsburgWaiblingenEnz!Q44+FilsNeckarAlb!Q44+SchwarzwaldGäu!Q44+SchwarzwaldAlbDonau!Q44 -> -211836.82 | R44: =BodenseeOberschwaben!R44+BiberachSaulgau!R44+UlmAlbDonau!R44+OstWürttemberg!R44+HeilbronnHohenlohe!R44+LudwigsburgWaiblingenEnz!R44+FilsNeckarAlb!R44+SchwarzwaldGäu!R44+SchwarzwaldAlbDonau!R44 -> -153147.05 | S44: =C44+E44+G44+J44+M44+O44+Q44 -> -4566584.33 | Z44: =D44+F44+I44+L44+N44+P44+R44 -> -3874592.63 | AC44: =SUMIF($C$8:$R$8,AC$8,$C44:$R44)-S44 -> 0 | AD44: =SUMIF($C$8:$R$8,AD$8,$C44:$R44)-Z44 -> 0
A46: Stand 31.12.
A47: Rücklagen Erbschaften/Spenden | S47: =SUM(S48:S49) -> 401708.31 | T47: 0 | U47: 0 | V47: 0 | W47: 0 | X47: 0 | Y47: 0 | Z47: 400481.09
B48: Rücklagen Erbschaften | C48: =BodenseeOberschwaben!C48+BiberachSaulgau!C48+UlmAlbDonau!C48+OstWürttemberg!C48+HeilbronnHohenlohe!C48+LudwigsburgWaiblingenEnz!C48+FilsNeckarAlb!C48+SchwarzwaldGäu!C48+SchwarzwaldAlbDonau!C48 -> 0 | D48: =BodenseeOberschwaben!D48+BiberachSaulgau!D48+UlmAlbDonau!D48+OstWürttemberg!D48+HeilbronnHohenlohe!D48+LudwigsburgWaiblingenEnz!D48+FilsNeckarAlb!D48+SchwarzwaldGäu!D48+SchwarzwaldAlbDonau!D48 -> 0 | E48: =BodenseeOberschwaben!E48+BiberachSaulgau!E48+UlmAlbDonau!E48+OstWürttemberg!E48+HeilbronnHohenlohe!E48+LudwigsburgWaiblingenEnz!E48+FilsNeckarAlb!E48+SchwarzwaldGäu!E48+SchwarzwaldAlbDonau!E48 -> 0 | F48: =BodenseeOberschwaben!F48+BiberachSaulgau!F48+UlmAlbDonau!F48+OstWürttemberg!F48+HeilbronnHohenlohe!F48+LudwigsburgWaiblingenEnz!F48+FilsNeckarAlb!F48+SchwarzwaldGäu!F48+SchwarzwaldAlbDonau!F48 -> 0 | G48: =BodenseeOberschwaben!G48+BiberachSaulgau!G48+UlmAlbDonau!G48+OstWürttemberg!G48+HeilbronnHohenlohe!G48+LudwigsburgWaiblingenEnz!G48+FilsNeckarAlb!G48+SchwarzwaldGäu!G48+SchwarzwaldAlbDonau!G48 -> 0 | H48: =BodenseeOberschwaben!H48+BiberachSaulgau!H48+UlmAlbDonau!H48+OstWürttemberg!H48+HeilbronnHohenlohe!H48+LudwigsburgWaiblingenEnz!H48+FilsNeckarAlb!H48+SchwarzwaldGäu!H48+SchwarzwaldAlbDonau!H48 -> 0 | I48: =BodenseeOberschwaben!I48+BiberachSaulgau!I48+UlmAlbDonau!I48+OstWürttemberg!I48+HeilbronnHohenlohe!I48+LudwigsburgWaiblingenEnz!I48+FilsNeckarAlb!I48+SchwarzwaldGäu!I48+SchwarzwaldAlbDonau!I48 -> 0 | J48: =BodenseeOberschwaben!J48+BiberachSaulgau!J48+UlmAlbDonau!J48+OstWürttemberg!J48+HeilbronnHohenlohe!J48+LudwigsburgWaiblingenEnz!J48+FilsNeckarAlb!J48+SchwarzwaldGäu!J48+SchwarzwaldAlbDonau!J48 -> 401708.31 | K48: =BodenseeOberschwaben!K48+BiberachSaulgau!K48+UlmAlbDonau!K48+OstWürttemberg!K48+HeilbronnHohenlohe!K48+LudwigsburgWaiblingenEnz!K48+FilsNeckarAlb!K48+SchwarzwaldGäu!K48+SchwarzwaldAlbDonau!K48 -> 0 | L48: =BodenseeOberschwaben!L48+BiberachSaulgau!L48+UlmAlbDonau!L48+OstWürttemberg!L48+HeilbronnHohenlohe!L48+LudwigsburgWaiblingenEnz!L48+FilsNeckarAlb!L48+SchwarzwaldGäu!L48+SchwarzwaldAlbDonau!L48 -> 400481.09 | M48: =BodenseeOberschwaben!M48+BiberachSaulgau!M48+UlmAlbDonau!M48+OstWürttemberg!M48+HeilbronnHohenlohe!M48+LudwigsburgWaiblingenEnz!M48+FilsNeckarAlb!M48+SchwarzwaldGäu!M48+SchwarzwaldAlbDonau!M48 -> 0 | N48: =BodenseeOberschwaben!N48+BiberachSaulgau!N48+UlmAlbDonau!N48+OstWürttemberg!N48+HeilbronnHohenlohe!N48+LudwigsburgWaiblingenEnz!N48+FilsNeckarAlb!N48+SchwarzwaldGäu!N48+SchwarzwaldAlbDonau!N48 -> 0 | O48: =BodenseeOberschwaben!O48+BiberachSaulgau!O48+UlmAlbDonau!O48+OstWürttemberg!O48+HeilbronnHohenlohe!O48+LudwigsburgWaiblingenEnz!O48+FilsNeckarAlb!O48+SchwarzwaldGäu!O48+SchwarzwaldAlbDonau!O48 -> 0 | P48: =BodenseeOberschwaben!P48+BiberachSaulgau!P48+UlmAlbDonau!P48+OstWürttemberg!P48+HeilbronnHohenlohe!P48+LudwigsburgWaiblingenEnz!P48+FilsNeckarAlb!P48+SchwarzwaldGäu!P48+SchwarzwaldAlbDonau!P48 -> 0 | Q48: =BodenseeOberschwaben!Q48+BiberachSaulgau!Q48+UlmAlbDonau!Q48+OstWürttemberg!Q48+HeilbronnHohenlohe!Q48+LudwigsburgWaiblingenEnz!Q48+FilsNeckarAlb!Q48+SchwarzwaldGäu!Q48+SchwarzwaldAlbDonau!Q48 -> 0 | R48: =BodenseeOberschwaben!R48+BiberachSaulgau!R48+UlmAlbDonau!R48+OstWürttemberg!R48+HeilbronnHohenlohe!R48+LudwigsburgWaiblingenEnz!R48+FilsNeckarAlb!R48+SchwarzwaldGäu!R48+SchwarzwaldAlbDonau!R48 -> 0 | S48: =J48 -> 401708.31 | Z48: =L48 -> 400481.09 | AC48: =SUMIF($C$8:$R$8,AC$8,$C48:$R48)-S48 -> 0 | AD48: =SUMIF($C$8:$R$8,AD$8,$C48:$R48)-Z48 -> 0
B49: Rücklagen Spenden | S49: =G49 -> 0 | Z49: =I49 -> 0 | AC49: =SUMIF($C$8:$R$8,AC$8,$C49:$R49)-S49 -> 0 | AD49: =SUMIF($C$8:$R$8,AD$8,$C49:$R49)-Z49 -> 0
A50: Noch nicht verbrauchte Spendenmittel/Erbschaften | S50: =SUM(S51:S52) -> 4567323.32 | T50: 0 | U50: 0 | V50: 0 | W50: 0 | X50: 0 | Y50: 0 | Z50: 4891191.61
B51: nicht verbrauchte Erbschaften | C51: =BodenseeOberschwaben!C51+BiberachSaulgau!C51+UlmAlbDonau!C51+OstWürttemberg!C51+HeilbronnHohenlohe!C51+LudwigsburgWaiblingenEnz!C51+FilsNeckarAlb!C51+SchwarzwaldGäu!C51+SchwarzwaldAlbDonau!C51 -> 0 | D51: =BodenseeOberschwaben!D51+BiberachSaulgau!D51+UlmAlbDonau!D51+OstWürttemberg!D51+HeilbronnHohenlohe!D51+LudwigsburgWaiblingenEnz!D51+FilsNeckarAlb!D51+SchwarzwaldGäu!D51+SchwarzwaldAlbDonau!D51 -> 0 | E51: =BodenseeOberschwaben!E51+BiberachSaulgau!E51+UlmAlbDonau!E51+OstWürttemberg!E51+HeilbronnHohenlohe!E51+LudwigsburgWaiblingenEnz!E51+FilsNeckarAlb!E51+SchwarzwaldGäu!E51+SchwarzwaldAlbDonau!E51 -> 0 | F51: =BodenseeOberschwaben!F51+BiberachSaulgau!F51+UlmAlbDonau!F51+OstWürttemberg!F51+HeilbronnHohenlohe!F51+LudwigsburgWaiblingenEnz!F51+FilsNeckarAlb!F51+SchwarzwaldGäu!F51+SchwarzwaldAlbDonau!F51 -> 0 | G51: =BodenseeOberschwaben!G51+BiberachSaulgau!G51+UlmAlbDonau!G51+OstWürttemberg!G51+HeilbronnHohenlohe!G51+LudwigsburgWaiblingenEnz!G51+FilsNeckarAlb!G51+SchwarzwaldGäu!G51+SchwarzwaldAlbDonau!G51 -> 0 | H51: =BodenseeOberschwaben!H51+BiberachSaulgau!H51+UlmAlbDonau!H51+OstWürttemberg!H51+HeilbronnHohenlohe!H51+LudwigsburgWaiblingenEnz!H51+FilsNeckarAlb!H51+SchwarzwaldGäu!H51+SchwarzwaldAlbDonau!H51 -> 0 | I51: =BodenseeOberschwaben!I51+BiberachSaulgau!I51+UlmAlbDonau!I51+OstWürttemberg!I51+HeilbronnHohenlohe!I51+LudwigsburgWaiblingenEnz!I51+FilsNeckarAlb!I51+SchwarzwaldGäu!I51+SchwarzwaldAlbDonau!I51 -> 0 | J51: =BodenseeOberschwaben!J51+BiberachSaulgau!J51+UlmAlbDonau!J51+OstWürttemberg!J51+HeilbronnHohenlohe!J51+LudwigsburgWaiblingenEnz!J51+FilsNeckarAlb!J51+SchwarzwaldGäu!J51+SchwarzwaldAlbDonau!J51 -> 600333.16 | K51: =BodenseeOberschwaben!K51+BiberachSaulgau!K51+UlmAlbDonau!K51+OstWürttemberg!K51+HeilbronnHohenlohe!K51+LudwigsburgWaiblingenEnz!K51+FilsNeckarAlb!K51+SchwarzwaldGäu!K51+SchwarzwaldAlbDonau!K51 -> 0 | L51: =BodenseeOberschwaben!L51+BiberachSaulgau!L51+UlmAlbDonau!L51+OstWürttemberg!L51+HeilbronnHohenlohe!L51+LudwigsburgWaiblingenEnz!L51+FilsNeckarAlb!L51+SchwarzwaldGäu!L51+SchwarzwaldAlbDonau!L51 -> 436742.05 | M51: =BodenseeOberschwaben!M51+BiberachSaulgau!M51+UlmAlbDonau!M51+OstWürttemberg!M51+HeilbronnHohenlohe!M51+LudwigsburgWaiblingenEnz!M51+FilsNeckarAlb!M51+SchwarzwaldGäu!M51+SchwarzwaldAlbDonau!M51 -> 0 | N51: =BodenseeOberschwaben!N51+BiberachSaulgau!N51+UlmAlbDonau!N51+OstWürttemberg!N51+HeilbronnHohenlohe!N51+LudwigsburgWaiblingenEnz!N51+FilsNeckarAlb!N51+SchwarzwaldGäu!N51+SchwarzwaldAlbDonau!N51 -> 0 | O51: =BodenseeOberschwaben!O51+BiberachSaulgau!O51+UlmAlbDonau!O51+OstWürttemberg!O51+HeilbronnHohenlohe!O51+LudwigsburgWaiblingenEnz!O51+FilsNeckarAlb!O51+SchwarzwaldGäu!O51+SchwarzwaldAlbDonau!O51 -> 0 | P51: =BodenseeOberschwaben!P51+BiberachSaulgau!P51+UlmAlbDonau!P51+OstWürttemberg!P51+HeilbronnHohenlohe!P51+LudwigsburgWaiblingenEnz!P51+FilsNeckarAlb!P51+SchwarzwaldGäu!P51+SchwarzwaldAlbDonau!P51 -> 0 | Q51: =BodenseeOberschwaben!Q51+BiberachSaulgau!Q51+UlmAlbDonau!Q51+OstWürttemberg!Q51+HeilbronnHohenlohe!Q51+LudwigsburgWaiblingenEnz!Q51+FilsNeckarAlb!Q51+SchwarzwaldGäu!Q51+SchwarzwaldAlbDonau!Q51 -> 0 | R51: =BodenseeOberschwaben!R51+BiberachSaulgau!R51+UlmAlbDonau!R51+OstWürttemberg!R51+HeilbronnHohenlohe!R51+LudwigsburgWaiblingenEnz!R51+FilsNeckarAlb!R51+SchwarzwaldGäu!R51+SchwarzwaldAlbDonau!R51 -> 0 | S51: =J51 -> 600333.16 | Z51: =L51 -> 436742.05 | AC51: =SUMIF($C$8:$R$8,AC$8,$C51:$R51)-S51 -> 0 | AD51: =SUMIF($C$8:$R$8,AD$8,$C51:$R51)-Z51 -> 0
B52: nicht verbrauchte Spendenmittel | C52: =BodenseeOberschwaben!C52+BiberachSaulgau!C52+UlmAlbDonau!C52+OstWürttemberg!C52+HeilbronnHohenlohe!C52+LudwigsburgWaiblingenEnz!C52+FilsNeckarAlb!C52+SchwarzwaldGäu!C52+SchwarzwaldAlbDonau!C52 -> 0 | D52: =BodenseeOberschwaben!D52+BiberachSaulgau!D52+UlmAlbDonau!D52+OstWürttemberg!D52+HeilbronnHohenlohe!D52+LudwigsburgWaiblingenEnz!D52+FilsNeckarAlb!D52+SchwarzwaldGäu!D52+SchwarzwaldAlbDonau!D52 -> 0 | E52: =BodenseeOberschwaben!E52+BiberachSaulgau!E52+UlmAlbDonau!E52+OstWürttemberg!E52+HeilbronnHohenlohe!E52+LudwigsburgWaiblingenEnz!E52+FilsNeckarAlb!E52+SchwarzwaldGäu!E52+SchwarzwaldAlbDonau!E52 -> 0 | F52: =BodenseeOberschwaben!F52+BiberachSaulgau!F52+UlmAlbDonau!F52+OstWürttemberg!F52+HeilbronnHohenlohe!F52+LudwigsburgWaiblingenEnz!F52+FilsNeckarAlb!F52+SchwarzwaldGäu!F52+SchwarzwaldAlbDonau!F52 -> 0 | G52: =BodenseeOberschwaben!G52+BiberachSaulgau!G52+UlmAlbDonau!G52+OstWürttemberg!G52+HeilbronnHohenlohe!G52+LudwigsburgWaiblingenEnz!G52+FilsNeckarAlb!G52+SchwarzwaldGäu!G52+SchwarzwaldAlbDonau!G52 -> 3966990.16 | H52: =BodenseeOberschwaben!H52+BiberachSaulgau!H52+UlmAlbDonau!H52+OstWürttemberg!H52+HeilbronnHohenlohe!H52+LudwigsburgWaiblingenEnz!H52+FilsNeckarAlb!H52+SchwarzwaldGäu!H52+SchwarzwaldAlbDonau!H52 -> 0 | I52: =BodenseeOberschwaben!I52+BiberachSaulgau!I52+UlmAlbDonau!I52+OstWürttemberg!I52+HeilbronnHohenlohe!I52+LudwigsburgWaiblingenEnz!I52+FilsNeckarAlb!I52+SchwarzwaldGäu!I52+SchwarzwaldAlbDonau!I52 -> 4454449.56 | J52: =BodenseeOberschwaben!J52+BiberachSaulgau!J52+UlmAlbDonau!J52+OstWürttemberg!J52+HeilbronnHohenlohe!J52+LudwigsburgWaiblingenEnz!J52+FilsNeckarAlb!J52+SchwarzwaldGäu!J52+SchwarzwaldAlbDonau!J52 -> 0 | K52: =BodenseeOberschwaben!K52+BiberachSaulgau!K52+UlmAlbDonau!K52+OstWürttemberg!K52+HeilbronnHohenlohe!K52+LudwigsburgWaiblingenEnz!K52+FilsNeckarAlb!K52+SchwarzwaldGäu!K52+SchwarzwaldAlbDonau!K52 -> 0 | L52: =BodenseeOberschwaben!L52+BiberachSaulgau!L52+UlmAlbDonau!L52+OstWürttemberg!L52+HeilbronnHohenlohe!L52+LudwigsburgWaiblingenEnz!L52+FilsNeckarAlb!L52+SchwarzwaldGäu!L52+SchwarzwaldAlbDonau!L52 -> 0 | M52: =BodenseeOberschwaben!M52+BiberachSaulgau!M52+UlmAlbDonau!M52+OstWürttemberg!M52+HeilbronnHohenlohe!M52+LudwigsburgWaiblingenEnz!M52+FilsNeckarAlb!M52+SchwarzwaldGäu!M52+SchwarzwaldAlbDonau!M52 -> 0 | N52: =BodenseeOberschwaben!N52+BiberachSaulgau!N52+UlmAlbDonau!N52+OstWürttemberg!N52+HeilbronnHohenlohe!N52+LudwigsburgWaiblingenEnz!N52+FilsNeckarAlb!N52+SchwarzwaldGäu!N52+SchwarzwaldAlbDonau!N52 -> 0 | O52: =BodenseeOberschwaben!O52+BiberachSaulgau!O52+UlmAlbDonau!O52+OstWürttemberg!O52+HeilbronnHohenlohe!O52+LudwigsburgWaiblingenEnz!O52+FilsNeckarAlb!O52+SchwarzwaldGäu!O52+SchwarzwaldAlbDonau!O52 -> 0 | P52: =BodenseeOberschwaben!P52+BiberachSaulgau!P52+UlmAlbDonau!P52+OstWürttemberg!P52+HeilbronnHohenlohe!P52+LudwigsburgWaiblingenEnz!P52+FilsNeckarAlb!P52+SchwarzwaldGäu!P52+SchwarzwaldAlbDonau!P52 -> 0 | Q52: =BodenseeOberschwaben!Q52+BiberachSaulgau!Q52+UlmAlbDonau!Q52+OstWürttemberg!Q52+HeilbronnHohenlohe!Q52+LudwigsburgWaiblingenEnz!Q52+FilsNeckarAlb!Q52+SchwarzwaldGäu!Q52+SchwarzwaldAlbDonau!Q52 -> 0 | R52: =BodenseeOberschwaben!R52+BiberachSaulgau!R52+UlmAlbDonau!R52+OstWürttemberg!R52+HeilbronnHohenlohe!R52+LudwigsburgWaiblingenEnz!R52+FilsNeckarAlb!R52+SchwarzwaldGäu!R52+SchwarzwaldAlbDonau!R52 -> 0 | S52: =G52 -> 3966990.16 | Z52: =I52 -> 4454449.56 | AC52: =SUMIF($C$8:$R$8,AC$8,$C52:$R52)-S52 -> 0 | AD52: =SUMIF($C$8:$R$8,AD$8,$C52:$R52)-Z52 -> 0
B56: Verprobungen1 | C56: =C18+C41 -> 0 | D56: =D18+D41 -> 0 | E56: =E18+E41 -> 0 | F56: =F18+F41 -> 0 | G56: =G17-I52 -> 0 | J56: =SUMIF(CrErtrag!$E:$E,$J$7,CrErtrag!$C:$C)-J41 -> 0 | L56: =ROUND(L48,2)-J13 -> 0 | M56: =M19+M41 -> 0 | N56: 0 | O56: 0 | P56: 0 | Q56: 0 | R56: 0 | S56: =S20+S41-S47-S50 -> 0 | Z56: =Z20+Z41-Z47-Z50 -> 0
B57: Verprobungen2 | C57: =SUMIF(CrErtrag!$E:$E,$C$7,CrErtrag!$C:$C)-C41 -> 0 | E57: =SUMIF(CrErtrag!$E:$E,$E$7,CrErtrag!$C:$C)-E41 -> 0 | G57: =SUMIF(CrErtrag!$E:$E,"Geldspenden",CrErtrag!$C:$C)-G41 -> 0 | J57: =-SUMIF(CrEndbestand!$E:$E,"CR-RL",CrEndbestand!$C:$C)-J48 -> 0 | L57: =L51-J16 -> 0 | M57: =SUMIF(CrErtrag!$E:$E,$M$7,CrErtrag!$C:$C)-M41 -> 0 | O57: =SUMIF(CrErtrag!$E:$E,$O$7,CrErtrag!$C:$C)-O41 -> 0 | Q57: =SUMIF(CrErtrag!$E:$E,$Q$7,CrErtrag!$C:$C)-Q41 -> 0 | S57: =S41-SUM(S43:S44) -> 0 | Z57: =S12+S15-Z47-Z50 -> 0
G58: =-SUMIF(CrEndbestand!$E:$E,"CR-SP",CrEndbestand!$C:$C)-G52 -> 0 | J58: =-SUMIF(CrEndbestand!$E:$E,"CR-Verb",CrEndbestand!$C:$C)-J51 -> 0 | S58: =SUM(CrErtrag!$C:$C)-S41 -> 0 | Z58: =Z41-SUM(Z43:Z44) -> 0
S59: =SUM(CrEndbestand!$C:$C)+S47+S50 -> 0
C60: =IF(SUM(C18:C19)=0,"",SUM(C18:C19)) -> 450908.83 | E60: =IF(SUM(E18:E19)=0,"",SUM(E18:E19)) -> 233043.49 | G60: =IF(SUM(G18:G19)=0,"",SUM(G18:G19)) -> 1589462.47 | J60: =IF(SUM(J18:J19)=0,"",SUM(J18:J19)) -> 203461.83 | M60: =IF(SUM(M18:M19)=0,"",SUM(M18:M19)) -> 181153 | O60: =IF(SUM(O18:O19)=0,"",SUM(O18:O19)) -> 1374076.82 | Q60: =IF(SUM(Q18:Q19)=0,"",SUM(Q18:Q19)) -> 211836.82 | S60: =(BodenseeOberschwaben!S41+BiberachSaulgau!S41+UlmAlbDonau!S41+OstWürttemberg!S41+HeilbronnHohenlohe!S41+LudwigsburgWaiblingenEnz!S41+FilsNeckarAlb!S41+SchwarzwaldGäu!S41+SchwarzwaldAlbDonau!S41)-CaritasRegionen!S41 -> 0 | Z60: =(BodenseeOberschwaben!Z41+BiberachSaulgau!Z41+UlmAlbDonau!Z41+OstWürttemberg!Z41+HeilbronnHohenlohe!Z41+LudwigsburgWaiblingenEnz!Z41+FilsNeckarAlb!Z41+SchwarzwaldGäu!Z41+SchwarzwaldAlbDonau!Z41)-CaritasRegionen!Z41 -> 0
C61: =IF(SUM(C18:C19)=0,"",C7) -> Spendenbriefe | E61: =IF(SUM(E18:E19)=0,"",E7) -> Sammeltagsmittel | G61: =IF(SUM(G18:G19)=0,"",G7) -> Weitere (Geld)Spenden | J61: =IF(SUM(J18:J19)=0,"",J7) -> Erbschaften | M61: =IF(SUM(M18:M19)=0,"",M7) -> Bußgelder | O61: =IF(SUM(O18:O19)=0,"",O7) -> Stiftungsmittel | Q61: =IF(SUM(Q18:Q19)=0,"",Q7) -> Sachspenden
C64: ="Verwendung der Spenden in " & RIGHT($C$8,4) & " Caritas " & INDEX(IndexCrGb!$D:$E,MATCH($Z$1,IndexCrGb!$E:$E,0),1) -> Verwendung der Spenden in 2023 Caritas Regionen
C65: ="Spendeneingänge " & RIGHT($C$8,4) & " Caritas " & INDEX(IndexCrGb!$D:$E,MATCH($Z$1,IndexCrGb!$E:$E,0),1) -> Spendeneingänge 2023 Caritas Regionen

Sheet BodenseeOberschwaben
A1: Spendenbilanz Caritasverband der Diözese Rottenburg-Stuttgart e.V. | Z1: BO
A3: ="Mandant: "& INDEX(IndexCrGb!$D:$E,MATCH($Z$1,IndexCrGb!$E:$E,0),1) -> Mandant: Bodensee-Oberschwaben | G3: Stichtag: | I3: 2023-12-31
C7: Spendenbriefe | E7: Sammeltagsmittel | G7: Weitere (Geld)Spenden | J7: Erbschaften | M7: Bußgelder | O7: Stiftungsmittel | Q7: Sachspenden | S7: Summe | Z7: Summe
C8: 2023 | D8: 2022 | E8: 2023 | F8: 2022 | G8: 2023 | H8: davon aus Vorjahren | I8: 2022 | J8: 2023 | K8: davon aus Vorjahren | L8: 2022 | M8: 2023 | N8: 2022 | O8: 2023 | P8: 2022 | Q8: 2023 | R8: 2022 | S8: 2023 | Z8: 2022 | AC8: =S8 -> 2023 | AD8: =Z8 -> 2022
C9: EUR | D9: EUR | E9: EUR | F9: EUR | G9: EUR | H9: EUR | I9: EUR | J9: EUR | K9: EUR | L9: EUR | M9: EUR | N9: EUR | O9: EUR | P9: EUR | Q9: EUR | R9: EUR | S9: EUR | Z9: EUR
A11: Mittelherkunft 01.01.
A12: Rücklagen Erbschaften/Spenden | S12: =SUM(S13:S14) -> 25000 | T12: 0 | U12: 0 | V12: 0 | W12: 0 | X12: 0 | Y12: 0 | Z12: 25000
A13: ErbRückl | B13: Rücklagen Erbschaften | J13: =-SUMIF(INDIRECT("Erb"&$Z$1&"!$B:$B"),$A13,INDIRECT("Erb"&$Z$1&"!$C:$C")) -> 25000 | L13: =SUMIF(INDIRECT($Z$1&"22!$B:$B"),$B13,INDIRECT($Z$1&"22!$J:$J")) -> 25000 | S13: =J13 -> 25000 | Z13: =L13 -> 25000 | AC13: =SUMIF($C$8:$R$8,AC$8,$C13:$R13)-S13 -> 0 | AD13: =SUMIF($C$8:$R$8,AD$8,$C13:$R13)-Z13 -> 0
A14: ErbVerb | B14: Rücklagen Spenden | I14: =SUMIF(INDIRECT($Z$1&"22!$B:$B"),$B14,INDIRECT($Z$1&"22!$G:$G")) -> 0 | S14: =G14 -> 0 | Z14: =I14 -> 0
A15: Noch nicht verbrauchte Spendenmittel/Erbschaften | S15: =SUM(S16:S17) -> 762371.64 | T15: =T17 -> 0 | U15: 0 | V15: 0 | W15: 0 | X15: 0 | Y15: 0 | Z15: =SUM(Z16:Z17) -> 430665.12
A16: nicht verbrauchte Spendenmittel | B16: nicht verbrauchte Erbschaften | J16: =-SUMIF(INDIRECT("Erb"&$Z$1&"!$B:$B"),$A14,INDIRECT("Erb"&$Z$1&"!$C:$C")) -> 307585.46 | L16: =SUMIF(INDIRECT($Z$1&"22!$B:$B"),$B16,INDIRECT($Z$1&"22!$J:$J")) -> 304473.09 | S16: =J16 -> 307585.46 | Z16: =L16 -> 304473.09 | AC16: =SUMIF($C$8:$R$8,AC$8,$C16:$R16)-S16 -> 0 | AD16: =SUMIF($C$8:$R$8,AD$8,$C16:$R16)-Z16 -> 0
A17: Gesamt | B17: nicht verbrauchte Spendenmittel | G17: =-SUMIF(INDIRECT("AW"&$Z$1&"!$B:$B"),$A$17,INDIRECT("AW"&$Z$1&"!$C:$C")) -> 454786.18 | I17: =SUMIF(INDIRECT($Z$1&"22!$B:$B"),$A16,INDIRECT($Z$1&"22!$G:$G")) -> 126192.03 | S17: =C17+E17+G17 -> 454786.18 | Z17: =D17+F17+I17 -> 126192.03 | AC17: =SUMIF($C$8:$R$8,AC$8,$C17:$R17)-S17 -> 0 | AD17: =SUMIF($C$8:$R$8,AD$8,$C17:$R17)-Z17 -> 0
A18: Umbuchung von GB 01 | C18: =-SUM(IF(SpMailSaTaIst23!$G$1:$G$100=$Z$1,IF(SpMailSaTaIst23!$H$1:$H$100=IndexCrGb!$P$3,SpMailSaTaIst23!$E$1:$E$100))) -> 49568.57 | D18: =SUMIF(INDIRECT($Z$1&"22!$A:$A"),$A18,INDIRECT($Z$1&"22!$C:$C")) -> 64017.62 | E18: =-SUM(IF(SpMailSaTaIst23!$G$1:$G$100=$Z$1,IF(SpMailSaTaIst23!$H$1:$H$100=IndexCrGb!$P$4,SpMailSaTaIst23!$E$1:$E$100))) -> 61183.24 | F18: =SUMIF(INDIRECT($Z$1&"22!$A:$A"),$A18,INDIRECT($Z$1&"22!$E:$E")) -> 65543.23 | G18: =-SUMIF(INDIRECT("AW"&$Z$1&"!$B:$B"),$A$17,INDIRECT("AW"&$Z$1&"!$I:$I")) -> 7400 | I18: =SUMIF(INDIRECT($Z$1&"22!$A:$A"),$A18,INDIRECT($Z$1&"22!$G:$G")) -> 9400 | J18: =-SUMIF(INDIRECT("Erb"&$Z$1&"!$B:$B"),$A17,INDIRECT("Erb"&$Z$1&"!$I:$I")) -> 0 | L18: =SUMIF(INDIRECT($Z$1&"22!$A:$A"),$A18,INDIRECT($Z$1&"22!$J:$J")) -> 0 | S18: =C18+E18+G18+J18+M18+O18+Q18 -> 118151.81 | Z18: =D18+F18+I18+L18+N18+P18+R18 -> 138960.85 | AC18: =SUMIF($C$8:$R$8,AC$8,$C18:$R18)-S18 -> 0 | AD18: =SUMIF($C$8:$R$8,AD$8,$C18:$R18)-Z18 -> 0
A19: Zufluss | G19: =-SUMIF(INDIRECT("AW"&$Z$1&"!$B:$B"),$A$17,INDIRECT("AW"&$Z$1&"!$D:$D")) -> 111830.16 | I19: =SUMIF(INDIRECT($Z$1&"22!$A:$A"),$A19,INDIRECT($Z$1&"22!$G:$G")) -> 467236.06 | J19: =-SUMIF(INDIRECT("Erb"&$Z$1&"!$B:$B"),$A17,INDIRECT("Erb"&$Z$1&"!$D:$D")) -> 0 | L19: =SUMIF(INDIRECT($Z$1&"22!$A:$A"),$A19,INDIRECT($Z$1&"22!$J:$J")) -> 4928.6 | M19: =-SUMIF(Bussgelder23!$F:$F,$Z$1,Bussgelder23!$C:$C) -> 36505 | N19: =SUMIF(INDIRECT($Z$1&"22!$A:$A"),$A19,INDIRECT($Z$1&"22!$M:$M")) -> 28645.01 | O19: =-SUMIF(Fördermittel23!$F:$F,$Z$1,Fördermittel23!$C:$C) -> 649762.27 | P19: =SUMIF(INDIRECT($Z$1&"22!$A:$A"),$A19,INDIRECT($Z$1&"22!$O:$O")) -> 551734.83 | Q19: =-SUMIF(Sachspenden23!$F:$F,$Z$1,Sachspenden23!$C:$C) -> 655.76 | R19: =SUMIF(INDIRECT($Z$1&"22!$A:$A"),$A19,INDIRECT($Z$1&"22!$Q:$Q")) -> 8689.71 | S19: =G19+J19+M19+O19+Q19 -> 798753.19 | Z19: =I19+L19+N19+P19+R19 -> 1061234.21 | AC19: =SUMIF($C$8:$R$8,AC$8,$C19:$R19)-S19 -> 0 | AD19: =SUMIF($C$8:$R$8,AD$8,$C19:$R19)-Z19 -> 0
C20: =SUM(C18:C19) -> 49568.57 | D20: =SUM(D18:D19) -> 64017.62 | E20: =SUM(E18:E19) -> 61183.24 | F20: =SUM(F18:F19) -> 65543.23 | G20: =SUM(G14:G19) -> 574016.34 | H20: =SUM(H18:H19) -> 0 | I20: =SUM(I13:I19) -> 602828.09 | J20: =SUM(J13:J19) -> 332585.46 | K20: =SUM(K18:K19) -> 0 | L20: =SUM(L11:L19) -> 334401.69 | M20: =SUM(M19) -> 36505 | N20: 28645.01 | O20: 649762.27 | P20: 551734.83 | Q20: 655.76 | R20: 8689.71 | S20: =S12+S15+S18+S19 -> 1704276.64 | T20: 0 | U20: 0 | V20: 0 | W20: 0 | X20: 0 | Y20: 0 | Z20: 1655860.18 | AC20: =SUMIF($C$8:$R$8,AC$8,$C20:$R20)-S20 -> 0 | AD20: =SUMIF($C$8:$R$8,AD$8,$C20:$R20)-Z20 -> 0
A22: Mittelverwendung
B23: =SpBilanzVerd2022!$J$3 -> Caritasarbeit allgemein | C23: =SUM(IF(SpMailSaTaIst23!$G$1:$G$100=$Z$1,IF(SpMailSaTaIst23!$I$1:$I$100=$B23,IF(SpMailSaTaIst23!$H$1:$H$100=IndexCrGb!$P$3,SpMailSaTaIst23!$E$1:$E$100)))) -> -19345.98 | D23: =SUMIF(INDIRECT($Z$1&"22!$B:$B"),$B23,INDIRECT($Z$1&"22!$C:$C")) -> 0 | E23: =SUM(IF(SpMailSaTaIst23!$G$1:$G$100=$Z$1,IF(SpMailSaTaIst23!$I$1:$I$100=$B23,IF(SpMailSaTaIst23!$H$1:$H$100=IndexCrGb!$P$4,SpMailSaTaIst23!$E$1:$E$100)))) -> 0 | F23: =SUMIF(INDIRECT($Z$1&"22!$B:$B"),$B23,INDIRECT($Z$1&"22!$E:$E")) -> 0 | G23: =-SUMIF(INDIRECT("AW"&$Z$1&"!$B:$B"),$B23,INDIRECT("AW"&$Z$1&"!$E:$E")) -> -2164.05 | H23: =SUMIF(INDIRECT("AW"&$Z$1&"!$B:$B"),$B23,INDIRECT("AW"&$Z$1&"!$G:$G")) -> -2164.05 | I23: =SUMIF(INDIRECT($Z$1&"22!$B:$B"),$B23,INDIRECT($Z$1&"22!$G:$G")) -> -1420 | J23: =-SUMIF(INDIRECT("Erb"&$Z$1&"!$B:$B"),$B23,INDIRECT("Erb"&$Z$1&"!$E:$E")) -> 0 | K23: =SUMIF(INDIRECT("Erb"&$Z$1&"!$B:$B"),$B23,INDIRECT("Erb"&$Z$1&"!$G:$G")) -> 0 | L23: =SUMIF(INDIRECT($Z$1&"22!$B:$B"),$B23,INDIRECT($Z$1&"22!$J:$J")) -> 0 | M23: =SUM(IF(Bussgelder23!$F$1:$F$100=$Z$1,IF(Bussgelder23!$E$1:$E$100=$B23,Bussgelder23!$C$1:$C$100))) -> 0 | N23: =SUMIF(INDIRECT($Z$1&"22!$B:$B"),$B23,INDIRECT($Z$1&"22!$M:$M")) -> 0 | O23: =SUM(IF(Fördermittel23!$F$1:$F$100=$Z$1,IF(Fördermittel23!$E$1:$E$100=$B23,Fördermittel23!$C$1:$C$100))) -> -39200 | P23: =SUMIF(INDIRECT($Z$1&"22!$B:$B"),$B23,INDIRECT($Z$1&"22!$O:$O")) -> -67312.53 | Q23: =SUM(IF(Sachspenden23!$F$1:$F$100=$Z$1,IF(Sachspenden23!$E$1:$E$100=$B23,Sachspenden23!$C$1:$C$100))) -> 0 | R23: =SUMIF(INDIRECT($Z$1&"22!$B:$B"),$B23,INDIRECT($Z$1&"22!$Q:$Q")) -> 0 | S23: =C23+E23+G23+J23+M23+O23+Q23 -> -60710.03 | Z23: =D23+F23+I23+L23+N23+P23+R23 -> -68732.53 | AA23: =IF(S23=0,"",-S23) -> 60710.03 | AB23: =IF(S23=0,"",$B23) -> Caritasarbeit allgemein | AC23: =SUMIF($C$8:$R$8,AC$8,$C23:$R23)-S23 -> 0 | AD23: =SUMIF($C$8:$R$8,AD$8,$C23:$R23)-Z23 -> 0
B24: =SpBilanzVerd2022!$J$2 -> Existenzsicherung | C24: =SUM(IF(SpMailSaTaIst23!$G$1:$G$100=$Z$1,IF(SpMailSaTaIst23!$I$1:$I$100=$B24,IF(SpMailSaTaIst23!$H$1:$H$100=IndexCrGb!$P$3,SpMailSaTaIst23!$E$1:$E$100)))) -> -993.92 | D24: -5001.76 | E24: =SUM(IF(SpMailSaTaIst23!$G$1:$G$100=$Z$1,IF(SpMailSaTaIst23!$I$1:$I$100=$B24,IF(SpMailSaTaIst23!$H$1:$H$100=IndexCrGb!$P$4,SpMailSaTaIst23!$E$1:$E$100)))) -> 0 | F24: 0 | G24: =-SUMIF(INDIRECT("AW"&$Z$1&"!$B:$B"),$B24,INDIRECT("AW"&$Z$1&"!$E:$E")) -> -69191.26 | H24: =SUMIF(INDIRECT("AW"&$Z$1&"!$B:$B"),$B24,INDIRECT("AW"&$Z$1&"!$G:$G")) -> -38649.19 | I24: -50666.64 | J24: 0 | K24: 0 | L24: 0 | M24: =SUM(IF(Bussgelder23!$F$1:$F$100=$Z$1,IF(Bussgelder23!$E$1:$E$100=$B24,Bussgelder23!$C$1:$C$100))) -> 0 | N24: 0 | O24: =SUM(IF(Fördermittel23!$F$1:$F$100=$Z$1,IF(Fördermittel23!$E$1:$E$100=$B24,Fördermittel23!$C$1:$C$100))) -> 0 | P24: -2000 | Q24: =SUM(IF(Sachspenden23!$F$1:$F$100=$Z$1,IF(Sachspenden23!$E$1:$E$100=$B24,Sachspenden23!$C$1:$C$100))) -> -655.76 | R24: -1158.74 | S24: -70840.94 | Z24: -58827.14 | AA24: 70840.94 | AB24: Existenzsicherung | AC24: 0 | AD24: 0
B25: =SpBilanzVerd2022!$J$10 -> Familienhilfen | C25: =SUM(IF(SpMailSaTaIst23!$G$1:$G$100=$Z$1,IF(SpMailSaTaIst23!$I$1:$I$100=$B25,IF(SpMailSaTaIst23!$H$1:$H$100=IndexCrGb!$P$3,SpMailSaTaIst23!$E$1:$E$100)))) -> 0 | D25: -15000 | E25: =SUM(IF(SpMailSaTaIst23!$G$1:$G$100=$Z$1,IF(SpMailSaTaIst23!$I$1:$I$100=$B25,IF(SpMailSaTaIst23!$H$1:$H$100=IndexCrGb!$P$4,SpMailSaTaIst23!$E$1:$E$100)))) -> 0 | F25: 0 | G25: =-SUMIF(INDIRECT("AW"&$Z$1&"!$B:$B"),$B25,INDIRECT("AW"&$Z$1&"!$E:$E")) -> -15311.1 | H25: =SUMIF(INDIRECT("AW"&$Z$1&"!$B:$B"),$B25,INDIRECT("AW"&$Z$1&"!$G:$G")) -> -13722.1 | I25: -7498.43 | J25: 0 | K25: 0 | L25: 0 | M25: =SUM(IF(Bussgelder23!$F$1:$F$100=$Z$1,IF(Bussgelder23!$E$1:$E$100=$B25,Bussgelder23!$C$1:$C$100))) -> -5200 | N25: -3400 | O25: =SUM(IF(Fördermittel23!$F$1:$F$100=$Z$1,IF(Fördermittel23!$E$1:$E$100=$B25,Fördermittel23!$C$1:$C$100))) -> 0 | P25: 0 | Q25: =SUM(IF(Sachspenden23!$F$1:$F$100=$Z$1,IF(Sachspenden23!$E$1:$E$100=$B25,Sachspenden23!$C$1:$C$100))) -> 0 | R25: 0 | S25: -20511.1 | Z25: -25898.43 | AA25: 20511.1 | AB25: Familienhilfen | AC25: 0 | AD25: 0
B26: =SpBilanzVerd2022!$J$6 -> Kinder- und Jugendhilfe | C26: =SUM(IF(SpMailSaTaIst23!$G$1:$G$100=$Z$1,IF(SpMailSaTaIst23!$I$1:$I$100=$B26,IF(SpMailSaTaIst23!$H$1:$H$100=IndexCrGb!$P$3,SpMailSaTaIst23!$E$1:$E$100)))) -> -14565.73 | D26: -27015.86 | E26: =SUM(IF(SpMailSaTaIst23!$G$1:$G$100=$Z$1,IF(SpMailSaTaIst23!$I$1:$I$100=$B26,IF(SpMailSaTaIst23!$H$1:$H$100=IndexCrGb!$P$4,SpMailSaTaIst23!$E$1:$E$100)))) -> -61183.24 | F26: -65543.23 | G26: =-SUMIF(INDIRECT("AW"&$Z$1&"!$B:$B"),$B26,INDIRECT("AW"&$Z$1&"!$E:$E")) -> -2514.67 | H26: =SUMIF(INDIRECT("AW"&$Z$1&"!$B:$B"),$B26,INDIRECT("AW"&$Z$1&"!$G:$G")) -> -2514.67 | I26: -17016.52 | J26: -5441.33 | K26: -5441.33 | L26: -1816.23 | M26: =SUM(IF(Bussgelder23!$F$1:$F$100=$Z$1,IF(Bussgelder23!$E$1:$E$100=$B26,Bussgelder23!$C$1:$C$100))) -> 0 | N26: 0 | O26: =SUM(IF(Fördermittel23!$F$1:$F$100=$Z$1,IF(Fördermittel23!$E$1:$E$100=$B26,Fördermittel23!$C$1:$C$100))) -> -610562.27 | P26: -482422.3 | Q26: =SUM(IF(Sachspenden23!$F$1:$F$100=$Z$1,IF(Sachspenden23!$E$1:$E$100=$B26,Sachspenden23!$C$1:$C$100))) -> 0 | R26: 0 | S26: -694267.24 | Z26: -593814.14 | AA26: 694267.24 | AB26: Kinder- und Jugendhilfe | AC26: 0 | AD26: 0
B27: =SpBilanzVerd2022!$J$16 -> Jugendberufshilfe | C27: =SUM(IF(SpMailSaTaIst23!$G$1:$G$100=$Z$1,IF(SpMailSaTaIst23!$I$1:$I$100=$B27,IF(SpMailSaTaIst23!$H$1:$H$100=IndexCrGb!$P$3,SpMailSaTaIst23!$E$1:$E$100)))) -> 0 | D27: 0 | E27: =SUM(IF(SpMailSaTaIst23!$G$1:$G$100=$Z$1,IF(SpMailSaTaIst23!$I$1:$I$100=$B27,IF(SpMailSaTaIst23!$H$1:$H$100=IndexCrGb!$P$4,SpMailSaTaIst23!$E$1:$E$100)))) -> 0 | F27: 0 | G27: =-SUMIF(INDIRECT("AW"&$Z$1&"!$B:$B"),$B27,INDIRECT("AW"&$Z$1&"!$E:$E")) -> 0 | H27: =SUMIF(INDIRECT("AW"&$Z$1&"!$B:$B"),$B27,INDIRECT("AW"&$Z$1&"!$G:$G")) -> 0 | I27: 0 | J27: 0 | K27: 0 | L27: 0 | M27: =SUM(IF(Bussgelder23!$F$1:$F$100=$Z$1,IF(Bussgelder23!$E$1:$E$100=$B27,Bussgelder23!$C$1:$C$100))) -> 0 | N27: 0 | O27: =SUM(IF(Fördermittel23!$F$1:$F$100=$Z$1,IF(Fördermittel23!$E$1:$E$100=$B27,Fördermittel23!$C$1:$C$100))) -> 0 | P27: 0 | Q27: =SUM(IF(Sachspenden23!$F$1:$F$100=$Z$1,IF(Sachspenden23!$E$1:$E$100=$B27,Sachspenden23!$C$1:$C$100))) -> 0 | R27: 0 | S27: 0 | Z27: 0 | AC27: 0 | AD27: 0
B28: =SpBilanzVerd2022!$J$14 -> Behindertenhilfe | C28: =SUM(IF(SpMailSaTaIst23!$G$1:$G$100=$Z$1,IF(SpMailSaTaIst23!$I$1:$I$100=$B28,IF(SpMailSaTaIst23!$H$1:$H$100=IndexCrGb!$P$3,SpMailSaTaIst23!$E$1:$E$100)))) -> 0 | D28: 0 | E28: =SUM(IF(SpMailSaTaIst23!$G$1:$G$100=$Z$1,IF(SpMailSaTaIst23!$I$1:$I$100=$B28,IF(SpMailSaTaIst23!$H$1:$H$100=IndexCrGb!$P$4,SpMailSaTaIst23!$E$1:$E$100)))) -> 0 | F28: 0 | G28: =-SUMIF(INDIRECT("AW"&$Z$1&"!$B:$B"),$B28,INDIRECT("AW"&$Z$1&"!$E:$E")) -> 0 | H28: =SUMIF(INDIRECT("AW"&$Z$1&"!$B:$B"),$B28,INDIRECT("AW"&$Z$1&"!$G:$G")) -> 0 | I28: 0 | J28: 0 | K28: 0 | L28: 0 | M28: =SUM(IF(Bussgelder23!$F$1:$F$100=$Z$1,IF(Bussgelder23!$E$1:$E$100=$B28,Bussgelder23!$C$1:$C$100))) -> 0 | N28: 0 | O28: =SUM(IF(Fördermittel23!$F$1:$F$100=$Z$1,IF(Fördermittel23!$E$1:$E$100=$B28,Fördermittel23!$C$1:$C$100))) -> 0 | P28: 0 | Q28: =SUM(IF(Sachspenden23!$F$1:$F$100=$Z$1,IF(Sachspenden23!$E$1:$E$100=$B28,Sachspenden23!$C$1:$C$100))) -> 0 | R28: 0 | S28: 0 | Z28: 0 | AC28: 0 | AD28: 0
B29: =SpBilanzVerd2022!$J$9 -> Altenhilfe/Hospizdienste | C29: =SUM(IF(SpMailSaTaIst23!$G$1:$G$100=$Z$1,IF(SpMailSaTaIst23!$I$1:$I$100=$B29,IF(SpMailSaTaIst23!$H$1:$H$100=IndexCrGb!$P$3,SpMailSaTaIst23!$E$1:$E$100)))) -> 0 | D29: -3000 | E29: =SUM(IF(SpMailSaTaIst23!$G$1:$G$100=$Z$1,IF(SpMailSaTaIst23!$I$1:$I$100=$B29,IF(SpMailSaTaIst23!$H$1:$H$100=IndexCrGb!$P$4,SpMailSaTaIst23!$E$1:$E$100)))) -> 0 | F29: 0 | G29: =-SUMIF(INDIRECT("AW"&$Z$1&"!$B:$B"),$B29,INDIRECT("AW"&$Z$1&"!$E:$E")) -> -912.5 | H29: =SUMIF(INDIRECT("AW"&$Z$1&"!$B:$B"),$B29,INDIRECT("AW"&$Z$1&"!$G:$G")) -> -912.5 | I29: -192.5 | J29: 0 | K29: 0 | L29: 0 | M29: =SUM(IF(Bussgelder23!$F$1:$F$100=$Z$1,IF(Bussgelder23!$E$1:$E$100=$B29,Bussgelder23!$C$1:$C$100))) -> 0 | N29: 0 | O29: =SUM(IF(Fördermittel23!$F$1:$F$100=$Z$1,IF(Fördermittel23!$E$1:$E$100=$B29,Fördermittel23!$C$1:$C$100))) -> 0 | P29: 0 | Q29: =SUM(IF(Sachspenden23!$F$1:$F$100=$Z$1,IF(Sachspenden23!$E$1:$E$100=$B29,Sachspenden23!$C$1:$C$100))) -> 0 | R29: 0 | S29: -912.5 | Z29: -3192.5 | AA29: 912.5 | AB29: Altenhilfe/Hospizdienste | AC29: 0 | AD29: 0
B30: =SpBilanzVerd2022!$J$12 -> Sozialpsychiatrischer Dienst | C30: =SUM(IF(SpMailSaTaIst23!$G$1:$G$100=$Z$1,IF(SpMailSaTaIst23!$I$1:$I$100=$B30,IF(SpMailSaTaIst23!$H$1:$H$100=IndexCrGb!$P$3,SpMailSaTaIst23!$E$1:$E$100)))) -> 0 | D30: 0 | E30: =SUM(IF(SpMailSaTaIst23!$G$1:$G$100=$Z$1,IF(SpMailSaTaIst23!$I$1:$I$100=$B30,IF(SpMailSaTaIst23!$H$1:$H$100=IndexCrGb!$P$4,SpMailSaTaIst23!$E$1:$E$100)))) -> 0 | F30: 0 | G30: =-SUMIF(INDIRECT("AW"&$Z$1&"!$B:$B"),$B30,INDIRECT("AW"&$Z$1&"!$E:$E")) -> 0 | H30: =SUMIF(INDIRECT("AW"&$Z$1&"!$B:$B"),$B30,INDIRECT("AW"&$Z$1&"!$G:$G")) -> 0 | I30: 0 | J30: 0 | K30: 0 | L30: 0 | M30: =SUM(IF(Bussgelder23!$F$1:$F$100=$Z$1,IF(Bussgelder23!$E$1:$E$100=$B30,Bussgelder23!$C$1:$C$100))) -> 0 | N30: 0 | O30: =SUM(IF(Fördermittel23!$F$1:$F$100=$Z$1,IF(Fördermittel23!$E$1:$E$100=$B30,Fördermittel23!$C$1:$C$100))) -> 0 | P30: 0 | Q30: =SUM(IF(Sachspenden23!$F$1:$F$100=$Z$1,IF(Sachspenden23!$E$1:$E$100=$B30,Sachspenden23!$C$1:$C$100))) -> 0 | R30: 0 | S30: 0 | Z30: 0 | AC30: 0 | AD30: 0
B31: =SpBilanzVerd2022!$J$5 -> Suchthilfe | C31: =SUM(IF(SpMailSaTaIst23!$G$1:$G$100=$Z$1,IF(SpMailSaTaIst23!$I$1:$I$100=$B31,IF(SpMailSaTaIst23!$H$1:$H$100=IndexCrGb!$P$3,SpMailSaTaIst23!$E$1:$E$100)))) -> 0 | D31: 0 | E31: =SUM(IF(SpMailSaTaIst23!$G$1:$G$100=$Z$1,IF(SpMailSaTaIst23!$I$1:$I$100=$B31,IF(SpMailSaTaIst23!$H$1:$H$100=IndexCrGb!$P$4,SpMailSaTaIst23!$E$1:$E$100)))) -> 0 | F31: 0 | G31: =-SUMIF(INDIRECT("AW"&$Z$1&"!$B:$B"),$B31,INDIRECT("AW"&$Z$1&"!$E:$E")) -> 0 | H31: =SUMIF(INDIRECT("AW"&$Z$1&"!$B:$B"),$B31,INDIRECT("AW"&$Z$1&"!$G:$G")) -> 0 | I31: -6779.09 | J31: 0 | K31: 0 | L31: 0 | M31: =SUM(IF(Bussgelder23!$F$1:$F$100=$Z$1,IF(Bussgelder23!$E$1:$E$100=$B31,Bussgelder23!$C$1:$C$100))) -> -31305 | N31: -25245.01 | O31: =SUM(IF(Fördermittel23!$F$1:$F$100=$Z$1,IF(Fördermittel23!$E$1:$E$100=$B31,Fördermittel23!$C$1:$C$100))) -> 0 | P31: 0 | Q31: =SUM(IF(Sachspenden23!$F$1:$F$100=$Z$1,IF(Sachspenden23!$E$1:$E$100=$B31,Sachspenden23!$C$1:$C$100))) -> 0 | R31: 0 | S31: -31305 | Z31: -32024.1 | AA31: 31305 | AB31: Suchthilfe | AC31: 0 | AD31: 0
B32: =SpBilanzVerd2022!$J$13 -> Migration | C32: =SUM(IF(SpMailSaTaIst23!$G$1:$G$100=$Z$1,IF(SpMailSaTaIst23!$I$1:$I$100=$B32,IF(SpMailSaTaIst23!$H$1:$H$100=IndexCrGb!$P$3,SpMailSaTaIst23!$E$1:$E$100)))) -> -14611.98 | D32: -14000 | E32: =SUM(IF(SpMailSaTaIst23!$G$1:$G$100=$Z$1,IF(SpMailSaTaIst23!$I$1:$I$100=$B32,IF(SpMailSaTaIst23!$H$1:$H$100=IndexCrGb!$P$4,SpMailSaTaIst23!$E$1:$E$100)))) -> 0 | F32: 0 | G32: =-SUMIF(INDIRECT("AW"&$Z$1&"!$B:$B"),$B32,INDIRECT("AW"&$Z$1&"!$E:$E")) -> -13469.02 | H32: =SUMIF(INDIRECT("AW"&$Z$1&"!$B:$B"),$B32,INDIRECT("AW"&$Z$1&"!$G:$G")) -> -13469.02 | I32: -21777.04 | J32: 0 | K32: 0 | L32: 0 | M32: =SUM(IF(Bussgelder23!$F$1:$F$100=$Z$1,IF(Bussgelder23!$E$1:$E$100=$B32,Bussgelder23!$C$1:$C$100))) -> 0 | N32: 0 | O32: =SUM(IF(Fördermittel23!$F$1:$F$100=$Z$1,IF(Fördermittel23!$E$1:$E$100=$B32,Fördermittel23!$C$1:$C$100))) -> 0 | P32: 0 | Q32: =SUM(IF(Sachspenden23!$F$1:$F$100=$Z$1,IF(Sachspenden23!$E$1:$E$100=$B32,Sachspenden23!$C$1:$C$100))) -> 0 | R32: 0 | S32: -28081 | Z32: -35777.04 | AA32: 28081 | AB32: Migration | AC32: 0 | AD32: 0
B33: =SpBilanzVerd2022!$J$7 -> Wohnungslosenhilfe | C33: =SUM(IF(SpMailSaTaIst23!$G$1:$G$100=$Z$1,IF(SpMailSaTaIst23!$I$1:$I$100=$B33,IF(SpMailSaTaIst23!$H$1:$H$100=IndexCrGb!$P$3,SpMailSaTaIst23!$E$1:$E$100)))) -> 0 | D33: 0 | E33: =SUM(IF(SpMailSaTaIst23!$G$1:$G$100=$Z$1,IF(SpMailSaTaIst23!$I$1:$I$100=$B33,IF(SpMailSaTaIst23!$H$1:$H$100=IndexCrGb!$P$4,SpMailSaTaIst23!$E$1:$E$100)))) -> 0 | F33: 0 | G33: =-SUMIF(INDIRECT("AW"&$Z$1&"!$B:$B"),$B33,INDIRECT("AW"&$Z$1&"!$E:$E")) -> 0 | H33: =SUMIF(INDIRECT("AW"&$Z$1&"!$B:$B"),$B33,INDIRECT("AW"&$Z$1&"!$G:$G")) -> 0 | I33: 0 | J33: 0 | K33: 0 | L33: 0 | M33: =SUM(IF(Bussgelder23!$F$1:$F$100=$Z$1,IF(Bussgelder23!$E$1:$E$100=$B33,Bussgelder23!$C$1:$C$100))) -> 0 | N33: 0 | O33: =SUM(IF(Fördermittel23!$F$1:$F$100=$Z$1,IF(Fördermittel23!$E$1:$E$100=$B33,Fördermittel23!$C$1:$C$100))) -> 0 | P33: 0 | Q33: =SUM(IF(Sachspenden23!$F$1:$F$100=$Z$1,IF(Sachspenden23!$E$1:$E$100=$B33,Sachspenden23!$C$1:$C$100))) -> 0 | R33: 0 | S33: 0 | Z33: 0 | AC33: 0 | AD33: 0
B34: =SpBilanzVerd2022!$J$4 -> Gemeindenahe Netzwerke | C34: =SUM(IF(SpMailSaTaIst23!$G$1:$G$100=$Z$1,IF(SpMailSaTaIst23!$I$1:$I$100=$B34,IF(SpMailSaTaIst23!$H$1:$H$100=IndexCrGb!$P$3,SpMailSaTaIst23!$E$1:$E$100)))) -> -50.96 | D34: 0 | E34: =SUM(IF(SpMailSaTaIst23!$G$1:$G$100=$Z$1,IF(SpMailSaTaIst23!$I$1:$I$100=$B34,IF(SpMailSaTaIst23!$H$1:$H$100=IndexCrGb!$P$4,SpMailSaTaIst23!$E$1:$E$100)))) -> 0 | F34: 0 | G34: =-SUMIF(INDIRECT("AW"&$Z$1&"!$B:$B"),$B34,INDIRECT("AW"&$Z$1&"!$E:$E")) -> 0 | H34: =SUMIF(INDIRECT("AW"&$Z$1&"!$B:$B"),$B34,INDIRECT("AW"&$Z$1&"!$G:$G")) -> 0 | I34: 0 | J34: 0 | K34: 0 | L34: 0 | M34: =SUM(IF(Bussgelder23!$F$1:$F$100=$Z$1,IF(Bussgelder23!$E$1:$E$100=$B34,Bussgelder23!$C$1:$C$100))) -> 0 | N34: 0 | O34: =SUM(IF(Fördermittel23!$F$1:$F$100=$Z$1,IF(Fördermittel23!$E$1:$E$100=$B34,Fördermittel23!$C$1:$C$100))) -> 0 | P34: 0 | Q34: =SUM(IF(Sachspenden23!$F$1:$F$100=$Z$1,IF(Sachspenden23!$E$1:$E$100=$B34,Sachspenden23!$C$1:$C$100))) -> 0 | R34: 0 | S34: -50.96 | Z34: 0 | AA34: 50.96 | AB34: Gemeindenahe Netzwerke | AC34: 0 | AD34: 0
B35: =SpBilanzVerd2022!$J$8 -> Arbeitshilfen | C35: =SUM(IF(SpMailSaTaIst23!$G$1:$G$100=$Z$1,IF(SpMailSaTaIst23!$I$1:$I$100=$B35,IF(SpMailSaTaIst23!$H$1:$H$100=IndexCrGb!$P$3,SpMailSaTaIst23!$E$1:$E$100)))) -> 0 | D35: 0 | E35: =SUM(IF(SpMailSaTaIst23!$G$1:$G$100=$Z$1,IF(SpMailSaTaIst23!$I$1:$I$100=$B35,IF(SpMailSaTaIst23!$H$1:$H$100=IndexCrGb!$P$4,SpMailSaTaIst23!$E$1:$E$100)))) -> 0 | F35: 0 | G35: =-SUMIF(INDIRECT("AW"&$Z$1&"!$B:$B"),$B35,INDIRECT("AW"&$Z$1&"!$E:$E")) -> 0 | H35: =SUMIF(INDIRECT("AW"&$Z$1&"!$B:$B"),$B35,INDIRECT("AW"&$Z$1&"!$G:$G")) -> 0 | I35: 0 | J35: 0 | K35: 0 | L35: 0 | M35: =SUM(IF(Bussgelder23!$F$1:$F$100=$Z$1,IF(Bussgelder23!$E$1:$E$100=$B35,Bussgelder23!$C$1:$C$100))) -> 0 | N35: 0 | O35: =SUM(IF(Fördermittel23!$F$1:$F$100=$Z$1,IF(Fördermittel23!$E$1:$E$100=$B35,Fördermittel23!$C$1:$C$100))) -> 0 | P35: 0 | Q35: =SUM(IF(Sachspenden23!$F$1:$F$100=$Z$1,IF(Sachspenden23!$E$1:$E$100=$B35,Sachspenden23!$C$1:$C$100))) -> 0 | R35: -7530.97 | S35: 0 | Z35: -7530.97 | AC35: 0 | AD35: 0
B36: =SpBilanzVerd2022!$J$17 -> Diverse Zweckhinweise | C36: =SUM(IF(SpMailSaTaIst23!$G$1:$G$100=$Z$1,IF(SpMailSaTaIst23!$I$1:$I$100=$B36,IF(SpMailSaTaIst23!$H$1:$H$100=IndexCrGb!$P$3,SpMailSaTaIst23!$E$1:$E$100)))) -> 0 | D36: 0 | E36: =SUM(IF(SpMailSaTaIst23!$G$1:$G$100=$Z$1,IF(SpMailSaTaIst23!$I$1:$I$100=$B36,IF(SpMailSaTaIst23!$H$1:$H$100=IndexCrGb!$P$4,SpMailSaTaIst23!$E$1:$E$100)))) -> 0 | F36: 0 | G36: =-SUMIF(INDIRECT("AW"&$Z$1&"!$B:$B"),$B36,INDIRECT("AW"&$Z$1&"!$E:$E")) -> 0 | H36: =SUMIF(INDIRECT("AW"&$Z$1&"!$B:$B"),$B36,INDIRECT("AW"&$Z$1&"!$G:$G")) -> 0 | I36: 0 | J36: 0 | K36: 0 | L36: 0 | M36: =SUM(IF(Bussgelder23!$F$1:$F$100=$Z$1,IF(Bussgelder23!$E$1:$E$100=$B36,Bussgelder23!$C$1:$C$100))) -> 0 | N36: 0 | O36: =SUM(IF(Fördermittel23!$F$1:$F$100=$Z$1,IF(Fördermittel23!$E$1:$E$100=$B36,Fördermittel23!$C$1:$C$100))) -> 0 | P36: 0 | Q36: =SUM(IF(Sachspenden23!$F$1:$F$100=$Z$1,IF(Sachspenden23!$E$1:$E$100=$B36,Sachspenden23!$C$1:$C$100))) -> 0 | R36: 0 | S36: 0 | Z36: 0 | AC36: 0 | AD36: 0
B37: =SpBilanzVerd2022!$L$18 -> Sonstiges | C37: =SUM(IF(SpMailSaTaIst23!$G$1:$G$100=$Z$1,IF(SpMailSaTaIst23!$I$1:$I$100=$B37,IF(SpMailSaTaIst23!$H$1:$H$100=IndexCrGb!$P$3,SpMailSaTaIst23!$E$1:$E$100)))) -> 0 | D37: 0 | E37: =SUM(IF(SpMailSaTaIst23!$G$1:$G$100=$Z$1,IF(SpMailSaTaIst23!$I$1:$I$100=$B37,IF(SpMailSaTaIst23!$H$1:$H$100=IndexCrGb!$P$4,SpMailSaTaIst23!$E$1:$E$100)))) -> 0 | F37: 0 | G37: =-SUMIF(INDIRECT("AW"&$Z$1&"!$B:$B"),$B37,INDIRECT("AW"&$Z$1&"!$E:$E")) -> 0 | H37: =SUMIF(INDIRECT("AW"&$Z$1&"!$B:$B"),$B37,INDIRECT("AW"&$Z$1&"!$G:$G")) -> 0 | I37: 0 | J37: 0 | K37: 0 | L37: 0 | M37: =SUM(IF(Bussgelder23!$F$1:$F$100=$Z$1,IF(Bussgelder23!$E$1:$E$100=$B37,Bussgelder23!$C$1:$C$100))) -> 0 | N37: 0 | O37: =SUM(IF(Fördermittel23!$F$1:$F$100=$Z$1,IF(Fördermittel23!$E$1:$E$100=$B37,Fördermittel23!$C$1:$C$100))) -> 0 | P37: 0 | Q37: =SUM(IF(Sachspenden23!$F$1:$F$100=$Z$1,IF(Sachspenden23!$E$1:$E$100=$B37,Sachspenden23!$C$1:$C$100))) -> 0 | R37: 0 | S37: 0 | Z37: 0 | AC37: 0 | AD37: 0
B38: =SpBilanzVerd2022!$J$11 -> Weiterleitung an Dritte | C38: =SUM(IF(SpMailSaTaIst23!$G$1:$G$100=$Z$1,IF(SpMailSaTaIst23!$I$1:$I$100=$B38,IF(SpMailSaTaIst23!$H$1:$H$100=IndexCrGb!$P$3,SpMailSaTaIst23!$E$1:$E$100)))) -> 0 | D38: 0 | E38: =SUM(IF(SpMailSaTaIst23!$G$1:$G$100=$Z$1,IF(SpMailSaTaIst23!$I$1:$I$100=$B38,IF(SpMailSaTaIst23!$H$1:$H$100=IndexCrGb!$P$4,SpMailSaTaIst23!$E$1:$E$100)))) -> 0 | F38: 0 | G38: =-SUMIF(INDIRECT("AW"&$Z$1&"!$B:$B"),$B38,INDIRECT("AW"&$Z$1&"!$E:$E")) -> -16862.85 | H38: =SUMIF(INDIRECT("AW"&$Z$1&"!$B:$B"),$B38,INDIRECT("AW"&$Z$1&"!$G:$G")) -> 0 | I38: -42691.69 | J38: 0 | K38: 0 | L38: 0 | M38: =SUM(IF(Bussgelder23!$F$1:$F$100=$Z$1,IF(Bussgelder23!$E$1:$E$100=$B38,Bussgelder23!$C$1:$C$100))) -> 0 | N38: 0 | O38: =SUM(IF(Fördermittel23!$F$1:$F$100=$Z$1,IF(Fördermittel23!$E$1:$E$100=$B38,Fördermittel23!$C$1:$C$100))) -> 0 | P38: 0 | Q38: =SUM(IF(Sachspenden23!$F$1:$F$100=$Z$1,IF(Sachspenden23!$E$1:$E$100=$B38,Sachspenden23!$C$1:$C$100))) -> 0 | R38: 0 | S38: -16862.85 | Z38: -42691.69 | AA38: 16862.85 | AB38: Weiterleitung an Dritte | AC38: 0 | AD38: 0
B39: =SpBilanzVerd2022!$L$19 -> Werbung und allgemeine Öffentlichkeitsarbeit | C39: =SUM(IF(SpMailSaTaIst23!$G$1:$G$100=$Z$1,IF(SpMailSaTaIst23!$I$1:$I$100=$B39,IF(SpMailSaTaIst23!$H$1:$H$100=IndexCrGb!$P$3,SpMailSaTaIst23!$E$1:$E$100)))) -> 0 | D39: 0 | E39: =SUM(IF(SpMailSaTaIst23!$G$1:$G$100=$Z$1,IF(SpMailSaTaIst23!$I$1:$I$100=$B39,IF(SpMailSaTaIst23!$H$1:$H$100=IndexCrGb!$P$4,SpMailSaTaIst23!$E$1:$E$100)))) -> 0 | F39: 0 | G39: =-SUMIF(INDIRECT("AW"&$Z$1&"!$B:$B"),$B39,INDIRECT("AW"&$Z$1&"!$E:$E")) -> 0 | H39: =SUMIF(INDIRECT("AW"&$Z$1&"!$B:$B"),$B39,INDIRECT("AW"&$Z$1&"!$G:$G")) -> 0 | I39: 0 | J39: 0 | K39: 0 | L39: 0 | M39: =SUM(IF(Bussgelder23!$F$1:$F$100=$Z$1,IF(Bussgelder23!$E$1:$E$100=$B39,Bussgelder23!$C$1:$C$100))) -> 0 | N39: 0 | O39: =SUM(IF(Fördermittel23!$F$1:$F$100=$Z$1,IF(Fördermittel23!$E$1:$E$100=$B39,Fördermittel23!$C$1:$C$100))) -> 0 | P39: 0 | Q39: =SUM(IF(Sachspenden23!$F$1:$F$100=$Z$1,IF(Sachspenden23!$E$1:$E$100=$B39,Sachspenden23!$C$1:$C$100))) -> 0 | R39: 0 | S39: 0 | Z39: 0 | AC39: 0 | AD39: 0
B40: =SpBilanzVerd2022!$J$15 -> Verwaltung | C40: =SUM(IF(SpMailSaTaIst23!$G$1:$G$100=$Z$1,IF(SpMailSaTaIst23!$I$1:$I$100=$B40,IF(SpMailSaTaIst23!$H$1:$H$100=IndexCrGb!$P$3,SpMailSaTaIst23!$E$1:$E$100)))) -> 0 | D40: 0 | E40: =SUM(IF(SpMailSaTaIst23!$G$1:$G$100=$Z$1,IF(SpMailSaTaIst23!$I$1:$I$100=$B40,IF(SpMailSaTaIst23!$H$1:$H$100=IndexCrGb!$P$4,SpMailSaTaIst23!$E$1:$E$100)))) -> 0 | F40: 0 | G40: =-SUMIF(INDIRECT("AW"&$Z$1&"!$B:$B"),$B40,INDIRECT("AW"&$Z$1&"!$E:$E")) -> 0 | H40: =SUMIF(INDIRECT("AW"&$Z$1&"!$B:$B"),$B40,INDIRECT("AW"&$Z$1&"!$G:$G")) -> 0 | I40: 0 | J40: 0 | K40: 0 | L40: 0 | M40: =SUM(IF(Bussgelder23!$F$1:$F$100=$Z$1,IF(Bussgelder23!$E$1:$E$100=$B40,Bussgelder23!$C$1:$C$100))) -> 0 | N40: 0 | O40: =SUM(IF(Fördermittel23!$F$1:$F$100=$Z$1,IF(Fördermittel23!$E$1:$E$100=$B40,Fördermittel23!$C$1:$C$100))) -> 0 | P40: 0 | Q40: =SUM(IF(Sachspenden23!$F$1:$F$100=$Z$1,IF(Sachspenden23!$E$1:$E$100=$B40,Sachspenden23!$C$1:$C$100))) -> 0 | R40: 0 | S40: 0 | Z40: 0 | AC40: 0 | AD40: 0
C41: =SUM(C23:C40) -> -49568.57 | D41: -64017.62 | E41: -61183.24 | F41: -65543.23 | G41: -120425.45 | H41: -71431.53 | I41: -148041.91 | J41: -5441.33 | K41: -5441.33 | L41: -1816.23 | M41: -36505 | N41: -28645.01 | O41: -649762.27 | P41: -551734.83 | Q41: -655.76 | R41: -8689.71 | S41: -923541.62 | Z41: =SUM(Z23:Z40) -> -868488.54 | AC41: 0 | AD41: 0
A43: 88396 | B43: davon aus Rücklagen | J43: =-SUMIF(INDIRECT("Erb"&$Z$1&"!$A:$A"),$A43,INDIRECT("Erb"&$Z$1&"!$G:$G")) -> 0 | L43: =SUM(IF(DiffErb22!$G$1:$G$40=$A43,IF(DiffErb22!$F$1:$F$40=$Z$1,DiffErb22!$D$1:$D$40))) -> 0 | S43: =C43+E43+G43+J43+M43+O43+Q43 -> 0 | Z43: =D43+F43+I43+L43+N43+P43+R43 -> 0 | AC43: =SUMIF($C$8:$R$8,AC$8,$C43:$R43)-S43 -> 0 | AD43: =SUMIF($C$8:$R$8,AD$8,$C43:$R43)-Z43 -> 0
A44: 85130 | B44: davon aus nicht verbrauchte Spendenmittel/Erbschaften | C44: =C41 -> -49568.57 | D44: =D41 -> -64017.62 | E44: =E41 -> -61183.24 | F44: =F41 -> -65543.23 | G44: =G41 -> -120425.45 | I44: =I41 -> -148041.91 | J44: =-SUMIF(INDIRECT("Erb"&$Z$1&"!$A:$A"),$A44,INDIRECT("Erb"&$Z$1&"!$G:$G")) -> -5441.33 | L44: =SUM(IF(DiffErb22!$G$1:$G$40=$A44,IF(DiffErb22!$F$1:$F$40=$Z$1,DiffErb22!$D$1:$D$40))) -> -1816.23 | M44: =M41 -> -36505 | N44: -28645.01 | O44: -649762.27 | P44: -551734.83 | Q44: -655.76 | R44: -8689.71 | S44: =C44+E44+G44+J44+M44+O44+Q44 -> -923541.62 | Z44: =D44+F44+I44+L44+N44+P44+R44 -> -868488.54 | AC44: =SUMIF($C$8:$R$8,AC$8,$C44:$R44)-S44 -> 0 | AD44: =SUMIF($C$8:$R$8,AD$8,$C44:$R44)-Z44 -> 0
A46: Stand 31.12.
A47: Rücklagen Erbschaften/Spenden | S47: =SUM(S48:S49) -> 25000 | T47: =SUM(T48:T49) -> 0 | U47: 0 | V47: 0 | W47: 0 | X47: 0 | Y47: 0 | Z47: 25000
B48: Rücklagen Erbschaften | J48: =J20+J41-J51 -> 25000 | L48: =SUMIF(INDIRECT($Z$1&"22!$B:$B"),$B48,INDIRECT($Z$1&"22!$J:$J")) -> 25000 | S48: =J48 -> 25000 | Z48: =L48 -> 25000 | AC48: =SUMIF($C$8:$R$8,AC$8,$C48:$R48)-S48 -> 0 | AD48: =SUMIF($C$8:$R$8,AD$8,$C48:$R48)-Z48 -> 0
B49: Rücklagen Spenden | S49: =G49 -> 0 | Z49: =I49 -> 0 | AC49: =SUMIF($C$8:$R$8,AC$8,$C49:$R49)-S49 -> 0 | AD49: =SUMIF($C$8:$R$8,AD$8,$C49:$R49)-Z49 -> 0
A50: Noch nicht verbrauchte Spendenmittel/Erbschaften | S50: =SUM(S51:S52) -> 755735.02 | T50: 0 | U50: 0 | V50: 0 | W50: 0 | X50: 0 | Y50: 0 | Z50: 762371.64
B51: nicht verbrauchte Erbschaften | J51: =-SUMIF(INDIRECT("Erb"&$Z$1&"!$B:$B"),$A14,INDIRECT("Erb"&$Z$1&"!$F:$F")) -> 302144.13 | L51: =SUMIF(INDIRECT($Z$1&"22!$B:$B"),$B51,INDIRECT($Z$1&"22!$J:$J")) -> 307585.46 | S51: =J51 -> 302144.13 | Z51: =L51 -> 307585.46 | AC51: =SUMIF($C$8:$R$8,AC$8,$C51:$R51)-S51 -> 0 | AD51: =SUMIF($C$8:$R$8,AD$8,$C51:$R51)-Z51 -> 0
B52: nicht verbrauchte Spendenmittel | G52: =(G20+G41) -> 453590.89 | I52: =I20+I41-I49 -> 454786.18 | S52: =G52 -> 453590.89 | Z52: =I52 -> 454786.18 | AC52: =SUMIF($C$8:$R$8,AC$8,$C52:$R52)-S52 -> 0 | AD52: =SUMIF($C$8:$R$8,AD$8,$C52:$R52)-Z52 -> 0
B55: =IF(INDIRECT("AW"&$Z$1&"!$A$50")=0,"","Spenden - Zeitungsaktionen: Bestand/Mitteleingang: " & -INDIRECT("AW"&$Z$1&"!$C$50") - INDIRECT("AW"&$Z$1&"!$J$50") & " € ./. Mittelverwendung: " & INDIRECT("AW"&$Z$1&"!$E$50") & " € ergibt nicht verbrauchte Spendenmittel: " & -INDIRECT("AW"&$Z$1&"!$F$50") & " €.") -> 
B56: Verprobungen1 | C56: =C18+C41 -> 0 | D56: =D18+D41 -> 0 | E56: =E18+E41 -> 0 | F56: =F18+F41 -> 0 | G56: =G17-I52 -> 0 | H56: =H41-SUMIF(INDIRECT("AW"&$Z$1&"!$B:$B"),$A$17,INDIRECT("AW"&$Z$1&"!$G:$G")) -> 0 | J56: =-SUMIF(INDIRECT("Erb"&$Z$1&"!$B:$B"),$A13,INDIRECT("Erb"&$Z$1&"!$F:$F"))-J48 -> 0 | L56: =ROUND(L48,2)-J13 -> 0 | M56: =M19+M41 -> 0 | N56: 0 | O56: 0 | P56: 0 | Q56: 0 | R56: 0 | S56: =S41-SUM(S43:S44) -> 0 | Z56: =Z41-SUM(Z43:Z44) -> 0
B57: Verprobungen2 | G57: =-SUMIF(INDIRECT("AW"&$Z$1&"!$B:$B"),$A$17,INDIRECT("AW"&$Z$1&"!$F:$F"))-G$52 -> 0 | J57: =-SUMIF(INDIRECT("Erb"&$Z$1&"!$B:$B"),$A14,INDIRECT("Erb"&$Z$1&"!$F:$F"))-J51 -> 0 | L57: =L51-J16 -> 0 | S57: =SUMIF(VerprobVerwend!$D:$D,$Z$1,VerprobVerwend!$B:$B)-S41 -> 0
G58: =-SUMIF(INDIRECT("AW"&$Z$1&"!$B:$B"),$A$17,INDIRECT("AW"&$Z$1&"!$J:$J"))-G$18-G$19 -> 0
C60: =IF(SUM(C18:C19)=0,"",SUM(C18:C19)) -> 49568.57 | E60: =IF(SUM(E18:E19)=0,"",SUM(E18:E19)) -> 61183.24 | G60: =IF(SUM(G18:G19)=0,"",SUM(G18:G19)) -> 119230.16 | J60: =IF(SUM(J18:J19)=0,"",SUM(J18:J19)) ->  | M60: =IF(SUM(M18:M19)=0,"",SUM(M18:M19)) -> 36505 | O60: =IF(SUM(O18:O19)=0,"",SUM(O18:O19)) -> 649762.27 | Q60: =IF(SUM(Q18:Q19)=0,"",SUM(Q18:Q19)) -> 655.76
C61: =IF(SUM(C18:C19)=0,"",C7) -> Spendenbriefe | E61: =IF(SUM(E18:E19)=0,"",E7) -> Sammeltagsmittel | G61: =IF(SUM(G18:G19)=0,"",G7) -> Weitere (Geld)Spenden | J61: =IF(SUM(J18:J19)=0,"",J7) ->  | M61: =IF(SUM(M18:M19)=0,"",M7) -> Bußgelder | O61: =IF(SUM(O18:O19)=0,"",O7) -> Stiftungsmittel | Q61: =IF(SUM(Q18:Q19)=0,"",Q7) -> Sachspenden
C64: ="Verwendung der Spenden in " & RIGHT($C$8,4) & " Caritas " & INDEX(IndexCrGb!$D:$E,MATCH($Z$1,IndexCrGb!$E:$E,0),1) -> Verwendung der Spenden in 2023 Caritas Bodensee-Oberschwaben
C65: ="Spendeneingänge " & RIGHT($C$8,4) & " Caritas " & INDEX(IndexCrGb!$D:$E,MATCH($Z$1,IndexCrGb!$E:$E,0),1) -> Spendeneingänge 2023 Caritas Bodensee-Oberschwaben

Sheet BiberachSaulgau
A1: Spendenbilanz Caritasverband der Diözese Rottenburg-Stuttgart e.V. | Z1: BS
A3: ="Mandant: "& INDEX(IndexCrGb!$D:$E,MATCH($Z$1,IndexCrGb!$E:$E,0),1) -> Mandant: Biberach-Saulgau | G3: Stichtag: | I3: 2023-12-31
C7: Spendenbriefe | E7: Sammeltagsmittel | G7: Weitere (Geld)Spenden | J7: Erbschaften | M7: Bußgelder | O7: Stiftungsmittel | Q7: Sachspenden | S7: Summe | Z7: Summe
C8: 2023 | D8: 2022 | E8: 2023 | F8: 2022 | G8: 2023 | H8: davon aus Vorjahren | I8: 2022 | J8: 2023 | K8: davon aus Vorjahren | L8: 2022 | M8: 2023 | N8: 2022 | O8: 2023 | P8: 2022 | Q8: 2023 | R8: 2022 | S8: 2023 | Z8: 2022 | AC8: =S8 -> 2023 | AD8: =Z8 -> 2022
C9: EUR | D9: EUR | E9: EUR | F9: EUR | G9: EUR | H9: EUR | I9: EUR | J9: EUR | K9: EUR | L9: EUR | M9: EUR | N9: EUR | O9: EUR | P9: EUR | Q9: EUR | R9: EUR | S9: EUR | Z9: EUR
A11: Mittelherkunft 01.01.
A12: Rücklagen Erbschaften/Spenden | S12: =SUM(S13:S14) -> 16985 | T12: 0 | U12: 0 | V12: 0 | W12: 0 | X12: 0 | Y12: 0 | Z12: 16985
A13: ErbRückl | B13: Rücklagen Erbschaften | J13: =-SUMIF(INDIRECT("Erb"&$Z$1&"!$B:$B"),$A13,INDIRECT("Erb"&$Z$1&"!$C:$C")) -> 16985 | L13: =SUMIF(INDIRECT($Z$1&"22!$B:$B"),$B13,INDIRECT($Z$1&"22!$J:$J")) -> 16985 | S13: =J13 -> 16985 | Z13: =L13 -> 16985 | AC13: =SUMIF($C$8:$R$8,AC$8,$C13:$R13)-S13 -> 0 | AD13: =SUMIF($C$8:$R$8,AD$8,$C13:$R13)-Z13 -> 0
A14: ErbVerb | B14: Rücklagen Spenden | I14: =SUMIF(INDIRECT($Z$1&"22!$B:$B"),$B14,INDIRECT($Z$1&"22!$G:$G")) -> 0 | S14: =G14 -> 0 | Z14: =I14 -> 0
A15: Noch nicht verbrauchte Spendenmittel/Erbschaften | S15: =SUM(S16:S17) -> 616275.96 | T15: =T17 -> 0 | U15: 0 | V15: 0 | W15: 0 | X15: 0 | Y15: 0 | Z15: =SUM(Z16:Z17) -> 327028.13
A16: nicht verbrauchte Spendenmittel | B16: nicht verbrauchte Erbschaften | J16: =-SUMIF(INDIRECT("Erb"&$Z$1&"!$B:$B"),$A14,INDIRECT("Erb"&$Z$1&"!$C:$C")) -> 74777.87 | L16: =SUMIF(INDIRECT($Z$1&"22!$B:$B"),$B16,INDIRECT($Z$1&"22!$J:$J")) -> 74777.87 | S16: =J16 -> 74777.87 | Z16: =L16 -> 74777.87 | AC16: =SUMIF($C$8:$R$8,AC$8,$C16:$R16)-S16 -> 0 | AD16: =SUMIF($C$8:$R$8,AD$8,$C16:$R16)-Z16 -> 0
A17: Gesamt | B17: nicht verbrauchte Spendenmittel | G17: =-SUMIF(INDIRECT("AW"&$Z$1&"!$B:$B"),$A$17,INDIRECT("AW"&$Z$1&"!$C:$C")) -> 541498.09 | I17: =SUMIF(INDIRECT($Z$1&"22!$B:$B"),$A16,INDIRECT($Z$1&"22!$G:$G")) -> 252250.26 | S17: =C17+E17+G17 -> 541498.09 | Z17: =D17+F17+I17 -> 252250.26 | AC17: =SUMIF($C$8:$R$8,AC$8,$C17:$R17)-S17 -> 0 | AD17: =SUMIF($C$8:$R$8,AD$8,$C17:$R17)-Z17 -> 0
A18: Umbuchung von GB 01 | C18: =-SUM(IF(SpMailSaTaIst23!$G$1:$G$100=$Z$1,IF(SpMailSaTaIst23!$H$1:$H$100=IndexCrGb!$P$3,SpMailSaTaIst23!$E$1:$E$100))) -> 49568.57 | D18: =SUMIF(INDIRECT($Z$1&"22!$A:$A"),$A18,INDIRECT($Z$1&"22!$C:$C")) -> 64017.62 | E18: =-SUM(IF(SpMailSaTaIst23!$G$1:$G$100=$Z$1,IF(SpMailSaTaIst23!$H$1:$H$100=IndexCrGb!$P$4,SpMailSaTaIst23!$E$1:$E$100))) -> 13742.75 | F18: =SUMIF(INDIRECT($Z$1&"22!$A:$A"),$A18,INDIRECT($Z$1&"22!$E:$E")) -> 13798.9 | G18: =-SUMIF(INDIRECT("AW"&$Z$1&"!$B:$B"),$A$17,INDIRECT("AW"&$Z$1&"!$I:$I")) -> 11100 | I18: =SUMIF(INDIRECT($Z$1&"22!$A:$A"),$A18,INDIRECT($Z$1&"22!$G:$G")) -> 14100 | J18: =-SUMIF(INDIRECT("Erb"&$Z$1&"!$B:$B"),$A17,INDIRECT("Erb"&$Z$1&"!$I:$I")) -> 0 | L18: =SUMIF(INDIRECT($Z$1&"22!$A:$A"),$A18,INDIRECT($Z$1&"22!$J:$J")) -> 0 | S18: =C18+E18+G18+J18+M18+O18+Q18 -> 74411.32 | Z18: =D18+F18+I18+L18+N18+P18+R18 -> 91916.52 | AC18: =SUMIF($C$8:$R$8,AC$8,$C18:$R18)-S18 -> 0 | AD18: =SUMIF($C$8:$R$8,AD$8,$C18:$R18)-Z18 -> 0
A19: Zufluss | G19: =-SUMIF(INDIRECT("AW"&$Z$1&"!$B:$B"),$A$17,INDIRECT("AW"&$Z$1&"!$D:$D")) -> 172409.99 | I19: =SUMIF(INDIRECT($Z$1&"22!$A:$A"),$A19,INDIRECT($Z$1&"22!$G:$G")) -> 605339.24 | J19: =-SUMIF(INDIRECT("Erb"&$Z$1&"!$B:$B"),$A17,INDIRECT("Erb"&$Z$1&"!$D:$D")) -> 37844.93 | L19: =SUMIF(INDIRECT($Z$1&"22!$A:$A"),$A19,INDIRECT($Z$1&"22!$J:$J")) -> 0 | M19: =-SUMIF(Bussgelder23!$F:$F,$Z$1,Bussgelder23!$C:$C) -> 8100 | N19: =SUMIF(INDIRECT($Z$1&"22!$A:$A"),$A19,INDIRECT($Z$1&"22!$M:$M")) -> 7985 | O19: =-SUMIF(Fördermittel23!$F:$F,$Z$1,Fördermittel23!$C:$C) -> 37828 | P19: =SUMIF(INDIRECT($Z$1&"22!$A:$A"),$A19,INDIRECT($Z$1&"22!$O:$O")) -> 37267.19 | Q19: =-SUMIF(Sachspenden23!$F:$F,$Z$1,Sachspenden23!$C:$C) -> 0 | R19: =SUMIF(INDIRECT($Z$1&"22!$A:$A"),$A19,INDIRECT($Z$1&"22!$Q:$Q")) -> 0 | S19: =G19+J19+M19+O19+Q19 -> 256182.92 | Z19: =I19+L19+N19+P19+R19 -> 650591.43 | AC19: =SUMIF($C$8:$R$8,AC$8,$C19:$R19)-S19 -> 0 | AD19: =SUMIF($C$8:$R$8,AD$8,$C19:$R19)-Z19 -> 0
C20: =SUM(C18:C19) -> 49568.57 | D20: =SUM(D18:D19) -> 64017.62 | E20: =SUM(E18:E19) -> 13742.75 | F20: =SUM(F18:F19) -> 13798.9 | G20: =SUM(G14:G19) -> 725008.08 | H20: =SUM(H18:H19) -> 0 | I20: =SUM(I13:I19) -> 871689.5 | J20: =SUM(J13:J19) -> 129607.8 | K20: =SUM(K18:K19) -> 0 | L20: =SUM(L11:L19) -> 91762.87 | M20: =SUM(M19) -> 8100 | N20: 7985 | O20: 37828 | P20: 37267.19 | Q20: 0 | R20: 0 | S20: =S12+S15+S18+S19 -> 963855.2 | T20: 0 | U20: 0 | V20: 0 | W20: 0 | X20: 0 | Y20: 0 | Z20: 1086521.08 | AC20: =SUMIF($C$8:$R$8,AC$8,$C20:$R20)-S20 -> 0 | AD20: =SUMIF($C$8:$R$8,AD$8,$C20:$R20)-Z20 -> 0
A22: Mittelverwendung
B23: =SpBilanzVerd2022!$J$3 -> Caritasarbeit allgemein | C23: =SUM(IF(SpMailSaTaIst23!$G$1:$G$100=$Z$1,IF(SpMailSaTaIst23!$I$1:$I$100=$B23,IF(SpMailSaTaIst23!$H$1:$H$100=IndexCrGb!$P$3,SpMailSaTaIst23!$E$1:$E$100)))) -> 0 | D23: =SUMIF(INDIRECT($Z$1&"22!$B:$B"),$B23,INDIRECT($Z$1&"22!$C:$C")) -> 0 | E23: =SUM(IF(SpMailSaTaIst23!$G$1:$G$100=$Z$1,IF(SpMailSaTaIst23!$I$1:$I$100=$B23,IF(SpMailSaTaIst23!$H$1:$H$100=IndexCrGb!$P$4,SpMailSaTaIst23!$E$1:$E$100)))) -> 0 | F23: =SUMIF(INDIRECT($Z$1&"22!$B:$B"),$B23,INDIRECT($Z$1&"22!$E:$E")) -> 0 | G23: =-SUMIF(INDIRECT("AW"&$Z$1&"!$B:$B"),$B23,INDIRECT("AW"&$Z$1&"!$E:$E")) -> -6005.2 | H23: =SUMIF(INDIRECT("AW"&$Z$1&"!$B:$B"),$B23,INDIRECT("AW"&$Z$1&"!$G:$G")) -> -2530.66 | I23: =SUMIF(INDIRECT($Z$1&"22!$B:$B"),$B23,INDIRECT($Z$1&"22!$G:$G")) -> 0 | J23: =-SUMIF(INDIRECT("Erb"&$Z$1&"!$B:$B"),$B23,INDIRECT("Erb"&$Z$1&"!$E:$E")) -> 0 | K23: =SUMIF(INDIRECT("Erb"&$Z$1&"!$B:$B"),$B23,INDIRECT("Erb"&$Z$1&"!$G:$G")) -> 0 | L23: =SUMIF(INDIRECT($Z$1&"22!$B:$B"),$B23,INDIRECT($Z$1&"22!$J:$J")) -> 0 | M23: =SUM(IF(Bussgelder23!$F$1:$F$100=$Z$1,IF(Bussgelder23!$E$1:$E$100=$B23,Bussgelder23!$C$1:$C$100))) -> 0 | N23: =SUMIF(INDIRECT($Z$1&"22!$B:$B"),$B23,INDIRECT($Z$1&"22!$M:$M")) -> 0 | O23: =SUM(IF(Fördermittel23!$F$1:$F$100=$Z$1,IF(Fördermittel23!$E$1:$E$100=$B23,Fördermittel23!$C$1:$C$100))) -> 0 | P23: =SUMIF(INDIRECT($Z$1&"22!$B:$B"),$B23,INDIRECT($Z$1&"22!$O:$O")) -> 0 | Q23: =SUM(IF(Sachspenden23!$F$1:$F$100=$Z$1,IF(Sachspenden23!$E$1:$E$100=$B23,Sachspenden23!$C$1:$C$100))) -> 0 | R23: =SUMIF(INDIRECT($Z$1&"22!$B:$B"),$B23,INDIRECT($Z$1&"22!$Q:$Q")) -> 0 | S23: =C23+E23+G23+J23+M23+O23+Q23 -> -6005.2 | Z23: =D23+F23+I23+L23+N23+P23+R23 -> 0 | AA23: =IF(S23=0,"",-S23) -> 6005.2 | AB23: =IF(S23=0,"",$B23) -> Caritasarbeit allgemein | AC23: =SUMIF($C$8:$R$8,AC$8,$C23:$R23)-S23 -> 0 | AD23: =SUMIF($C$8:$R$8,AD$8,$C23:$R23)-Z23 -> 0
B24: =SpBilanzVerd2022!$J$2 -> Existenzsicherung | C24: =SUM(IF(SpMailSaTaIst23!$G$1:$G$100=$Z$1,IF(SpMailSaTaIst23!$I$1:$I$100=$B24,IF(SpMailSaTaIst23!$H$1:$H$100=IndexCrGb!$P$3,SpMailSaTaIst23!$E$1:$E$100)))) -> -10615.95 | D24: -37316.67 | E24: =SUM(IF(SpMailSaTaIst23!$G$1:$G$100=$Z$1,IF(SpMailSaTaIst23!$I$1:$I$100=$B24,IF(SpMailSaTaIst23!$H$1:$H$100=IndexCrGb!$P$4,SpMailSaTaIst23!$E$1:$E$100)))) -> 0 | F24: 0 | G24: =-SUMIF(INDIRECT("AW"&$Z$1&"!$B:$B"),$B24,INDIRECT("AW"&$Z$1&"!$E:$E")) -> -49470.36 | H24: =SUMIF(INDIRECT("AW"&$Z$1&"!$B:$B"),$B24,INDIRECT("AW"&$Z$1&"!$G:$G")) -> -41675.01 | I24: -30147.14 | J24: 0 | K24: 0 | L24: 0 | M24: =SUM(IF(Bussgelder23!$F$1:$F$100=$Z$1,IF(Bussgelder23!$E$1:$E$100=$B24,Bussgelder23!$C$1:$C$100))) -> 0 | N24: 0 | O24: =SUM(IF(Fördermittel23!$F$1:$F$100=$Z$1,IF(Fördermittel23!$E$1:$E$100=$B24,Fördermittel23!$C$1:$C$100))) -> 0 | P24: 0 | Q24: =SUM(IF(Sachspenden23!$F$1:$F$100=$Z$1,IF(Sachspenden23!$E$1:$E$100=$B24,Sachspenden23!$C$1:$C$100))) -> 0 | R24: 0 | S24: -60086.31 | Z24: -67463.81 | AA24: 60086.31 | AB24: Existenzsicherung | AC24: 0 | AD24: 0
B25: =SpBilanzVerd2022!$J$10 -> Familienhilfen | C25: =SUM(IF(SpMailSaTaIst23!$G$1:$G$100=$Z$1,IF(SpMailSaTaIst23!$I$1:$I$100=$B25,IF(SpMailSaTaIst23!$H$1:$H$100=IndexCrGb!$P$3,SpMailSaTaIst23!$E$1:$E$100)))) -> 0 | D25: 0 | E25: =SUM(IF(SpMailSaTaIst23!$G$1:$G$100=$Z$1,IF(SpMailSaTaIst23!$I$1:$I$100=$B25,IF(SpMailSaTaIst23!$H$1:$H$100=IndexCrGb!$P$4,SpMailSaTaIst23!$E$1:$E$100)))) -> 0 | F25: 0 | G25: =-SUMIF(INDIRECT("AW"&$Z$1&"!$B:$B"),$B25,INDIRECT("AW"&$Z$1&"!$E:$E")) -> -17369.51 | H25: =SUMIF(INDIRECT("AW"&$Z$1&"!$B:$B"),$B25,INDIRECT("AW"&$Z$1&"!$G:$G")) -> -3458.11 | I25: -5323.89 | J25: 0 | K25: 0 | L25: 0 | M25: =SUM(IF(Bussgelder23!$F$1:$F$100=$Z$1,IF(Bussgelder23!$E$1:$E$100=$B25,Bussgelder23!$C$1:$C$100))) -> 0 | N25: 0 | O25: =SUM(IF(Fördermittel23!$F$1:$F$100=$Z$1,IF(Fördermittel23!$E$1:$E$100=$B25,Fördermittel23!$C$1:$C$100))) -> 0 | P25: 0 | Q25: =SUM(IF(Sachspenden23!$F$1:$F$100=$Z$1,IF(Sachspenden23!$E$1:$E$100=$B25,Sachspenden23!$C$1:$C$100))) -> 0 | R25: 0 | S25: -17369.51 | Z25: -5323.89 | AA25: 17369.51 | AB25: Familienhilfen | AC25: 0 | AD25: 0
B26: =SpBilanzVerd2022!$J$6 -> Kinder- und Jugendhilfe | C26: =SUM(IF(SpMailSaTaIst23!$G$1:$G$100=$Z$1,IF(SpMailSaTaIst23!$I$1:$I$100=$B26,IF(SpMailSaTaIst23!$H$1:$H$100=IndexCrGb!$P$3,SpMailSaTaIst23!$E$1:$E$100)))) -> -14565.73 | D26: -14000 | E26: =SUM(IF(SpMailSaTaIst23!$G$1:$G$100=$Z$1,IF(SpMailSaTaIst23!$I$1:$I$100=$B26,IF(SpMailSaTaIst23!$H$1:$H$100=IndexCrGb!$P$4,SpMailSaTaIst23!$E$1:$E$100)))) -> 0 | F26: 0 | G26: =-SUMIF(INDIRECT("AW"&$Z$1&"!$B:$B"),$B26,INDIRECT("AW"&$Z$1&"!$E:$E")) -> -8926.44 | H26: =SUMIF(INDIRECT("AW"&$Z$1&"!$B:$B"),$B26,INDIRECT("AW"&$Z$1&"!$G:$G")) -> -8162.46 | I26: 0 | J26: 0 | K26: 0 | L26: 0 | M26: =SUM(IF(Bussgelder23!$F$1:$F$100=$Z$1,IF(Bussgelder23!$E$1:$E$100=$B26,Bussgelder23!$C$1:$C$100))) -> 0 | N26: 0 | O26: =SUM(IF(Fördermittel23!$F$1:$F$100=$Z$1,IF(Fördermittel23!$E$1:$E$100=$B26,Fördermittel23!$C$1:$C$100))) -> -37828 | P26: -37267.19 | Q26: =SUM(IF(Sachspenden23!$F$1:$F$100=$Z$1,IF(Sachspenden23!$E$1:$E$100=$B26,Sachspenden23!$C$1:$C$100))) -> 0 | R26: 0 | S26: -61320.17 | Z26: -51267.19 | AA26: 61320.17 | AB26: Kinder- und Jugendhilfe | AC26: 0 | AD26: 0
B27: =SpBilanzVerd2022!$J$16 -> Jugendberufshilfe | C27: =SUM(IF(SpMailSaTaIst23!$G$1:$G$100=$Z$1,IF(SpMailSaTaIst23!$I$1:$I$100=$B27,IF(SpMailSaTaIst23!$H$1:$H$100=IndexCrGb!$P$3,SpMailSaTaIst23!$E$1:$E$100)))) -> 0 | D27: 0 | E27: =SUM(IF(SpMailSaTaIst23!$G$1:$G$100=$Z$1,IF(SpMailSaTaIst23!$I$1:$I$100=$B27,IF(SpMailSaTaIst23!$H$1:$H$100=IndexCrGb!$P$4,SpMailSaTaIst23!$E$1:$E$100)))) -> 0 | F27: 0 | G27: =-SUMIF(INDIRECT("AW"&$Z$1&"!$B:$B"),$B27,INDIRECT("AW"&$Z$1&"!$E:$E")) -> 0 | H27: =SUMIF(INDIRECT("AW"&$Z$1&"!$B:$B"),$B27,INDIRECT("AW"&$Z$1&"!$G:$G")) -> 0 | I27: 0 | J27: 0 | K27: 0 | L27: 0 | M27: =SUM(IF(Bussgelder23!$F$1:$F$100=$Z$1,IF(Bussgelder23!$E$1:$E$100=$B27,Bussgelder23!$C$1:$C$100))) -> 0 | N27: 0 | O27: =SUM(IF(Fördermittel23!$F$1:$F$100=$Z$1,IF(Fördermittel23!$E$1:$E$100=$B27,Fördermittel23!$C$1:$C$100))) -> 0 | P27: 0 | Q27: =SUM(IF(Sachspenden23!$F$1:$F$100=$Z$1,IF(Sachspenden23!$E$1:$E$100=$B27,Sachspenden23!$C$1:$C$100))) -> 0 | R27: 0 | S27: 0 | Z27: 0 | AC27: 0 | AD27: 0
B28: =SpBilanzVerd2022!$J$14 -> Behindertenhilfe | C28: =SUM(IF(SpMailSaTaIst23!$G$1:$G$100=$Z$1,IF(SpMailSaTaIst23!$I$1:$I$100=$B28,IF(SpMailSaTaIst23!$H$1:$H$100=IndexCrGb!$P$3,SpMailSaTaIst23!$E$1:$E$100)))) -> 0 | D28: 0 | E28: =SUM(IF(SpMailSaTaIst23!$G$1:$G$100=$Z$1,IF(SpMailSaTaIst23!$I$1:$I$100=$B28,IF(SpMailSaTaIst23!$H$1:$H$100=IndexCrGb!$P$4,SpMailSaTaIst23!$E$1:$E$100)))) -> 0 | F28: 0 | G28: =-SUMIF(INDIRECT("AW"&$Z$1&"!$B:$B"),$B28,INDIRECT("AW"&$Z$1&"!$E:$E")) -> 0 | H28: =SUMIF(INDIRECT("AW"&$Z$1&"!$B:$B"),$B28,INDIRECT("AW"&$Z$1&"!$G:$G")) -> 0 | I28: 0 | J28: 0 | K28: 0 | L28: 0 | M28: =SUM(IF(Bussgelder23!$F$1:$F$100=$Z$1,IF(Bussgelder23!$E$1:$E$100=$B28,Bussgelder23!$C$1:$C$100))) -> 0 | N28: 0 | O28: =SUM(IF(Fördermittel23!$F$1:$F$100=$Z$1,IF(Fördermittel23!$E$1:$E$100=$B28,Fördermittel23!$C$1:$C$100))) -> 0 | P28: 0 | Q28: =SUM(IF(Sachspenden23!$F$1:$F$100=$Z$1,IF(Sachspenden23!$E$1:$E$100=$B28,Sachspenden23!$C$1:$C$100))) -> 0 | R28: 0 | S28: 0 | Z28: 0 | AC28: 0 | AD28: 0
B29: =SpBilanzVerd2022!$J$9 -> Altenhilfe/Hospizdienste | C29: =SUM(IF(SpMailSaTaIst23!$G$1:$G$100=$Z$1,IF(SpMailSaTaIst23!$I$1:$I$100=$B29,IF(SpMailSaTaIst23!$H$1:$H$100=IndexCrGb!$P$3,SpMailSaTaIst23!$E$1:$E$100)))) -> -9774.91 | D29: -10467.85 | E29: =SUM(IF(SpMailSaTaIst23!$G$1:$G$100=$Z$1,IF(SpMailSaTaIst23!$I$1:$I$100=$B29,IF(SpMailSaTaIst23!$H$1:$H$100=IndexCrGb!$P$4,SpMailSaTaIst23!$E$1:$E$100)))) -> -13742.75 | F29: -13798.9 | G29: =-SUMIF(INDIRECT("AW"&$Z$1&"!$B:$B"),$B29,INDIRECT("AW"&$Z$1&"!$E:$E")) -> -46348.26 | H29: =SUMIF(INDIRECT("AW"&$Z$1&"!$B:$B"),$B29,INDIRECT("AW"&$Z$1&"!$G:$G")) -> -45700.91 | I29: -30732.16 | J29: 0 | K29: 0 | L29: 0 | M29: =SUM(IF(Bussgelder23!$F$1:$F$100=$Z$1,IF(Bussgelder23!$E$1:$E$100=$B29,Bussgelder23!$C$1:$C$100))) -> 0 | N29: 0 | O29: =SUM(IF(Fördermittel23!$F$1:$F$100=$Z$1,IF(Fördermittel23!$E$1:$E$100=$B29,Fördermittel23!$C$1:$C$100))) -> 0 | P29: 0 | Q29: =SUM(IF(Sachspenden23!$F$1:$F$100=$Z$1,IF(Sachspenden23!$E$1:$E$100=$B29,Sachspenden23!$C$1:$C$100))) -> 0 | R29: 0 | S29: -69865.92 | Z29: -54998.91 | AA29: 69865.92 | AB29: Altenhilfe/Hospizdienste | AC29: 0 | AD29: 0
B30: =SpBilanzVerd2022!$J$12 -> Sozialpsychiatrischer Dienst | C30: =SUM(IF(SpMailSaTaIst23!$G$1:$G$100=$Z$1,IF(SpMailSaTaIst23!$I$1:$I$100=$B30,IF(SpMailSaTaIst23!$H$1:$H$100=IndexCrGb!$P$3,SpMailSaTaIst23!$E$1:$E$100)))) -> 0 | D30: 0 | E30: =SUM(IF(SpMailSaTaIst23!$G$1:$G$100=$Z$1,IF(SpMailSaTaIst23!$I$1:$I$100=$B30,IF(SpMailSaTaIst23!$H$1:$H$100=IndexCrGb!$P$4,SpMailSaTaIst23!$E$1:$E$100)))) -> 0 | F30: 0 | G30: =-SUMIF(INDIRECT("AW"&$Z$1&"!$B:$B"),$B30,INDIRECT("AW"&$Z$1&"!$E:$E")) -> -21434.08 | H30: =SUMIF(INDIRECT("AW"&$Z$1&"!$B:$B"),$B30,INDIRECT("AW"&$Z$1&"!$G:$G")) -> -19705.01 | I30: -76644.43 | J30: 0 | K30: 0 | L30: 0 | M30: =SUM(IF(Bussgelder23!$F$1:$F$100=$Z$1,IF(Bussgelder23!$E$1:$E$100=$B30,Bussgelder23!$C$1:$C$100))) -> 0 | N30: 0 | O30: =SUM(IF(Fördermittel23!$F$1:$F$100=$Z$1,IF(Fördermittel23!$E$1:$E$100=$B30,Fördermittel23!$C$1:$C$100))) -> 0 | P30: 0 | Q30: =SUM(IF(Sachspenden23!$F$1:$F$100=$Z$1,IF(Sachspenden23!$E$1:$E$100=$B30,Sachspenden23!$C$1:$C$100))) -> 0 | R30: 0 | S30: -21434.08 | Z30: -76644.43 | AA30: 21434.08 | AB30: Sozialpsychiatrischer Dienst | AC30: 0 | AD30: 0
B31: =SpBilanzVerd2022!$J$5 -> Suchthilfe | C31: =SUM(IF(SpMailSaTaIst23!$G$1:$G$100=$Z$1,IF(SpMailSaTaIst23!$I$1:$I$100=$B31,IF(SpMailSaTaIst23!$H$1:$H$100=IndexCrGb!$P$3,SpMailSaTaIst23!$E$1:$E$100)))) -> 0 | D31: 0 | E31: =SUM(IF(SpMailSaTaIst23!$G$1:$G$100=$Z$1,IF(SpMailSaTaIst23!$I$1:$I$100=$B31,IF(SpMailSaTaIst23!$H$1:$H$100=IndexCrGb!$P$4,SpMailSaTaIst23!$E$1:$E$100)))) -> 0 | F31: 0 | G31: =-SUMIF(INDIRECT("AW"&$Z$1&"!$B:$B"),$B31,INDIRECT("AW"&$Z$1&"!$E:$E")) -> 0 | H31: =SUMIF(INDIRECT("AW"&$Z$1&"!$B:$B"),$B31,INDIRECT("AW"&$Z$1&"!$G:$G")) -> 0 | I31: 0 | J31: 0 | K31: 0 | L31: 0 | M31: =SUM(IF(Bussgelder23!$F$1:$F$100=$Z$1,IF(Bussgelder23!$E$1:$E$100=$B31,Bussgelder23!$C$1:$C$100))) -> -8100 | N31: -7985 | O31: =SUM(IF(Fördermittel23!$F$1:$F$100=$Z$1,IF(Fördermittel23!$E$1:$E$100=$B31,Fördermittel23!$C$1:$C$100))) -> 0 | P31: 0 | Q31: =SUM(IF(Sachspenden23!$F$1:$F$100=$Z$1,IF(Sachspenden23!$E$1:$E$100=$B31,Sachspenden23!$C$1:$C$100))) -> 0 | R31: 0 | S31: -8100 | Z31: -7985 | AA31: 8100 | AB31: Suchthilfe | AC31: 0 | AD31: 0
B32: =SpBilanzVerd2022!$J$13 -> Migration | C32: =SUM(IF(SpMailSaTaIst23!$G$1:$G$100=$Z$1,IF(SpMailSaTaIst23!$I$1:$I$100=$B32,IF(SpMailSaTaIst23!$H$1:$H$100=IndexCrGb!$P$3,SpMailSaTaIst23!$E$1:$E$100)))) -> -14611.98 | D32: -2233.1 | E32: =SUM(IF(SpMailSaTaIst23!$G$1:$G$100=$Z$1,IF(SpMailSaTaIst23!$I$1:$I$100=$B32,IF(SpMailSaTaIst23!$H$1:$H$100=IndexCrGb!$P$4,SpMailSaTaIst23!$E$1:$E$100)))) -> 0 | F32: 0 | G32: =-SUMIF(INDIRECT("AW"&$Z$1&"!$B:$B"),$B32,INDIRECT("AW"&$Z$1&"!$E:$E")) -> -115274.25 | H32: =SUMIF(INDIRECT("AW"&$Z$1&"!$B:$B"),$B32,INDIRECT("AW"&$Z$1&"!$G:$G")) -> -104194.75 | I32: -184582.95 | J32: 0 | K32: 0 | L32: 0 | M32: =SUM(IF(Bussgelder23!$F$1:$F$100=$Z$1,IF(Bussgelder23!$E$1:$E$100=$B32,Bussgelder23!$C$1:$C$100))) -> 0 | N32: 0 | O32: =SUM(IF(Fördermittel23!$F$1:$F$100=$Z$1,IF(Fördermittel23!$E$1:$E$100=$B32,Fördermittel23!$C$1:$C$100))) -> 0 | P32: 0 | Q32: =SUM(IF(Sachspenden23!$F$1:$F$100=$Z$1,IF(Sachspenden23!$E$1:$E$100=$B32,Sachspenden23!$C$1:$C$100))) -> 0 | R32: 0 | S32: -129886.23 | Z32: -186816.05 | AA32: 129886.23 | AB32: Migration | AC32: 0 | AD32: 0
B33: =SpBilanzVerd2022!$J$7 -> Wohnungslosenhilfe | C33: =SUM(IF(SpMailSaTaIst23!$G$1:$G$100=$Z$1,IF(SpMailSaTaIst23!$I$1:$I$100=$B33,IF(SpMailSaTaIst23!$H$1:$H$100=IndexCrGb!$P$3,SpMailSaTaIst23!$E$1:$E$100)))) -> 0 | D33: 0 | E33: =SUM(IF(SpMailSaTaIst23!$G$1:$G$100=$Z$1,IF(SpMailSaTaIst23!$I$1:$I$100=$B33,IF(SpMailSaTaIst23!$H$1:$H$100=IndexCrGb!$P$4,SpMailSaTaIst23!$E$1:$E$100)))) -> 0 | F33: 0 | G33: =-SUMIF(INDIRECT("AW"&$Z$1&"!$B:$B"),$B33,INDIRECT("AW"&$Z$1&"!$E:$E")) -> 0 | H33: =SUMIF(INDIRECT("AW"&$Z$1&"!$B:$B"),$B33,INDIRECT("AW"&$Z$1&"!$G:$G")) -> 0 | I33: 0 | J33: 0 | K33: 0 | L33: 0 | M33: =SUM(IF(Bussgelder23!$F$1:$F$100=$Z$1,IF(Bussgelder23!$E$1:$E$100=$B33,Bussgelder23!$C$1:$C$100))) -> 0 | N33: 0 | O33: =SUM(IF(Fördermittel23!$F$1:$F$100=$Z$1,IF(Fördermittel23!$E$1:$E$100=$B33,Fördermittel23!$C$1:$C$100))) -> 0 | P33: 0 | Q33: =SUM(IF(Sachspenden23!$F$1:$F$100=$Z$1,IF(Sachspenden23!$E$1:$E$100=$B33,Sachspenden23!$C$1:$C$100))) -> 0 | R33: 0 | S33: 0 | Z33: 0 | AC33: 0 | AD33: 0
B34: =SpBilanzVerd2022!$J$4 -> Gemeindenahe Netzwerke | C34: =SUM(IF(SpMailSaTaIst23!$G$1:$G$100=$Z$1,IF(SpMailSaTaIst23!$I$1:$I$100=$B34,IF(SpMailSaTaIst23!$H$1:$H$100=IndexCrGb!$P$3,SpMailSaTaIst23!$E$1:$E$100)))) -> 0 | D34: 0 | E34: =SUM(IF(SpMailSaTaIst23!$G$1:$G$100=$Z$1,IF(SpMailSaTaIst23!$I$1:$I$100=$B34,IF(SpMailSaTaIst23!$H$1:$H$100=IndexCrGb!$P$4,SpMailSaTaIst23!$E$1:$E$100)))) -> 0 | F34: 0 | G34: =-SUMIF(INDIRECT("AW"&$Z$1&"!$B:$B"),$B34,INDIRECT("AW"&$Z$1&"!$E:$E")) -> -1610.92 | H34: =SUMIF(INDIRECT("AW"&$Z$1&"!$B:$B"),$B34,INDIRECT("AW"&$Z$1&"!$G:$G")) -> -1000 | I34: 0 | J34: 0 | K34: 0 | L34: 0 | M34: =SUM(IF(Bussgelder23!$F$1:$F$100=$Z$1,IF(Bussgelder23!$E$1:$E$100=$B34,Bussgelder23!$C$1:$C$100))) -> 0 | N34: 0 | O34: =SUM(IF(Fördermittel23!$F$1:$F$100=$Z$1,IF(Fördermittel23!$E$1:$E$100=$B34,Fördermittel23!$C$1:$C$100))) -> 0 | P34: 0 | Q34: =SUM(IF(Sachspenden23!$F$1:$F$100=$Z$1,IF(Sachspenden23!$E$1:$E$100=$B34,Sachspenden23!$C$1:$C$100))) -> 0 | R34: 0 | S34: -1610.92 | Z34: 0 | AA34: 1610.92 | AB34: Gemeindenahe Netzwerke | AC34: 0 | AD34: 0
B35: =SpBilanzVerd2022!$J$8 -> Arbeitshilfen | C35: =SUM(IF(SpMailSaTaIst23!$G$1:$G$100=$Z$1,IF(SpMailSaTaIst23!$I$1:$I$100=$B35,IF(SpMailSaTaIst23!$H$1:$H$100=IndexCrGb!$P$3,SpMailSaTaIst23!$E$1:$E$100)))) -> 0 | D35: 0 | E35: =SUM(IF(SpMailSaTaIst23!$G$1:$G$100=$Z$1,IF(SpMailSaTaIst23!$I$1:$I$100=$B35,IF(SpMailSaTaIst23!$H$1:$H$100=IndexCrGb!$P$4,SpMailSaTaIst23!$E$1:$E$100)))) -> 0 | F35: 0 | G35: =-SUMIF(INDIRECT("AW"&$Z$1&"!$B:$B"),$B35,INDIRECT("AW"&$Z$1&"!$E:$E")) -> 0 | H35: =SUMIF(INDIRECT("AW"&$Z$1&"!$B:$B"),$B35,INDIRECT("AW"&$Z$1&"!$G:$G")) -> 0 | I35: 0 | J35: 0 | K35: 0 | L35: 0 | M35: =SUM(IF(Bussgelder23!$F$1:$F$100=$Z$1,IF(Bussgelder23!$E$1:$E$100=$B35,Bussgelder23!$C$1:$C$100))) -> 0 | N35: 0 | O35: =SUM(IF(Fördermittel23!$F$1:$F$100=$Z$1,IF(Fördermittel23!$E$1:$E$100=$B35,Fördermittel23!$C$1:$C$100))) -> 0 | P35: 0 | Q35: =SUM(IF(Sachspenden23!$F$1:$F$100=$Z$1,IF(Sachspenden23!$E$1:$E$100=$B35,Sachspenden23!$C$1:$C$100))) -> 0 | R35: 0 | S35: 0 | Z35: 0 | AC35: 0 | AD35: 0
B36: =SpBilanzVerd2022!$J$17 -> Diverse Zweckhinweise | C36: =SUM(IF(SpMailSaTaIst23!$G$1:$G$100=$Z$1,IF(SpMailSaTaIst23!$I$1:$I$100=$B36,IF(SpMailSaTaIst23!$H$1:$H$100=IndexCrGb!$P$3,SpMailSaTaIst23!$E$1:$E$100)))) -> 0 | D36: 0 | E36: =SUM(IF(SpMailSaTaIst23!$G$1:$G$100=$Z$1,IF(SpMailSaTaIst23!$I$1:$I$100=$B36,IF(SpMailSaTaIst23!$H$1:$H$100=IndexCrGb!$P$4,SpMailSaTaIst23!$E$1:$E$100)))) -> 0 | F36: 0 | G36: =-SUMIF(INDIRECT("AW"&$Z$1&"!$B:$B"),$B36,INDIRECT("AW"&$Z$1&"!$E:$E")) -> 0 | H36: =SUMIF(INDIRECT("AW"&$Z$1&"!$B:$B"),$B36,INDIRECT("AW"&$Z$1&"!$G:$G")) -> 0 | I36: 0 | J36: 0 | K36: 0 | L36: 0 | M36: =SUM(IF(Bussgelder23!$F$1:$F$100=$Z$1,IF(Bussgelder23!$E$1:$E$100=$B36,Bussgelder23!$C$1:$C$100))) -> 0 | N36: 0 | O36: =SUM(IF(Fördermittel23!$F$1:$F$100=$Z$1,IF(Fördermittel23!$E$1:$E$100=$B36,Fördermittel23!$C$1:$C$100))) -> 0 | P36: 0 | Q36: =SUM(IF(Sachspenden23!$F$1:$F$100=$Z$1,IF(Sachspenden23!$E$1:$E$100=$B36,Sachspenden23!$C$1:$C$100))) -> 0 | R36: 0 | S36: 0 | Z36: 0 | AC36: 0 | AD36: 0
B37: =SpBilanzVerd2022!$L$18 -> Sonstiges | C37: =SUM(IF(SpMailSaTaIst23!$G$1:$G$100=$Z$1,IF(SpMailSaTaIst23!$I$1:$I$100=$B37,IF(SpMailSaTaIst23!$H$1:$H$100=IndexCrGb!$P$3,SpMailSaTaIst23!$E$1:$E$100)))) -> 0 | D37: 0 | E37: =SUM(IF(SpMailSaTaIst23!$G$1:$G$100=$Z$1,IF(SpMailSaTaIst23!$I$1:$I$100=$B37,IF(SpMailSaTaIst23!$H$1:$H$100=IndexCrGb!$P$4,SpMailSaTaIst23!$E$1:$E$100)))) -> 0 | F37: 0 | G37: =-SUMIF(INDIRECT("AW"&$Z$1&"!$B:$B"),$B37,INDIRECT("AW"&$Z$1&"!$E:$E")) -> 0 | H37: =SUMIF(INDIRECT("AW"&$Z$1&"!$B:$B"),$B37,INDIRECT("AW"&$Z$1&"!$G:$G")) -> 0 | I37: 0 | J37: 0 | K37: 0 | L37: 0 | M37: =SUM(IF(Bussgelder23!$F$1:$F$100=$Z$1,IF(Bussgelder23!$E$1:$E$100=$B37,Bussgelder23!$C$1:$C$100))) -> 0 | N37: 0 | O37: =SUM(IF(Fördermittel23!$F$1:$F$100=$Z$1,IF(Fördermittel23!$E$1:$E$100=$B37,Fördermittel23!$C$1:$C$100))) -> 0 | P37: 0 | Q37: =SUM(IF(Sachspenden23!$F$1:$F$100=$Z$1,IF(Sachspenden23!$E$1:$E$100=$B37,Sachspenden23!$C$1:$C$100))) -> 0 | R37: 0 | S37: 0 | Z37: 0 | AC37: 0 | AD37: 0
B38: =SpBilanzVerd2022!$J$11 -> Weiterleitung an Dritte | C38: =SUM(IF(SpMailSaTaIst23!$G$1:$G$100=$Z$1,IF(SpMailSaTaIst23!$I$1:$I$100=$B38,IF(SpMailSaTaIst23!$H$1:$H$100=IndexCrGb!$P$3,SpMailSaTaIst23!$E$1:$E$100)))) -> 0 | D38: 0 | E38: =SUM(IF(SpMailSaTaIst23!$G$1:$G$100=$Z$1,IF(SpMailSaTaIst23!$I$1:$I$100=$B38,IF(SpMailSaTaIst23!$H$1:$H$100=IndexCrGb!$P$4,SpMailSaTaIst23!$E$1:$E$100)))) -> 0 | F38: 0 | G38: =-SUMIF(INDIRECT("AW"&$Z$1&"!$B:$B"),$B38,INDIRECT("AW"&$Z$1&"!$E:$E")) -> -13764.9 | H38: =SUMIF(INDIRECT("AW"&$Z$1&"!$B:$B"),$B38,INDIRECT("AW"&$Z$1&"!$G:$G")) -> -5580 | I38: -2760.84 | J38: 0 | K38: 0 | L38: 0 | M38: =SUM(IF(Bussgelder23!$F$1:$F$100=$Z$1,IF(Bussgelder23!$E$1:$E$100=$B38,Bussgelder23!$C$1:$C$100))) -> 0 | N38: 0 | O38: =SUM(IF(Fördermittel23!$F$1:$F$100=$Z$1,IF(Fördermittel23!$E$1:$E$100=$B38,Fördermittel23!$C$1:$C$100))) -> 0 | P38: 0 | Q38: =SUM(IF(Sachspenden23!$F$1:$F$100=$Z$1,IF(Sachspenden23!$E$1:$E$100=$B38,Sachspenden23!$C$1:$C$100))) -> 0 | R38: 0 | S38: -13764.9 | Z38: -2760.84 | AA38: 13764.9 | AB38: Weiterleitung an Dritte | AC38: 0 | AD38: 0
B39: =SpBilanzVerd2022!$L$19 -> Werbung und allgemeine Öffentlichkeitsarbeit | C39: =SUM(IF(SpMailSaTaIst23!$G$1:$G$100=$Z$1,IF(SpMailSaTaIst23!$I$1:$I$100=$B39,IF(SpMailSaTaIst23!$H$1:$H$100=IndexCrGb!$P$3,SpMailSaTaIst23!$E$1:$E$100)))) -> 0 | D39: 0 | E39: =SUM(IF(SpMailSaTaIst23!$G$1:$G$100=$Z$1,IF(SpMailSaTaIst23!$I$1:$I$100=$B39,IF(SpMailSaTaIst23!$H$1:$H$100=IndexCrGb!$P$4,SpMailSaTaIst23!$E$1:$E$100)))) -> 0 | F39: 0 | G39: =-SUMIF(INDIRECT("AW"&$Z$1&"!$B:$B"),$B39,INDIRECT("AW"&$Z$1&"!$E:$E")) -> 0 | H39: =SUMIF(INDIRECT("AW"&$Z$1&"!$B:$B"),$B39,INDIRECT("AW"&$Z$1&"!$G:$G")) -> 0 | I39: 0 | J39: 0 | K39: 0 | L39: 0 | M39: =SUM(IF(Bussgelder23!$F$1:$F$100=$Z$1,IF(Bussgelder23!$E$1:$E$100=$B39,Bussgelder23!$C$1:$C$100))) -> 0 | N39: 0 | O39: =SUM(IF(Fördermittel23!$F$1:$F$100=$Z$1,IF(Fördermittel23!$E$1:$E$100=$B39,Fördermittel23!$C$1:$C$100))) -> 0 | P39: 0 | Q39: =SUM(IF(Sachspenden23!$F$1:$F$100=$Z$1,IF(Sachspenden23!$E$1:$E$100=$B39,Sachspenden23!$C$1:$C$100))) -> 0 | R39: 0 | S39: 0 | Z39: 0 | AC39: 0 | AD39: 0
B40: =SpBilanzVerd2022!$J$15 -> Verwaltung | C40: =SUM(IF(SpMailSaTaIst23!$G$1:$G$100=$Z$1,IF(SpMailSaTaIst23!$I$1:$I$100=$B40,IF(SpMailSaTaIst23!$H$1:$H$100=IndexCrGb!$P$3,SpMailSaTaIst23!$E$1:$E$100)))) -> 0 | D40: 0 | E40: =SUM(IF(SpMailSaTaIst23!$G$1:$G$100=$Z$1,IF(SpMailSaTaIst23!$I$1:$I$100=$B40,IF(SpMailSaTaIst23!$H$1:$H$100=IndexCrGb!$P$4,SpMailSaTaIst23!$E$1:$E$100)))) -> 0 | F40: 0 | G40: =-SUMIF(INDIRECT("AW"&$Z$1&"!$B:$B"),$B40,INDIRECT("AW"&$Z$1&"!$E:$E")) -> 0 | H40: =SUMIF(INDIRECT("AW"&$Z$1&"!$B:$B"),$B40,INDIRECT("AW"&$Z$1&"!$G:$G")) -> 0 | I40: 0 | J40: 0 | K40: 0 | L40: 0 | M40: =SUM(IF(Bussgelder23!$F$1:$F$100=$Z$1,IF(Bussgelder23!$E$1:$E$100=$B40,Bussgelder23!$C$1:$C$100))) -> 0 | N40: 0 | O40: =SUM(IF(Fördermittel23!$F$1:$F$100=$Z$1,IF(Fördermittel23!$E$1:$E$100=$B40,Fördermittel23!$C$1:$C$100))) -> 0 | P40: 0 | Q40: =SUM(IF(Sachspenden23!$F$1:$F$100=$Z$1,IF(Sachspenden23!$E$1:$E$100=$B40,Sachspenden23!$C$1:$C$100))) -> 0 | R40: 0 | S40: 0 | Z40: 0 | AC40: 0 | AD40: 0
C41: =SUM(C23:C40) -> -49568.57 | D41: -64017.62 | E41: -13742.75 | F41: -13798.9 | G41: -280203.92 | H41: -232006.91 | I41: -330191.41 | J41: 0 | K41: 0 | L41: 0 | M41: -8100 | N41: -7985 | O41: -37828 | P41: -37267.19 | Q41: 0 | R41: 0 | S41: -389443.24 | Z41: =SUM(Z23:Z40) -> -453260.12 | AC41: 0 | AD41: 0
A43: 88396 | B43: davon aus Rücklagen | J43: =-SUMIF(INDIRECT("Erb"&$Z$1&"!$A:$A"),$A43,INDIRECT("Erb"&$Z$1&"!$G:$G")) -> 0 | L43: =SUM(IF(DiffErb22!$G$1:$G$40=$A43,IF(DiffErb22!$F$1:$F$40=$Z$1,DiffErb22!$D$1:$D$40))) -> 0 | S43: =C43+E43+G43+J43+M43+O43+Q43 -> 0 | Z43: =D43+F43+I43+L43+N43+P43+R43 -> 0 | AC43: =SUMIF($C$8:$R$8,AC$8,$C43:$R43)-S43 -> 0 | AD43: =SUMIF($C$8:$R$8,AD$8,$C43:$R43)-Z43 -> 0
A44: 85130 | B44: davon aus nicht verbrauchte Spendenmittel/Erbschaften | C44: =C41 -> -49568.57 | D44: =D41 -> -64017.62 | E44: =E41 -> -13742.75 | F44: =F41 -> -13798.9 | G44: =G41 -> -280203.92 | I44: =I41 -> -330191.41 | J44: =-SUMIF(INDIRECT("Erb"&$Z$1&"!$A:$A"),$A44,INDIRECT("Erb"&$Z$1&"!$G:$G")) -> 0 | L44: =SUM(IF(DiffErb22!$G$1:$G$40=$A44,IF(DiffErb22!$F$1:$F$40=$Z$1,DiffErb22!$D$1:$D$40))) -> 0 | M44: =M41 -> -8100 | N44: -7985 | O44: -37828 | P44: -37267.19 | Q44: 0 | R44: 0 | S44: =C44+E44+G44+J44+M44+O44+Q44 -> -389443.24 | Z44: =D44+F44+I44+L44+N44+P44+R44 -> -453260.12 | AC44: =SUMIF($C$8:$R$8,AC$8,$C44:$R44)-S44 -> 0 | AD44: =SUMIF($C$8:$R$8,AD$8,$C44:$R44)-Z44 -> 0
A46: Stand 31.12.
A47: Rücklagen Erbschaften/Spenden | S47: =SUM(S48:S49) -> 16985 | T47: =SUM(T48:T49) -> 0 | U47: 0 | V47: 0 | W47: 0 | X47: 0 | Y47: 0 | Z47: 16985
B48: Rücklagen Erbschaften | J48: =J20+J41-J51 -> 16985 | L48: =SUMIF(INDIRECT($Z$1&"22!$B:$B"),$B48,INDIRECT($Z$1&"22!$J:$J")) -> 16985 | S48: =J48 -> 16985 | Z48: =L48 -> 16985 | AC48: =SUMIF($C$8:$R$8,AC$8,$C48:$R48)-S48 -> 0 | AD48: =SUMIF($C$8:$R$8,AD$8,$C48:$R48)-Z48 -> 0
B49: Rücklagen Spenden | S49: =G49 -> 0 | Z49: =I49 -> 0 | AC49: =SUMIF($C$8:$R$8,AC$8,$C49:$R49)-S49 -> 0 | AD49: =SUMIF($C$8:$R$8,AD$8,$C49:$R49)-Z49 -> 0
A50: Noch nicht verbrauchte Spendenmittel/Erbschaften | S50: =SUM(S51:S52) -> 557426.96 | T50: 0 | U50: 0 | V50: 0 | W50: 0 | X50: 0 | Y50: 0 | Z50: 616275.96
B51: nicht verbrauchte Erbschaften | J51: =-SUMIF(INDIRECT("Erb"&$Z$1&"!$B:$B"),$A14,INDIRECT("Erb"&$Z$1&"!$F:$F")) -> 112622.8 | L51: =SUMIF(INDIRECT($Z$1&"22!$B:$B"),$B51,INDIRECT($Z$1&"22!$J:$J")) -> 74777.87 | S51: =J51 -> 112622.8 | Z51: =L51 -> 74777.87 | AC51: =SUMIF($C$8:$R$8,AC$8,$C51:$R51)-S51 -> 0 | AD51: =SUMIF($C$8:$R$8,AD$8,$C51:$R51)-Z51 -> 0
B52: nicht verbrauchte Spendenmittel | G52: =(G20+G41) -> 444804.16 | I52: =I20+I41-I49 -> 541498.09 | S52: =G52 -> 444804.16 | Z52: =I52 -> 541498.09 | AC52: =SUMIF($C$8:$R$8,AC$8,$C52:$R52)-S52 -> 0 | AD52: =SUMIF($C$8:$R$8,AD$8,$C52:$R52)-Z52 -> 0
B55: =IF(INDIRECT("AW"&$Z$1&"!$A$50")=0,"","Spenden - Zeitungsaktionen: Bestand/Mitteleingang: " & -INDIRECT("AW"&$Z$1&"!$C$50") - INDIRECT("AW"&$Z$1&"!$J$50") & " € ./. Mittelverwendung: " & INDIRECT("AW"&$Z$1&"!$E$50") & " € ergibt nicht verbrauchte Spendenmittel: " & -INDIRECT("AW"&$Z$1&"!$F$50") & " €.") -> 
B56: Verprobungen1 | C56: =C18+C41 -> 0 | D56: =D18+D41 -> 0 | E56: =E18+E41 -> 0 | F56: =F18+F41 -> 0 | G56: =G17-I52 -> 0 | H56: =H41-SUMIF(INDIRECT("AW"&$Z$1&"!$B:$B"),$A$17,INDIRECT("AW"&$Z$1&"!$G:$G")) -> 0 | J56: =-SUMIF(INDIRECT("Erb"&$Z$1&"!$B:$B"),$A13,INDIRECT("Erb"&$Z$1&"!$F:$F"))-J48 -> 0 | L56: =ROUND(L48,2)-J13 -> 0 | M56: =M19+M41 -> 0 | N56: 0 | O56: 0 | P56: 0 | Q56: 0 | R56: 0 | S56: =S41-SUM(S43:S44) -> 0 | Z56: =Z41-SUM(Z43:Z44) -> 0
B57: Verprobungen2 | G57: =-SUMIF(INDIRECT("AW"&$Z$1&"!$B:$B"),$A$17,INDIRECT("AW"&$Z$1&"!$F:$F"))-G$52 -> 0 | J57: =-SUMIF(INDIRECT("Erb"&$Z$1&"!$B:$B"),$A14,INDIRECT("Erb"&$Z$1&"!$F:$F"))-J51 -> 0 | L57: =L51-J16 -> 0 | S57: =SUMIF(VerprobVerwend!$D:$D,$Z$1,VerprobVerwend!$B:$B)-S41 -> 0
G58: =-SUMIF(INDIRECT("AW"&$Z$1&"!$B:$B"),$A$17,INDIRECT("AW"&$Z$1&"!$J:$J"))-G$18-G$19 -> 0
C60: =IF(SUM(C18:C19)=0,"",SUM(C18:C19)) -> 49568.57 | E60: =IF(SUM(E18:E19)=0,"",SUM(E18:E19)) -> 13742.75 | G60: =IF(SUM(G18:G19)=0,"",SUM(G18:G19)) -> 183509.99 | J60: =IF(SUM(J18:J19)=0,"",SUM(J18:J19)) -> 37844.93 | M60: =IF(SUM(M18:M19)=0,"",SUM(M18:M19)) -> 8100 | O60: =IF(SUM(O18:O19)=0,"",SUM(O18:O19)) -> 37828 | Q60: =IF(SUM(Q18:Q19)=0,"",SUM(Q18:Q19)) -> 
C61: =IF(SUM(C18:C19)=0,"",C7) -> Spendenbriefe | E61: =IF(SUM(E18:E19)=0,"",E7) -> Sammeltagsmittel | G61: =IF(SUM(G18:G19)=0,"",G7) -> Weitere (Geld)Spenden | J61: =IF(SUM(J18:J19)=0,"",J7) -> Erbschaften | M61: =IF(SUM(M18:M19)=0,"",M7) -> Bußgelder | O61: =IF(SUM(O18:O19)=0,"",O7) -> Stiftungsmittel | Q61: =IF(SUM(Q18:Q19)=0,"",Q7) -> 
C64: ="Verwendung der Spenden in " & RIGHT($C$8,4) & " Caritas " & INDEX(IndexCrGb!$D:$E,MATCH($Z$1,IndexCrGb!$E:$E,0),1) -> Verwendung der Spenden in 2023 Caritas Biberach-Saulgau
C65: ="Spendeneingänge " & RIGHT($C$8,4) & " Caritas " & INDEX(IndexCrGb!$D:$E,MATCH($Z$1,IndexCrGb!$E:$E,0),1) -> Spendeneingänge 2023 Caritas Biberach-Saulgau

Sheet HeilbronnHohenlohe
A1: Spendenbilanz Caritasverband der Diözese Rottenburg-Stuttgart e.V. | Z1: HH
A3: ="Mandant: "& INDEX(IndexCrGb!$D:$E,MATCH($Z$1,IndexCrGb!$E:$E,0),1) -> Mandant: Heilbronn-Hohenlohe | G3: Stichtag: | I3: 2023-12-31
C7: Spendenbriefe | E7: Sammeltagsmittel | G7: Weitere (Geld)Spenden | J7: Erbschaften | M7: Bußgelder | O7: Stiftungsmittel | Q7: Sachspenden | S7: Summe | Z7: Summe
C8: 2023 | D8: 2022 | E8: 2023 | F8: 2022 | G8: 2023 | H8: davon aus Vorjahren | I8: 2022 | J8: 2023 | K8: davon aus Vorjahren | L8: 2022 | M8: 2023 | N8: 2022 | O8: 2023 | P8: 2022 | Q8: 2023 | R8: 2022 | S8: 2023 | Z8: 2022 | AC8: =S8 -> 2023 | AD8: =Z8 -> 2022
C9: EUR | D9: EUR | E9: EUR | F9: EUR | G9: EUR | H9: EUR | I9: EUR | J9: EUR | K9: EUR | L9: EUR | M9: EUR | N9: EUR | O9: EUR | P9: EUR | Q9: EUR | R9: EUR | S9: EUR | Z9: EUR
A11: Mittelherkunft 01.01.
A12: Rücklagen Erbschaften/Spenden | S12: =SUM(S13:S14) -> 0 | T12: 0 | U12: 0 | V12: 0 | W12: 0 | X12: 0 | Y12: 0 | Z12: 0
A13: ErbRückl | B13: Rücklagen Erbschaften | J13: =-SUMIF(INDIRECT("Erb"&$Z$1&"!$B:$B"),$A13,INDIRECT("Erb"&$Z$1&"!$C:$C")) -> 0 | L13: =SUMIF(INDIRECT($Z$1&"22!$B:$B"),$B13,INDIRECT($Z$1&"22!$J:$J")) -> 0 | S13: =J13 -> 0 | Z13: =L13 -> 0 | AC13: =SUMIF($C$8:$R$8,AC$8,$C13:$R13)-S13 -> 0 | AD13: =SUMIF($C$8:$R$8,AD$8,$C13:$R13)-Z13 -> 0
A14: ErbVerb | B14: Rücklagen Spenden | I14: =SUMIF(INDIRECT($Z$1&"22!$B:$B"),$B14,INDIRECT($Z$1&"22!$G:$G")) -> 0 | S14: =G14 -> 0 | Z14: =I14 -> 0
A15: Noch nicht verbrauchte Spendenmittel/Erbschaften | S15: =SUM(S16:S17) -> 429281.35 | T15: =T17 -> 0 | U15: 0 | V15: 0 | W15: 0 | X15: 0 | Y15: 0 | Z15: =SUM(Z16:Z17) -> 151729.25
A16: nicht verbrauchte Spendenmittel | B16: nicht verbrauchte Erbschaften | J16: =-SUMIF(INDIRECT("Erb"&$Z$1&"!$B:$B"),$A14,INDIRECT("Erb"&$Z$1&"!$C:$C")) -> 0 | L16: =SUMIF(INDIRECT($Z$1&"22!$B:$B"),$B16,INDIRECT($Z$1&"22!$J:$J")) -> 0 | S16: =J16 -> 0 | Z16: =L16 -> 0 | AC16: =SUMIF($C$8:$R$8,AC$8,$C16:$R16)-S16 -> 0 | AD16: =SUMIF($C$8:$R$8,AD$8,$C16:$R16)-Z16 -> 0
A17: Gesamt | B17: nicht verbrauchte Spendenmittel | G17: =-SUMIF(INDIRECT("AW"&$Z$1&"!$B:$B"),$A$17,INDIRECT("AW"&$Z$1&"!$C:$C")) -> 429281.35 | I17: =SUMIF(INDIRECT($Z$1&"22!$B:$B"),$A16,INDIRECT($Z$1&"22!$G:$G")) -> 151729.25 | S17: =C17+E17+G17 -> 429281.35 | Z17: =D17+F17+I17 -> 151729.25 | AC17: =SUMIF($C$8:$R$8,AC$8,$C17:$R17)-S17 -> 0 | AD17: =SUMIF($C$8:$R$8,AD$8,$C17:$R17)-Z17 -> 0
A18: Umbuchung von GB 01 | C18: =-SUM(IF(SpMailSaTaIst23!$G$1:$G$100=$Z$1,IF(SpMailSaTaIst23!$H$1:$H$100=IndexCrGb!$P$3,SpMailSaTaIst23!$E$1:$E$100))) -> 49568.57 | D18: =SUMIF(INDIRECT($Z$1&"22!$A:$A"),$A18,INDIRECT($Z$1&"22!$C:$C")) -> 64017.62 | E18: =-SUM(IF(SpMailSaTaIst23!$G$1:$G$100=$Z$1,IF(SpMailSaTaIst23!$H$1:$H$100=IndexCrGb!$P$4,SpMailSaTaIst23!$E$1:$E$100))) -> 13890.08 | F18: =SUMIF(INDIRECT($Z$1&"22!$A:$A"),$A18,INDIRECT($Z$1&"22!$E:$E")) -> 19115.74 | G18: =-SUMIF(INDIRECT("AW"&$Z$1&"!$B:$B"),$A$17,INDIRECT("AW"&$Z$1&"!$I:$I")) -> 0 | I18: =SUMIF(INDIRECT($Z$1&"22!$A:$A"),$A18,INDIRECT($Z$1&"22!$G:$G")) -> 0 | J18: =-SUMIF(INDIRECT("Erb"&$Z$1&"!$B:$B"),$A17,INDIRECT("Erb"&$Z$1&"!$I:$I")) -> 0 | L18: =SUMIF(INDIRECT($Z$1&"22!$A:$A"),$A18,INDIRECT($Z$1&"22!$J:$J")) -> 0 | S18: =C18+E18+G18+J18+M18+O18+Q18 -> 63458.65 | Z18: =D18+F18+I18+L18+N18+P18+R18 -> 83133.36 | AC18: =SUMIF($C$8:$R$8,AC$8,$C18:$R18)-S18 -> 0 | AD18: =SUMIF($C$8:$R$8,AD$8,$C18:$R18)-Z18 -> 0
A19: Zufluss | G19: =-SUMIF(INDIRECT("AW"&$Z$1&"!$B:$B"),$A$17,INDIRECT("AW"&$Z$1&"!$D:$D")) -> 148417.56 | I19: =SUMIF(INDIRECT($Z$1&"22!$A:$A"),$A19,INDIRECT($Z$1&"22!$G:$G")) -> 478218.9 | J19: =-SUMIF(INDIRECT("Erb"&$Z$1&"!$B:$B"),$A17,INDIRECT("Erb"&$Z$1&"!$D:$D")) -> 0 | L19: =SUMIF(INDIRECT($Z$1&"22!$A:$A"),$A19,INDIRECT($Z$1&"22!$J:$J")) -> 0 | M19: =-SUMIF(Bussgelder23!$F:$F,$Z$1,Bussgelder23!$C:$C) -> 2600 | N19: =SUMIF(INDIRECT($Z$1&"22!$A:$A"),$A19,INDIRECT($Z$1&"22!$M:$M")) -> 2350 | O19: =-SUMIF(Fördermittel23!$F:$F,$Z$1,Fördermittel23!$C:$C) -> 72324.71 | P19: =SUMIF(INDIRECT($Z$1&"22!$A:$A"),$A19,INDIRECT($Z$1&"22!$O:$O")) -> 41633.52 | Q19: =-SUMIF(Sachspenden23!$F:$F,$Z$1,Sachspenden23!$C:$C) -> 0 | R19: =SUMIF(INDIRECT($Z$1&"22!$A:$A"),$A19,INDIRECT($Z$1&"22!$Q:$Q")) -> 0 | S19: =G19+J19+M19+O19+Q19 -> 223342.27 | Z19: =I19+L19+N19+P19+R19 -> 522202.42 | AC19: =SUMIF($C$8:$R$8,AC$8,$C19:$R19)-S19 -> 0 | AD19: =SUMIF($C$8:$R$8,AD$8,$C19:$R19)-Z19 -> 0
C20: =SUM(C18:C19) -> 49568.57 | D20: =SUM(D18:D19) -> 64017.62 | E20: =SUM(E18:E19) -> 13890.08 | F20: =SUM(F18:F19) -> 19115.74 | G20: =SUM(G14:G19) -> 577698.91 | H20: =SUM(H18:H19) -> 0 | I20: =SUM(I13:I19) -> 629948.15 | J20: =SUM(J13:J19) -> 0 | K20: =SUM(K18:K19) -> 0 | L20: =SUM(L11:L19) -> 0 | M20: =SUM(M19) -> 2600 | N20: 2350 | O20: 72324.71 | P20: 41633.52 | Q20: 0 | R20: 0 | S20: =S12+S15+S18+S19 -> 716082.27 | T20: 0 | U20: 0 | V20: 0 | W20: 0 | X20: 0 | Y20: 0 | Z20: 757065.03 | AC20: =SUMIF($C$8:$R$8,AC$8,$C20:$R20)-S20 -> 0 | AD20: =SUMIF($C$8:$R$8,AD$8,$C20:$R20)-Z20 -> 0
A22: Mittelverwendung
B23: =SpBilanzVerd2022!$J$3 -> Caritasarbeit allgemein | C23: =SUM(IF(SpMailSaTaIst23!$G$1:$G$100=$Z$1,IF(SpMailSaTaIst23!$I$1:$I$100=$B23,IF(SpMailSaTaIst23!$H$1:$H$100=IndexCrGb!$P$3,SpMailSaTaIst23!$E$1:$E$100)))) -> 0 | D23: =SUMIF(INDIRECT($Z$1&"22!$B:$B"),$B23,INDIRECT($Z$1&"22!$C:$C")) -> -6401.76 | E23: =SUM(IF(SpMailSaTaIst23!$G$1:$G$100=$Z$1,IF(SpMailSaTaIst23!$I$1:$I$100=$B23,IF(SpMailSaTaIst23!$H$1:$H$100=IndexCrGb!$P$4,SpMailSaTaIst23!$E$1:$E$100)))) -> 0 | F23: =SUMIF(INDIRECT($Z$1&"22!$B:$B"),$B23,INDIRECT($Z$1&"22!$E:$E")) -> -11000 | G23: =-SUMIF(INDIRECT("AW"&$Z$1&"!$B:$B"),$B23,INDIRECT("AW"&$Z$1&"!$E:$E")) -> -500 | H23: =SUMIF(INDIRECT("AW"&$Z$1&"!$B:$B"),$B23,INDIRECT("AW"&$Z$1&"!$G:$G")) -> 0 | I23: =SUMIF(INDIRECT($Z$1&"22!$B:$B"),$B23,INDIRECT($Z$1&"22!$G:$G")) -> -510 | J23: =-SUMIF(INDIRECT("Erb"&$Z$1&"!$B:$B"),$B23,INDIRECT("Erb"&$Z$1&"!$E:$E")) -> 0 | K23: =SUMIF(INDIRECT("Erb"&$Z$1&"!$B:$B"),$B23,INDIRECT("Erb"&$Z$1&"!$G:$G")) -> 0 | L23: =SUMIF(INDIRECT($Z$1&"22!$B:$B"),$B23,INDIRECT($Z$1&"22!$J:$J")) -> 0 | M23: =SUM(IF(Bussgelder23!$F$1:$F$100=$Z$1,IF(Bussgelder23!$E$1:$E$100=$B23,Bussgelder23!$C$1:$C$100))) -> 0 | N23: =SUMIF(INDIRECT($Z$1&"22!$B:$B"),$B23,INDIRECT($Z$1&"22!$M:$M")) -> 0 | O23: =SUM(IF(Fördermittel23!$F$1:$F$100=$Z$1,IF(Fördermittel23!$E$1:$E$100=$B23,Fördermittel23!$C$1:$C$100))) -> 0 | P23: =SUMIF(INDIRECT($Z$1&"22!$B:$B"),$B23,INDIRECT($Z$1&"22!$O:$O")) -> 0 | Q23: =SUM(IF(Sachspenden23!$F$1:$F$100=$Z$1,IF(Sachspenden23!$E$1:$E$100=$B23,Sachspenden23!$C$1:$C$100))) -> 0 | R23: =SUMIF(INDIRECT($Z$1&"22!$B:$B"),$B23,INDIRECT($Z$1&"22!$Q:$Q")) -> 0 | S23: =C23+E23+G23+J23+M23+O23+Q23 -> -500 | Z23: =D23+F23+I23+L23+N23+P23+R23 -> -17911.76 | AA23: =IF(S23=0,"",-S23) -> 500 | AB23: =IF(S23=0,"",$B23) -> Caritasarbeit allgemein | AC23: =SUMIF($C$8:$R$8,AC$8,$C23:$R23)-S23 -> 0 | AD23: =SUMIF($C$8:$R$8,AD$8,$C23:$R23)-Z23 -> 0
B24: =SpBilanzVerd2022!$J$2 -> Existenzsicherung | C24: =SUM(IF(SpMailSaTaIst23!$G$1:$G$100=$Z$1,IF(SpMailSaTaIst23!$I$1:$I$100=$B24,IF(SpMailSaTaIst23!$H$1:$H$100=IndexCrGb!$P$3,SpMailSaTaIst23!$E$1:$E$100)))) -> -20339.9 | D24: -20600 | E24: =SUM(IF(SpMailSaTaIst23!$G$1:$G$100=$Z$1,IF(SpMailSaTaIst23!$I$1:$I$100=$B24,IF(SpMailSaTaIst23!$H$1:$H$100=IndexCrGb!$P$4,SpMailSaTaIst23!$E$1:$E$100)))) -> 0 | F24: 0 | G24: =-SUMIF(INDIRECT("AW"&$Z$1&"!$B:$B"),$B24,INDIRECT("AW"&$Z$1&"!$E:$E")) -> -90353.71 | H24: =SUMIF(INDIRECT("AW"&$Z$1&"!$B:$B"),$B24,INDIRECT("AW"&$Z$1&"!$G:$G")) -> -58381.77 | I24: -79673.87 | J24: 0 | K24: 0 | L24: 0 | M24: =SUM(IF(Bussgelder23!$F$1:$F$100=$Z$1,IF(Bussgelder23!$E$1:$E$100=$B24,Bussgelder23!$C$1:$C$100))) -> -2600 | N24: -2350 | O24: =SUM(IF(Fördermittel23!$F$1:$F$100=$Z$1,IF(Fördermittel23!$E$1:$E$100=$B24,Fördermittel23!$C$1:$C$100))) -> -6736.28 | P24: -1000 | Q24: =SUM(IF(Sachspenden23!$F$1:$F$100=$Z$1,IF(Sachspenden23!$E$1:$E$100=$B24,Sachspenden23!$C$1:$C$100))) -> 0 | R24: 0 | S24: -120029.89 | Z24: -103623.87 | AA24: 120029.89 | AB24: Existenzsicherung | AC24: 0 | AD24: 0
B25: =SpBilanzVerd2022!$J$10 -> Familienhilfen | C25: =SUM(IF(SpMailSaTaIst23!$G$1:$G$100=$Z$1,IF(SpMailSaTaIst23!$I$1:$I$100=$B25,IF(SpMailSaTaIst23!$H$1:$H$100=IndexCrGb!$P$3,SpMailSaTaIst23!$E$1:$E$100)))) -> -4565.73 | D25: -15015.86 | E25: =SUM(IF(SpMailSaTaIst23!$G$1:$G$100=$Z$1,IF(SpMailSaTaIst23!$I$1:$I$100=$B25,IF(SpMailSaTaIst23!$H$1:$H$100=IndexCrGb!$P$4,SpMailSaTaIst23!$E$1:$E$100)))) -> 0 | F25: 0 | G25: =-SUMIF(INDIRECT("AW"&$Z$1&"!$B:$B"),$B25,INDIRECT("AW"&$Z$1&"!$E:$E")) -> -20770.62 | H25: =SUMIF(INDIRECT("AW"&$Z$1&"!$B:$B"),$B25,INDIRECT("AW"&$Z$1&"!$G:$G")) -> -20138.3 | I25: -15625.7 | J25: 0 | K25: 0 | L25: 0 | M25: =SUM(IF(Bussgelder23!$F$1:$F$100=$Z$1,IF(Bussgelder23!$E$1:$E$100=$B25,Bussgelder23!$C$1:$C$100))) -> 0 | N25: 0 | O25: =SUM(IF(Fördermittel23!$F$1:$F$100=$Z$1,IF(Fördermittel23!$E$1:$E$100=$B25,Fördermittel23!$C$1:$C$100))) -> 181.33 | P25: -1000 | Q25: =SUM(IF(Sachspenden23!$F$1:$F$100=$Z$1,IF(Sachspenden23!$E$1:$E$100=$B25,Sachspenden23!$C$1:$C$100))) -> 0 | R25: 0 | S25: -25155.02 | Z25: -31641.56 | AA25: 25155.02 | AB25: Familienhilfen | AC25: 0 | AD25: 0
B26: =SpBilanzVerd2022!$J$6 -> Kinder- und Jugendhilfe | C26: =SUM(IF(SpMailSaTaIst23!$G$1:$G$100=$Z$1,IF(SpMailSaTaIst23!$I$1:$I$100=$B26,IF(SpMailSaTaIst23!$H$1:$H$100=IndexCrGb!$P$3,SpMailSaTaIst23!$E$1:$E$100)))) -> -10000 | D26: -8000 | E26: =SUM(IF(SpMailSaTaIst23!$G$1:$G$100=$Z$1,IF(SpMailSaTaIst23!$I$1:$I$100=$B26,IF(SpMailSaTaIst23!$H$1:$H$100=IndexCrGb!$P$4,SpMailSaTaIst23!$E$1:$E$100)))) -> 0 | F26: 0 | G26: =-SUMIF(INDIRECT("AW"&$Z$1&"!$B:$B"),$B26,INDIRECT("AW"&$Z$1&"!$E:$E")) -> -6499.64 | H26: =SUMIF(INDIRECT("AW"&$Z$1&"!$B:$B"),$B26,INDIRECT("AW"&$Z$1&"!$G:$G")) -> -5005.44 | I26: -2445.62 | J26: 0 | K26: 0 | L26: 0 | M26: =SUM(IF(Bussgelder23!$F$1:$F$100=$Z$1,IF(Bussgelder23!$E$1:$E$100=$B26,Bussgelder23!$C$1:$C$100))) -> 0 | N26: 0 | O26: =SUM(IF(Fördermittel23!$F$1:$F$100=$Z$1,IF(Fördermittel23!$E$1:$E$100=$B26,Fördermittel23!$C$1:$C$100))) -> -65769.76 | P26: -38554.05 | Q26: =SUM(IF(Sachspenden23!$F$1:$F$100=$Z$1,IF(Sachspenden23!$E$1:$E$100=$B26,Sachspenden23!$C$1:$C$100))) -> 0 | R26: 0 | S26: -82269.4 | Z26: -48999.67 | AA26: 82269.4 | AB26: Kinder- und Jugendhilfe | AC26: 0 | AD26: 0
B27: =SpBilanzVerd2022!$J$16 -> Jugendberufshilfe | C27: =SUM(IF(SpMailSaTaIst23!$G$1:$G$100=$Z$1,IF(SpMailSaTaIst23!$I$1:$I$100=$B27,IF(SpMailSaTaIst23!$H$1:$H$100=IndexCrGb!$P$3,SpMailSaTaIst23!$E$1:$E$100)))) -> 0 | D27: 0 | E27: =SUM(IF(SpMailSaTaIst23!$G$1:$G$100=$Z$1,IF(SpMailSaTaIst23!$I$1:$I$100=$B27,IF(SpMailSaTaIst23!$H$1:$H$100=IndexCrGb!$P$4,SpMailSaTaIst23!$E$1:$E$100)))) -> 0 | F27: 0 | G27: =-SUMIF(INDIRECT("AW"&$Z$1&"!$B:$B"),$B27,INDIRECT("AW"&$Z$1&"!$E:$E")) -> -650 | H27: =SUMIF(INDIRECT("AW"&$Z$1&"!$B:$B"),$B27,INDIRECT("AW"&$Z$1&"!$G:$G")) -> -650 | I27: 0 | J27: 0 | K27: 0 | L27: 0 | M27: =SUM(IF(Bussgelder23!$F$1:$F$100=$Z$1,IF(Bussgelder23!$E$1:$E$100=$B27,Bussgelder23!$C$1:$C$100))) -> 0 | N27: 0 | O27: =SUM(IF(Fördermittel23!$F$1:$F$100=$Z$1,IF(Fördermittel23!$E$1:$E$100=$B27,Fördermittel23!$C$1:$C$100))) -> 0 | P27: 0 | Q27: =SUM(IF(Sachspenden23!$F$1:$F$100=$Z$1,IF(Sachspenden23!$E$1:$E$100=$B27,Sachspenden23!$C$1:$C$100))) -> 0 | R27: 0 | S27: -650 | Z27: 0 | AA27: 650 | AB27: Jugendberufshilfe | AC27: 0 | AD27: 0
B28: =SpBilanzVerd2022!$J$14 -> Behindertenhilfe | C28: =SUM(IF(SpMailSaTaIst23!$G$1:$G$100=$Z$1,IF(SpMailSaTaIst23!$I$1:$I$100=$B28,IF(SpMailSaTaIst23!$H$1:$H$100=IndexCrGb!$P$3,SpMailSaTaIst23!$E$1:$E$100)))) -> 0 | D28: 0 | E28: =SUM(IF(SpMailSaTaIst23!$G$1:$G$100=$Z$1,IF(SpMailSaTaIst23!$I$1:$I$100=$B28,IF(SpMailSaTaIst23!$H$1:$H$100=IndexCrGb!$P$4,SpMailSaTaIst23!$E$1:$E$100)))) -> 0 | F28: 0 | G28: =-SUMIF(INDIRECT("AW"&$Z$1&"!$B:$B"),$B28,INDIRECT("AW"&$Z$1&"!$E:$E")) -> 0 | H28: =SUMIF(INDIRECT("AW"&$Z$1&"!$B:$B"),$B28,INDIRECT("AW"&$Z$1&"!$G:$G")) -> 0 | I28: 0 | J28: 0 | K28: 0 | L28: 0 | M28: =SUM(IF(Bussgelder23!$F$1:$F$100=$Z$1,IF(Bussgelder23!$E$1:$E$100=$B28,Bussgelder23!$C$1:$C$100))) -> 0 | N28: 0 | O28: =SUM(IF(Fördermittel23!$F$1:$F$100=$Z$1,IF(Fördermittel23!$E$1:$E$100=$B28,Fördermittel23!$C$1:$C$100))) -> 0 | P28: 0 | Q28: =SUM(IF(Sachspenden23!$F$1:$F$100=$Z$1,IF(Sachspenden23!$E$1:$E$100=$B28,Sachspenden23!$C$1:$C$100))) -> 0 | R28: 0 | S28: 0 | Z28: 0 | AC28: 0 | AD28: 0
B29: =SpBilanzVerd2022!$J$9 -> Altenhilfe/Hospizdienste | C29: =SUM(IF(SpMailSaTaIst23!$G$1:$G$100=$Z$1,IF(SpMailSaTaIst23!$I$1:$I$100=$B29,IF(SpMailSaTaIst23!$H$1:$H$100=IndexCrGb!$P$3,SpMailSaTaIst23!$E$1:$E$100)))) -> 0 | D29: 0 | E29: =SUM(IF(SpMailSaTaIst23!$G$1:$G$100=$Z$1,IF(SpMailSaTaIst23!$I$1:$I$100=$B29,IF(SpMailSaTaIst23!$H$1:$H$100=IndexCrGb!$P$4,SpMailSaTaIst23!$E$1:$E$100)))) -> -13890.08 | F29: -8115.74 | G29: =-SUMIF(INDIRECT("AW"&$Z$1&"!$B:$B"),$B29,INDIRECT("AW"&$Z$1&"!$E:$E")) -> 0 | H29: =SUMIF(INDIRECT("AW"&$Z$1&"!$B:$B"),$B29,INDIRECT("AW"&$Z$1&"!$G:$G")) -> 0 | I29: 0 | J29: 0 | K29: 0 | L29: 0 | M29: =SUM(IF(Bussgelder23!$F$1:$F$100=$Z$1,IF(Bussgelder23!$E$1:$E$100=$B29,Bussgelder23!$C$1:$C$100))) -> 0 | N29: 0 | O29: =SUM(IF(Fördermittel23!$F$1:$F$100=$Z$1,IF(Fördermittel23!$E$1:$E$100=$B29,Fördermittel23!$C$1:$C$100))) -> 0 | P29: 0 | Q29: =SUM(IF(Sachspenden23!$F$1:$F$100=$Z$1,IF(Sachspenden23!$E$1:$E$100=$B29,Sachspenden23!$C$1:$C$100))) -> 0 | R29: 0 | S29: -13890.08 | Z29: -8115.74 | AA29: 13890.08 | AB29: Altenhilfe/Hospizdienste | AC29: 0 | AD29: 0
B30: =SpBilanzVerd2022!$J$12 -> Sozialpsychiatrischer Dienst | C30: =SUM(IF(SpMailSaTaIst23!$G$1:$G$100=$Z$1,IF(SpMailSaTaIst23!$I$1:$I$100=$B30,IF(SpMailSaTaIst23!$H$1:$H$100=IndexCrGb!$P$3,SpMailSaTaIst23!$E$1:$E$100)))) -> 0 | D30: 0 | E30: =SUM(IF(SpMailSaTaIst23!$G$1:$G$100=$Z$1,IF(SpMailSaTaIst23!$I$1:$I$100=$B30,IF(SpMailSaTaIst23!$H$1:$H$100=IndexCrGb!$P$4,SpMailSaTaIst23!$E$1:$E$100)))) -> 0 | F30: 0 | G30: =-SUMIF(INDIRECT("AW"&$Z$1&"!$B:$B"),$B30,INDIRECT("AW"&$Z$1&"!$E:$E")) -> -28948.41 | H30: =SUMIF(INDIRECT("AW"&$Z$1&"!$B:$B"),$B30,INDIRECT("AW"&$Z$1&"!$G:$G")) -> -21730.56 | I30: -29160.09 | J30: 0 | K30: 0 | L30: 0 | M30: =SUM(IF(Bussgelder23!$F$1:$F$100=$Z$1,IF(Bussgelder23!$E$1:$E$100=$B30,Bussgelder23!$C$1:$C$100))) -> 0 | N30: 0 | O30: =SUM(IF(Fördermittel23!$F$1:$F$100=$Z$1,IF(Fördermittel23!$E$1:$E$100=$B30,Fördermittel23!$C$1:$C$100))) -> 0 | P30: 0 | Q30: =SUM(IF(Sachspenden23!$F$1:$F$100=$Z$1,IF(Sachspenden23!$E$1:$E$100=$B30,Sachspenden23!$C$1:$C$100))) -> 0 | R30: 0 | S30: -28948.41 | Z30: -29160.09 | AA30: 28948.41 | AB30: Sozialpsychiatrischer Dienst | AC30: 0 | AD30: 0
B31: =SpBilanzVerd2022!$J$5 -> Suchthilfe | C31: =SUM(IF(SpMailSaTaIst23!$G$1:$G$100=$Z$1,IF(SpMailSaTaIst23!$I$1:$I$100=$B31,IF(SpMailSaTaIst23!$H$1:$H$100=IndexCrGb!$P$3,SpMailSaTaIst23!$E$1:$E$100)))) -> 0 | D31: 0 | E31: =SUM(IF(SpMailSaTaIst23!$G$1:$G$100=$Z$1,IF(SpMailSaTaIst23!$I$1:$I$100=$B31,IF(SpMailSaTaIst23!$H$1:$H$100=IndexCrGb!$P$4,SpMailSaTaIst23!$E$1:$E$100)))) -> 0 | F31: 0 | G31: =-SUMIF(INDIRECT("AW"&$Z$1&"!$B:$B"),$B31,INDIRECT("AW"&$Z$1&"!$E:$E")) -> -5402.69 | H31: =SUMIF(INDIRECT("AW"&$Z$1&"!$B:$B"),$B31,INDIRECT("AW"&$Z$1&"!$G:$G")) -> -5135 | I31: -7130 | J31: 0 | K31: 0 | L31: 0 | M31: =SUM(IF(Bussgelder23!$F$1:$F$100=$Z$1,IF(Bussgelder23!$E$1:$E$100=$B31,Bussgelder23!$C$1:$C$100))) -> 0 | N31: 0 | O31: =SUM(IF(Fördermittel23!$F$1:$F$100=$Z$1,IF(Fördermittel23!$E$1:$E$100=$B31,Fördermittel23!$C$1:$C$100))) -> 0 | P31: 0 | Q31: =SUM(IF(Sachspenden23!$F$1:$F$100=$Z$1,IF(Sachspenden23!$E$1:$E$100=$B31,Sachspenden23!$C$1:$C$100))) -> 0 | R31: 0 | S31: -5402.69 | Z31: -7130 | AA31: 5402.69 | AB31: Suchthilfe | AC31: 0 | AD31: 0
B32: =SpBilanzVerd2022!$J$13 -> Migration | C32: =SUM(IF(SpMailSaTaIst23!$G$1:$G$100=$Z$1,IF(SpMailSaTaIst23!$I$1:$I$100=$B32,IF(SpMailSaTaIst23!$H$1:$H$100=IndexCrGb!$P$3,SpMailSaTaIst23!$E$1:$E$100)))) -> -14611.98 | D32: -14000 | E32: =SUM(IF(SpMailSaTaIst23!$G$1:$G$100=$Z$1,IF(SpMailSaTaIst23!$I$1:$I$100=$B32,IF(SpMailSaTaIst23!$H$1:$H$100=IndexCrGb!$P$4,SpMailSaTaIst23!$E$1:$E$100)))) -> 0 | F32: 0 | G32: =-SUMIF(INDIRECT("AW"&$Z$1&"!$B:$B"),$B32,INDIRECT("AW"&$Z$1&"!$E:$E")) -> -103772.21 | H32: =SUMIF(INDIRECT("AW"&$Z$1&"!$B:$B"),$B32,INDIRECT("AW"&$Z$1&"!$G:$G")) -> -103496.64 | I32: -41121.52 | J32: 0 | K32: 0 | L32: 0 | M32: =SUM(IF(Bussgelder23!$F$1:$F$100=$Z$1,IF(Bussgelder23!$E$1:$E$100=$B32,Bussgelder23!$C$1:$C$100))) -> 0 | N32: 0 | O32: =SUM(IF(Fördermittel23!$F$1:$F$100=$Z$1,IF(Fördermittel23!$E$1:$E$100=$B32,Fördermittel23!$C$1:$C$100))) -> 0 | P32: 0 | Q32: =SUM(IF(Sachspenden23!$F$1:$F$100=$Z$1,IF(Sachspenden23!$E$1:$E$100=$B32,Sachspenden23!$C$1:$C$100))) -> 0 | R32: 0 | S32: -118384.19 | Z32: -55121.52 | AA32: 118384.19 | AB32: Migration | AC32: 0 | AD32: 0
B33: =SpBilanzVerd2022!$J$7 -> Wohnungslosenhilfe | C33: =SUM(IF(SpMailSaTaIst23!$G$1:$G$100=$Z$1,IF(SpMailSaTaIst23!$I$1:$I$100=$B33,IF(SpMailSaTaIst23!$H$1:$H$100=IndexCrGb!$P$3,SpMailSaTaIst23!$E$1:$E$100)))) -> 0 | D33: 0 | E33: =SUM(IF(SpMailSaTaIst23!$G$1:$G$100=$Z$1,IF(SpMailSaTaIst23!$I$1:$I$100=$B33,IF(SpMailSaTaIst23!$H$1:$H$100=IndexCrGb!$P$4,SpMailSaTaIst23!$E$1:$E$100)))) -> 0 | F33: 0 | G33: =-SUMIF(INDIRECT("AW"&$Z$1&"!$B:$B"),$B33,INDIRECT("AW"&$Z$1&"!$E:$E")) -> 0 | H33: =SUMIF(INDIRECT("AW"&$Z$1&"!$B:$B"),$B33,INDIRECT("AW"&$Z$1&"!$G:$G")) -> 0 | I33: 0 | J33: 0 | K33: 0 | L33: 0 | M33: =SUM(IF(Bussgelder23!$F$1:$F$100=$Z$1,IF(Bussgelder23!$E$1:$E$100=$B33,Bussgelder23!$C$1:$C$100))) -> 0 | N33: 0 | O33: =SUM(IF(Fördermittel23!$F$1:$F$100=$Z$1,IF(Fördermittel23!$E$1:$E$100=$B33,Fördermittel23!$C$1:$C$100))) -> 0 | P33: 0 | Q33: =SUM(IF(Sachspenden23!$F$1:$F$100=$Z$1,IF(Sachspenden23!$E$1:$E$100=$B33,Sachspenden23!$C$1:$C$100))) -> 0 | R33: 0 | S33: 0 | Z33: 0 | AC33: 0 | AD33: 0
B34: =SpBilanzVerd2022!$J$4 -> Gemeindenahe Netzwerke | C34: =SUM(IF(SpMailSaTaIst23!$G$1:$G$100=$Z$1,IF(SpMailSaTaIst23!$I$1:$I$100=$B34,IF(SpMailSaTaIst23!$H$1:$H$100=IndexCrGb!$P$3,SpMailSaTaIst23!$E$1:$E$100)))) -> -50.96 | D34: 0 | E34: =SUM(IF(SpMailSaTaIst23!$G$1:$G$100=$Z$1,IF(SpMailSaTaIst23!$I$1:$I$100=$B34,IF(SpMailSaTaIst23!$H$1:$H$100=IndexCrGb!$P$4,SpMailSaTaIst23!$E$1:$E$100)))) -> 0 | F34: 0 | G34: =-SUMIF(INDIRECT("AW"&$Z$1&"!$B:$B"),$B34,INDIRECT("AW"&$Z$1&"!$E:$E")) -> -35000 | H34: =SUMIF(INDIRECT("AW"&$Z$1&"!$B:$B"),$B34,INDIRECT("AW"&$Z$1&"!$G:$G")) -> -5000 | I34: -25000 | J34: 0 | K34: 0 | L34: 0 | M34: =SUM(IF(Bussgelder23!$F$1:$F$100=$Z$1,IF(Bussgelder23!$E$1:$E$100=$B34,Bussgelder23!$C$1:$C$100))) -> 0 | N34: 0 | O34: =SUM(IF(Fördermittel23!$F$1:$F$100=$Z$1,IF(Fördermittel23!$E$1:$E$100=$B34,Fördermittel23!$C$1:$C$100))) -> 0 | P34: -1079.47 | Q34: =SUM(IF(Sachspenden23!$F$1:$F$100=$Z$1,IF(Sachspenden23!$E$1:$E$100=$B34,Sachspenden23!$C$1:$C$100))) -> 0 | R34: 0 | S34: -35050.96 | Z34: -26079.47 | AA34: 35050.96 | AB34: Gemeindenahe Netzwerke | AC34: 0 | AD34: 0
B35: =SpBilanzVerd2022!$J$8 -> Arbeitshilfen | C35: =SUM(IF(SpMailSaTaIst23!$G$1:$G$100=$Z$1,IF(SpMailSaTaIst23!$I$1:$I$100=$B35,IF(SpMailSaTaIst23!$H$1:$H$100=IndexCrGb!$P$3,SpMailSaTaIst23!$E$1:$E$100)))) -> 0 | D35: 0 | E35: =SUM(IF(SpMailSaTaIst23!$G$1:$G$100=$Z$1,IF(SpMailSaTaIst23!$I$1:$I$100=$B35,IF(SpMailSaTaIst23!$H$1:$H$100=IndexCrGb!$P$4,SpMailSaTaIst23!$E$1:$E$100)))) -> 0 | F35: 0 | G35: =-SUMIF(INDIRECT("AW"&$Z$1&"!$B:$B"),$B35,INDIRECT("AW"&$Z$1&"!$E:$E")) -> 0 | H35: =SUMIF(INDIRECT("AW"&$Z$1&"!$B:$B"),$B35,INDIRECT("AW"&$Z$1&"!$G:$G")) -> 0 | I35: 0 | J35: 0 | K35: 0 | L35: 0 | M35: =SUM(IF(Bussgelder23!$F$1:$F$100=$Z$1,IF(Bussgelder23!$E$1:$E$100=$B35,Bussgelder23!$C$1:$C$100))) -> 0 | N35: 0 | O35: =SUM(IF(Fördermittel23!$F$1:$F$100=$Z$1,IF(Fördermittel23!$E$1:$E$100=$B35,Fördermittel23!$C$1:$C$100))) -> 0 | P35: 0 | Q35: =SUM(IF(Sachspenden23!$F$1:$F$100=$Z$1,IF(Sachspenden23!$E$1:$E$100=$B35,Sachspenden23!$C$1:$C$100))) -> 0 | R35: 0 | S35: 0 | Z35: 0 | AC35: 0 | AD35: 0
B36: =SpBilanzVerd2022!$J$17 -> Diverse Zweckhinweise | C36: =SUM(IF(SpMailSaTaIst23!$G$1:$G$100=$Z$1,IF(SpMailSaTaIst23!$I$1:$I$100=$B36,IF(SpMailSaTaIst23!$H$1:$H$100=IndexCrGb!$P$3,SpMailSaTaIst23!$E$1:$E$100)))) -> 0 | D36: 0 | E36: =SUM(IF(SpMailSaTaIst23!$G$1:$G$100=$Z$1,IF(SpMailSaTaIst23!$I$1:$I$100=$B36,IF(SpMailSaTaIst23!$H$1:$H$100=IndexCrGb!$P$4,SpMailSaTaIst23!$E$1:$E$100)))) -> 0 | F36: 0 | G36: =-SUMIF(INDIRECT("AW"&$Z$1&"!$B:$B"),$B36,INDIRECT("AW"&$Z$1&"!$E:$E")) -> 0 | H36: =SUMIF(INDIRECT("AW"&$Z$1&"!$B:$B"),$B36,INDIRECT("AW"&$Z$1&"!$G:$G")) -> 0 | I36: 0 | J36: 0 | K36: 0 | L36: 0 | M36: =SUM(IF(Bussgelder23!$F$1:$F$100=$Z$1,IF(Bussgelder23!$E$1:$E$100=$B36,Bussgelder23!$C$1:$C$100))) -> 0 | N36: 0 | O36: =SUM(IF(Fördermittel23!$F$1:$F$100=$Z$1,IF(Fördermittel23!$E$1:$E$100=$B36,Fördermittel23!$C$1:$C$100))) -> 0 | P36: 0 | Q36: =SUM(IF(Sachspenden23!$F$1:$F$100=$Z$1,IF(Sachspenden23!$E$1:$E$100=$B36,Sachspenden23!$C$1:$C$100))) -> 0 | R36: 0 | S36: 0 | Z36: 0 | AC36: 0 | AD36: 0
B37: =SpBilanzVerd2022!$L$18 -> Sonstiges | C37: =SUM(IF(SpMailSaTaIst23!$G$1:$G$100=$Z$1,IF(SpMailSaTaIst23!$I$1:$I$100=$B37,IF(SpMailSaTaIst23!$H$1:$H$100=IndexCrGb!$P$3,SpMailSaTaIst23!$E$1:$E$100)))) -> 0 | D37: 0 | E37: =SUM(IF(SpMailSaTaIst23!$G$1:$G$100=$Z$1,IF(SpMailSaTaIst23!$I$1:$I$100=$B37,IF(SpMailSaTaIst23!$H$1:$H$100=IndexCrGb!$P$4,SpMailSaTaIst23!$E$1:$E$100)))) -> 0 | F37: 0 | G37: =-SUMIF(INDIRECT("AW"&$Z$1&"!$B:$B"),$B37,INDIRECT("AW"&$Z$1&"!$E:$E")) -> 0 | H37: =SUMIF(INDIRECT("AW"&$Z$1&"!$B:$B"),$B37,INDIRECT("AW"&$Z$1&"!$G:$G")) -> 0 | I37: 0 | J37: 0 | K37: 0 | L37: 0 | M37: =SUM(IF(Bussgelder23!$F$1:$F$100=$Z$1,IF(Bussgelder23!$E$1:$E$100=$B37,Bussgelder23!$C$1:$C$100))) -> 0 | N37: 0 | O37: =SUM(IF(Fördermittel23!$F$1:$F$100=$Z$1,IF(Fördermittel23!$E$1:$E$100=$B37,Fördermittel23!$C$1:$C$100))) -> 0 | P37: 0 | Q37: =SUM(IF(Sachspenden23!$F$1:$F$100=$Z$1,IF(Sachspenden23!$E$1:$E$100=$B37,Sachspenden23!$C$1:$C$100))) -> 0 | R37: 0 | S37: 0 | Z37: 0 | AC37: 0 | AD37: 0
B38: =SpBilanzVerd2022!$J$11 -> Weiterleitung an Dritte | C38: =SUM(IF(SpMailSaTaIst23!$G$1:$G$100=$Z$1,IF(SpMailSaTaIst23!$I$1:$I$100=$B38,IF(SpMailSaTaIst23!$H$1:$H$100=IndexCrGb!$P$3,SpMailSaTaIst23!$E$1:$E$100)))) -> 0 | D38: 0 | E38: =SUM(IF(SpMailSaTaIst23!$G$1:$G$100=$Z$1,IF(SpMailSaTaIst23!$I$1:$I$100=$B38,IF(SpMailSaTaIst23!$H$1:$H$100=IndexCrGb!$P$4,SpMailSaTaIst23!$E$1:$E$100)))) -> 0 | F38: 0 | G38: =-SUMIF(INDIRECT("AW"&$Z$1&"!$B:$B"),$B38,INDIRECT("AW"&$Z$1&"!$E:$E")) -> 0 | H38: =SUMIF(INDIRECT("AW"&$Z$1&"!$B:$B"),$B38,INDIRECT("AW"&$Z$1&"!$G:$G")) -> 0 | I38: 0 | J38: 0 | K38: 0 | L38: 0 | M38: =SUM(IF(Bussgelder23!$F$1:$F$100=$Z$1,IF(Bussgelder23!$E$1:$E$100=$B38,Bussgelder23!$C$1:$C$100))) -> 0 | N38: 0 | O38: =SUM(IF(Fördermittel23!$F$1:$F$100=$Z$1,IF(Fördermittel23!$E$1:$E$100=$B38,Fördermittel23!$C$1:$C$100))) -> 0 | P38: 0 | Q38: =SUM(IF(Sachspenden23!$F$1:$F$100=$Z$1,IF(Sachspenden23!$E$1:$E$100=$B38,Sachspenden23!$C$1:$C$100))) -> 0 | R38: 0 | S38: 0 | Z38: 0 | AC38: 0 | AD38: 0
B39: =SpBilanzVerd2022!$L$19 -> Werbung und allgemeine Öffentlichkeitsarbeit | C39: =SUM(IF(SpMailSaTaIst23!$G$1:$G$100=$Z$1,IF(SpMailSaTaIst23!$I$1:$I$100=$B39,IF(SpMailSaTaIst23!$H$1:$H$100=IndexCrGb!$P$3,SpMailSaTaIst23!$E$1:$E$100)))) -> 0 | D39: 0 | E39: =SUM(IF(SpMailSaTaIst23!$G$1:$G$100=$Z$1,IF(SpMailSaTaIst23!$I$1:$I$100=$B39,IF(SpMailSaTaIst23!$H$1:$H$100=IndexCrGb!$P$4,SpMailSaTaIst23!$E$1:$E$100)))) -> 0 | F39: 0 | G39: =-SUMIF(INDIRECT("AW"&$Z$1&"!$B:$B"),$B39,INDIRECT("AW"&$Z$1&"!$E:$E")) -> 0 | H39: =SUMIF(INDIRECT("AW"&$Z$1&"!$B:$B"),$B39,INDIRECT("AW"&$Z$1&"!$G:$G")) -> 0 | I39: 0 | J39: 0 | K39: 0 | L39: 0 | M39: =SUM(IF(Bussgelder23!$F$1:$F$100=$Z$1,IF(Bussgelder23!$E$1:$E$100=$B39,Bussgelder23!$C$1:$C$100))) -> 0 | N39: 0 | O39: =SUM(IF(Fördermittel23!$F$1:$F$100=$Z$1,IF(Fördermittel23!$E$1:$E$100=$B39,Fördermittel23!$C$1:$C$100))) -> 0 | P39: 0 | Q39: =SUM(IF(Sachspenden23!$F$1:$F$100=$Z$1,IF(Sachspenden23!$E$1:$E$100=$B39,Sachspenden23!$C$1:$C$100))) -> 0 | R39: 0 | S39: 0 | Z39: 0 | AC39: 0 | AD39: 0
B40: =SpBilanzVerd2022!$J$15 -> Verwaltung | C40: =SUM(IF(SpMailSaTaIst23!$G$1:$G$100=$Z$1,IF(SpMailSaTaIst23!$I$1:$I$100=$B40,IF(SpMailSaTaIst23!$H$1:$H$100=IndexCrGb!$P$3,SpMailSaTaIst23!$E$1:$E$100)))) -> 0 | D40: 0 | E40: =SUM(IF(SpMailSaTaIst23!$G$1:$G$100=$Z$1,IF(SpMailSaTaIst23!$I$1:$I$100=$B40,IF(SpMailSaTaIst23!$H$1:$H$100=IndexCrGb!$P$4,SpMailSaTaIst23!$E$1:$E$100)))) -> 0 | F40: 0 | G40: =-SUMIF(INDIRECT("AW"&$Z$1&"!$B:$B"),$B40,INDIRECT("AW"&$Z$1&"!$E:$E")) -> 0 | H40: =SUMIF(INDIRECT("AW"&$Z$1&"!$B:$B"),$B40,INDIRECT("AW"&$Z$1&"!$G:$G")) -> 0 | I40: 0 | J40: 0 | K40: 0 | L40: 0 | M40: =SUM(IF(Bussgelder23!$F$1:$F$100=$Z$1,IF(Bussgelder23!$E$1:$E$100=$B40,Bussgelder23!$C$1:$C$100))) -> 0 | N40: 0 | O40: =SUM(IF(Fördermittel23!$F$1:$F$100=$Z$1,IF(Fördermittel23!$E$1:$E$100=$B40,Fördermittel23!$C$1:$C$100))) -> 0 | P40: 0 | Q40: =SUM(IF(Sachspenden23!$F$1:$F$100=$Z$1,IF(Sachspenden23!$E$1:$E$100=$B40,Sachspenden23!$C$1:$C$100))) -> 0 | R40: 0 | S40: 0 | Z40: 0 | AC40: 0 | AD40: 0
C41: =SUM(C23:C40) -> -49568.57 | D41: -64017.62 | E41: -13890.08 | F41: -19115.74 | G41: -291897.28 | H41: -219537.71 | I41: -200666.8 | J41: 0 | K41: 0 | L41: 0 | M41: -2600 | N41: -2350 | O41: -72324.71 | P41: -41633.52 | Q41: 0 | R41: 0 | S41: -430280.64 | Z41: =SUM(Z23:Z40) -> -327783.68 | AC41: 0 | AD41: 0
A43: 88396 | B43: davon aus Rücklagen | J43: =-SUMIF(INDIRECT("Erb"&$Z$1&"!$A:$A"),$A43,INDIRECT("Erb"&$Z$1&"!$G:$G")) -> 0 | L43: =SUM(IF(DiffErb22!$G$1:$G$40=$A43,IF(DiffErb22!$F$1:$F$40=$Z$1,DiffErb22!$D$1:$D$40))) -> 0 | S43: =C43+E43+G43+J43+M43+O43+Q43 -> 0 | Z43: =D43+F43+I43+L43+N43+P43+R43 -> 0 | AC43: =SUMIF($C$8:$R$8,AC$8,$C43:$R43)-S43 -> 0 | AD43: =SUMIF($C$8:$R$8,AD$8,$C43:$R43)-Z43 -> 0
A44: 85130 | B44: davon aus nicht verbrauchte Spendenmittel/Erbschaften | C44: =C41 -> -49568.57 | D44: =D41 -> -64017.62 | E44: =E41 -> -13890.08 | F44: =F41 -> -19115.74 | G44: =G41 -> -291897.28 | I44: =I41 -> -200666.8 | J44: =-SUMIF(INDIRECT("Erb"&$Z$1&"!$A:$A"),$A44,INDIRECT("Erb"&$Z$1&"!$G:$G")) -> 0 | L44: =SUM(IF(DiffErb22!$G$1:$G$40=$A44,IF(DiffErb22!$F$1:$F$40=$Z$1,DiffErb22!$D$1:$D$40))) -> 0 | M44: =M41 -> -2600 | N44: -2350 | O44: -72324.71 | P44: -41633.52 | Q44: 0 | R44: 0 | S44: =C44+E44+G44+J44+M44+O44+Q44 -> -430280.64 | Z44: =D44+F44+I44+L44+N44+P44+R44 -> -327783.68 | AC44: =SUMIF($C$8:$R$8,AC$8,$C44:$R44)-S44 -> 0 | AD44: =SUMIF($C$8:$R$8,AD$8,$C44:$R44)-Z44 -> 0
A46: Stand 31.12.
A47: Rücklagen Erbschaften/Spenden | S47: =SUM(S48:S49) -> 0 | T47: =SUM(T48:T49) -> 0 | U47: 0 | V47: 0 | W47: 0 | X47: 0 | Y47: 0 | Z47: 0
B48: Rücklagen Erbschaften | J48: =J20+J41-J51 -> 0 | L48: =SUMIF(INDIRECT($Z$1&"22!$B:$B"),$B48,INDIRECT($Z$1&"22!$J:$J")) -> 0 | S48: =J48 -> 0 | Z48: =L48 -> 0 | AC48: =SUMIF($C$8:$R$8,AC$8,$C48:$R48)-S48 -> 0 | AD48: =SUMIF($C$8:$R$8,AD$8,$C48:$R48)-Z48 -> 0
B49: Rücklagen Spenden | S49: =G49 -> 0 | Z49: =I49 -> 0 | AC49: =SUMIF($C$8:$R$8,AC$8,$C49:$R49)-S49 -> 0 | AD49: =SUMIF($C$8:$R$8,AD$8,$C49:$R49)-Z49 -> 0
A50: Noch nicht verbrauchte Spendenmittel/Erbschaften | S50: =SUM(S51:S52) -> 285801.63 | T50: 0 | U50: 0 | V50: 0 | W50: 0 | X50: 0 | Y50: 0 | Z50: 429281.35
B51: nicht verbrauchte Erbschaften | J51: =-SUMIF(INDIRECT("Erb"&$Z$1&"!$B:$B"),$A14,INDIRECT("Erb"&$Z$1&"!$F:$F")) -> 0 | L51: =SUMIF(INDIRECT($Z$1&"22!$B:$B"),$B51,INDIRECT($Z$1&"22!$J:$J")) -> 0 | S51: =J51 -> 0 | Z51: =L51 -> 0 | AC51: =SUMIF($C$8:$R$8,AC$8,$C51:$R51)-S51 -> 0 | AD51: =SUMIF($C$8:$R$8,AD$8,$C51:$R51)-Z51 -> 0
B52: nicht verbrauchte Spendenmittel | G52: =(G20+G41) -> 285801.63 | I52: =I20+I41-I49 -> 429281.35 | S52: =G52 -> 285801.63 | Z52: =I52 -> 429281.35 | AC52: =SUMIF($C$8:$R$8,AC$8,$C52:$R52)-S52 -> 0 | AD52: =SUMIF($C$8:$R$8,AD$8,$C52:$R52)-Z52 -> 0
B55: =IF(INDIRECT("AW"&$Z$1&"!$A$50")=0,"","Spenden - Zeitungsaktionen: Bestand/Mitteleingang: " & -INDIRECT("AW"&$Z$1&"!$C$50") - INDIRECT("AW"&$Z$1&"!$J$50") & " € ./. Mittelverwendung: " & INDIRECT("AW"&$Z$1&"!$E$50") & " € ergibt nicht verbrauchte Spendenmittel: " & -INDIRECT("AW"&$Z$1&"!$F$50") & " €.") -> 
B56: Verprobungen1 | C56: =C18+C41 -> 0 | D56: =D18+D41 -> 0 | E56: =E18+E41 -> 0 | F56: =F18+F41 -> 0 | G56: =G17-I52 -> 0 | H56: =H41-SUMIF(INDIRECT("AW"&$Z$1&"!$B:$B"),$A$17,INDIRECT("AW"&$Z$1&"!$G:$G")) -> 0 | J56: =-SUMIF(INDIRECT("Erb"&$Z$1&"!$B:$B"),$A13,INDIRECT("Erb"&$Z$1&"!$F:$F"))-J48 -> 0 | L56: =ROUND(L48,2)-J13 -> 0 | M56: =M19+M41 -> 0 | N56: 0 | O56: 0 | P56: 0 | Q56: 0 | R56: 0 | S56: =S41-SUM(S43:S44) -> 0 | Z56: =Z41-SUM(Z43:Z44) -> 0
B57: Verprobungen2 | G57: =-SUMIF(INDIRECT("AW"&$Z$1&"!$B:$B"),$A$17,INDIRECT("AW"&$Z$1&"!$F:$F"))-G$52 -> 0 | J57: =-SUMIF(INDIRECT("Erb"&$Z$1&"!$B:$B"),$A14,INDIRECT("Erb"&$Z$1&"!$F:$F"))-J51 -> 0 | L57: =L51-J16 -> 0 | S57: =SUMIF(VerprobVerwend!$D:$D,$Z$1,VerprobVerwend!$B:$B)-S41 -> 0
G58: =-SUMIF(INDIRECT("AW"&$Z$1&"!$B:$B"),$A$17,INDIRECT("AW"&$Z$1&"!$J:$J"))-G$18-G$19 -> 0
C60: =IF(SUM(C18:C19)=0,"",SUM(C18:C19)) -> 49568.57 | E60: =IF(SUM(E18:E19)=0,"",SUM(E18:E19)) -> 13890.08 | G60: =IF(SUM(G18:G19)=0,"",SUM(G18:G19)) -> 148417.56 | J60: =IF(SUM(J18:J19)=0,"",SUM(J18:J19)) ->  | M60: =IF(SUM(M18:M19)=0,"",SUM(M18:M19)) -> 2600 | O60: =IF(SUM(O18:O19)=0,"",SUM(O18:O19)) -> 72324.71 | Q60: =IF(SUM(Q18:Q19)=0,"",SUM(Q18:Q19)) -> 
C61: =IF(SUM(C18:C19)=0,"",C7) -> Spendenbriefe | E61: =IF(SUM(E18:E19)=0,"",E7) -> Sammeltagsmittel | G61: =IF(SUM(G18:G19)=0,"",G7) -> Weitere (Geld)Spenden | J61: =IF(SUM(J18:J19)=0,"",J7) ->  | M61: =IF(SUM(M18:M19)=0,"",M7) -> Bußgelder | O61: =IF(SUM(O18:O19)=0,"",O7) -> Stiftungsmittel | Q61: =IF(SUM(Q18:Q19)=0,"",Q7) -> 
C64: ="Verwendung der Spenden in " & RIGHT($C$8,4) & " Caritas " & INDEX(IndexCrGb!$D:$E,MATCH($Z$1,IndexCrGb!$E:$E,0),1) -> Verwendung der Spenden in 2023 Caritas Heilbronn-Hohenlohe
C65: ="Spendeneingänge " & RIGHT($C$8,4) & " Caritas " & INDEX(IndexCrGb!$D:$E,MATCH($Z$1,IndexCrGb!$E:$E,0),1) -> Spendeneingänge 2023 Caritas Heilbronn-Hohenlohe

Sheet FilsNeckarAlb
A1: Spendenbilanz Caritasverband der Diözese Rottenburg-Stuttgart e.V. | Z1: FNA
A3: ="Mandant: "& INDEX(IndexCrGb!$D:$E,MATCH($Z$1,IndexCrGb!$E:$E,0),1) -> Mandant: Fils-Neckar-Alb | G3: Stichtag: | I3: 2023-12-31
C7: Spendenbriefe | E7: Sammeltagsmittel | G7: Weitere (Geld)Spenden | J7: Erbschaften | M7: Bußgelder | O7: Stiftungsmittel | Q7: Sachspenden | S7: Summe | Z7: Summe
C8: 2023 | D8: 2022 | E8: 2023 | F8: 2022 | G8: 2023 | H8: davon aus Vorjahren | I8: 2022 | J8: 2023 | K8: davon aus Vorjahren | L8: 2022 | M8: 2023 | N8: 2022 | O8: 2023 | P8: 2022 | Q8: 2023 | R8: 2022 | S8: 2023 | Z8: 2022 | AC8: =S8 -> 2023 | AD8: =Z8 -> 2022
C9: EUR | D9: EUR | E9: EUR | F9: EUR | G9: EUR | H9: EUR | I9: EUR | J9: EUR | K9: EUR | L9: EUR | M9: EUR | N9: EUR | O9: EUR | P9: EUR | Q9: EUR | R9: EUR | S9: EUR | Z9: EUR
A11: Mittelherkunft 01.01.
A12: Rücklagen Erbschaften/Spenden | S12: =SUM(S13:S14) -> 0 | T12: 0 | U12: 0 | V12: 0 | W12: 0 | X12: 0 | Y12: 0 | Z12: 0
A13: ErbRückl | B13: Rücklagen Erbschaften | J13: =-SUMIF(INDIRECT("Erb"&$Z$1&"!$B:$B"),$A13,INDIRECT("Erb"&$Z$1&"!$C:$C")) -> 0 | L13: =SUMIF(INDIRECT($Z$1&"22!$B:$B"),$B13,INDIRECT($Z$1&"22!$J:$J")) -> 0 | S13: =J13 -> 0 | Z13: =L13 -> 0 | AC13: =SUMIF($C$8:$R$8,AC$8,$C13:$R13)-S13 -> 0 | AD13: =SUMIF($C$8:$R$8,AD$8,$C13:$R13)-Z13 -> 0
A14: ErbVerb | B14: Rücklagen Spenden | I14: =SUMIF(INDIRECT($Z$1&"22!$B:$B"),$B14,INDIRECT($Z$1&"22!$G:$G")) -> 0 | S14: =G14 -> 0 | Z14: =I14 -> 0
A15: Noch nicht verbrauchte Spendenmittel/Erbschaften | S15: =SUM(S16:S17) -> 833093.08 | T15: =T17 -> 0 | U15: 0 | V15: 0 | W15: 0 | X15: 0 | Y15: 0 | Z15: =SUM(Z16:Z17) -> 403276.37
A16: nicht verbrauchte Spendenmittel | B16: nicht verbrauchte Erbschaften | J16: =-SUMIF(INDIRECT("Erb"&$Z$1&"!$B:$B"),$A14,INDIRECT("Erb"&$Z$1&"!$C:$C")) -> 0 | L16: =SUMIF(INDIRECT($Z$1&"22!$B:$B"),$B16,INDIRECT($Z$1&"22!$J:$J")) -> 0 | S16: =J16 -> 0 | Z16: =L16 -> 0 | AC16: =SUMIF($C$8:$R$8,AC$8,$C16:$R16)-S16 -> 0 | AD16: =SUMIF($C$8:$R$8,AD$8,$C16:$R16)-Z16 -> 0
A17: Gesamt | B17: nicht verbrauchte Spendenmittel | G17: =-SUMIF(INDIRECT("AW"&$Z$1&"!$B:$B"),$A$17,INDIRECT("AW"&$Z$1&"!$C:$C")) -> 833093.08 | I17: =SUMIF(INDIRECT($Z$1&"22!$B:$B"),$A16,INDIRECT($Z$1&"22!$G:$G")) -> 403276.37 | S17: =C17+E17+G17 -> 833093.08 | Z17: =D17+F17+I17 -> 403276.37 | AC17: =SUMIF($C$8:$R$8,AC$8,$C17:$R17)-S17 -> 0 | AD17: =SUMIF($C$8:$R$8,AD$8,$C17:$R17)-Z17 -> 0
A18: Umbuchung von GB 01 | C18: =-SUM(IF(SpMailSaTaIst23!$G$1:$G$100=$Z$1,IF(SpMailSaTaIst23!$H$1:$H$100=IndexCrGb!$P$3,SpMailSaTaIst23!$E$1:$E$100))) -> 49568.57 | D18: =SUMIF(INDIRECT($Z$1&"22!$A:$A"),$A18,INDIRECT($Z$1&"22!$C:$C")) -> 64017.62 | E18: =-SUM(IF(SpMailSaTaIst23!$G$1:$G$100=$Z$1,IF(SpMailSaTaIst23!$H$1:$H$100=IndexCrGb!$P$4,SpMailSaTaIst23!$E$1:$E$100))) -> 26453.87 | F18: =SUMIF(INDIRECT($Z$1&"22!$A:$A"),$A18,INDIRECT($Z$1&"22!$E:$E")) -> 32517.15 | G18: =-SUMIF(INDIRECT("AW"&$Z$1&"!$B:$B"),$A$17,INDIRECT("AW"&$Z$1&"!$I:$I")) -> 0 | I18: =SUMIF(INDIRECT($Z$1&"22!$A:$A"),$A18,INDIRECT($Z$1&"22!$G:$G")) -> 0 | J18: =-SUMIF(INDIRECT("Erb"&$Z$1&"!$B:$B"),$A17,INDIRECT("Erb"&$Z$1&"!$I:$I")) -> 0 | L18: =SUMIF(INDIRECT($Z$1&"22!$A:$A"),$A18,INDIRECT($Z$1&"22!$J:$J")) -> 0 | S18: =C18+E18+G18+J18+M18+O18+Q18 -> 76022.44 | Z18: =D18+F18+I18+L18+N18+P18+R18 -> 96534.77 | AC18: =SUMIF($C$8:$R$8,AC$8,$C18:$R18)-S18 -> 0 | AD18: =SUMIF($C$8:$R$8,AD$8,$C18:$R18)-Z18 -> 0
A19: Zufluss | G19: =-SUMIF(INDIRECT("AW"&$Z$1&"!$B:$B"),$A$17,INDIRECT("AW"&$Z$1&"!$D:$D")) -> 474887.68 | I19: =SUMIF(INDIRECT($Z$1&"22!$A:$A"),$A19,INDIRECT($Z$1&"22!$G:$G")) -> 782855.32 | J19: =-SUMIF(INDIRECT("Erb"&$Z$1&"!$B:$B"),$A17,INDIRECT("Erb"&$Z$1&"!$D:$D")) -> 14775.18 | L19: =SUMIF(INDIRECT($Z$1&"22!$A:$A"),$A19,INDIRECT($Z$1&"22!$J:$J")) -> 0 | M19: =-SUMIF(Bussgelder23!$F:$F,$Z$1,Bussgelder23!$C:$C) -> 72073 | N19: =SUMIF(INDIRECT($Z$1&"22!$A:$A"),$A19,INDIRECT($Z$1&"22!$M:$M")) -> 75160 | O19: =-SUMIF(Fördermittel23!$F:$F,$Z$1,Fördermittel23!$C:$C) -> 126400.4 | P19: =SUMIF(INDIRECT($Z$1&"22!$A:$A"),$A19,INDIRECT($Z$1&"22!$O:$O")) -> 115064.86 | Q19: =-SUMIF(Sachspenden23!$F:$F,$Z$1,Sachspenden23!$C:$C) -> 130867.14 | R19: =SUMIF(INDIRECT($Z$1&"22!$A:$A"),$A19,INDIRECT($Z$1&"22!$Q:$Q")) -> 101703.06 | S19: =G19+J19+M19+O19+Q19 -> 819003.4 | Z19: =I19+L19+N19+P19+R19 -> 1074783.24 | AC19: =SUMIF($C$8:$R$8,AC$8,$C19:$R19)-S19 -> 0 | AD19: =SUMIF($C$8:$R$8,AD$8,$C19:$R19)-Z19 -> 0
C20: =SUM(C18:C19) -> 49568.57 | D20: =SUM(D18:D19) -> 64017.62 | E20: =SUM(E18:E19) -> 26453.87 | F20: =SUM(F18:F19) -> 32517.15 | G20: =SUM(G14:G19) -> 1307980.76 | H20: =SUM(H18:H19) -> 0 | I20: =SUM(I13:I19) -> 1186131.69 | J20: =SUM(J13:J19) -> 14775.18 | K20: =SUM(K18:K19) -> 0 | L20: =SUM(L11:L19) -> 0 | M20: =SUM(M19) -> 72073 | N20: 75160 | O20: 126400.4 | P20: 115064.86 | Q20: 130867.14 | R20: 101703.06 | S20: =S12+S15+S18+S19 -> 1728118.92 | T20: 0 | U20: 0 | V20: 0 | W20: 0 | X20: 0 | Y20: 0 | Z20: 1574594.38 | AC20: =SUMIF($C$8:$R$8,AC$8,$C20:$R20)-S20 -> 0 | AD20: =SUMIF($C$8:$R$8,AD$8,$C20:$R20)-Z20 -> 0
A22: Mittelverwendung
B23: =SpBilanzVerd2022!$J$3 -> Caritasarbeit allgemein | C23: =SUM(IF(SpMailSaTaIst23!$G$1:$G$100=$Z$1,IF(SpMailSaTaIst23!$I$1:$I$100=$B23,IF(SpMailSaTaIst23!$H$1:$H$100=IndexCrGb!$P$3,SpMailSaTaIst23!$E$1:$E$100)))) -> 0 | D23: =SUMIF(INDIRECT($Z$1&"22!$B:$B"),$B23,INDIRECT($Z$1&"22!$C:$C")) -> 0 | E23: =SUM(IF(SpMailSaTaIst23!$G$1:$G$100=$Z$1,IF(SpMailSaTaIst23!$I$1:$I$100=$B23,IF(SpMailSaTaIst23!$H$1:$H$100=IndexCrGb!$P$4,SpMailSaTaIst23!$E$1:$E$100)))) -> 0 | F23: =SUMIF(INDIRECT($Z$1&"22!$B:$B"),$B23,INDIRECT($Z$1&"22!$E:$E")) -> 0 | G23: =-SUMIF(INDIRECT("AW"&$Z$1&"!$B:$B"),$B23,INDIRECT("AW"&$Z$1&"!$E:$E")) -> -2850 | H23: =SUMIF(INDIRECT("AW"&$Z$1&"!$B:$B"),$B23,INDIRECT("AW"&$Z$1&"!$G:$G")) -> -2850 | I23: =SUMIF(INDIRECT($Z$1&"22!$B:$B"),$B23,INDIRECT($Z$1&"22!$G:$G")) -> -950 | J23: =-SUMIF(INDIRECT("Erb"&$Z$1&"!$B:$B"),$B23,INDIRECT("Erb"&$Z$1&"!$E:$E")) -> 0 | K23: =SUMIF(INDIRECT("Erb"&$Z$1&"!$B:$B"),$B23,INDIRECT("Erb"&$Z$1&"!$G:$G")) -> 0 | L23: =SUMIF(INDIRECT($Z$1&"22!$B:$B"),$B23,INDIRECT($Z$1&"22!$J:$J")) -> 0 | M23: =SUM(IF(Bussgelder23!$F$1:$F$100=$Z$1,IF(Bussgelder23!$E$1:$E$100=$B23,Bussgelder23!$C$1:$C$100))) -> -5000 | N23: =SUMIF(INDIRECT($Z$1&"22!$B:$B"),$B23,INDIRECT($Z$1&"22!$M:$M")) -> -15080.6 | O23: =SUM(IF(Fördermittel23!$F$1:$F$100=$Z$1,IF(Fördermittel23!$E$1:$E$100=$B23,Fördermittel23!$C$1:$C$100))) -> -3000 | P23: =SUMIF(INDIRECT($Z$1&"22!$B:$B"),$B23,INDIRECT($Z$1&"22!$O:$O")) -> 0 | Q23: =SUM(IF(Sachspenden23!$F$1:$F$100=$Z$1,IF(Sachspenden23!$E$1:$E$100=$B23,Sachspenden23!$C$1:$C$100))) -> 0 | R23: =SUMIF(INDIRECT($Z$1&"22!$B:$B"),$B23,INDIRECT($Z$1&"22!$Q:$Q")) -> 0 | S23: =C23+E23+G23+J23+M23+O23+Q23 -> -10850 | Z23: =D23+F23+I23+L23+N23+P23+R23 -> -16030.6 | AA23: =IF(S23=0,"",-S23) -> 10850 | AB23: =IF(S23=0,"",$B23) -> Caritasarbeit allgemein | AC23: =SUMIF($C$8:$R$8,AC$8,$C23:$R23)-S23 -> 0 | AD23: =SUMIF($C$8:$R$8,AD$8,$C23:$R23)-Z23 -> 0
B24: =SpBilanzVerd2022!$J$2 -> Existenzsicherung | C24: =SUM(IF(SpMailSaTaIst23!$G$1:$G$100=$Z$1,IF(SpMailSaTaIst23!$I$1:$I$100=$B24,IF(SpMailSaTaIst23!$H$1:$H$100=IndexCrGb!$P$3,SpMailSaTaIst23!$E$1:$E$100)))) -> -15390.86 | D24: -61558.23 | E24: =SUM(IF(SpMailSaTaIst23!$G$1:$G$100=$Z$1,IF(SpMailSaTaIst23!$I$1:$I$100=$B24,IF(SpMailSaTaIst23!$H$1:$H$100=IndexCrGb!$P$4,SpMailSaTaIst23!$E$1:$E$100)))) -> -26453.87 | F24: -20517.15 | G24: =-SUMIF(INDIRECT("AW"&$Z$1&"!$B:$B"),$B24,INDIRECT("AW"&$Z$1&"!$E:$E")) -> -228066.43 | H24: =SUMIF(INDIRECT("AW"&$Z$1&"!$B:$B"),$B24,INDIRECT("AW"&$Z$1&"!$G:$G")) -> -145208.57 | I24: -238726.64 | J24: 0 | K24: 0 | L24: 0 | M24: =SUM(IF(Bussgelder23!$F$1:$F$100=$Z$1,IF(Bussgelder23!$E$1:$E$100=$B24,Bussgelder23!$C$1:$C$100))) -> -47808 | N24: -12409.4 | O24: =SUM(IF(Fördermittel23!$F$1:$F$100=$Z$1,IF(Fördermittel23!$E$1:$E$100=$B24,Fördermittel23!$C$1:$C$100))) -> -502.75 | P24: -1508.65 | Q24: =SUM(IF(Sachspenden23!$F$1:$F$100=$Z$1,IF(Sachspenden23!$E$1:$E$100=$B24,Sachspenden23!$C$1:$C$100))) -> -130055.35 | R24: -100440.45 | S24: -448277.26 | Z24: -435160.52 | AA24: 448277.26 | AB24: Existenzsicherung | AC24: 0 | AD24: 0
B25: =SpBilanzVerd2022!$J$10 -> Familienhilfen | C25: =SUM(IF(SpMailSaTaIst23!$G$1:$G$100=$Z$1,IF(SpMailSaTaIst23!$I$1:$I$100=$B25,IF(SpMailSaTaIst23!$H$1:$H$100=IndexCrGb!$P$3,SpMailSaTaIst23!$E$1:$E$100)))) -> 0 | D25: 0 | E25: =SUM(IF(SpMailSaTaIst23!$G$1:$G$100=$Z$1,IF(SpMailSaTaIst23!$I$1:$I$100=$B25,IF(SpMailSaTaIst23!$H$1:$H$100=IndexCrGb!$P$4,SpMailSaTaIst23!$E$1:$E$100)))) -> 0 | F25: 0 | G25: =-SUMIF(INDIRECT("AW"&$Z$1&"!$B:$B"),$B25,INDIRECT("AW"&$Z$1&"!$E:$E")) -> -8900 | H25: =SUMIF(INDIRECT("AW"&$Z$1&"!$B:$B"),$B25,INDIRECT("AW"&$Z$1&"!$G:$G")) -> -5291.37 | I25: -10812.09 | J25: 0 | K25: 0 | L25: 0 | M25: =SUM(IF(Bussgelder23!$F$1:$F$100=$Z$1,IF(Bussgelder23!$E$1:$E$100=$B25,Bussgelder23!$C$1:$C$100))) -> 0 | N25: 0 | O25: =SUM(IF(Fördermittel23!$F$1:$F$100=$Z$1,IF(Fördermittel23!$E$1:$E$100=$B25,Fördermittel23!$C$1:$C$100))) -> 0 | P25: 0 | Q25: =SUM(IF(Sachspenden23!$F$1:$F$100=$Z$1,IF(Sachspenden23!$E$1:$E$100=$B25,Sachspenden23!$C$1:$C$100))) -> -351.79 | R25: -213.1 | S25: -9251.79 | Z25: -11025.19 | AA25: 9251.79 | AB25: Familienhilfen | AC25: 0 | AD25: 0
B26: =SpBilanzVerd2022!$J$6 -> Kinder- und Jugendhilfe | C26: =SUM(IF(SpMailSaTaIst23!$G$1:$G$100=$Z$1,IF(SpMailSaTaIst23!$I$1:$I$100=$B26,IF(SpMailSaTaIst23!$H$1:$H$100=IndexCrGb!$P$3,SpMailSaTaIst23!$E$1:$E$100)))) -> -14565.73 | D26: -2459.39 | E26: =SUM(IF(SpMailSaTaIst23!$G$1:$G$100=$Z$1,IF(SpMailSaTaIst23!$I$1:$I$100=$B26,IF(SpMailSaTaIst23!$H$1:$H$100=IndexCrGb!$P$4,SpMailSaTaIst23!$E$1:$E$100)))) -> 0 | F26: -8000 | G26: =-SUMIF(INDIRECT("AW"&$Z$1&"!$B:$B"),$B26,INDIRECT("AW"&$Z$1&"!$E:$E")) -> -70685.75 | H26: =SUMIF(INDIRECT("AW"&$Z$1&"!$B:$B"),$B26,INDIRECT("AW"&$Z$1&"!$G:$G")) -> -69720.62 | I26: -35921.08 | J26: 0 | K26: 0 | L26: 0 | M26: =SUM(IF(Bussgelder23!$F$1:$F$100=$Z$1,IF(Bussgelder23!$E$1:$E$100=$B26,Bussgelder23!$C$1:$C$100))) -> -9265 | N26: -23200 | O26: =SUM(IF(Fördermittel23!$F$1:$F$100=$Z$1,IF(Fördermittel23!$E$1:$E$100=$B26,Fördermittel23!$C$1:$C$100))) -> -122939.12 | P26: -113400.54 | Q26: =SUM(IF(Sachspenden23!$F$1:$F$100=$Z$1,IF(Sachspenden23!$E$1:$E$100=$B26,Sachspenden23!$C$1:$C$100))) -> -460 | R26: -1049.51 | S26: -217915.6 | Z26: -184030.52 | AA26: 217915.6 | AB26: Kinder- und Jugendhilfe | AC26: 0 | AD26: 0
B27: =SpBilanzVerd2022!$J$16 -> Jugendberufshilfe | C27: =SUM(IF(SpMailSaTaIst23!$G$1:$G$100=$Z$1,IF(SpMailSaTaIst23!$I$1:$I$100=$B27,IF(SpMailSaTaIst23!$H$1:$H$100=IndexCrGb!$P$3,SpMailSaTaIst23!$E$1:$E$100)))) -> 0 | D27: 0 | E27: =SUM(IF(SpMailSaTaIst23!$G$1:$G$100=$Z$1,IF(SpMailSaTaIst23!$I$1:$I$100=$B27,IF(SpMailSaTaIst23!$H$1:$H$100=IndexCrGb!$P$4,SpMailSaTaIst23!$E$1:$E$100)))) -> 0 | F27: 0 | G27: =-SUMIF(INDIRECT("AW"&$Z$1&"!$B:$B"),$B27,INDIRECT("AW"&$Z$1&"!$E:$E")) -> 0 | H27: =SUMIF(INDIRECT("AW"&$Z$1&"!$B:$B"),$B27,INDIRECT("AW"&$Z$1&"!$G:$G")) -> 0 | I27: 0 | J27: 0 | K27: 0 | L27: 0 | M27: =SUM(IF(Bussgelder23!$F$1:$F$100=$Z$1,IF(Bussgelder23!$E$1:$E$100=$B27,Bussgelder23!$C$1:$C$100))) -> 0 | N27: 0 | O27: =SUM(IF(Fördermittel23!$F$1:$F$100=$Z$1,IF(Fördermittel23!$E$1:$E$100=$B27,Fördermittel23!$C$1:$C$100))) -> 0 | P27: 0 | Q27: =SUM(IF(Sachspenden23!$F$1:$F$100=$Z$1,IF(Sachspenden23!$E$1:$E$100=$B27,Sachspenden23!$C$1:$C$100))) -> 0 | R27: 0 | S27: 0 | Z27: 0 | AC27: 0 | AD27: 0
B28: =SpBilanzVerd2022!$J$14 -> Behindertenhilfe | C28: =SUM(IF(SpMailSaTaIst23!$G$1:$G$100=$Z$1,IF(SpMailSaTaIst23!$I$1:$I$100=$B28,IF(SpMailSaTaIst23!$H$1:$H$100=IndexCrGb!$P$3,SpMailSaTaIst23!$E$1:$E$100)))) -> 0 | D28: 0 | E28: =SUM(IF(SpMailSaTaIst23!$G$1:$G$100=$Z$1,IF(SpMailSaTaIst23!$I$1:$I$100=$B28,IF(SpMailSaTaIst23!$H$1:$H$100=IndexCrGb!$P$4,SpMailSaTaIst23!$E$1:$E$100)))) -> 0 | F28: 0 | G28: =-SUMIF(INDIRECT("AW"&$Z$1&"!$B:$B"),$B28,INDIRECT("AW"&$Z$1&"!$E:$E")) -> 0 | H28: =SUMIF(INDIRECT("AW"&$Z$1&"!$B:$B"),$B28,INDIRECT("AW"&$Z$1&"!$G:$G")) -> 0 | I28: 0 | J28: 0 | K28: 0 | L28: 0 | M28: =SUM(IF(Bussgelder23!$F$1:$F$100=$Z$1,IF(Bussgelder23!$E$1:$E$100=$B28,Bussgelder23!$C$1:$C$100))) -> 0 | N28: 0 | O28: =SUM(IF(Fördermittel23!$F$1:$F$100=$Z$1,IF(Fördermittel23!$E$1:$E$100=$B28,Fördermittel23!$C$1:$C$100))) -> 0 | P28: 0 | Q28: =SUM(IF(Sachspenden23!$F$1:$F$100=$Z$1,IF(Sachspenden23!$E$1:$E$100=$B28,Sachspenden23!$C$1:$C$100))) -> 0 | R28: 0 | S28: 0 | Z28: 0 | AC28: 0 | AD28: 0
B29: =SpBilanzVerd2022!$J$9 -> Altenhilfe/Hospizdienste | C29: =SUM(IF(SpMailSaTaIst23!$G$1:$G$100=$Z$1,IF(SpMailSaTaIst23!$I$1:$I$100=$B29,IF(SpMailSaTaIst23!$H$1:$H$100=IndexCrGb!$P$3,SpMailSaTaIst23!$E$1:$E$100)))) -> -5000 | D29: 0 | E29: =SUM(IF(SpMailSaTaIst23!$G$1:$G$100=$Z$1,IF(SpMailSaTaIst23!$I$1:$I$100=$B29,IF(SpMailSaTaIst23!$H$1:$H$100=IndexCrGb!$P$4,SpMailSaTaIst23!$E$1:$E$100)))) -> 0 | F29: -4000 | G29: =-SUMIF(INDIRECT("AW"&$Z$1&"!$B:$B"),$B29,INDIRECT("AW"&$Z$1&"!$E:$E")) -> 0 | H29: =SUMIF(INDIRECT("AW"&$Z$1&"!$B:$B"),$B29,INDIRECT("AW"&$Z$1&"!$G:$G")) -> 0 | I29: 0 | J29: 0 | K29: 0 | L29: 0 | M29: =SUM(IF(Bussgelder23!$F$1:$F$100=$Z$1,IF(Bussgelder23!$E$1:$E$100=$B29,Bussgelder23!$C$1:$C$100))) -> 0 | N29: 0 | O29: =SUM(IF(Fördermittel23!$F$1:$F$100=$Z$1,IF(Fördermittel23!$E$1:$E$100=$B29,Fördermittel23!$C$1:$C$100))) -> -51.53 | P29: -155.67 | Q29: =SUM(IF(Sachspenden23!$F$1:$F$100=$Z$1,IF(Sachspenden23!$E$1:$E$100=$B29,Sachspenden23!$C$1:$C$100))) -> 0 | R29: 0 | S29: -5051.53 | Z29: -4155.67 | AA29: 5051.53 | AB29: Altenhilfe/Hospizdienste | AC29: 0 | AD29: 0
B30: =SpBilanzVerd2022!$J$12 -> Sozialpsychiatrischer Dienst | C30: =SUM(IF(SpMailSaTaIst23!$G$1:$G$100=$Z$1,IF(SpMailSaTaIst23!$I$1:$I$100=$B30,IF(SpMailSaTaIst23!$H$1:$H$100=IndexCrGb!$P$3,SpMailSaTaIst23!$E$1:$E$100)))) -> 0 | D30: 0 | E30: =SUM(IF(SpMailSaTaIst23!$G$1:$G$100=$Z$1,IF(SpMailSaTaIst23!$I$1:$I$100=$B30,IF(SpMailSaTaIst23!$H$1:$H$100=IndexCrGb!$P$4,SpMailSaTaIst23!$E$1:$E$100)))) -> 0 | F30: 0 | G30: =-SUMIF(INDIRECT("AW"&$Z$1&"!$B:$B"),$B30,INDIRECT("AW"&$Z$1&"!$E:$E")) -> 0 | H30: =SUMIF(INDIRECT("AW"&$Z$1&"!$B:$B"),$B30,INDIRECT("AW"&$Z$1&"!$G:$G")) -> 0 | I30: 0 | J30: 0 | K30: 0 | L30: 0 | M30: =SUM(IF(Bussgelder23!$F$1:$F$100=$Z$1,IF(Bussgelder23!$E$1:$E$100=$B30,Bussgelder23!$C$1:$C$100))) -> 0 | N30: 0 | O30: =SUM(IF(Fördermittel23!$F$1:$F$100=$Z$1,IF(Fördermittel23!$E$1:$E$100=$B30,Fördermittel23!$C$1:$C$100))) -> 0 | P30: 0 | Q30: =SUM(IF(Sachspenden23!$F$1:$F$100=$Z$1,IF(Sachspenden23!$E$1:$E$100=$B30,Sachspenden23!$C$1:$C$100))) -> 0 | R30: 0 | S30: 0 | Z30: 0 | AC30: 0 | AD30: 0
B31: =SpBilanzVerd2022!$J$5 -> Suchthilfe | C31: =SUM(IF(SpMailSaTaIst23!$G$1:$G$100=$Z$1,IF(SpMailSaTaIst23!$I$1:$I$100=$B31,IF(SpMailSaTaIst23!$H$1:$H$100=IndexCrGb!$P$3,SpMailSaTaIst23!$E$1:$E$100)))) -> 0 | D31: 0 | E31: =SUM(IF(SpMailSaTaIst23!$G$1:$G$100=$Z$1,IF(SpMailSaTaIst23!$I$1:$I$100=$B31,IF(SpMailSaTaIst23!$H$1:$H$100=IndexCrGb!$P$4,SpMailSaTaIst23!$E$1:$E$100)))) -> 0 | F31: 0 | G31: =-SUMIF(INDIRECT("AW"&$Z$1&"!$B:$B"),$B31,INDIRECT("AW"&$Z$1&"!$E:$E")) -> 0 | H31: =SUMIF(INDIRECT("AW"&$Z$1&"!$B:$B"),$B31,INDIRECT("AW"&$Z$1&"!$G:$G")) -> 0 | I31: 0 | J31: 0 | K31: 0 | L31: 0 | M31: =SUM(IF(Bussgelder23!$F$1:$F$100=$Z$1,IF(Bussgelder23!$E$1:$E$100=$B31,Bussgelder23!$C$1:$C$100))) -> 0 | N31: 0 | O31: =SUM(IF(Fördermittel23!$F$1:$F$100=$Z$1,IF(Fördermittel23!$E$1:$E$100=$B31,Fördermittel23!$C$1:$C$100))) -> 0 | P31: 0 | Q31: =SUM(IF(Sachspenden23!$F$1:$F$100=$Z$1,IF(Sachspenden23!$E$1:$E$100=$B31,Sachspenden23!$C$1:$C$100))) -> 0 | R31: 0 | S31: 0 | Z31: 0 | AC31: 0 | AD31: 0
B32: =SpBilanzVerd2022!$J$13 -> Migration | C32: =SUM(IF(SpMailSaTaIst23!$G$1:$G$100=$Z$1,IF(SpMailSaTaIst23!$I$1:$I$100=$B32,IF(SpMailSaTaIst23!$H$1:$H$100=IndexCrGb!$P$3,SpMailSaTaIst23!$E$1:$E$100)))) -> -14611.98 | D32: 0 | E32: =SUM(IF(SpMailSaTaIst23!$G$1:$G$100=$Z$1,IF(SpMailSaTaIst23!$I$1:$I$100=$B32,IF(SpMailSaTaIst23!$H$1:$H$100=IndexCrGb!$P$4,SpMailSaTaIst23!$E$1:$E$100)))) -> 0 | F32: 0 | G32: =-SUMIF(INDIRECT("AW"&$Z$1&"!$B:$B"),$B32,INDIRECT("AW"&$Z$1&"!$E:$E")) -> -145000 | H32: =SUMIF(INDIRECT("AW"&$Z$1&"!$B:$B"),$B32,INDIRECT("AW"&$Z$1&"!$G:$G")) -> -145000 | I32: -66328.8 | J32: 0 | K32: 0 | L32: 0 | M32: =SUM(IF(Bussgelder23!$F$1:$F$100=$Z$1,IF(Bussgelder23!$E$1:$E$100=$B32,Bussgelder23!$C$1:$C$100))) -> 0 | N32: -300 | O32: =SUM(IF(Fördermittel23!$F$1:$F$100=$Z$1,IF(Fördermittel23!$E$1:$E$100=$B32,Fördermittel23!$C$1:$C$100))) -> 93 | P32: 0 | Q32: =SUM(IF(Sachspenden23!$F$1:$F$100=$Z$1,IF(Sachspenden23!$E$1:$E$100=$B32,Sachspenden23!$C$1:$C$100))) -> 0 | R32: 0 | S32: -159518.98 | Z32: -66628.8 | AA32: 159518.98 | AB32: Migration | AC32: 0 | AD32: 0
B33: =SpBilanzVerd2022!$J$7 -> Wohnungslosenhilfe | C33: =SUM(IF(SpMailSaTaIst23!$G$1:$G$100=$Z$1,IF(SpMailSaTaIst23!$I$1:$I$100=$B33,IF(SpMailSaTaIst23!$H$1:$H$100=IndexCrGb!$P$3,SpMailSaTaIst23!$E$1:$E$100)))) -> 0 | D33: 0 | E33: =SUM(IF(SpMailSaTaIst23!$G$1:$G$100=$Z$1,IF(SpMailSaTaIst23!$I$1:$I$100=$B33,IF(SpMailSaTaIst23!$H$1:$H$100=IndexCrGb!$P$4,SpMailSaTaIst23!$E$1:$E$100)))) -> 0 | F33: 0 | G33: =-SUMIF(INDIRECT("AW"&$Z$1&"!$B:$B"),$B33,INDIRECT("AW"&$Z$1&"!$E:$E")) -> 0 | H33: =SUMIF(INDIRECT("AW"&$Z$1&"!$B:$B"),$B33,INDIRECT("AW"&$Z$1&"!$G:$G")) -> 0 | I33: 0 | J33: 0 | K33: 0 | L33: 0 | M33: =SUM(IF(Bussgelder23!$F$1:$F$100=$Z$1,IF(Bussgelder23!$E$1:$E$100=$B33,Bussgelder23!$C$1:$C$100))) -> 0 | N33: 0 | O33: =SUM(IF(Fördermittel23!$F$1:$F$100=$Z$1,IF(Fördermittel23!$E$1:$E$100=$B33,Fördermittel23!$C$1:$C$100))) -> 0 | P33: 0 | Q33: =SUM(IF(Sachspenden23!$F$1:$F$100=$Z$1,IF(Sachspenden23!$E$1:$E$100=$B33,Sachspenden23!$C$1:$C$100))) -> 0 | R33: 0 | S33: 0 | Z33: 0 | AC33: 0 | AD33: 0
B34: =SpBilanzVerd2022!$J$4 -> Gemeindenahe Netzwerke | C34: =SUM(IF(SpMailSaTaIst23!$G$1:$G$100=$Z$1,IF(SpMailSaTaIst23!$I$1:$I$100=$B34,IF(SpMailSaTaIst23!$H$1:$H$100=IndexCrGb!$P$3,SpMailSaTaIst23!$E$1:$E$100)))) -> 0 | D34: 0 | E34: =SUM(IF(SpMailSaTaIst23!$G$1:$G$100=$Z$1,IF(SpMailSaTaIst23!$I$1:$I$100=$B34,IF(SpMailSaTaIst23!$H$1:$H$100=IndexCrGb!$P$4,SpMailSaTaIst23!$E$1:$E$100)))) -> 0 | F34: 0 | G34: =-SUMIF(INDIRECT("AW"&$Z$1&"!$B:$B"),$B34,INDIRECT("AW"&$Z$1&"!$E:$E")) -> 0 | H34: =SUMIF(INDIRECT("AW"&$Z$1&"!$B:$B"),$B34,INDIRECT("AW"&$Z$1&"!$G:$G")) -> 0 | I34: 0 | J34: 0 | K34: 0 | L34: 0 | M34: =SUM(IF(Bussgelder23!$F$1:$F$100=$Z$1,IF(Bussgelder23!$E$1:$E$100=$B34,Bussgelder23!$C$1:$C$100))) -> 0 | N34: 0 | O34: =SUM(IF(Fördermittel23!$F$1:$F$100=$Z$1,IF(Fördermittel23!$E$1:$E$100=$B34,Fördermittel23!$C$1:$C$100))) -> 0 | P34: 0 | Q34: =SUM(IF(Sachspenden23!$F$1:$F$100=$Z$1,IF(Sachspenden23!$E$1:$E$100=$B34,Sachspenden23!$C$1:$C$100))) -> 0 | R34: 0 | S34: 0 | Z34: 0 | AC34: 0 | AD34: 0
B35: =SpBilanzVerd2022!$J$8 -> Arbeitshilfen | C35: =SUM(IF(SpMailSaTaIst23!$G$1:$G$100=$Z$1,IF(SpMailSaTaIst23!$I$1:$I$100=$B35,IF(SpMailSaTaIst23!$H$1:$H$100=IndexCrGb!$P$3,SpMailSaTaIst23!$E$1:$E$100)))) -> 0 | D35: 0 | E35: =SUM(IF(SpMailSaTaIst23!$G$1:$G$100=$Z$1,IF(SpMailSaTaIst23!$I$1:$I$100=$B35,IF(SpMailSaTaIst23!$H$1:$H$100=IndexCrGb!$P$4,SpMailSaTaIst23!$E$1:$E$100)))) -> 0 | F35: 0 | G35: =-SUMIF(INDIRECT("AW"&$Z$1&"!$B:$B"),$B35,INDIRECT("AW"&$Z$1&"!$E:$E")) -> 0 | H35: =SUMIF(INDIRECT("AW"&$Z$1&"!$B:$B"),$B35,INDIRECT("AW"&$Z$1&"!$G:$G")) -> 0 | I35: 0 | J35: 0 | K35: 0 | L35: 0 | M35: =SUM(IF(Bussgelder23!$F$1:$F$100=$Z$1,IF(Bussgelder23!$E$1:$E$100=$B35,Bussgelder23!$C$1:$C$100))) -> -10000 | N35: -24170 | O35: =SUM(IF(Fördermittel23!$F$1:$F$100=$Z$1,IF(Fördermittel23!$E$1:$E$100=$B35,Fördermittel23!$C$1:$C$100))) -> 0 | P35: 0 | Q35: =SUM(IF(Sachspenden23!$F$1:$F$100=$Z$1,IF(Sachspenden23!$E$1:$E$100=$B35,Sachspenden23!$C$1:$C$100))) -> 0 | R35: 0 | S35: -10000 | Z35: -24170 | AA35: 10000 | AB35: Arbeitshilfen | AC35: 0 | AD35: 0
B36: =SpBilanzVerd2022!$J$17 -> Diverse Zweckhinweise | C36: =SUM(IF(SpMailSaTaIst23!$G$1:$G$100=$Z$1,IF(SpMailSaTaIst23!$I$1:$I$100=$B36,IF(SpMailSaTaIst23!$H$1:$H$100=IndexCrGb!$P$3,SpMailSaTaIst23!$E$1:$E$100)))) -> 0 | D36: 0 | E36: =SUM(IF(SpMailSaTaIst23!$G$1:$G$100=$Z$1,IF(SpMailSaTaIst23!$I$1:$I$100=$B36,IF(SpMailSaTaIst23!$H$1:$H$100=IndexCrGb!$P$4,SpMailSaTaIst23!$E$1:$E$100)))) -> 0 | F36: 0 | G36: =-SUMIF(INDIRECT("AW"&$Z$1&"!$B:$B"),$B36,INDIRECT("AW"&$Z$1&"!$E:$E")) -> 0 | H36: =SUMIF(INDIRECT("AW"&$Z$1&"!$B:$B"),$B36,INDIRECT("AW"&$Z$1&"!$G:$G")) -> 0 | I36: 0 | J36: 0 | K36: 0 | L36: 0 | M36: =SUM(IF(Bussgelder23!$F$1:$F$100=$Z$1,IF(Bussgelder23!$E$1:$E$100=$B36,Bussgelder23!$C$1:$C$100))) -> 0 | N36: 0 | O36: =SUM(IF(Fördermittel23!$F$1:$F$100=$Z$1,IF(Fördermittel23!$E$1:$E$100=$B36,Fördermittel23!$C$1:$C$100))) -> 0 | P36: 0 | Q36: =SUM(IF(Sachspenden23!$F$1:$F$100=$Z$1,IF(Sachspenden23!$E$1:$E$100=$B36,Sachspenden23!$C$1:$C$100))) -> 0 | R36: 0 | S36: 0 | Z36: 0 | AC36: 0 | AD36: 0
B37: =SpBilanzVerd2022!$L$18 -> Sonstiges | C37: =SUM(IF(SpMailSaTaIst23!$G$1:$G$100=$Z$1,IF(SpMailSaTaIst23!$I$1:$I$100=$B37,IF(SpMailSaTaIst23!$H$1:$H$100=IndexCrGb!$P$3,SpMailSaTaIst23!$E$1:$E$100)))) -> 0 | D37: 0 | E37: =SUM(IF(SpMailSaTaIst23!$G$1:$G$100=$Z$1,IF(SpMailSaTaIst23!$I$1:$I$100=$B37,IF(SpMailSaTaIst23!$H$1:$H$100=IndexCrGb!$P$4,SpMailSaTaIst23!$E$1:$E$100)))) -> 0 | F37: 0 | G37: =-SUMIF(INDIRECT("AW"&$Z$1&"!$B:$B"),$B37,INDIRECT("AW"&$Z$1&"!$E:$E")) -> 0 | H37: =SUMIF(INDIRECT("AW"&$Z$1&"!$B:$B"),$B37,INDIRECT("AW"&$Z$1&"!$G:$G")) -> 0 | I37: 0 | J37: 0 | K37: 0 | L37: 0 | M37: =SUM(IF(Bussgelder23!$F$1:$F$100=$Z$1,IF(Bussgelder23!$E$1:$E$100=$B37,Bussgelder23!$C$1:$C$100))) -> 0 | N37: 0 | O37: =SUM(IF(Fördermittel23!$F$1:$F$100=$Z$1,IF(Fördermittel23!$E$1:$E$100=$B37,Fördermittel23!$C$1:$C$100))) -> 0 | P37: 0 | Q37: =SUM(IF(Sachspenden23!$F$1:$F$100=$Z$1,IF(Sachspenden23!$E$1:$E$100=$B37,Sachspenden23!$C$1:$C$100))) -> 0 | R37: 0 | S37: 0 | Z37: 0 | AC37: 0 | AD37: 0
B38: =SpBilanzVerd2022!$J$11 -> Weiterleitung an Dritte | C38: =SUM(IF(SpMailSaTaIst23!$G$1:$G$100=$Z$1,IF(SpMailSaTaIst23!$I$1:$I$100=$B38,IF(SpMailSaTaIst23!$H$1:$H$100=IndexCrGb!$P$3,SpMailSaTaIst23!$E$1:$E$100)))) -> 0 | D38: 0 | E38: =SUM(IF(SpMailSaTaIst23!$G$1:$G$100=$Z$1,IF(SpMailSaTaIst23!$I$1:$I$100=$B38,IF(SpMailSaTaIst23!$H$1:$H$100=IndexCrGb!$P$4,SpMailSaTaIst23!$E$1:$E$100)))) -> 0 | F38: 0 | G38: =-SUMIF(INDIRECT("AW"&$Z$1&"!$B:$B"),$B38,INDIRECT("AW"&$Z$1&"!$E:$E")) -> -200 | H38: =SUMIF(INDIRECT("AW"&$Z$1&"!$B:$B"),$B38,INDIRECT("AW"&$Z$1&"!$G:$G")) -> 0 | I38: -300 | J38: 0 | K38: 0 | L38: 0 | M38: =SUM(IF(Bussgelder23!$F$1:$F$100=$Z$1,IF(Bussgelder23!$E$1:$E$100=$B38,Bussgelder23!$C$1:$C$100))) -> 0 | N38: 0 | O38: =SUM(IF(Fördermittel23!$F$1:$F$100=$Z$1,IF(Fördermittel23!$E$1:$E$100=$B38,Fördermittel23!$C$1:$C$100))) -> 0 | P38: 0 | Q38: =SUM(IF(Sachspenden23!$F$1:$F$100=$Z$1,IF(Sachspenden23!$E$1:$E$100=$B38,Sachspenden23!$C$1:$C$100))) -> 0 | R38: 0 | S38: -200 | Z38: -300 | AA38: 200 | AB38: Weiterleitung an Dritte | AC38: 0 | AD38: 0
B39: =SpBilanzVerd2022!$L$19 -> Werbung und allgemeine Öffentlichkeitsarbeit | C39: =SUM(IF(SpMailSaTaIst23!$G$1:$G$100=$Z$1,IF(SpMailSaTaIst23!$I$1:$I$100=$B39,IF(SpMailSaTaIst23!$H$1:$H$100=IndexCrGb!$P$3,SpMailSaTaIst23!$E$1:$E$100)))) -> 0 | D39: 0 | E39: =SUM(IF(SpMailSaTaIst23!$G$1:$G$100=$Z$1,IF(SpMailSaTaIst23!$I$1:$I$100=$B39,IF(SpMailSaTaIst23!$H$1:$H$100=IndexCrGb!$P$4,SpMailSaTaIst23!$E$1:$E$100)))) -> 0 | F39: 0 | G39: =-SUMIF(INDIRECT("AW"&$Z$1&"!$B:$B"),$B39,INDIRECT("AW"&$Z$1&"!$E:$E")) -> 0 | H39: =SUMIF(INDIRECT("AW"&$Z$1&"!$B:$B"),$B39,INDIRECT("AW"&$Z$1&"!$G:$G")) -> 0 | I39: 0 | J39: 0 | K39: 0 | L39: 0 | M39: =SUM(IF(Bussgelder23!$F$1:$F$100=$Z$1,IF(Bussgelder23!$E$1:$E$100=$B39,Bussgelder23!$C$1:$C$100))) -> 0 | N39: 0 | O39: =SUM(IF(Fördermittel23!$F$1:$F$100=$Z$1,IF(Fördermittel23!$E$1:$E$100=$B39,Fördermittel23!$C$1:$C$100))) -> 0 | P39: 0 | Q39: =SUM(IF(Sachspenden23!$F$1:$F$100=$Z$1,IF(Sachspenden23!$E$1:$E$100=$B39,Sachspenden23!$C$1:$C$100))) -> 0 | R39: 0 | S39: 0 | Z39: 0 | AC39: 0 | AD39: 0
B40: =SpBilanzVerd2022!$J$15 -> Verwaltung | C40: =SUM(IF(SpMailSaTaIst23!$G$1:$G$100=$Z$1,IF(SpMailSaTaIst23!$I$1:$I$100=$B40,IF(SpMailSaTaIst23!$H$1:$H$100=IndexCrGb!$P$3,SpMailSaTaIst23!$E$1:$E$100)))) -> 0 | D40: 0 | E40: =SUM(IF(SpMailSaTaIst23!$G$1:$G$100=$Z$1,IF(SpMailSaTaIst23!$I$1:$I$100=$B40,IF(SpMailSaTaIst23!$H$1:$H$100=IndexCrGb!$P$4,SpMailSaTaIst23!$E$1:$E$100)))) -> 0 | F40: 0 | G40: =-SUMIF(INDIRECT("AW"&$Z$1&"!$B:$B"),$B40,INDIRECT("AW"&$Z$1&"!$E:$E")) -> 0 | H40: =SUMIF(INDIRECT("AW"&$Z$1&"!$B:$B"),$B40,INDIRECT("AW"&$Z$1&"!$G:$G")) -> 0 | I40: 0 | J40: 0 | K40: 0 | L40: 0 | M40: =SUM(IF(Bussgelder23!$F$1:$F$100=$Z$1,IF(Bussgelder23!$E$1:$E$100=$B40,Bussgelder23!$C$1:$C$100))) -> 0 | N40: 0 | O40: =SUM(IF(Fördermittel23!$F$1:$F$100=$Z$1,IF(Fördermittel23!$E$1:$E$100=$B40,Fördermittel23!$C$1:$C$100))) -> 0 | P40: 0 | Q40: =SUM(IF(Sachspenden23!$F$1:$F$100=$Z$1,IF(Sachspenden23!$E$1:$E$100=$B40,Sachspenden23!$C$1:$C$100))) -> 0 | R40: 0 | S40: 0 | Z40: 0 | AC40: 0 | AD40: 0
C41: =SUM(C23:C40) -> -49568.57 | D41: -64017.62 | E41: -26453.87 | F41: -32517.15 | G41: -455702.18 | H41: -368070.56 | I41: -353038.61 | J41: 0 | K41: 0 | L41: 0 | M41: -72073 | N41: -75160 | O41: -126400.4 | P41: -115064.86 | Q41: -130867.14 | R41: -101703.06 | S41: -861065.16 | Z41: =SUM(Z23:Z40) -> -741501.3 | AC41: 0 | AD41: 0
A43: 88396 | B43: davon aus Rücklagen | J43: =-SUMIF(INDIRECT("Erb"&$Z$1&"!$A:$A"),$A43,INDIRECT("Erb"&$Z$1&"!$G:$G")) -> 0 | L43: =SUM(IF(DiffErb22!$G$1:$G$40=$A43,IF(DiffErb22!$F$1:$F$40=$Z$1,DiffErb22!$D$1:$D$40))) -> 0 | S43: =C43+E43+G43+J43+M43+O43+Q43 -> 0 | Z43: =D43+F43+I43+L43+N43+P43+R43 -> 0 | AC43: =SUMIF($C$8:$R$8,AC$8,$C43:$R43)-S43 -> 0 | AD43: =SUMIF($C$8:$R$8,AD$8,$C43:$R43)-Z43 -> 0
A44: 85130 | B44: davon aus nicht verbrauchte Spendenmittel/Erbschaften | C44: =C41 -> -49568.57 | D44: =D41 -> -64017.62 | E44: =E41 -> -26453.87 | F44: =F41 -> -32517.15 | G44: =G41 -> -455702.18 | I44: =I41 -> -353038.61 | J44: =-SUMIF(INDIRECT("Erb"&$Z$1&"!$A:$A"),$A44,INDIRECT("Erb"&$Z$1&"!$G:$G")) -> 0 | L44: =SUM(IF(DiffErb22!$G$1:$G$40=$A44,IF(DiffErb22!$F$1:$F$40=$Z$1,DiffErb22!$D$1:$D$40))) -> 0 | M44: =M41 -> -72073 | N44: -75160 | O44: -126400.4 | P44: -115064.86 | Q44: -130867.14 | R44: -101703.06 | S44: =C44+E44+G44+J44+M44+O44+Q44 -> -861065.16 | Z44: =D44+F44+I44+L44+N44+P44+R44 -> -741501.3 | AC44: =SUMIF($C$8:$R$8,AC$8,$C44:$R44)-S44 -> 0 | AD44: =SUMIF($C$8:$R$8,AD$8,$C44:$R44)-Z44 -> 0
A46: Stand 31.12.
A47: Rücklagen Erbschaften/Spenden | S47: =SUM(S48:S49) -> 0 | T47: =SUM(T48:T49) -> 0 | U47: 0 | V47: 0 | W47: 0 | X47: 0 | Y47: 0 | Z47: 0
B48: Rücklagen Erbschaften | J48: =J20+J41-J51 -> 0 | L48: =SUMIF(INDIRECT($Z$1&"22!$B:$B"),$B48,INDIRECT($Z$1&"22!$J:$J")) -> 0 | S48: =J48 -> 0 | Z48: =L48 -> 0 | AC48: =SUMIF($C$8:$R$8,AC$8,$C48:$R48)-S48 -> 0 | AD48: =SUMIF($C$8:$R$8,AD$8,$C48:$R48)-Z48 -> 0
B49: Rücklagen Spenden | S49: =G49 -> 0 | Z49: =I49 -> 0 | AC49: =SUMIF($C$8:$R$8,AC$8,$C49:$R49)-S49 -> 0 | AD49: =SUMIF($C$8:$R$8,AD$8,$C49:$R49)-Z49 -> 0
A50: Noch nicht verbrauchte Spendenmittel/Erbschaften | S50: =SUM(S51:S52) -> 867053.76 | T50: 0 | U50: 0 | V50: 0 | W50: 0 | X50: 0 | Y50: 0 | Z50: 833093.08
B51: nicht verbrauchte Erbschaften | J51: =-SUMIF(INDIRECT("Erb"&$Z$1&"!$B:$B"),$A14,INDIRECT("Erb"&$Z$1&"!$F:$F")) -> 14775.18 | L51: =SUMIF(INDIRECT($Z$1&"22!$B:$B"),$B51,INDIRECT($Z$1&"22!$J:$J")) -> 0 | S51: =J51 -> 14775.18 | Z51: =L51 -> 0 | AC51: =SUMIF($C$8:$R$8,AC$8,$C51:$R51)-S51 -> 0 | AD51: =SUMIF($C$8:$R$8,AD$8,$C51:$R51)-Z51 -> 0
B52: nicht verbrauchte Spendenmittel | G52: =(G20+G41) -> 852278.58 | I52: =I20+I41-I49 -> 833093.08 | S52: =G52 -> 852278.58 | Z52: =I52 -> 833093.08 | AC52: =SUMIF($C$8:$R$8,AC$8,$C52:$R52)-S52 -> 0 | AD52: =SUMIF($C$8:$R$8,AD$8,$C52:$R52)-Z52 -> 0
B55: =IF(INDIRECT("AW"&$Z$1&"!$A$50")=0,"","Spenden - Zeitungsaktionen: Bestand/Mitteleingang: " & -INDIRECT("AW"&$Z$1&"!$C$50") - INDIRECT("AW"&$Z$1&"!$J$50") & " € ./. Mittelverwendung: " & INDIRECT("AW"&$Z$1&"!$E$50") & " € ergibt nicht verbrauchte Spendenmittel: " & -INDIRECT("AW"&$Z$1&"!$F$50") & " €.") -> 
B56: Verprobungen1 | C56: =C18+C41 -> 0 | D56: =D18+D41 -> 0 | E56: =E18+E41 -> 0 | F56: =F18+F41 -> 0 | G56: =G17-I52 -> 0 | H56: =H41-SUMIF(INDIRECT("AW"&$Z$1&"!$B:$B"),$A$17,INDIRECT("AW"&$Z$1&"!$G:$G")) -> 0 | J56: =-SUMIF(INDIRECT("Erb"&$Z$1&"!$B:$B"),$A13,INDIRECT("Erb"&$Z$1&"!$F:$F"))-J48 -> 0 | L56: =ROUND(L48,2)-J13 -> 0 | M56: =M19+M41 -> 0 | N56: 0 | O56: 0 | P56: 0 | Q56: 0 | R56: 0 | S56: =S41-SUM(S43:S44) -> 0 | Z56: =Z41-SUM(Z43:Z44) -> 0
B57: Verprobungen2 | G57: =-SUMIF(INDIRECT("AW"&$Z$1&"!$B:$B"),$A$17,INDIRECT("AW"&$Z$1&"!$F:$F"))-G$52 -> 0 | J57: =-SUMIF(INDIRECT("Erb"&$Z$1&"!$B:$B"),$A14,INDIRECT("Erb"&$Z$1&"!$F:$F"))-J51 -> 0 | L57: =L51-J16 -> 0 | S57: =SUMIF(VerprobVerwend!$D:$D,$Z$1,VerprobVerwend!$B:$B)-S41 -> 0
G58: =-SUMIF(INDIRECT("AW"&$Z$1&"!$B:$B"),$A$17,INDIRECT("AW"&$Z$1&"!$J:$J"))-G$18-G$19 -> 0
C60: =IF(SUM(C18:C19)=0,"",SUM(C18:C19)) -> 49568.57 | E60: =IF(SUM(E18:E19)=0,"",SUM(E18:E19)) -> 26453.87 | G60: =IF(SUM(G18:G19)=0,"",SUM(G18:G19)) -> 474887.68 | J60: =IF(SUM(J18:J19)=0,"",SUM(J18:J19)) -> 14775.18 | M60: =IF(SUM(M18:M19)=0,"",SUM(M18:M19)) -> 72073 | O60: =IF(SUM(O18:O19)=0,"",SUM(O18:O19)) -> 126400.4 | Q60: =IF(SUM(Q18:Q19)=0,"",SUM(Q18:Q19)) -> 130867.14
